{"text_format":"3","workbook":"xlsx","n_sheets":36,"sheets":["Conversions","Liste","LISEZ-MOI","Recueil_consentement","onglet_contrôle","Conso","Page de garde","Id_CR_SF","Sommaire","CRP SOUMIS EQUILIBRE","CRP NON SOUMIS EQUIL","CRA_SF","Synthèse CR","ERRD synthétique","Tabl. de financement","Tableau CAF","Bilan financier","Ratios financiers","Tableau Rcc","Provis°, dépréciat°, subvent","Emprunts ESSMS privés","ESSMS publics Dettes fin.1","ESSMS publics Dettes fin.2","ESSMS publics Dettes fin.3","ESSMS publics Dettes fin.4","ESSMS publics Dettes fin.5","ESSMS publics Dettes fin.6","ESSMS publics Dettes fin.7","ESSMS publics Dettes fin.8","Affectation_Resultats_Prive_I","Affectation_Resultats_Prive_II","Affectation_Resultats_Public_I","Affectation_Resultats_Public_II","Suivi_Affect_Result_Prive_I","Suivi_Affect_Result_Prive_II","Suivi_Affect_Result_Public"],"not_rendered":{"images":15,"macros":1,"defined_names":2967,"comments":1},"read":"whole","date_system":"1900"}

{"sheet":"Conversions","index":0,"n_rows":2,"n_cols":2,"rows_kept":2,"hidden":true}
["Date d'effet du contrat pluriannuel d'objectifs et de moyens :",{"$f":"'Page de garde'!D22","v":0}]
["Date de génération du fichier ",{"$f":"'Page de garde'!$A$4","v":0}]

{"sheet":"Liste","index":1,"n_rows":43,"n_cols":5,"rows_kept":43,"hidden":true}
["statut","oui_non","categorie","Convention collective","Categorie_Id_CR_SF"]
[]
["Etablissement Public","Oui","AJA","29 - Convention collective nationale des établissements privés d'hospitalisation, de soins, de cure et de garde à but non lucratif (FEHAP, convention de 1951)","Accueil de jour adossé"]
["Etat & Col.Territ.","Non","BAPU","405 - Convention collective nationale des établissements médico-sociaux de l'union intersyndicale des secteurs sanitaires et sociaux (UNISSS, FFESCPE, convention de 1965, enfants, adolescents )","Budget commercial ESAT"]
["Org. Privé Commer.",null,"CAFS","413 - Convention collective nationale de travail des établissements et services pour personnes inadaptées et handicapées (convention de 1966, SNAPEI)","DNA"]
["Org.Privé non Lucr.",null,"CAMSP","783 - Convention collective des centres d'hébergement et de réadaptation sociale et dans les services d'accueil, d'orientation et d'insertion pour adultes (CHRS, SOP )","SIC"]
[null,null,"CMPP","1001 - Convention collective nationale du 1 mars 1979 des médecins spécialistes qualifiés au regard du conseil de l'ordre travaillant dans les établissements et services pour personnes inadaptées et handicapées","Autres"]
[null,null,"CPO","1031 - Convention collective nationale de la fédération nationale des associations familiales rurales (FNAFR)"]
[null,null,"CR","1261 - Convention collective nationale des acteurs du lien social et familial : centres sociaux et socioculturels, associations d'accueil de jeunes enfants, associations de développement social local (SNAECSO)"]
[null,null,"CRP","1565 - Convention collective des services de soins infirmiers à domicile pour personnes âgées de la Guadeloupe"]
[null,null,"EAM","2046 - Convention collective nationale du personnel non médical des centres de lutte contre le cancer"]
[null,null,"EANM","2941 - Convention collective de la branche de l'aide, de l'accompagnement, des soins et des services à domicile"]
[null,null,"EATAH","5502 - Convention d'entreprise Croix Rouge"]
[null,null,"EATEH","5524 - Convention d'entreprise France terre d'asile"]
[null,null,"EEAH","Annexe du 10 décembre 2002 à la convention collective du 18 avril 2002"]
[null,null,"EEAP","Statut public"]
[null,null,"EEEH","Autre"]
[null,null,"EEPA"]
[null,null,"EHPA perc crédit AM"]
[null,null,"EHPA sans crédit AM"]
[null,null,"EHPAD"]
[null,null,"ESAT"]
[null,null,"FAM"]
[null,null,"Foyer de vie A.H."]
[null,null,"Foyer Heb.Enf.Ado.H."]
[null,null,"Foyer Héberg.A.H."]
[null,null,"IDA"]
[null,null,"IDV"]
[null,null,"IEM"]
[null,null,"IESPESA"]
[null,null,"IME"]
[null,null,"ITEP"]
[null,null,"JES"]
[null,null,"MAS"]
[null,null,"Résidence autonomie"]
[null,null,"SAAD"]
[null,null,"SAMSAH"]
[null,null,"SAVS"]
[null,null,"SESSAD"]
[null,null,"SPASAD"]
[null,null,"SSIAD"]
[null,null,"UEROS"]
[null,null,"Autre"]

{"sheet":"LISEZ-MOI","index":2,"n_rows":238,"n_cols":4,"rows_kept":238,"merged":[[1,1,1,11],[3,2,3,11],[4,2,4,11],[5,2,5,11],[9,2,9,11],[10,2,10,11],[11,2,12,11],[14,2,14,11],[15,2,15,11],[17,2,17,8],[19,2,19,11],[21,2,21,8],[22,2,22,8],[23,2,23,11],[24,2,24,8],[25,2,25,11],[27,2,27,11],[28,2,28,11],[31,2,32,11],[34,2,34,11],[35,2,36,11],[40,2,40,11],[42,2,42,11],[44,2,44,11],[48,2,48,11],[55,2,55,11],[57,2,57,11],[58,2,58,11],[60,2,60,11],[63,2,63,11],[67,2,67,11],[68,2,68,11],[69,2,69,11],[77,2,77,11],[80,2,80,11],[81,2,81,11],[83,2,83,11],[84,2,84,11],[88,2,88,11],[90,2,90,11],[91,2,91,11],[92,2,92,11],[94,2,94,11],[98,1,98,11],[100,2,100,7],[101,2,101,11],[102,2,102,11],[104,2,104,7],[105,2,105,11],[107,2,107,7],[110,2,110,7],[113,3,113,11],[114,3,114,11],[116,2,116,7],[121,2,121,7],[125,2,125,7],[127,2,127,11],[130,2,130,7],[133,2,133,7],[135,2,135,11],[137,2,137,7],[140,2,140,7],[141,2,141,11],[143,2,143,7],[144,2,144,11],[146,2,146,7],[149,2,149,7],[152,2,152,7],[155,2,155,7],[158,2,158,7],[159,2,159,11],[161,2,161,7],[162,2,162,11],[164,2,164,7],[165,2,165,11],[167,2,167,7],[168,2,168,11],[170,2,170,7],[171,2,171,11],[173,2,173,7],[174,2,174,11],[176,2,176,7],[177,2,177,11],[179,2,179,7],[180,2,180,11],[182,2,182,7],[183,2,183,11],[185,2,185,7],[186,2,186,11],[188,2,188,7],[189,2,189,11],[191,2,191,7],[194,2,194,7],[195,2,195,11],[197,2,197,7],[198,2,198,11],[200,2,200,7],[201,2,201,11],[203,2,203,10],[204,2,204,11],[206,2,206,10],[207,2,207,11],[209,2,209,10],[210,2,210,11],[212,2,212,10],[213,2,213,11],[215,2,215,10],[216,2,216,11],[218,2,218,10],[219,2,219,11],[221,2,221,10],[222,2,222,11],[224,2,224,10],[225,2,225,11],[227,2,227,10],[228,2,228,11],[230,2,230,10],[231,2,231,11],[233,2,233,10],[234,2,234,11],[236,2,236,10],[237,2,237,11]]}
[null,"Dernière mise à jour : février 2026"]
[null,"Lisez-moi du cadre \"ERRD complet\""]
[]
[null,null,"Points de vigilance : \nL'attention des gestionnaires est appelée sur la complétude et la fiabilité des informations saisies dans le cadre ERRD et ses annexes, afin de sécuriser la procédure d'analyse et maintenir la qualité de la base de données collectée."]
[null,null,"Ce cadre correspond à l'état réalisé des recettes et des dépenses (ERRD) complet prévu à l'article R. 314-232 du code de l'action sociale et des familles (CASF) et conforme au modèle figurant à l'annexe 8 de l'arrêté du 27 décembre 2016 modifié par l'arrêté du 15 décembre 2020 (NOR: SSAA2030779A).\nDans un souci d'adaptation permanente aux pratiques et sans préjudice des obligations générales de dépôt de l'ERRD, des ajustements ponctuels peuvent être apportés par rapport aux modèles joints à l'arrêté précité et régularisés ultérieurement par un arrêté modificatif."]
[null,null,"Cette notice, qui n’a qu’une valeur indicative, ne reprend pas toutes les explications nécessaires à l’élaboration des ERRD et ne se substitue pas à la documentation officielle de l'administration. Les organismes gestionnaires et les autorités de tarification peuvent contacter la direction générale de la cohésion sociale (DGCS) pour connaître son interprétation formelle des textes législatifs et réglementaires en vigueur.\nVous avez des suggestions à faire sur le contenu de ce LISEZ-MOI (informations manquantes, intitulés pas suffisamment clairs, non-conformité...) ? Contactez l’équipe référente EPRD-ERRD de la CNSA."]
[]
[null,null,"I.- Quels sont les organismes gestionnaires (OG) concernés par ce cadre ? "]
[]
[null,null,"=> Les organismes gestionnaires de tout statut juridique, hors établissements publics de santé (soumis au cadre de présentation de l'ERCP), qui gèrent, à titre exclusif ou non, des EHPAD*, que leurs tarifs hébergement soient fixés ou non par le Conseil Départemental ou la Métropole. "]
[null,null,"A noter : en application du décret n° 2022-734 du 28 avril 2022 (NOR : SSAA2208053D), le cadre de présentation de l'ERRD simplifié n'est plus à utiliser à compter de l'exercice budgétaire et comptable 2023."]
[null,null,"=> les OG privés, les établissements publics sociaux et médico-sociaux autonomes (EPSMS), les CCAS et CIAS qui gèrent, à titre exclusif ou non, des établissements/services/activités compris dans le périmètre d'un CPOM \"PH-SSIAD-AJA\" (article L. 313-12-2** du CASF) signé avant le 1er janvier de l'exercice N (ou conclu au cours de l'exercice N si les parties prenantes ont opté pour une mise en place anticipée de l’EPRD dès l’année de signature du CPOM, conformément aux dispositions de l’article 61 de la loi n°2019-774 du 24 juillet 2019 relative à l’organisation et à la transformation du système de santé). "]
[]
[]
[null,null,"* Dont les petites unités de vie (PUV)"]
[null,null,"** ESMS relevant de l’article L. 313-12-2 du CASF : AJA, structures d’hébergement temporaires pour personnes âgées ou personnes handicapées, IME, IEM, IES, EEAP (et autres instituts accueillant des enfants handicapés), ITEP, CAFS, CAMSP, SESSAD, CMPP, CRP, CPO, MAS, FAM, SAMSAH, ESAT, BAPU, jardins d’enfants spécialisés, SPASAD et SSIAD."]
[]
[null,null,"II.- Quel est le périmètre de l'ERRD ? "]
[]
[null,null,"Le périmètre de l'ERRD N est identique à celui de l'EPRD N. Si un CPOM récent a modifié le périmètre de l'EPRD depuis le dernier dépôt, ce nouveau périmètre entre en application pour l'ERRD de l'exercice suivant la signature du CPOM."]
[]
[null,null,"=> EPSMS = toutes les activités de l'entité juridique"]
[null,null,"=> CCAS/CIAS = un ERRD par budget annexe contenant un ESMS inclus dans le CPOM"]
[null,null,"=> OG privés non lucratifs = périmètre CPOM* ou ensemble des établissements et services relevant du ressort territorial du contrat"]
[null,null,"=> OG privés commerciaux = périmètre CPOM*"]
[null,null,"(*) : c.-à-d. l'ensemble des ESSMS/activités médico-sociales pour lesquels une pluriannualité budgétaire est prévue dans le CPOM. \nDans l'attente de la signature de ce contrat, l'ERRD regroupe tous les EHPAD implantés dans le même département. Pour les établissements du champ du handicap (+ SSIAD et AJA), le cadre du BP reste applicable."]
[]
[null,null,"Concernant les CCAS/CIAS : un ERRD complet par budget annexe (BA)."]
[null,null,"Exemple: 1 BA regroupant 2 EHPAD (A et B) + 1 BA portant sur 1 EHPAD (C) = 2 ERRD, le premier regroupant les 2 EHPAD A et B  (avec un seul CRP pour ces 2 EHPAD) et le second portant sur l'unique EHPAD C."]
{"$rows_empty":9}
[null,null,"III.- Fonctionnement du cadre "]
[]
[null,null,"Ce cadre fonctionne sur la base d'un procédé de création automatique des onglets en remplissant le tableau de page de garde nommé « Etablissements et services relevant du périmètre de l'ERRD » et en cliquant sur l’icône : + , selon l’ordonnancement suivant : "]
[null,null,"1) Le finess juridique (FINESS EJ) doit être saisi dans le champ situé en haut de la page de garde (Champ nommé « N° FINESS (entité juridique) »)."]
[null,null,"2) Chacun des finess Etablissement (FINESS ET) relevant de l’organisme gestionnaire (c'est-à-dire du FINESS EJ renseigné plus haut) et inclus dans le périmètre de l’ERRD, doit être renseigné dans le tableau du bas de la page de garde \"Etablissements et services relevant du périmètre de l'ERRD\". "]
[]
[null,null,"Dans ce tableau, il convient de saisir une ligne par établissement ou service (nommé ci-après FINESS ET pour plus de simplicité), selon les modalités suivantes : "]
[null,null,"a) 1er FINESS ET : "]
[null,null,"i)     saisie de la première ligne"]
[null,null,"ii)   puis clic sur l’icône +"]
[null,null,"iii) l’onglet CRP* relatif au 1er FINESS ET ainsi que tous les onglets communs du cadre (\"Synthèse_CR\", \"ERRD synthétique\", \"Tabl.financement\", CAF, ratios financiers, état de la dette...) sont alors automatiquement générés."]
[null,null,"b) 2ème finess ET : "]
[null,null,"i)     saisie de la deuxième ligne"]
[null,null,"ii)   puis clic sur l’icône +"]
[null,null,"iii) l’onglet CRA** relatif au 2ème FINESS ET est alors automatiquement généré."]
[null,null,"c) Etc. "]
[]
[null,null,"Les champs à saisir obligatoirement sur chaque ligne, pour que les onglets soient effectivement générés, sont les suivants : \n- \"N° FINESS Etablissement\" \n- \"Catégorie\"\n-\" CRP soumis à l'obligation d'une présentation équilibrée - O/N\" (cf aide contextuelle sur le choix d'une présentation équilibrée ou pas)"]
[]
[null,null,"* CRP : compte de résultat principal (\"CRP NON SOUMIS EQUIL_N°FINESS ET\" si CRP non soumis à l'équilibre strict ou \"CRP SOUMIS EQUILIBRE_N°FINESS ET\" si CRP soumis à l'équilibre strict)\n** CRA : compte de résultat annexe (\"CRA NON SOUMIS EQUIL_N°FINESS ET\" ou \"CRA SOUMIS EQUILIBRE_N°FINESS ET\"). "]
[]
[null,null,"IV.- Consignes d'utilisation"]
[null,null,"Un emploi incorrect ne tenant pas compte des indications ci-dessous peut affecter les fonctionnalités automatiques du cadre, le bon déroulement du dépôt et la performance de la plateforme de dépôt des ERRD. "]
[null,null,"- Les cellules sur fond jaune sont à compléter manuellement. Les champs grisés sont des cellules verrouillées, qui peuvent contenir des formules de calcul automatique."]
[null,null,"- Le cadre normalisé n'est pas compatible avec Libre Office ni Open Office.  "]
[null,null,"- Veuillez ne pas copier ni déplacer le contenu d'une cellule vers une autre cellule (\"couper-coller\"/\"cliquer-glisser\"), ces actions pouvant endommager la structure des cadres Excel. Les macros de remplissage automatique des cellules ouvertes à la saisie sont possibles. "]
[null,null,"- Veuillez ne pas modifier tout élément de mise en page (comme les déplacements, insertions de lignes ou de colonnes)."]
[null,null,"- Le N° FINESS EJ saisi dans la page de garde doit être le même que le N° FINESS EJ du dossier de dépôt sur la plateforme de dépôt des ERRD. "]
[null,null,"- Les FINESS ET (Etablissement) saisis dans le tableau de la page de garde doivent correspondre aux FINESS ET affectés au dossier sur la plateforme de dépôt des ERRD. "]
[null,null,"- Le déverrouillage du fichier peut impacter la bonne marche des fonctions automatiques et la reconnaissance du fichier lors du dépôt sur la plateforme."]
[null,null,"- Ne jamais laisser de liens directs pointant vers des fichiers externes ni de formules dans les cellules ouvertes à la saisie. Ces liaisons entre classeurs ou ces formules génèrent des problèmes de lisibilité pouvant exclure l'établissement concerné des bases de la CNSA."]
[null,null,"- Ne pas utiliser le caractère « | » : ce caractère est généralement réservé pour des opérations techniques. Son utilisation dans les champs de saisie peut provoquer des dysfonctionnements sur la chaîne SI (traitements data ou autres)."]
[]
[null,null,"V.- Cas spécifique des activités sans FINESS"]
[]
[null,null,"Les activités non identifiées par un FINESS ET peuvent concerner notamment (liste non exhaustive) :"]
[null,null,"- budgets commerciaux des ESAT ; "]
[null,null,"- services industriels et commerciaux (SIC) ; "]
[null,null,"- dotations non affectées (DNA) ; "]
[null,null,"- modes d'accueil hors hébergement permament de plus de 25 places ou représentant plus du tiers de la capacité totale dans les établissements et services accueillant des enfants handicapés"]
[null,null,"- etc."]
[]
[null,null,"Afin de permettre leur intégration technique dans le présent cadre, il convient de saisir l'onglet \"Id_CR_SF\" selon le même procédé que le tableau de la page de garde décrit en III. ci-dessus, afin que les onglets des comptes de résultat sans Finess soient créés automatiquement. "]
[null,null,"Pour chaque ligne, un identifiant est créé automatiquement. Les onglets sont créés dans l'ordre de remplissage du tableau de l'onglet \"Id_CR_SF\" et sont nommés selon la règle suivante: CR_SF + n° n° identifiant. "]
[null,null,"Le modèle de compte de résultat créé est le compte de résultat non soumis à l'équilibre strict."]
[null,null,"Nous vous invitons à compléter le tableau de l'onglet \"Id_CR_SF\" selon le même ordonnancement chaque année, afin qu'un même numéro d'identification soit toujours attribué à la même activité."]
[null,null,"Tous les CR_SF sont pris en compte dans les calculs globaux (ERRD synthétique, CAF, etc.). Veillez à bien mettre en cohérence le CR de l'établissement d'adossement avec le CR_SF rattaché, en déduisant les charges et produits du CR_SF des montants indiqués dans le CR de l'établissement d'adossement."]
[]
[null,null,"VI.- Cas des OG commerciaux"]
[]
[null,null,"Les données renseignées dans le cadre de présentation de l'ERRD complet sont à présenter hors impôts sur les sociétés et participation des salariés."]
[]
[null,null,"Si l'ERRD est établi par un organisme commercial pour le compte de plusieurs sociétés gestionnaires d'EHPAD qu'il contrôle au sens de l'article L.233-3 du code de commerce, le fonctionnement du cadre décrit en III. ci-dessus est valable, même si les FINESS ET ne relèvent pas du même FINESS EJ.\nUn seul FINESS EJ, parmi les FINESS EJ d'une des sociétés contrôlées ou le FINESS EJ de la société mère, peut être indiqué dans le champ \"N° FINESS (entité juridique)\" de la page de garde. Le n° FINESS EJ sélectionné est laissé au choix de l'organisme gestionnaire. Ce n° FINESS EJ doit être le même que celui indiqué dans le dossier de dépôt de l'ERRD sur la plateforme de dépôt des ERRD."]
[null,null,"Pour rappel, sur la plateforme, l'organisme devra, au moment de son dépôt, cocher la case \"Société commerciale contrôlée\", afin de permettre le choix des FINESS EJ et l'affectation des établissements et services (FINESS ET) relevant de FINESS EJ différents. "]
[]
[]
[]
[]
[]
[]
[null,"Récapitulatif des aides contextuelles "]
[]
[null,1,"N° FINESS (entité juridique)"]
[null,null,"Indiquer le n° FINESS de l'organisme gestionnaire ou de l'établissement public en tant que personnalité morale titulaire des autorisations."]
[null,null,"Lorsque l'ERRD est établi par une société commerciale pour le compte d'une autre société contrôlée, indiquer le n° FINESS qui a été sélectionné pour déposer le fichier sur la plateforme. "]
[]
[null,2,"Première ligne du tableau de la page de garde"]
[null,null,"Saisir les informations du compte de résultat principal (CRP). Dans l'attente de la signature du CPOM, il peut s'agir du compte de résultat de l'établissement le plus ancien ou celui dont les dépenses d'exploitation sont les plus importantes. Ce choix peut être modifié lors de la signature du CPOM."]
[]
[null,3,"Deuxième ligne et lignes suivantes du tableau de la page de garde "]
[null,null,"Saisir les informations des comptes de résultat annexes (CRA). Une ligne par CRA est à saisir."]
[]
[null,4,"Icônes du tableau de la page de garde"]
[{"$nulls":3},": crée les onglets correspondants selon le procédé décrit dans le \"LISEZ-MOI\". "]
[{"$nulls":3},": supprime un CRA du tableau (dans la colonne C \"Etablissements et services\", sélectionnez la ligne à supprimer puis cliquez sur \"-\")."]
[{"$nulls":3},": modifie une saisie de n° FINESS Etablissement déjà enregistrée. Placez-vous sur la ligne dont la modification est souhaitée dans la colonne \"Etablissements et services\", puis cliquez sur l'icône. "]
[{"$nulls":3},"Les autres champs peuvent être modifiés excepté les items \"Catégorie\" et \"CRP soumis à l'obligation d'une présentation équilibrée - O/N\". Si vous souhaitez modifier ces derniers items, il convient au prélable de supprimer la ligne pour en créer une nouvelle (opération possible uniquement pour les CRA)."]
[]
[null,5,"N° FINESS Etablissement"]
[null,null,"Indiquer le n° FINESS de l'établissement, du service ou de l'activité. "]
[null,null,"Les FINESS saisis doivent impérativement correspondre aux FINESS ET affectés au dossier sur la plateforme de collecte des ERRD. "]
[null,null,"Ils doivent nécessairement relever du FINESS de l'entité juridique (sauf cas particulier des sociétés commerciales contrôlées). "]
[]
[null,6,"ESSMS relevant du périmètre du CPOM"]
[null,null,"Ce champ n'est à renseigner qu'après signature du CPOM. "]
[null,null,"Pour plus d'informations sur le périmètre de l'ERRD, cf. ci-dessus le § II de l'encadré \"LISEZ-MOI\". "]
[]
[null,7,"CRP soumis à l'obligation d'une présentation équilibrée"]
[null,null,"L'information renseignée ici doit être la même que celle saisie dans l'EPRD sauf si la situation de l'organisme gestionnaire a changé depuis le dépôt de l'EPRD (signature d'un CPOM). "]
[null,null,"=> NON : EHPAD + établissement, service ou activité dont les règles de fixation pluriannuelle du budget sont définies dans le CPOM (qu'ils soient sous compétence ARS exclusive, CD exclusive ou conjointe ARS/CD)"]
[null,null,"=> OUI : établissements, service ou activité non inclus dans le volet financier du CPOM + ESMS sous la compétence tarifaire du préfet. EHPAD non concernés."]
[]
[null,8,"Dénomination du CR sans n° FINESS"]
[null,null,"Donner un titre explicite : par exemple nom du site et structure de rattachement."]
[]
[null,9,"N° FINESS de rattachement"]
[null,null,"Saisir le n° FINESS de l'établissement, service ou activité auquel le budget est adossé (ESAT, AJ par ex.)."]
[null,null,"S'il n'existe pas de structure d'adossement, saisir le n° FINESS Etablissement de son choix (parmi ceux gérés par l'entité juridique) afin de le rattacher à une structure identifiée au sein du périmètre. Il est préconisé de ne pas changer le n° FINESS de rattachement d'une année sur l'autre."]
[]
[null,10,"Budget exercice N"]
[null,null,"Budget initial : saisir dans cette colonne l'EPRD initial validé (1er EPRD transmis et validé sur la plateforme de collecte des EPRD). "]
[]
[null,11,"Subventions d'investissement virées au résultat de l'exercice"]
[null,null,"Conformément aux conventions générales comptables et afin de ne pas fausser la présentation des ratios financiers, les quotes-parts de subventions d'investissement virées au compte de résultat doivent être enregistrées au compte 777 dans les produits exceptionnels des comptes de résultat du cadre ERRD."]
[]
[null,12,"Participations et créances rattachées à des participations"]
[null,null,"En cas de cession de titres de participations, l’écriture de sortie est constatée au compte 675 Valeur comptable des éléments d’actif cédés. Ce poste étant déjà pris en compte dans la CAF (lignes « Capacité d’autofinancement » / « Insuffisance d’autofinancement » du tableau de financement), il n’y a pas lieu d’ajouter une ligne spécifique « Participations et créances rattachées à des participations » dans la partie Ressources du tableau de financement (TF). \nLe prix de cession quant à lui est constaté au compte 775. Son montant étant, par convention, neutralisé dans le calcul de la CAF, il est repris dans une ligne dédiée « Produits des cessions d’éléments d’actif » de la partie Ressources du TF."]
[]
[null,13,"Immobilisations corporelles et incorporelles en cours"]
[null,null,"Saisir les comptes 23 sauf c/235."]
[]
[null,14,"Part Investissement PPP"]
[null,null,"Saisir les comptes 235."]
[]
[null,15,"Compte de résultat concerné"]
[null,null,"Indiquer la raison sociale du CR (ou la dénomination dans le cas d'un CR sans n° FINESS)."]
[]
[null,16,"Suventions d'investissement - comptes 13"]
[null,null,"Indiquer dans la 1ère colonne du tableau l'objet principal et la date d'attribution de la subvention."]
[]
[null,17,"Résultats repris"]
[null,null,"Information utile essentiellement pour la période de transition de l'environnement \"BP\" vers l'environnement \"EPRD\". Les résultats repris antérieurement dans le cadre de la tarification n'impactent pas le montant constaté comptablement des charges et des produits. Il s'agit de décisions strictement tarifaires. C'est pourquoi ils ne sont pas intégrés dans les calculs consolidés du présent fichier."]
[]
[null,18,"Ratios d'analyse financière - total des charges"]
[null,null,"Total des charges comptes de classe 6 - c/ 603, 609, 619, 629, 6419, 6429, 6439, 6459/ 69/79, 6489, 6611."]
[]
[null,19,"Tableau de répartition des charges communes et opérations faites en commun"]
[null,null,"Si besoin, ajouter des colonnes manuellement si plus de CRA doivent être indiqués."]
[]
[null,20,"Frais de siège"]
[null,null,"Les frais de siège autorisés sont à intégrer dans les comptes de résultat des établissements et services et à détailler dans le tableau de répartition des charges communes (onglet \"Tableau Rcc\" avec leur clef de répartition). Il n'existe pas de CR spécifique à un siège ou un service commun."]
[]
[null,21,"Fonds associatifs, apports, dotations et réserves"]
[null,null,"Les réserves (comptes 106) sont, par convention, exclues des ressources et emplois stables du tableau de financement, dans la mesure où les mouvements affectant ces comptes sont normalement sans impact sur la variation annuelle du FRNG."]
[]
[null,22,"Cohérence TF/Bilan financier"]
[null,null,"L'objectif du tableau de financement est de retracer la formation du fonds de roulement d'investissement. Il n'existe donc pas une stricte équivalence entre le fonds de roulement du tableau de financement et celui du bilan financier. La différence de périmètre est constituée principalement par les comptes de liaison stables de trésorerie pour les ESSMS privés, les autres mouvements liés au FRE étant par construction intégrés à la CAF. C'est pourquoi, pour les ESSMS privés, les mouvements de l'exercice sur les comptes de liaison stables de trésorerie sont réintégrés dans la variation du fonds de roulement présentée dans l'onglet \"ERRD synthétique\". "]
[]
[null,23,"Ratios de rotation des dettes fournisseurs"]
[null,null,"La méthodologie de calcul retenue dans le cadre normalisé ne prend pas en compte la TVA sur les achats, compte tenu de la diversité des régimes applicables."]
[]
[null,24,"Suivi des affectations de résultat"]
[null,null,"Ce tableau doit retracer tous les mouvements des comptes de réserves et report à nouveau au titre de l'exercice N (affectation des résultats, régularisations, etc.)."]
[]
[null,25,"Contrôle de la variation du fonds de roulement et de la trésorerie entre ERRD synthétique et Bilan financier"]
[null,null,"Contrôle de cohérence intégré à titre indicatif pour sécuriser la saisie. La variation du fonds de roulement calculée à partir du tableau de financement est corrigée, pour les ESSMS privés, des mouvements de l’exercice sur les comptes de liaison stables de trésorerie. Les écarts éventuels entre les agrégats \"FRNG\" et \"Trésorerie\" présentés dans l'onglet \"ERRD synthétique\" et ceux présentés dans l'onglet \"Bilan financier\" sont à justifier dans le rapport financier et d'activité. Ils ne sont pas bloquants pour le chargement du fichier sur la plateforme de dépôt des ERRD. "]
[]
[null,26,"Emprunts à plus d'un an"]
[null,null,"Les emprunts d'un an au plus ne font pas partie des ressources de long terme et sont donc à prendre en compte au niveau de la trésorerie (ligne \"Autres\"). Cela permet une homogénéité des emprunts entre l'ERRD synthétique et le bilan financier. Les données de l'ERRD N-1 sont à retraiter le cas échéant, pour assurer un périmètre harmonisé entre les exercices N/N-1."]
[]
[null,27,"Emprunts et dettes assimilées (ERRD synthétique et TF)"]
[null,null,"Uniquement les emprunts et dettes assimilées à plus d'un an. Les emprunts d'un an au plus ne font pas partie des ressources de long terme et sont donc à prendre en compte au niveau de la trésorerie."]
[]
[null,28,"Mouvements des comptes de liaison stables de trésorerie"]
[null,null,{"$f":"IF('Page de garde'!$D$4=\"\",\"Ce tableau retrace la variation nette des comptes de liaison trésorerie (stable) renseignés au bilan financier entre le 01/01/N et le 31/12/N.\",\"Ce tableau retrace la variation nette des comptes de liaison trésorerie (stable) renseignés au bilan financier entre le 01/01/\"&'Page de garde'!$D$4&\" et le 31/12/\"&'Page de garde'!$D$4&\".\")","v":"Ce tableau retrace la variation nette des comptes de liaison trésorerie (stable) renseignés au bilan financier entre le 01/01/N et le 31/12/N."}]
[]
[null,29,"Affectation de résultats des ESSMS inclus dans le périmètre du CPOM (lignes 10 et 11 de l'onglet \"Affectation_Resultats_Prive_I\")"]
[null,null,"a) Cas des ESSMS privés avant la signature du CPOM : l'affectation croisée des résultats entre ESSMS n'est pas autorisée.\nb) Cas des EHPAD privés relevant de l'art. L342-1 du CASF après la signature du CPOM : les résultats des différents comptes de résultat sont affectés aux comptes de résultat dont ils sont issus. Par dérogation à ce principe, le CPOM peut prévoir une affectation croisée des résultats entre les ESMS inclus dans le périmètre financier de ce contrat.\n- Ligne 10 : indiquer ici les diminutions du solde du compte 12 résultant du transfert vers un autre établissement (excédent) ou provenant d'un autre établissement (déficit).\n- Ligne 11 : indiquer ici les augmentations du solde du compte 12 résultant du transfert vers un autre établissement (déficit) ou provenant d'un autre établissement (excédent).\nLe compte 12 est l'excédent/le déficit inscrit au bilan de l'établissement ou du service."]
[]
[null,30,"Report à nouveau excédentaire effectué en application du b) du 1° de l'article R. 314-234 du CASF (c/ 11501)"]
[null,null,"Cette ligne est réservée aux ESSMS non soumis à l'équilibre strict, pour une affectation en report à nouveau excédentaire lorsqu'une affectation à un compte de réserve n'est pas privilégiée. \nDans le cas d'un déficit de l'exercice qui est couvert par le report à nouveau excédentaire, le montant du déficit (précédé du signe \"-\") est à inscrire en déduction du report à nouveau créditeur (ligne 11501 \"Report à nouveau excédentaire effectué en application du b) du 1° de l'article R. 314-234 du CASF\").\nA noter : Dans le cas d'un apurement de déficit antérieur à l'exercice N, il est préconisé d'inscrire l'excédent N au compte 11501 (ligne 21 de l'onglet \"Affectation_Resultats_Prive\") et non au compte 11590 (ligne 24 du même onglet). L'apurement sera effectué au global dans le bilan consolidé et devrait apparaître dans le tableau de suivi de l'affectation des résultats des ESMS (onglet \"Suivi_Affect_Result_Prive\").\""]
[]
[null,31,"Report à nouveau des activités sociales et médico-sociales prises en charge sous gestion contrôlée (solde débiteur) (c/ 11590)"]
[null,null,"Cette ligne est utilisée pour le reliquat de déficit non couvert par la reprise de la réserve de compensation et le report à nouveau excédentaire.\nA noter : Dans le cas d'un apurement de déficit antérieur à l'exercice N, il est préconisé d'inscrire l'excédent N au compte 11501 (ligne 21 de l'onglet \"Affectation_Resultats_Prive\") et non au compte 11590 (ligne 24 du même onglet). L'apurement sera effectué au global dans le bilan consolidé et devrait apparaître dans le tableau de suivi de l'affectation des résultats des ESMS (onglet \"Suivi_Affect_Result_Prive\")."]
[]
[null,32,"Report à nouveau constitué de charges rejetées des activités sociales et médico-sociales (dépenses refusées par l'autorité de tarification) (c/ 11591 ou 1195)"]
[null,null,"Les charges rejetées en application des articles R. 314-52 et R. 314-236 du CASF sont des charges effectives, qui ne peuvent être \"ôtées\" comptablement des charges réalisées.\nL'impact du rejet prend la forme d'une réduction à due concurrence du tarif de l'exercice sur lequel il est constaté ou de l'exercice suivant et n'entraîne plus de modification du résultat comptable. \nCependant, parallèlement, les entités gestionnaires privées doivent, conformément au règlement ANC n° 2019-04 du 8 novembre 2019, distinguer dans des comptes spécifiques la part de leurs fonds propres (résultat, reports à nouveau et réserves) qui est sous gestion contrôlée (c'est à dire la part des fonds restituables aux autorités de tarification, notamment en cas de fermeture de l'ESMS).\nLes charges rejetées passent ainsi du périmètre de la gestion contrôlée (compte 11591 lorsqu'elles sont contestées par l'entité gestionnaire dans le cadre d'un recours et dans l'attente de la décision du juge de la tarification) à celui de la gestion non contrôlée (compte 1195 en cas de confirmation du rejet par le juge une fois les recours épuisés ou en l'absence de contestation contentieuse). L'imputation à l'un de ces comptes est réalisée au moment de l'affectation du résultat. C'est pourquoi ces mouvements sont retracés dans le bloc \"Affectation du résultat administratif\" du tableau d'affectation des résultats."]
[]
[null,33,"Report à nouveau constitué de charges des activités sociales et médico-sociales dont la prise en compte par l’autorité de tarification est différée (c/ 115921, 115922, 115923 et 115928)"]
[null,null,"Ces comptes correspondent à des charges et produits dont la prise en compte par l'autorité de tarification est différée : amortissements comptables différés, variations des dettes pour congés à payer et d'autres provisions dont l'impact sur le résultat est neutralisé (comptes épargne temps, indemnités de départ à la retraite, indemnités prudhommales...). \nConséquence budgétaire : la fixation du tarif ne reposant plus sur la reconduction de dépenses historiques, le mécanisme antérieur des dépenses inopposables (y compris les congés à payer) perd de son intérêt. « La seule possibilité, pour l'autorité de tarification, de les rendre inopposables est de diminuer, à due concurrence, les financements ultérieurs de l'ESSMS. » (instruction n°DGCS/5C/DGCL/DGFIP/170 du 12/07/2018).\nConséquence comptable : ces dépenses étant opposables à l'autorité de tarification, même si cette opposabilité est différée dans le temps, ces dépenses, pour les entités gestionnaires privées, relèvent du périmètre de la gestion contrôlée (cf définition de la gestion contrôlée dans l'aide n°32). Les comptes 11592 ont donc été créés au 1er janvier 2020 pour les isoler (arrêté du 23/12/2019).\nEn cas d’augmentation des dépenses différées, le montant correspondant est saisi en lignes 26, 27, 28 ou 29, précédé d’un signe « - » et le compte de report à nouveau est donc crédité d’autant (augmentation du RAN créditeur 1150 ou diminution du RAN débiteur 11590). \nEn cas de diminution, le montant correspondant est saisi en ligne 26, 27, 28 ou 29 sans signe « - » et le compte de report à nouveau est donc débité d’autant (diminution du RAN créditeur 1150 ou augmentation du RAN débiteur 11590). \nCette méthode de saisie permet bien de retomber sur le résultat net comptable sous gestion contrôlée."]
[]
[null,34,"Réserves de compensation des déficits (c/ 106856 pour les gestionnaires privés et 10686 pour les gestionnaires publics)"]
[null,null,"Cette ligne est utilisée lorsque le déficit de l'exercice N peut être couvert par la reprise de la réserve de compensation. Le montant du déficit y est saisi (en tout ou partie selon le solde du compte de réserve de compensation), en étant précédé d'un signe \"-\". \nEn cas d'affectation d'un excédent à la réserve de compensation, en prévision de déficits futurs notamment, il est saisi sur cette même ligne mais sans être précédé du signe \"-\"."]
[]
[null,35,"Affectation à la réserve de compensation des charges d'amortissement (c/ 106857 pour les gestionnaires privés et 10687 pour les gestionnaires publics)"]
[null,null,"Il est possible qu'une affectation à cette réserve et qu'une reprise sur cette réserve surviennent lors du même exercice. C'est pourquoi les deux mouvements sont retracés ici dans cette rubrique \"Affectation en réserves\".\nLe traitement comptable antérieur reste inchangé : l’affectation d’un excédent en réserve de compensation des charges d’amortissement est enregistrée au crédit du compte 106857 (ESMS privés)/10687 (ESMS publics) par le débit du compte 12, au moment de l’affectation du résultat."]
[]
[null,36,"Reprise sur la réserve de compensation des charges d'amortissement (c/ 106857 pour les gestionnaires privés et 10687 pour les gestionnaires publics)"]
[null,null,"Le traitement comptable est le suivant : la reprise est enregistrée au débit du compte 106857 (ESMS privés)/10687 (ESMS publics) par le crédit du compte de report à nouveau (c/ 115 pour les ESMS privés et c/ 110 pour les ESMS publics).\nAuparavant cette reprise de la réserve de compensation était retracée dans le bloc \"Résultat à affecter\". La saisie a été simplifiée en renseignant directement le montant concerné sur la ligne 34 (pour les ESMS privés) ou ligne 23 (pour les ESMS publics), en étant précédé d'un signe \"-\", conformément au schéma d'écriture comptable effectivement mis en oeuvre. Cela explique le déplacement du compte 106857/10687 du bloc « Résultat à affecter » au bloc « Affectation en réserves »."]
[]
[null,37,"Absence des dépenses non opposables parmi les items d'affectation du résultat (onglets \"Affectation_Resultats_Public_I\" et \"Affectation_Resultats_Public_II\")"]
[null,null,"La fixation du tarif ne reposant plus sur la reconduction de dépenses historiques, le mécanisme antérieur des dépenses inopposables (y compris les congés à payer) perd de son intérêt. « La seule possibilité, pour l'autorité de tarification, de les rendre inopposables est de diminuer, à due concurrence, les financements ultérieurs de l'ESSMS. » (instruction n°DGCS/5C/DGCL/DGFIP/170 du 12/07/2018).\nLes comptes 116 (dépenses non opposables aux tiers financeurs) ont donc été supprimés au 1er janvier 2019 (pour les ESSMS sous EPRD). "]
[]
[null,38,"Suivi des dépenses rejetées par l'autorité de tarification (onglets \"Affectation_Resultats_Public_I\" et \"Affectation_Resultats_Public_II\")"]
[null,null,"Compte tenu des obligations pour les gestionnaires privés de distinguer la partie des fonds propres qui est sous gestion contrôlée, les dépenses rejetées sont retracées dans les onglets d'affectation des résultats privés (cf aide n°32 supra) et peuvent donc être suivies par les autorités de tarification. Les gestionnaires publics n'étant pas soumis à cette obligation, les dépenses rejetées n'ont pas vocation à figurer dans le tableau d'affectation des résultats. C'est pourquoi un encart a été ajouté spécifiquement dans ces onglets, afin d'en permettre le suivi par les autorités de tarification."]
[]
[null,39,"Affectation de résultats des ESSMS inclus dans le périmètre du CPOM (lignes 10 et 11 de l'onglet \"Affectation_Resultats_Prive_II\")"]
[null,null,"Les résultats des différents comptes de résultat sont affectés aux comptes de résultat dont ils sont issus. Par dérogation à ce principe, pour les gestionnaires privés seulement, le CPOM peut prévoir une affectation croisée des résultats entre les ESMS inclus dans le périmètre financier de ce contrat.\nLigne 10 : indiquer ici les diminutions du solde du compte 12 résultant du transfert vers un autre établissement (excédent) ou provenant d'un autre établissement (déficit).\nLigne 11 : indiquer ici les augmentations du solde du compte 12 résultant du transfert vers un autre établissement (déficit) ou provenant d'un autre établissement (excédent).\nLe compte 12 est l'excédent/le déficit inscrit au bilan de l'établissement ou du service."]
[]
[null,40,"Reports à nouveau des exercices antérieurs (onglet \"Affectation_Resultats_Prive_I\")"]
[null,null,"Sont retracées dans ce bloc les reprises de résultats des exercices antérieurs des CRP soumis à l'équilibre strict et, par extension, celles de la section \"hébergement\" pour les EHPAD avant signature CPOM (c/1150111 et 1159011)."]
[]
[null,41,"Affectation des résultats dans un environnement \"EPRD\""]
[null,null,"Le principe posé par la loi est une libre affectation des résultats réalisée par le gestionnaire ou l'établissement public, dans le respect des dispositions contenues dans le CPOM, sauf pour les résultats des comptes de résultat soumis à un équilibre strict qui restent affectés par l'autorité de tarification compétente. \nConformément à l'article R. 314-234 du CASF, l'excédent d'exploitation d'un compte de résultat est affecté en priorité à l'apurement des déficits antérieurs de ce compte de résultat. Tout ou partie des autres possibilités d'affectation (compte de report à nouveau, financement de mesures d'investissement, comptes de réserves de compensation, réserves de trésorerie ou de compensation des charges d'amortissement) est priorisée dans le cadre du CPOM. \nLe déficit de chacun des comptes de résultat est couvert en priorité par le compte de report à nouveau excédentaire, puis le cas échéant par la reprise de la réserve de compensation, puis est affecté, pour le surplus éventuel, à un compte de report à nouveau déficitaire. \nD'autres règles spécifiques encadrent notamment les modalités d'affectation des résultats des DNA et des SIC pour les établissements publics sociaux ou médico-sociaux autonomes, et celles des résultats des établissements commerciaux non habilités ou minoritairement habilités à l'aide sociale. Sur ce sujet, vous pouvez vous référer à l'annexe 9 de l'instruction budgétaire médico-sociale 2019 (https://www.legifrance.gouv.fr/download/pdf/circ?id=44634)."]
[]
[null,42,"Report à nouveau solde créditeur (c/ 110)"]
[null,null,"Cette ligne concerne l'affectation en report à nouveau excédentaire, lorsqu'une affectation à un compte de réserve n'est pas privilégiée.\nDans le cas d'un déficit de l'exercice qui est couvert par le report à nouveau excédentaire, le montant du déficit (précédé du signe \"-\") est à inscrire en déduction du report à nouveau créditeur (ligne 110 \"Report à nouveau (solde créditeur)\").\nA noter : Dans le cas d'un apurement de déficit antérieur à l'exercice N, il est préconisé d'inscrire l'excédent N au compte 110 (ligne 17 de l'onglet \"Affectation_Resultats_Public\") et non au compte 119 (ligne 18 du même onglet). L'apurement sera effectué au global dans le bilan consolidé et devrait apparaître dans le tableau de suivi de l'affectation des résultats des ESMS (onglet \"Suivi_Affect_Result_Public\")."]
[]
[null,43,"Excédents et déficits sur opérations de gestion"]
[null,null,"La nomenclature comptable M22 évolue à partir du 1er janvier 2024 avec la création des comptes 6583 « Déficits sur opérations de gestion » et 7583 « Excédents sur opérations de gestion ». Le compte 6583 enregistre notamment les charges relatives aux écarts de caisse négatifs et aux escroqueries aux faux ordres de virement (FOVI). Le compte 7583 enregistre notamment les produits relatifs aux écarts de caisse positifs."]

{"sheet":"Recueil_consentement","index":3,"n_rows":33,"n_cols":19,"rows_kept":33,"merged":[[1,1,1,10],[3,1,3,10],[5,1,5,10],[7,1,7,10],[13,1,13,10]]}
[{"$nulls":18},"Liste_Recueil"]
[null,"Recueil du consentement pour la diffusion des données ERRD des ESSMS privés aux fédérations"]
[{"$nulls":18},"Oui"]
[null,"Cet onglet est hors champ réglementaire, son remplissage est donc facultatif. Il a pour seule vocation de permettre aux ESSMS de consentir librement à la communication de données de leurs ERRD aux fédérations de leur choix.",{"$nulls":16},"Non"]
[]
[null,"Le recueil du consentement concerne uniquement les ESSMS privés. Des conventions sont établies entre la CNSA et les fédérations destinatrices pour cadrer ces diffusions, notamment définir les règles de sécurité, de confidentialité et d'usage des données. "]
[]
[null,"Question 1 : Autorisez-vous la CNSA à communiquer les données de vos ERRD de la présente collecte à une ou plusieurs des fédérations dont vous êtes adhérent, parmi celles listées ci-dessous, à des fins de production d'analyses statistiques sur la situation comptable et financière des ESSMS ?"]
[]
[null,null,"Réponse O/N"]
[]
[]
[]
[null,"Question 2 : Si oui, à quelle(s) fédération(s) consentez-vous à ce que ces données soient communiquées pour la finalité susvisée ?\nComplétez le tableau ci-dessous."]
[]
[null,"Fédérations","Je consens à la diffusion à : "]
[null,"MUTUALITE"]
[null,"UNIOPSS.ASSO"]
[null,"UNAPEI"]
[null,"NEXEM"]
[null,"FNAQPA"]
[null,"UNA"]
[null,"UNCCAS"]
[null,"FHF"]
[null,"FEHAP"]
[null,"SYNERPA"]
[null,"APF.ASSO"]
[null,"APAJH.ASSO"]
[null,"GEPSO"]
[null,"ANDICAT"]
[null,"FNMF"]
[null,"FPEP"]
[null,"UGECAM"]

{"sheet":"onglet_contrôle","index":4,"n_rows":80,"n_cols":11,"rows_kept":80,"merged":[[0,0,0,5],[1,0,1,4],[1,7,1,8],[1,10,2,13],[10,0,11,0],[11,7,12,7],[14,7,15,7],[17,7,18,7],[20,7,21,7],[23,7,24,7],[26,7,27,7],[29,7,30,7],[32,7,33,7],[34,7,35,7],[36,7,37,7],[38,7,39,7],[40,7,41,7],[42,7,43,7],[44,7,45,7]]}
["Cet onglet ajouté à titre expérimental n'est pas protégé. Toute modification des formules ou de la structure du tableau ci-dessous peut entraver son bon fonctionnement."]
["FICHE D'AUTO-CONTRÔLE A TITRE D'INFORMATION",{"$nulls":6},"Informations complémentaires"]
[]
[]
["Contrôle ","Onglet","Valeur ","OK/KO","Observations",{"$nulls":3},4]
["Version  ","Tous",{"$f":"'Page de garde'!$A$1","v":"#ERRDHA-2025-01#"},{"$f":"IF(CRERASIDEN___ANNEEREF___ANN0\\_________=\"\",\"\",IF(AND(C6=\"#ERRDHA-2025-01#\",CRERASIDEN___ANNEEREF___ANN0\\_________=2025)=TRUE,\"OK\",\"A priori, vous utilisez une version qui n'est plus en vigueur. Veuillez vous référer à l'adresse de téléchargement des cadres rappelée ci-contre.\"))","v":""},"Le fichier utilisé doit être celui en vigueur à la date de la campagne de dépôt des ERRD. Il est mis à disposition sur le site de la DGCS : https://solidarites-sante.gouv.fr/affaires-sociales/personnes-agees/droits-et-aides/etablissements-et-services-sociaux-et-medico-sociaux/article/reforme-de-la-tarification. "]
["Nom du fichier ","Tous","Au choix ou selon règle de nommage indiquée par l'autorité de tarification",null,"Veillez à choisir un nom explicite pour vous et vos autorités de tarification. \nExemple : ID_FINESSEJ_Type_AAAAMMJJ_V1\nAvec ID : identifiant du dossier sur la plateforme de collecte\nFINESSEJ : numéro finess de l’entité juridique\nType :  type de document (ex : errd_complet) ou n° de l'annexe (ex : A8)\nAAAAMMJJ : date du fichier \nVx : numéro de version",{"$nulls":4},4,4]
["Intitulés des onglets","Tous","Saisie prédéfinie",null,"Les intitulés des onglets du fichier sont ceux du cadre vierge téléchargeable sur le site de la DGCS et ne doivent pas être modifiés. Toute modification peut empêcher le traitement des données. ",null,null,"Détail par compte de résultat (CR) : ",null,null,{"$f":"$J$7-1","v":{"v":3,"d":"3.00"}}]
["Statut juridique  ","Page de garde",{"$f":"'Page de garde'!$D$10","v":0},{"$f":"IF(OR(C9=Liste!$A$3,C9=Liste!$A$4,C9=Liste!$A$5,C9=Liste!$A$6),\"OK\",IF(C9=0,\"Non saisi\",\"Incohérence\"))","v":"Non saisi"},"La valeur de ce champ doit être \"Etablissement Public\", \"Etat & Col.Territ.\", \"Org. Privé Commer.\" ou \"Org.Privé non Lucr.\". ",null,null,"N° FINESS ET",null,null,{"$f":"IF(VLOOKUP(\"Conso\",Conso!$B$1:$IV$1,K8,FALSE)=\"\",\"\",VLOOKUP(\"Conso\",Conso!$B$1:$IV$1,K8,FALSE))","v":""}]
["Date d'effet du CPOM","Page de garde",{"$f":"'Page de garde'!$D$22","v":"00:00:00"},{"$f":"IF(C10=0/1/1900,\"Non saisi\", \"OK\")","v":"Non saisi"},"Si un CPOM a été conclu à la date d'établissement de l'ERRD, alors ce champ doit être non vide. ",null,null,{"$f":"IF(CRERASIDEN___ANNEEREF___ANN0\\_________=\"\",\"Capacité installée N\",\"Capacité installée \"&CRERASIDEN___ANNEEREF___ANN0\\_________)","v":"Capacité installée N"},null,null,{"$f":"IF(LEFT(K9,2)<>\"SF\",VLOOKUP(K9,'Page de garde'!E27:I30,5,FALSE),VLOOKUP(K9,Id_CR_SF!B7:H10,7,FALSE))","v":0}]
["Capacité installée","Page de garde et Id_CR_SF",{"$f":"MIN(K10:IV10)","v":0},{"$f":"IF(C11=0,\"Au moins une des capacités est non saisie\",\"OK\")","v":"Au moins une des capacités est non saisie"},"Les champs relatifs aux capacités installées (colonnes I de la page de garde et H de l'onglet \"Id_CR_SF\" doivent être non vides.  ",null,null,{"$f":"IF(CRERASIDEN___ANNEEREF___ANN0\\_________=\"\",\"Total produits réalisés N-1\",\"Total produits réalisés \"&CRERASIDEN___ANNEEREF___ANN0\\_________-1)","v":"Total produits réalisés N-1"},"Montant",null,{"$f":"VLOOKUP(\"TOTAL DES PRODUITS\",Conso!$87:$125,$J$7,FALSE)","v":{"v":0,"d":"0.00 €"}}]
[null,"Page de garde  et Id_CR_SF",{"$f":"MAX(K10:IV10)","v":0},{"$f":"IF(C12>=1000,\"Au moins une des capacités est égale ou supérieure à 1000 (atypie)\",\"OK\")","v":"OK"},"SI valeur supérieure ou égale à 1000, vérifiez votre saisie",null,null,{"$f":"IF(CRERASIDEN___ANNEEREF___ANN0\\_________=\"\",\"Total produits réalisés N\",\"Total produits réalisés \"&CRERASIDEN___ANNEEREF___ANN0\\_________)","v":"Total produits réalisés N"},"Montant",null,{"$f":"VLOOKUP(\"TOTAL DES PRODUITS\",Conso!$307:$347,$J$7,FALSE)","v":{"v":0,"d":"0.00 €"}}]
["Amplitude d'ouverture sur l'année (en jours)","Page de garde",{"$f":"HLOOKUP(A13,'Page de garde'!$J$27:$J$30,2,FALSE)","v":0},{"$f":"IF(C13=0,\"Non saisi\",IF(C13>366,\"Atypie\",\"OK\"))","v":"Non saisi"},"Ce champ doit être non vide. Si valeur supérieure à 366 (atypie), vérifiez votre saisie. \nCe contrôle porte uniquement sur le compte de résultat principal (1ère ligne du tableau de page de garde). ",{"$nulls":3},"% évolution / N-1",null,{"$f":"IFERROR((K12-K11)/K11,\"\")","v":""}]
["Convention collective majoritaire de travail","Page de garde",{"$f":"'Page de garde'!$E$33","v":0},{"$f":"IF(OR(C14=Liste!$D$3,C14=Liste!$D$4,C14=Liste!$D$5,C14=Liste!$D$6,C14=Liste!$D$7,C14=Liste!$D$8,C14=Liste!$D$9,C14=Liste!$D$10,C14=Liste!$D$11,C14=Liste!$D$12,C14=Liste!$D$13,C14=Liste!$D$14,C14=Liste!$D$15,C14=Liste!$D$16,C14=Liste!$D$17),\"OK\",IF(C14=0,\"Non saisi\",\"Incohérence\"))","v":"Non saisi"},"La valeur de ce champ doit être un des items de la liste déroulante proposée en page de garde. ",null,null,{"$f":"IF(CRERASIDEN___ANNEEREF___ANN0\\_________=\"\",\"Total charges réalisées N-1\",\"Total charges réalisées \"&CRERASIDEN___ANNEEREF___ANN0\\_________-1)","v":"Total charges réalisées N-1"},"Montant",null,{"$f":"VLOOKUP(\"TOTAL DES CHARGES\",Conso!$87:$125,$J$7,FALSE)","v":{"v":0,"d":"0.00 €"}}]
["Amplitude d'ouverture sur l'année (en jours)","Id_CR_SF",{"$f":"HLOOKUP(A15,Id_CR_SF!$I$7:$I$9,2,FALSE)","v":0},{"$f":"IF(HLOOKUP(\"Identifiant (*)\",Id_CR_SF!$B$7:$HB$9,2,FALSE)=\"\",\"Non saisi\",IF(C15=0,\"Non saisi\",IF(C15>366,\"Atypie\",\"OK\")))","v":"Non saisi"},"Ce champ doit être non vide. Si valeur supérieure à 366 (atypie), vérifiez votre saisie. \nCe contrôle porte uniquement sur le 1er compte de résultat du tableau de l'onglet \"Id_CR_SF\". ",null,null,{"$f":"IF(CRERASIDEN___ANNEEREF___ANN0\\_________=\"\",\"Total charges réalisées N\",\"Total charges réalisées \"&CRERASIDEN___ANNEEREF___ANN0\\_________)","v":"Total charges réalisées N"},"Montant",null,{"$f":"VLOOKUP(\"TOTAL DES CHARGES\",Conso!$307:$347,$J$7,FALSE)","v":{"v":0,"d":"0.00 €"}}]
["Total produits réalisés N (comptes de résultat consolidés)","ERRD synthétique",{"$f":"'ERRD synthétique'!$F$10","v":{"v":0,"d":"0.00"}},{"$f":"IF(C16=0,\"Non saisi\",IF(C16<0,\"Atypie\",\"OK\"))","v":"Non saisi"},"Ce champ doit être non vide. Si valeur négative (atypie), vérifiez votre saisie. ",{"$nulls":3},"% évolution / N-1",null,{"$f":"IFERROR((K15-K14)/K14,\"\")","v":""}]
["Total produits prévus N (comptes de résultat consolidés)","ERRD synthétique",{"$f":"'ERRD synthétique'!$E$10","v":{"v":0,"d":"0.00"}},{"$f":"IF(C17=0,\"Non saisi\",IF(C17<0,\"Atypie\",\"OK\"))","v":"Non saisi"},"Ce champ doit être non vide. Si valeur négative (atypie), vérifiez votre saisie. ",null,null,{"$f":"IF(CRERASIDEN___ANNEEREF___ANN0\\_________=\"\",\"Produits de la tarification (GI) N-1\",\"Produits de la tarification (GI) \"&CRERASIDEN___ANNEEREF___ANN0\\_________-1)","v":"Produits de la tarification (GI) N-1"},"Montant",null,{"$f":"VLOOKUP(\"Groupe I : produits de la tarification\",Conso!$87:$125,$J$7,FALSE)","v":{"v":0,"d":"0.00 €"}}]
["Total produits réalisés N-1 (comptes de résultat consolidés)","CRP/A et CRA_SF",{"$f":"Conso!$B$93+Conso!$B$94+Conso!$B$95","v":{"v":0,"d":"0.00"}},{"$f":"IF(C18=0,\"Non saisi\",IF(C18<0,\"Atypie\",\"OK\"))","v":"Non saisi"},"Ce champ doit être non vide. Si valeur négative (atypie), vérifiez votre saisie. ",null,null,{"$f":"IF(CRERASIDEN___ANNEEREF___ANN0\\_________=\"\",\"Produits de la tarification (GI) N\",\"Produits de la tarification (GI) \"&CRERASIDEN___ANNEEREF___ANN0\\_________)","v":"Produits de la tarification (GI) N"},"Montant",null,{"$f":"VLOOKUP(\"Groupe I : produits de la tarification\",Conso!$64:$83,$J$7,FALSE)","v":{"v":0,"d":"0.00 €"}}]
["Total charges réalisées N (comptes de résultat consolidés)","ERRD synthétique",{"$f":"'ERRD synthétique'!$D$10","v":{"v":0,"d":"0.00"}},{"$f":"IF(C19=0,\"Non saisi\",IF(C19<0,\"Atypie\",\"OK\"))","v":"Non saisi"},"Ce champ doit être non vide. Si valeur négative (atypie), vérifiez votre saisie. ",{"$nulls":3},"% évolution / N-1",null,{"$f":"IFERROR((K18-K17)/K17,\"\")","v":""}]
["Total charges prévues N (comptes de résultat consolidés)","ERRD synthétique",{"$f":"'ERRD synthétique'!$C$10","v":{"v":0,"d":"0.00"}},{"$f":"IF(C20=0,\"Non saisi\",IF(C20<0,\"Atypie\",\"OK\"))","v":"Non saisi"},"Ce champ doit être non vide. Si valeur négative (atypie), vérifiez votre saisie. ",null,null,{"$f":"IF(CRERASIDEN___ANNEEREF___ANN0\\_________=\"\",\"Autres produits relatifs à l'exploitation (GII) N-1\",\"Autres produits relatifs à l'exploitation (GII) \"&CRERASIDEN___ANNEEREF___ANN0\\_________-1)","v":"Autres produits relatifs à l'exploitation (GII) N-1"},"Montant",null,{"$f":"VLOOKUP(\"Groupe II : autres produits relatifs à l'exploitation\",Conso!$87:$125,$J$7,FALSE)","v":{"v":0,"d":"0.00 €"}}]
["Total charges réalisées N-1 (comptes de résultat consolidés)","CRP/A et CRA_SF",{"$f":"Conso!$B$87+Conso!$B$88+Conso!$B$89","v":{"v":0,"d":"0.00"}},"Non saisi","Ce champ doit être non vide. Si valeur négative (atypie), vérifiez votre saisie. ",null,null,{"$f":"IF(CRERASIDEN___ANNEEREF___ANN0\\_________=\"\",\"Autres produits relatifs à l'exploitation (GII) N\",\"Autres produits relatifs à l'exploitation (GII)  \"&CRERASIDEN___ANNEEREF___ANN0\\_________)","v":"Autres produits relatifs à l'exploitation (GII) N"},"Montant",null,{"$f":"VLOOKUP(\"Groupe II : autres produits relatifs à l'exploitation\",Conso!$64:$83,$J$7,FALSE)","v":{"v":0,"d":"0.00 €"}}]
["Produits de la tarification (GI) réalisés N (comptes de résultat consolidés)","ERRD synthétique",{"$f":"'ERRD synthétique'!$F$7","v":{"v":0,"d":"0.00"}},{"$f":"IF(C22=0,\"Non saisi\",IF(C22<0,\"Atypie\",\"OK\"))","v":"Non saisi"},"Ce champ doit être non vide. Si valeur négative (atypie), vérifiez votre saisie. ",{"$nulls":3},"% évolution / N-1",null,{"$f":"IFERROR((K21-K20)/K20,\"\")","v":""}]
["Produits de la tarification (GI) prévus N (comptes de résultat consolidés)","ERRD synthétique",{"$f":"'ERRD synthétique'!$E$7","v":{"v":0,"d":"0.00"}},"Non saisi","Ce champ doit être non vide. Si valeur négative (atypie), vérifiez votre saisie. ",null,null,{"$f":"IF(CRERASIDEN___ANNEEREF___ANN0\\_________=\"\",\"Autres produits (GIII) N-1\",\"Autres produits (GIII) \"&CRERASIDEN___ANNEEREF___ANN0\\_________-1)","v":"Autres produits (GIII) N-1"},"Montant",null,{"$f":"VLOOKUP(\"Groupe III : produits financiers, produits exceptionnels et produits non encaissables\",Conso!$87:$125,$J$7,FALSE)","v":{"v":0,"d":"0.00 €"}}]
["Produits de la tarification (GI) réalisés N-1 (comptes de résultat consolidés)","CRP/A et CRA_SF",{"$f":"Conso!$B$93","v":{"v":0,"d":"0.00"}},"Non saisi","Ce champ doit être non vide. Si valeur négative (atypie), vérifiez votre saisie. ",null,null,{"$f":"IF(CRERASIDEN___ANNEEREF___ANN0\\_________=\"\",\"Autres produits (GIII) N\",\"Autres produits (GIII) \"&CRERASIDEN___ANNEEREF___ANN0\\_________)","v":"Autres produits (GIII) N"},"Montant",null,{"$f":"VLOOKUP(\"Groupe III : produits financiers, produits exceptionnels et produits non encaissables\",Conso!$64:$83,$J$7,FALSE)","v":{"v":0,"d":"0.00 €"}}]
["Charges de personnel (GII) réalisées N (comptes de résultat consolidés)","ERRD synthétique",{"$f":"'ERRD synthétique'!$D$8","v":{"v":0,"d":"0.00"}},{"$f":"IF(C25=0,\"Non saisi\",IF(C25<0,\"Atypie\",\"OK\"))","v":"Non saisi"},"Ce champ doit être non vide. Si valeur négative (atypie), vérifiez votre saisie. ",{"$nulls":3},"% évolution / N-1",null,{"$f":"IFERROR((K24-K23)/K23,\"\")","v":""}]
["Charges de personnel (GII) prévues N (comptes de résultat consolidés)","ERRD synthétique",{"$f":"'ERRD synthétique'!$C$8","v":{"v":0,"d":"0.00"}},"Non saisi","Ce champ doit être non vide. Si valeur négative (atypie), vérifiez votre saisie. ",null,null,{"$f":"IF(CRERASIDEN___ANNEEREF___ANN0\\_________=\"\",\"Charges afférentes à l'exploitation courante (GI) N-1\",\"Charges afférentes à l'exploitation courante (GI) \"&CRERASIDEN___ANNEEREF___ANN0\\_________-1)","v":"Charges afférentes à l'exploitation courante (GI) N-1"},"Montant",null,{"$f":"VLOOKUP(\"Groupe I : charges afférentes à l'exploitation courante\",Conso!$87:$125,$J$7,FALSE)","v":{"v":0,"d":"0.00 €"}}]
["Charges de personnel (GII) réalisées N-1 (comptes de résultat consolidés)","CRP/A et CRA_SF",{"$f":"Conso!$B$88","v":{"v":0,"d":"0.00"}},"Non saisi","Ce champ doit être non vide. Si valeur négative (atypie), vérifiez votre saisie. ",null,null,{"$f":"IF(CRERASIDEN___ANNEEREF___ANN0\\_________=\"\",\"Charges afférentes à l'exploitation courante (GI) N\",\"Charges afférentes à l'exploitation courante (GI) \"&CRERASIDEN___ANNEEREF___ANN0\\_________)","v":"Charges afférentes à l'exploitation courante (GI) N"},"Montant",null,{"$f":"VLOOKUP(\"Groupe I : charges afférentes à l'exploitation courante\",Conso!$21:$42,$J$7,FALSE)","v":{"v":0,"d":"0.00 €"}}]
["Total produits réalisés N (par compte de résultat)","CRP/A et CRA_SF",{"$f":"MIN(K12:IV12)","v":{"v":0,"d":"0.00 €"}},{"$f":"IF(C28=0,\"Au moins un des CR comporte un total de produits N = 0\",IF(C28<0,\"Au moins un des CR comporte un total des produits N < 0 (Atypie)\",\"OK\"))","v":"Au moins un des CR comporte un total de produits N = 0"},"Ces champs doivent être non vides. Si valeur négative (atypie), vérifiez votre saisie. ",{"$nulls":3},"% évolution / N-1",null,{"$f":"IFERROR((K27-K26)/K26,\"\")","v":""}]
["Total produits prévus N (par compte de résultat)","CRP/A et CRA_SF",{"$f":"MIN(K35:IV35)","v":{"v":0,"d":"0.00 €"}},{"$f":"IF(C29=0,\"Au moins un des CR comporte un total de produits prévus N = 0\",IF(C29<0,\"Au moins un des CR comporte un total des produits prévus N < 0 (Atypie)\",\"OK\"))","v":"Au moins un des CR comporte un total de produits prévus N = 0"},"Ces champs doivent être non vides. Si valeur négative (atypie), vérifiez votre saisie. ",null,null,{"$f":"IF(CRERASIDEN___ANNEEREF___ANN0\\_________=\"\",\"Charges afférentes au personnel (GII) N-1\",\"Charges afférentes au personnel (GII) \"&CRERASIDEN___ANNEEREF___ANN0\\_________-1)","v":"Charges afférentes au personnel (GII) N-1"},"Montant",null,{"$f":"VLOOKUP(\"Groupe II : charges afférentes au personnel\",Conso!$87:$125,$J$7,FALSE)","v":{"v":0,"d":"0.00 €"}}]
["Total produits réalisés N-1 (par compte de résultat)","CRP/A et CRA_SF",{"$f":"MIN(K11:IV11)","v":{"v":0,"d":"0.00 €"}},{"$f":"IF(C30=0,\"Au moins un des CR comporte un total de produits N-1 = 0\",IF(C30<0,\"Au moins un des CR comporte un total des produits N-1 < 0 (Atypie)\",\"OK\"))","v":"Au moins un des CR comporte un total de produits N-1 = 0"},"Ces champs doivent être non vides. Si valeur négative (atypie), vérifiez votre saisie. ",null,null,{"$f":"IF(CRERASIDEN___ANNEEREF___ANN0\\_________=\"\",\"Charges afférentes au personnel (GII) N\",\"Charges afférentes au personnel (GII) \"&CRERASIDEN___ANNEEREF___ANN0\\_________)","v":"Charges afférentes au personnel (GII) N"},"Montant",null,{"$f":"VLOOKUP(\"Groupe II : charges afférentes au personnel\",Conso!$21:$42,$J$7,FALSE)","v":{"v":0,"d":"0.00 €"}}]
["Total charges réalisées N (par compte de résultat)","CRP/A et CRA_SF",{"$f":"MIN(K15:IV15)","v":{"v":0,"d":"0.00 €"}},{"$f":"IF(C31=0,\"Au moins un des CR comporte un total de charges N = 0\",IF(C31<0,\"Au moins un des CR comporte un total de charges N < 0 (Atypie)\",\"OK\"))","v":"Au moins un des CR comporte un total de charges N = 0"},"Ces champs doivent être non vides. Si valeur négative (atypie), vérifiez votre saisie. ",{"$nulls":3},"% évolution / N-1",null,{"$f":"IFERROR((K30-K29)/K29,\"\")","v":""}]
["Total charges prévues N (par compte de résultat)","CRP/A et CRA_SF",{"$f":"MIN(K37:IV37)","v":{"v":0,"d":"0.00 €"}},{"$f":"IF(C32=0,\"Au moins un des CR comporte un total de charges prévues N = 0\",IF(C32<0,\"Au moins un des CR comporte un total de charges prévues N < 0 (Atypie)\",\"OK\"))","v":"Au moins un des CR comporte un total de charges prévues N = 0"},"Ces champs doivent être non vides. Si valeur négative (atypie), vérifiez votre saisie. ",null,null,{"$f":"IF(CRERASIDEN___ANNEEREF___ANN0\\_________=\"\",\"Charges afférentes à la structure (GIII) N-1\",\"Charges afférentes à la structure (GIII) \"&CRERASIDEN___ANNEEREF___ANN0\\_________-1)","v":"Charges afférentes à la structure (GIII) N-1"},"Montant",null,{"$f":"VLOOKUP(\"Groupe III : charges afférentes à la structure\",Conso!$87:$125,$J$7,FALSE)","v":{"v":0,"d":"0.00 €"}}]
["Total charges réalisées N-1 (par compte de résultat)","CRP/A et CRA_SF",{"$f":"MIN(K14:IV14)","v":{"v":0,"d":"0.00 €"}},{"$f":"IF(C33=0,\"Au moins un des CR comporte un total de charges N-1 = 0\",IF(C33<0,\"Au moins un des CR comporte un total de charges N-1 < 0 (Atypie)\",\"OK\"))","v":"Au moins un des CR comporte un total de charges N-1 = 0"},"Ces champs doivent être non vides. Si valeur négative (atypie), vérifiez votre saisie. ",null,null,{"$f":"IF(CRERASIDEN___ANNEEREF___ANN0\\_________=\"\",\"Charges afférentes à la structure (GIII) N\",\"Charges afférentes à la structure (GIII) \"&CRERASIDEN___ANNEEREF___ANN0\\_________)","v":"Charges afférentes à la structure (GIII) N"},"Montant",null,{"$f":"VLOOKUP(\"Groupe III : charges afférentes à la structure\",Conso!$21:$42,$J$7,FALSE)","v":{"v":0,"d":"0.00 €"}}]
["Produits de la tarification (GI) réalisés N (par compte de résultat)","CRP/A et CRA_SF",{"$f":"MIN(K18:IV18)","v":{"v":0,"d":"0.00 €"}},{"$f":"IF(C34=0,\"Au moins un des CR comporte des produits GI N = 0\",IF(C34<0,\"Au moins un des CR comporte des produits GI N < 0 (Atypie)\",\"OK\"))","v":"Au moins un des CR comporte des produits GI N = 0"},"Ces champs doivent être non vides. Si valeur négative (atypie), vérifiez votre saisie. ",{"$nulls":3},"% évolution / N-1",null,{"$f":"IFERROR((K33-K32)/K32,\"\")","v":""}]
["Produits de la tarification (GI) prévus N (par compte de résultat)","CRP/A et CRA_SF",{"$f":"MIN(K39:IV39)","v":{"v":0,"d":"0.00 €"}},{"$f":"IF(C35=0,\"Au moins un des CR comporte des produits GI prévus N = 0\",IF(C35<0,\"Au moins un des CR comporte des produits GI prévus N < 0 (Atypie)\",\"OK\"))","v":"Au moins un des CR comporte des produits GI prévus N = 0"},"Ces champs doivent être non vides. Si valeur négative (atypie), vérifiez votre saisie. ",null,null,{"$f":"IF(CRERASIDEN___ANNEEREF___ANN0\\_________=\"\",\"Total produits prévus N\",\"Total produits prévus \"&CRERASIDEN___ANNEEREF___ANN0\\_________)","v":"Total produits prévus N"},"Montant",null,{"$f":"VLOOKUP(\"TOTAL DES PRODUITS\",Conso!$262:$304,$J$7,FALSE)","v":{"v":0,"d":"0.00 €"}}]
["Produits de la tarification (GI) réalisés N-1 (par compte de résultat)","CRP/A et CRA_SF",{"$f":"MIN(K17:IV17)","v":{"v":0,"d":"0.00 €"}},{"$f":"IF(C36=0,\"Au moins un des CR comporte des produits GI N-1 = 0\",IF(C36<0,\"Au moins un des CR comporte des produits GI N-1 < 0 (Atypie)\",\"OK\"))","v":"Au moins un des CR comporte des produits GI N-1 = 0"},"Ces champs doivent être non vides. Si valeur négative (atypie), vérifiez votre saisie. ",{"$nulls":3},"écart réalisé/prévu en %",null,{"$f":"IFERROR((K12-K35)/K35,\"\")","v":""}]
["Charges afférentes au personnel (GII) réalisées N (par compte de résultat)","CRP/A et CRA_SF",{"$f":"MIN(K30:IV30)","v":{"v":0,"d":"0.00 €"}},{"$f":"IF(C37=0,\"Au moins un des CR comporte des charges GII N = 0\",IF(C37<0,\"Au moins un des CR comporte des charges GII N < 0 (Atypie)\",\"OK\"))","v":"Au moins un des CR comporte des charges GII N = 0"},"Ces champs doivent être non vides. Si valeur négative (atypie), vérifiez votre saisie. ",null,null,{"$f":"IF(CRERASIDEN___ANNEEREF___ANN0\\_________=\"\",\"Total charges prévues N\",\"Total charges prévues \"&CRERASIDEN___ANNEEREF___ANN0\\_________)","v":"Total charges prévues N"},"Montant",null,{"$f":"VLOOKUP(\"TOTAL DES CHARGES\",Conso!$262:$304,$J$7,FALSE)","v":{"v":0,"d":"0.00 €"}}]
["Charges afférentes au personnel (GII) prévues N (par compte de résultat)","CRP/A et CRA_SF",{"$f":"MIN(K43:IV43)","v":{"v":0,"d":"0.00 €"}},{"$f":"IF(C38=0,\"Au moins un des CR comporte des charges GII prévues N = 0\",IF(C38<0,\"Au moins un des CR comporte des charges GII prévues N < 0 (Atypie)\",\"OK\"))","v":"Au moins un des CR comporte des charges GII prévues N = 0"},"Ces champs doivent être non vides. Si valeur négative (atypie), vérifiez votre saisie. ",{"$nulls":3},"écart réalisé/prévu en %",null,{"$f":"IFERROR((K15-K37)/K37,\"\")","v":""}]
["Charges afférentes au personnel (GII) réalisées N-1 (par compte de résultat)","CRP/A et CRA_SF",{"$f":"MIN(K29:IV29)","v":{"v":0,"d":"0.00 €"}},{"$f":"IF(C39=0,\"Au moins un des CR comporte des charges GII N-1 = 0\",IF(C39<0,\"Au moins un des CR comporte des charges GII N-1 < 0 (Atypie)\",\"OK\"))","v":"Au moins un des CR comporte des charges GII N-1 = 0"},"Ces champs doivent être non vides. Si valeur négative (atypie), vérifiez votre saisie. ",null,null,{"$f":"IF(CRERASIDEN___ANNEEREF___ANN0\\_________=\"\",\"Produits de la tarification (GI) prévus N\",\"Produits de la tarification prévus \"&CRERASIDEN___ANNEEREF___ANN0\\_________)","v":"Produits de la tarification (GI) prévus N"},"Montant",null,{"$f":"VLOOKUP(\"Groupe I : produits de la tarification\",Conso!$43:$63,$J$7,FALSE)","v":{"v":0,"d":"0.00 €"}}]
["Total des produits : écart prévu/réalisé en % (par compte de résultat)","CRP/A et CRA_SF",{"$f":"IF(ABS(MIN(K36:IV36))=ABS(MAX(K36:IV36)),MAX(K36:IV36),IF(ABS(MIN(K36:IV36))>ABS(MAX(K36:IV36)),MIN(K36:IV36),MAX(K36:IV36)))","v":{"v":0,"d":"0.0%"}},{"$f":"IF(OR(C40<-0.1,C40>0.1)=TRUE,\"Au moins un des CR présente un écart de plus de 10% entre les prévisions et les réalisations\",\"OK\")","v":"OK"},"En cas d'écart significatif (ici : +/-10%), vérifiez votre saisie. ",{"$nulls":3},"écart réalisé/prévu en %",null,{"$f":"IFERROR((K18-K39)/K39,\"\")","v":""}]
["Produits de la tarification : écart prévu/réalisé en % (par compte de résultat)","CRP/A et CRA_SF",{"$f":"IF(ABS(MIN(K40:IV40))=ABS(MAX(K40:IV40)),MAX(K40:IV40),IF(ABS(MIN(K40:IV40))>ABS(MAX(K40:IV40)),MIN(K40:IV40),MAX(K40:IV40)))","v":{"v":0,"d":"0.0%"}},"OK","En cas d'écart significatif (ici : +/-10%), vérifiez votre saisie. ",null,null,{"$f":"IF(CRERASIDEN___ANNEEREF___ANN0\\_________=\"\",\"Charges afférentes à l'exploitation courante (GI) prévues N\",\"Charges afférentes à l'exploitation prévues \"&CRERASIDEN___ANNEEREF___ANN0\\_________)","v":"Charges afférentes à l'exploitation courante (GI) prévues N"},"Montant",null,{"$f":"VLOOKUP(\"Groupe I : charges afférentes à l'exploitation courante\",Conso!$3:$20,$J$7,FALSE)","v":{"v":0,"d":"0.00 €"}}]
["Total des charges : écart prévu/réalisé en % (par compte de résultat)","CRP/A et CRA_SF",{"$f":"IF(ABS(MIN(K38:IV38))=ABS(MAX(K38:IV38)),MAX(K38:IV38),IF(ABS(MIN(K38:IV38))>ABS(MAX(K38:IV38)),MIN(K38:IV38),MAX(K38:IV38)))","v":{"v":0,"d":"0.0%"}},"OK","En cas d'écart significatif (ici : +/-10%), vérifiez votre saisie. ",{"$nulls":3},"écart réalisé/prévu en %",null,{"$f":"IFERROR((K27-K41)/K41,\"\")","v":""}]
["Charges afférentes à l'exploitation courante : écart prévu/réalisé en % (par compte de résultat)","CRP/A et CRA_SF",{"$f":"IF(ABS(MIN(K42:IV42))=ABS(MAX(K42:IV42)),MAX(K42:IV42),IF(ABS(MIN(K42:IV42))>ABS(MAX(K42:IV42)),MIN(K42:IV42),MAX(K42:IV42)))","v":{"v":0,"d":"0.0%"}},"OK","En cas d'écart significatif (ici : +/-10%), vérifiez votre saisie. ",null,null,{"$f":"IF(CRERASIDEN___ANNEEREF___ANN0\\_________=\"\",\"Charges afférentes au personnel (GII) prévues N\",\"Charges afférentes au personnel prévues \"&CRERASIDEN___ANNEEREF___ANN0\\_________)","v":"Charges afférentes au personnel (GII) prévues N"},"Montant",null,{"$f":"VLOOKUP(\"Groupe II : charges afférentes au personnel\",Conso!$3:$20,$J$7,FALSE)","v":{"v":0,"d":"0.00 €"}}]
["Charges afférentes au personnel : écart prévu/réalisé en % (par compte de résultat)","CRP/A et CRA_SF",{"$f":"IF(ABS(MIN(K44:IV44))=ABS(MAX(K44:IV44)),MAX(K44:IV44),IF(ABS(MIN(K44:IV44))>ABS(MAX(K44:IV44)),MIN(K44:IV44),MAX(K44:IV44)))","v":{"v":0,"d":"0.0%"}},"OK","En cas d'écart significatif (ici : +/-10%), vérifiez votre saisie. ",{"$nulls":3},"écart réalisé/prévu en %",null,{"$f":"IFERROR((K30-K43)/K43,\"\")","v":""}]
["Charges afférentes à la structure : écart prévu/réalisé en % (par compte de résultat)","CRP/A et CRA_SF",{"$f":"IF(ABS(MIN(K46:IV46))=ABS(MAX(K46:IV46)),MAX(K46:IV46),IF(ABS(MIN(K46:IV46))>ABS(MAX(K46:IV46)),MIN(K46:IV46),MAX(K46:IV46)))","v":{"v":0,"d":"0.0%"}},"OK","En cas d'écart significatif (ici : +/-10%), vérifiez votre saisie. ",null,null,{"$f":"IF(CRERASIDEN___ANNEEREF___ANN0\\_________=\"\",\"Charges afférentes à la structure (GIII) prévues N\",\"Charges afférentes à la structure prévues \"&CRERASIDEN___ANNEEREF___ANN0\\_________)","v":"Charges afférentes à la structure (GIII) prévues N"},"Montant",null,{"$f":"VLOOKUP(\"Groupe III : charges afférentes à la structure\",Conso!$3:$20,$J$7,FALSE)","v":{"v":0,"d":"0.00 €"}}]
["Total des produits : écart N/N-1 en % (par compte de résultat)","CRP/A et CRA_SF",{"$f":"IF(ABS(MIN(K13:IV13))=ABS(MAX(K13:IV13)),MAX(K13:IV13),IF(ABS(MIN(K13:IV13))>ABS(MAX(K13:IV13)),MIN(K13:IV13),MAX(K13:IV13)))","v":{"v":0,"d":"0.0%"}},{"$f":"IF(OR(C46<-0.1,C46>0.1)=TRUE,\"Au moins un des CR présente un écart de plus de 10% entre N-1 et N\",\"OK\")","v":"OK"},"En cas d'écart significatif (ici : +/-10%), vérifiez votre saisie. ",{"$nulls":3},"écart réalisé/prévu en %",null,{"$f":"IFERROR((K33-K45)/K45,\"\")","v":""}]
["Produits de la tarification : écart N/N-1 en % (par compte de résultat)","CRP/A et CRA_SF",{"$f":"IF(ABS(MIN(K19:IV19))=ABS(MAX(K19:IV19)),MAX(K19:IV19),IF(ABS(MIN(K19:IV19))>ABS(MAX(K19:IV19)),MIN(K19:IV19),MAX(K19:IV19)))","v":{"v":0,"d":"0.0%"}},"OK","En cas d'écart significatif (ici : +/-10%), vérifiez votre saisie. "]
["Total des charges : écart N/N-1 en % (par compte de résultat)","CRP/A et CRA_SF",{"$f":"IF(ABS(MIN(K16:IV16))=ABS(MAX(K16:IV16)),MAX(K16:IV16),IF(ABS(MIN(K16:IV16))>ABS(MAX(K16:IV16)),MIN(K16:IV16),MAX(K16:IV16)))","v":{"v":0,"d":"0.0%"}},"OK","En cas d'écart significatif (ici : +/-10%), vérifiez votre saisie. "]
["Charges afférentes à l'exploitation courante : écart N/N-1 en % (par compte de résultat)","CRP/A et CRA_SF",{"$f":"IF(ABS(MIN(K28:IV28))=ABS(MAX(K28:IV28)),MAX(K28:IV28),IF(ABS(MIN(K28:IV28))>ABS(MAX(K28:IV28)),MIN(K28:IV28),MAX(K28:IV28)))","v":{"v":0,"d":"0.0%"}},"OK","En cas d'écart significatif (ici : +/-10%), vérifiez votre saisie. "]
["Charges afférentes au personnel : écart N/N-1 en % (par compte de résultat)","CRP/A et CRA_SF",{"$f":"IF(ABS(MIN(K31:IV31))=ABS(MAX(K31:IV31)),MAX(K31:IV31),IF(ABS(MIN(K31:IV31))>ABS(MAX(K31:IV31)),MIN(K31:IV31),MAX(K31:IV31)))","v":{"v":0,"d":"0.0%"}},"OK","En cas d'écart significatif (ici : +/-10%), vérifiez votre saisie. "]
["Charges afférentes à la structure : écart N/N-1 en % (par compte de résultat)","CRP/A et CRA_SF",{"$f":"IF(ABS(MIN(K34:IV34))=ABS(MAX(K34:IV34)),MAX(K34:IV34),IF(ABS(MIN(K34:IV34))>ABS(MAX(K34:IV34)),MIN(K34:IV34),MAX(K34:IV34)))","v":{"v":0,"d":"0.0%"}},"OK","En cas d'écart significatif (ici : +/-10%), vérifiez votre saisie. "]
["Total des biens N","Bilan financier",{"$f":"'Bilan financier'!$G$64","v":{"v":0,"d":"0.00 €"}},{"$f":"IF(C52=0,\"Non saisi\",IF(C52<0,\"Atypie\",\"OK\"))","v":"Non saisi"},"Ce champ doit être non vide. Si valeur négative (atypie), vérifiez votre saisie. "]
["Total des biens N-1","Bilan financier",{"$f":"'Bilan financier'!$F$64","v":{"v":0,"d":"0.00 €"}},{"$f":"IF(C53=0,\"Non saisi\",IF(C53<0,\"Atypie\",\"OK\"))","v":"Non saisi"},"Ce champ doit être non vide. Si valeur négative (atypie), vérifiez votre saisie. "]
["Total des financements N","Bilan financier",{"$f":"'Bilan financier'!$M$64","v":{"v":0,"d":"0.00 €"}},{"$f":"IF(C54=0,\"Non saisi\",IF(C54<0,\"Atypie\",\"OK\"))","v":"Non saisi"},"Ce champ doit être non vide. Si valeur négative (atypie), vérifiez votre saisie. "]
["Total des financements N-1","Bilan financier",{"$f":"'Bilan financier'!$L$64","v":{"v":0,"d":"0.00 €"}},{"$f":"IF(C55=0,\"Non saisi\",IF(C55<0,\"Atypie\",\"OK\"))","v":"Non saisi"},"Ce champ doit être non vide. Si valeur négative (atypie), vérifiez votre saisie. "]
["Equilibre du bilan financier (exercice N) ","Bilan financier",{"$f":"'Bilan financier'!$G$64-'Bilan financier'!$M$64","v":{"v":0,"d":"0.00 €"}},{"$f":"IF(ROUND(C56,0)=0,\"OK\",\"Incohérence\")","v":"OK"},"Le total des biens doit être égal au total des financements. En cas d'écart (incohérence), vérifiez votre saisie. "]
["Equilibre du bilan financier (exercice N-1) ","Bilan financier",{"$f":"'Bilan financier'!$F$64-'Bilan financier'!$L$64","v":{"v":0,"d":"0.00 €"}},{"$f":"IF(ROUND(C57,0)=0,\"OK\",\"Incohérence\")","v":"OK"},"Le total des biens doit être égal au total des financements. En cas d'écart (incohérence), vérifiez votre saisie. "]
["Résultat net (exercice N) ","Bilan financier",{"$f":"'Bilan financier'!$M$31-'Bilan financier'!$G$30","v":{"v":0,"d":"0.00 €"}},{"$f":"IF(ROUND(C58-'ERRD synthétique'!$D$11+'ERRD synthétique'!$F$11,0)=0,\"OK\",\"Incohérence\")","v":"OK"},"Cohérence inter-onglet : lorsque les résultats sont sous contrôle de tiers financeurs, la valeur de ce champ doit être égale au résultat comptable issu de l'onglet \"ERRD synthétique\". En cas d'écart (incohérence), vérifiez votre saisie. \nA noter : les résultats d'activités sous gestion non contrôlée (ex : budget annexe de production/commercialisation d'un ESAT) sont à enregistrer dans le poste \"Autres\" des financements stables du bilan financier. Dans ce cas, l'écart qui en résulte entre le résultat net affiché dans l'onglet \"ERRD synthétique\" et celui du bilan financier est justifié et peut être utilement expliqué dans le rapport financier et d'activité joint à l'ERRD. "]
["VB d'immo corp. amortissables (exercice N)","Bilan financier",{"$f":"'Bilan financier'!$G$8-'Bilan financier'!$G$9","v":{"v":0,"d":"0.00 €"}},{"$f":"IF(OR('Bilan financier'!$G$10<0, 'Bilan financier'!$G$11<0, 'Bilan financier'!$G$12<0, 'Bilan financier'!$G$13<0),\"Incohérence\",\"OK\")","v":"OK"},"VB : valeur brute. Si au moins un poste d'immobilisations affiche une valeur négative (incohérence), vérifiez votre saisie. "]
["Amort. des immo corp. (exercice N)","Bilan financier",{"$f":"'Bilan financier'!$M$16","v":{"v":0,"d":"0.00 €"}},{"$f":"IF(C60=0,\"Non saisi\",IF(C60<0,\"Atypie\",\"OK\"))","v":"Non saisi"},"Amort. : amortissements. S'il existe un patrimoine immobilier, ce champ doit être non vide. Si valeur négative (atypie), vérifiez votre saisie. "]
["Ecart total VB d'immo corp. amortissables - total amort. des immo corp. (exercice N)","Bilan financier",{"$f":"C59-C60","v":{"v":0,"d":"0.00 €"}},{"$f":"IF(C61<0,\"Incohérence\",\"OK\")","v":"OK"},"Le total des amortissements ne peut excéder le total des valeurs brutes d'immobilisations amortissables. En cas d'écart négatif (incohérence), vérifiez votre saisie. "]
["Agencements de terrain : écart VB - amort. (exercice N)","Bilan financier",{"$f":"'Bilan financier'!$G$10-'Bilan financier'!$M$17","v":{"v":0,"d":"0.00 €"}},{"$f":"IF(C62<0,\"Incohérence\",\"OK\")","v":"OK"},"Le montant des amortissements ne peut excéder le montant de la valeur brute. En cas d'écart négatif (incohérence), vérifiez votre saisie. "]
["Constructions : écart VB - amort. (exercice N)","Bilan financier",{"$f":"'Bilan financier'!$G$11-'Bilan financier'!$M$18","v":{"v":0,"d":"0.00 €"}},{"$f":"IF(C63<0,\"Incohérence\",\"OK\")","v":"OK"},"Le montant des amortissements ne peut excéder le montant de la valeur brute. En cas d'écart négatif (incohérence), vérifiez votre saisie. "]
["Install. Techniques : écart VB - amort. (exercice N)","Bilan financier",{"$f":"'Bilan financier'!$G$12-'Bilan financier'!$M$19","v":{"v":0,"d":"0.00 €"}},{"$f":"IF(C64<0,\"Incohérence\",\"OK\")","v":"OK"},"Le montant des amortissements ne peut excéder le montant de la valeur brute. En cas d'écart négatif (incohérence), vérifiez votre saisie. "]
["Autres immo corp. : écart VB - amort. (exercice N)","Bilan financier",{"$f":"'Bilan financier'!$G$13-'Bilan financier'!$M$20","v":{"v":0,"d":"0.00 €"}},{"$f":"IF(C65<0,\"Incohérence\",\"OK\")","v":"OK"},"Le montant des amortissements ne peut excéder le montant de la valeur brute. En cas d'écart négatif (incohérence), vérifiez votre saisie. "]
["Dotations aux amortissements des immo c/6811 réalisées N","CRP/A et CRA_SF",{"$f":"Conso!B322","v":{"v":0,"d":"0.00 €"}},{"$f":"IF('Bilan financier'!$F$8-'Bilan financier'!$F$9-'Bilan financier'!$L$16=0,\"Non applicable\",IF(C66<=0,\"Incohérence\",\"OK\"))","v":"Non applicable"},"Cohérence inter-onglet : si la valeur nette au 31/12/N-1 des immobilisations corporelles amortissables est non nulle selon le bilan financier, alors le montant des dotations au compte 6811 inscrites au compte de résultat au titre de l'exercice N devrait être non nul. En cas d'incohérence, vérifiez votre saisie. "]
["Total des emplois (hors IAF) réalisés N","Tableau de financement",{"$f":"'Tabl. de financement'!$I$48-'Tabl. de financement'!$I$27","v":{"v":0,"d":"0.00 €"}},{"$f":"IF(C67=0,\"Non saisi\",IF(C67<0,\"Atypie\",\"OK\"))","v":"Non saisi"},"Ce champ est généralement non vide. Si \"Non saisi\" ou \"Incohérence\", vérifiez votre saisie. "]
["Total des emplois (hors IAF) prévus N","Tableau de financement",{"$f":"'Tabl. de financement'!$H$48-'Tabl. de financement'!$H$27","v":{"v":0,"d":"0.00 €"}},{"$f":"IF(C68=0,\"Non saisi\",IF(C68<0,\"Atypie\",\"OK\"))","v":"Non saisi"},"Ce champ est généralement non vide. Si \"Non saisi\" ou \"Incohérence\", vérifiez votre saisie. "]
["Total des emplois (hors IAF) réalisés N-1","Tableau de financement",{"$f":"'Tabl. de financement'!$D$48-'Tabl. de financement'!$D$27","v":{"v":0,"d":"0.00 €"}},{"$f":"IF(C69=0,\"Non saisi\",IF(C69<0,\"Atypie\",\"OK\"))","v":"Non saisi"},"Ce champ est généralement non vide. Si \"Non saisi\" ou \"Incohérence\", vérifiez votre saisie. "]
["Apports, dotations, réserves et fonds propres au 31/12/N","Bilan financier",{"$f":"'Bilan financier'!M7","v":{"v":0,"d":"0.00 €"}},{"$f":"IF(C70=0,\"Non saisi\",IF(C70<0,\"Incohérence\",\"Ok\"))","v":"Non saisi"},"Les apports, dotations, réserves fonds propres ne peuvent pas être négatifs par nature. En cas d'incohérence, vérification de la saisie recommandée."]
["Variation des dettes financières c/16 (réalisé N)","Tableau de financement",{"$f":"'Tabl. de financement'!$I$12+'Tabl. de financement'!$I$13-'Tabl. de financement'!$I$30-'Tabl. de financement'!$I$31","v":{"v":0,"d":"0.00 €"}},{"$f":"IF(ROUND(C71-('Bilan financier'!$M$14+'Bilan financier'!$M$15-'Bilan financier'!$L$14-'Bilan financier'!$L$15),0)=0,\"OK\",\"Incohérence\")","v":"OK"},"Cohérence inter-onglet : les mouvements d'emplois et de ressources afférents aux emprunts, dépôts et cautionnements (compte 16) doivent concorder avec la variation des postes \"Emprunts et dettes assimilées\" et \"Dépôts et cautionnements reçus\" au bilan financier. En cas d'écart (incohérence), vérifiez votre saisie. Si cet écart est justifié, il doit être expliqué dans le rapport budgétaire et financier. "]
["Variation du FRNG (réalisé N)","ERRD synthétique / Bilan financier",{"$f":"'ERRD synthétique'!$D$43","v":{"v":0,"d":"0.00 €"}},{"$f":"IF(ROUND(C72-('Bilan financier'!$M$40-'Bilan financier'!$G$40-'Bilan financier'!$L$40+'Bilan financier'!$F$40),0)=0,\"OK\",\"Incohérence\")","v":"OK"},"Cohérence inter-onglet : la variation du fonds de roulement calculée à partir du tableau de financement (TF) doit être égale à la variation du FRNG calculée à partir du bilan financier. En cas d'écart (incohérence), vérifiez votre saisie. Si cet écart est justifié, il doit être expliqué dans le rapport budgétaire et financier. "]
["Dotations aux provisions réglementées c/6872/6874 (réalisé N)","CRP/A et CRA_SF",{"$f":"+Conso!B$387","v":{"v":0,"d":"0.00 €"}},{"$f":"IF(ROUND(C73-'Provis°, dépréciat°, subvent'!$H$7,0)=0,\"OK\",\"Incohérence\")","v":"OK"},"Cohérence inter-onglet : le montant global des dotations inscrites aux comptes de résultat doit être égale à la valeur \"dotations de l'exercice\" (comptes 14) retracée dans l'onglet \"Provis°, dépréciat°, subvent\". En cas d'écart (incohérence), vérifiez votre saisie. "]
["Reprises sur provisions réglementées c/7872/7874 (réalisé N)","CRP/A et CRA_SF",{"$f":"Conso!$B$388","v":{"v":0,"d":"0.00 €"}},{"$f":"IF(ROUND(C74-'Provis°, dépréciat°, subvent'!$I$7,0)=0,\"OK\",\"Incohérence\")","v":"OK"},"Cohérence inter-onglet : le montant global des reprises inscrites aux comptes de résultat doit être égale à la valeur \"reprises de l'exercice\" (comptes 14) retracée dans l'onglet \"Provis°, dépréciat°, subvent\". En cas d'écart (incohérence), vérifiez votre saisie. "]
["Reports en fonds dédiés c/689 (réalisé N)","CRP/A et CRA_SF",{"$f":"Conso!$B$396","v":{"v":0,"d":"0.00 €"}},{"$f":"IF(ROUND(C75-'Provis°, dépréciat°, subvent'!$H$37,0)=0,\"OK\",\"Incohérence\")","v":"OK"},"Cohérence inter-onglet : le montant global des dotations inscrites aux comptes de résultat doit être égale à la valeur \"dotations de l'exercice\" (fonds dédiés) retracée dans l'onglet \"Provis°, dépréciat°, subvent\". En cas d'écart (incohérence), vérifiez votre saisie. "]
["Utilisation de fonds dédiés et de fonds reportés c/789 (réalisé N)","CRP/A et CRA_SF",{"$f":"Conso!$B$397","v":{"v":0,"d":"0.00 €"}},{"$f":"IF(ROUND(C76-'Provis°, dépréciat°, subvent'!$I$37,0)=0,\"OK\",\"Incohérence\")","v":"OK"},"Cohérence inter-onglet : le montant global des reprises inscrites aux comptes de résultat doit être égale à la valeur \"reprises de l'exercice\" (fonds dédiés) retracée dans l'onglet \"Provis°, dépréciat°, subvent\". En cas d'écart (incohérence), vérifiez votre saisie. "]
["Subventions d'investissements : solde du compte 13 au 31/12/N","Bilan financier / Provis°, dépréciat°, subvent",{"$f":"'Bilan financier'!$M$9","v":{"v":0,"d":"0.00 €"}},{"$f":"IF(ROUND(C77-'Provis°, dépréciat°, subvent'!$L$46,0)=0,\"OK\",\"Incohérence\")","v":"OK"},"Cohérence inter-onglet : la valeur \"Subventions d'investissement\" de l'onglet \"Bilan financier\" doit être égale à la valeur \"Solde des subventions au 31 déc. N\" de l'onglet \"Provis°, dépréciat°, subvent\". En cas d'écart (incohérence), vérifiez votre saisie. "]
["Subventions d'investissements : reprises réalisées N","CRP/A et CRA_SF",{"$f":"Conso!B$399","v":{"v":0,"d":"0.00 €"}},{"$f":"IF(ROUND(C78-'Provis°, dépréciat°, subvent'!$K$46,0)=0,\"OK\",\"Incohérence\")","v":"OK"},"Cohérence inter-onglet : le montant des reprises inscrites au compte de résultat doit être égale à la valeur \"Reprises effectuées au titre de l'exercice N\" de l'onglet \"Provis°, dépréciat°, subvent\". En cas d'écart (incohérence), vérifiez votre saisie. "]
["Résultat comptable de l'exercice","Affectation_Resultats (Prive I/II ou Public I/II)",{"$f":"HLOOKUP(\"TOTAL\",Affectation_Resultats_Prive_I!$B$4:$IV$36,3,FALSE)-HLOOKUP(\"TOTAL\",Affectation_Resultats_Prive_I!$B$4:$IV$36,4,FALSE)+HLOOKUP(\"TOTAL\",Affectation_Resultats_Prive_II!$B$4:$IV$36,3,FALSE)-HLOOKUP(\"TOTAL\",Affectation_Resultats_Prive_II!$B$4:$IV$36,4,FALSE)+HLOOKUP(\"TOTAL\",Affectation_Resultats_Public_I!$B$5:$IV$25,3,FALSE)-HLOOKUP(\"TOTAL\",Affectation_Resultats_Public_I!$B$5:$IV$25,4,FALSE)+HLOOKUP(\"TOTAL\",Affectation_Resultats_Public_II!$B$5:$IV$25,3,FALSE)-HLOOKUP(\"TOTAL\",Affectation_Resultats_Public_II!$B$5:$IV$25,4,FALSE)","v":{"v":0,"d":"0.00 €"}},{"$f":"IF(ROUND(C79-'ERRD synthétique'!$D$11+'ERRD synthétique'!$F$11,0)=0,\"OK\",\"Incohérence\")","v":"OK"},"Cohérence inter-onglet : la valeur du résultat comptable repris dans le tableau de détermination et d'affectation des résultats doit être égale au résultat comptable issu de l'onglet \"ERRD synthétique\". En cas d'écart (incohérence), vérifiez votre saisie. "]
["Ecart entre résultat à affecter et total des affectations","Affectation_Resultats (Prive I/II ou Public I/II)",{"$f":"HLOOKUP(\"TOTAL\",Affectation_Resultats_Prive_I!$B$4:$IV$36,15,FALSE)-HLOOKUP(\"TOTAL\",Affectation_Resultats_Prive_I!$B$4:$IV$36,32,FALSE)+HLOOKUP(\"TOTAL\",Affectation_Resultats_Prive_II!$B$4:$IV$36,15,FALSE)-HLOOKUP(\"TOTAL\",Affectation_Resultats_Prive_II!$B$4:$IV$36,32,FALSE)+HLOOKUP(\"TOTAL\",Affectation_Resultats_Public_I!$B$5:$IV$25,10,FALSE)-HLOOKUP(\"TOTAL\",Affectation_Resultats_Public_I!$B$5:$IV$25,20,FALSE)+HLOOKUP(\"TOTAL\",Affectation_Resultats_Public_II!$B$5:$IV$25,10,FALSE)-HLOOKUP(\"TOTAL\",Affectation_Resultats_Public_II!$B$5:$IV$25,20,FALSE)","v":{"v":0,"d":"0.00 €"}},{"$f":"IF(ROUND(C80,0)=0,\"OK\",\"Incohérence\")","v":"OK"},"Le sous-total \"B TOTAL DES AFFECTATIONS DE RESULTAT\" doit être égal au sous-total \"A. RESULTAT A AFFECTER\" dans l'onglet \"Affectation_Resultats\". En cas d'écart (incohérence), vérifiez votre saisie. "]

{"sheet":"Conso","index":5,"n_rows":399,"n_cols":3,"rows_kept":399,"hidden":true}
[null,"Conso"]
["ERRD synthétique"]
["Prévu CHARGE"]
["Groupe I : charges afférentes à l'exploitation courante",{"$f":"SUM(C4:IV4)","v":0},{"$f":"+'CRP SOUMIS EQUILIBRE'!$H$35+'CRP NON SOUMIS EQUIL'!$H$35+CRA_SF!$H$35","v":0}]
["Groupe II : charges afférentes au personnel",0,{"$f":"+'CRP SOUMIS EQUILIBRE'!$H$53+'CRP NON SOUMIS EQUIL'!$H$53+CRA_SF!$H$53","v":0}]
["Groupe III : charges afférentes à la structure",0,{"$f":"+'CRP SOUMIS EQUILIBRE'!$H$107+'CRP NON SOUMIS EQUIL'!$H$109+CRA_SF!$H$109","v":0}]
["TOTAL DES CHARGES",0]
["RESULTAT COMPTABLE  EXCEDENTAIRE",0]
["TOTAL EQUILIBRE DES COMPTES DE RESULTAT",0]
["IMPACT DES COMPTES DE RESULTAT SUR LA CAPACITE D'AUTOFINANCEMENT PREVISIONNELLE DE L'ENTITE",{"$f":"SUM(C10:IV10)","v":0}]
[null,0]
[null,0]
["RESULTAT COMPTABLE  (EXCEDENT)",0]
["Valeurs comptables des éléments d'actif cédés",0,{"$f":"+'CRP SOUMIS EQUILIBRE'!$H$85+'CRP NON SOUMIS EQUIL'!$H$85+CRA_SF!$H$85","v":0}]
["Dotations aux amortissements, aux dépréciations et aux provisions",0,{"$f":"'CRP NON SOUMIS EQUIL'!$H$89+'CRP NON SOUMIS EQUIL'!$H$90+'CRP NON SOUMIS EQUIL'!$H$91+'CRP NON SOUMIS EQUIL'!$H$92+'CRP NON SOUMIS EQUIL'!$H$93+'CRP NON SOUMIS EQUIL'!$H$94+'CRP NON SOUMIS EQUIL'!$H$95+'CRP NON SOUMIS EQUIL'!$H$96+'CRP NON SOUMIS EQUIL'!$H$97+'CRP NON SOUMIS EQUIL'!$H$98+'CRP NON SOUMIS EQUIL'!$H$99+'CRP NON SOUMIS EQUIL'!$H$100+'CRP NON SOUMIS EQUIL'!$H$101+'CRP SOUMIS EQUILIBRE'!$H$89+'CRP SOUMIS EQUILIBRE'!$H$90+'CRP SOUMIS EQUILIBRE'!$H$91+'CRP SOUMIS EQUILIBRE'!$H$92+'CRP SOUMIS EQUILIBRE'!$H$93+'CRP SOUMIS EQUILIBRE'!$H$94+'CRP SOUMIS EQUILIBRE'!$H$95+'CRP SOUMIS EQUILIBRE'!$H$96+'CRP SOUMIS EQUILIBRE'!$H$97+'CRP SOUMIS EQUILIBRE'!$H$98+'CRP SOUMIS EQUILIBRE'!$H$99+'CRP SOUMIS EQUILIBRE'!$H$100+'CRP SOUMIS EQUILIBRE'!$H$101+CRA_SF!$H$89+CRA_SF!$H$90+CRA_SF!$H$91+CRA_SF!$H$92+CRA_SF!$H$93+CRA_SF!$H$94+CRA_SF!$H$95+CRA_SF!$H$96+CRA_SF!$H$97+CRA_SF!$H$98+CRA_SF!$H$99+CRA_SF!$H$100+CRA_SF!$H$101","v":0}]
["Reports en fonds dédiés (ESSMS privés)",0,{"$f":"SUM('CRP NON SOUMIS EQUIL'!$H$102:$H$105)+SUM('CRP SOUMIS EQUILIBRE'!$H$102:$H$105)+SUM(CRA_SF!$H$102:$H$105)","v":0}]
[null,0]
["SOUS-TOTAL 1",0]
["APPORT A LA CAPACITE D'AUTOFINANCEMENT (si 1-2>0)",0]
["Apport à la CAF en pourcentage des produits",{"v":0,"d":"0%"}]
[null,0]
[null,0]
["Réel CHARGES",0]
["Groupe I : charges afférentes à l'exploitation courante",0,{"$f":"+'CRP SOUMIS EQUILIBRE'!$I$35+'CRP NON SOUMIS EQUIL'!$I$35+CRA_SF!$I$35","v":0}]
["Groupe II : charges afférentes au personnel",0,{"$f":"+'CRP SOUMIS EQUILIBRE'!$I$53+'CRP NON SOUMIS EQUIL'!$I$53+CRA_SF!$I$53","v":0}]
["Groupe III : charges afférentes à la structure",0,{"$f":"+'CRP SOUMIS EQUILIBRE'!$I$107+'CRP NON SOUMIS EQUIL'!$I$109+CRA_SF!$I$109","v":0}]
["TOTAL DES CHARGES",0]
["RESULTAT COMPTABLE  EXCEDENTAIRE",0]
["TOTAL EQUILIBRE DES COMPTES DE RESULTAT",0]
["IMPACT DES COMPTES DE RESULTAT SUR LA CAPACITE D'AUTOFINANCEMENT PREVISIONNELLE DE L'ENTITE",0]
[null,0]
[null,0]
["RESULTAT COMPTABLE  (EXCEDENT)",0]
["Valeurs comptables des éléments d'actif cédés",0,{"$f":"+'CRP SOUMIS EQUILIBRE'!$I$85+'CRP NON SOUMIS EQUIL'!$I$85+CRA_SF!$I$85","v":0}]
["Dotations aux amortissements, aux dépréciations et aux provisions",0,{"$f":"'CRP NON SOUMIS EQUIL'!$I$89+'CRP NON SOUMIS EQUIL'!$I$90+'CRP NON SOUMIS EQUIL'!$I$91+'CRP NON SOUMIS EQUIL'!$I$92+'CRP NON SOUMIS EQUIL'!$I$93+'CRP NON SOUMIS EQUIL'!$I$94+'CRP NON SOUMIS EQUIL'!$I$95+'CRP NON SOUMIS EQUIL'!$I$96+'CRP NON SOUMIS EQUIL'!$I$97+'CRP NON SOUMIS EQUIL'!$I$98+'CRP NON SOUMIS EQUIL'!$I$99+'CRP NON SOUMIS EQUIL'!$I$100+'CRP NON SOUMIS EQUIL'!$I$101+'CRP SOUMIS EQUILIBRE'!$I$89+'CRP SOUMIS EQUILIBRE'!$I$90+'CRP SOUMIS EQUILIBRE'!$I$91+'CRP SOUMIS EQUILIBRE'!$I$92+'CRP SOUMIS EQUILIBRE'!$I$93+'CRP SOUMIS EQUILIBRE'!$I$94+'CRP SOUMIS EQUILIBRE'!$I$95+'CRP SOUMIS EQUILIBRE'!$I$96+'CRP SOUMIS EQUILIBRE'!$I$97+'CRP SOUMIS EQUILIBRE'!$I$98+'CRP SOUMIS EQUILIBRE'!$I$99+'CRP SOUMIS EQUILIBRE'!$I$100+'CRP SOUMIS EQUILIBRE'!$I$101+CRA_SF!$I$89+CRA_SF!$I$90+CRA_SF!$I$91+CRA_SF!$I$92+CRA_SF!$I$93+CRA_SF!$I$94+CRA_SF!$I$95+CRA_SF!$I$96+CRA_SF!$I$97+CRA_SF!$I$98+CRA_SF!$I$99+CRA_SF!$I$100+CRA_SF!$I$101","v":0}]
["Reports en fonds dédiés (ESSMS privés)",0,{"$f":"SUM('CRP NON SOUMIS EQUIL'!$I$102:$I$105)+SUM('CRP SOUMIS EQUILIBRE'!$I$102:$I$105)+SUM(CRA_SF!$I$102:$I$105)","v":0}]
[null,0]
["SOUS-TOTAL 1",0]
["APPORT A LA CAPACITE D'AUTOFINANCEMENT (si 1-2>0)",0]
["Apport à la CAF en pourcentage des produits",{"v":0,"d":"0%"}]
[null,0]
[null,{"$f":"SUM(C42:IV42)","v":0}]
[null,0]
["Prévu PRODUITS",0]
["Groupe I : produits de la tarification",0,{"$f":"+'CRP SOUMIS EQUILIBRE'!$H$128+'CRP NON SOUMIS EQUIL'!$H$135+CRA_SF!$H$135","v":0}]
["Groupe II : autres produits relatifs à l'exploitation",0,{"$f":"+'CRP SOUMIS EQUILIBRE'!$H$153+'CRP NON SOUMIS EQUIL'!$H$160+CRA_SF!$H$160","v":0}]
["Groupe III : produits financiers, produits exceptionnels et produits non encaissables",0,{"$f":"+'CRP SOUMIS EQUILIBRE'!$H$188+'CRP NON SOUMIS EQUIL'!$H$195+CRA_SF!$H$195","v":0}]
["TOTAL DES PRODUITS",0]
["RESULTAT COMPTABLE  DEFICITAIRE",0]
["TOTAL EQUILIBRE DES COMPTES DE RESULTAT",0]
[null,0]
[null,0]
[null,0]
["RESULTAT COMPTABLE  (DEFICIT) (1)",0]
["Produits des cessions d'éléments d'actif",0,{"$f":"'CRP NON SOUMIS EQUIL'!$H$172+'CRP SOUMIS EQUILIBRE'!$H$164+CRA_SF!$H$172","v":0}]
["Quotes-parts des subventions et fonds associatifs virées au résultat",0,{"$f":"'CRP NON SOUMIS EQUIL'!$H$173+'CRP NON SOUMIS EQUIL'!$H$175+'CRP SOUMIS EQUILIBRE'!$H$165+'CRP SOUMIS EQUILIBRE'!$H$167+CRA_SF!$H$173+CRA_SF!$H$175","v":0}]
["Reprises sur amortissements, dépréciations et provisions",0,{"$f":"'CRP NON SOUMIS EQUIL'!$H$178+'CRP NON SOUMIS EQUIL'!$H$179+'CRP NON SOUMIS EQUIL'!$H$180+'CRP NON SOUMIS EQUIL'!$H$181+'CRP NON SOUMIS EQUIL'!$H$182+'CRP NON SOUMIS EQUIL'!$H$183+'CRP NON SOUMIS EQUIL'!$H$184+'CRP NON SOUMIS EQUIL'!$H$185+'CRP NON SOUMIS EQUIL'!$H$186+'CRP NON SOUMIS EQUIL'!$H$187+'CRP NON SOUMIS EQUIL'!$H$188+'CRP SOUMIS EQUILIBRE'!$H$170+'CRP SOUMIS EQUILIBRE'!$H$171+'CRP SOUMIS EQUILIBRE'!$H$172+'CRP SOUMIS EQUILIBRE'!$H$173+'CRP SOUMIS EQUILIBRE'!$H$174+'CRP SOUMIS EQUILIBRE'!$H$175+'CRP SOUMIS EQUILIBRE'!$H$176+'CRP SOUMIS EQUILIBRE'!$H$177+'CRP SOUMIS EQUILIBRE'!$H$178+'CRP SOUMIS EQUILIBRE'!$H$179+'CRP SOUMIS EQUILIBRE'!$H$180+'CRP SOUMIS EQUILIBRE'!$H$181+CRA_SF!$H$178+CRA_SF!$H$179+CRA_SF!$H$180+CRA_SF!$H$181+CRA_SF!$H$182+CRA_SF!$H$183+CRA_SF!$H$184+CRA_SF!$H$185+CRA_SF!$H$186+CRA_SF!$H$187+CRA_SF!$H$188","v":0}]
["Utilisation de fonds dédiés et de fonds reportés (ESSMS privés)",0,{"$f":"SUM('CRP NON SOUMIS EQUIL'!$H$189:$H$192)+SUM('CRP SOUMIS EQUILIBRE'!$H$182:$H$185)+SUM(CRA_SF!$H$189:$H$192)","v":0}]
["SOUS-TOTAL 2",0]
["INSUFFISANCE D'AUTOFINANCEMENT (si 1-2<0)",0]
["Taux d'IAF en pourcentage des produits",0]
[null,0]
[null,0]
[null,{"$f":"SUM(C64:IV64)","v":0}]
["Réel PRODUITS",0]
["Groupe I : produits de la tarification",0,{"$f":"+'CRP SOUMIS EQUILIBRE'!$I$128+'CRP NON SOUMIS EQUIL'!$I$135+CRA_SF!$I$135","v":0}]
["Groupe II : autres produits relatifs à l'exploitation",0,{"$f":"+'CRP SOUMIS EQUILIBRE'!$I$153+'CRP NON SOUMIS EQUIL'!$I$160+CRA_SF!$I$160","v":0}]
["Groupe III : produits financiers, produits exceptionnels et produits non encaissables",0,{"$f":"+'CRP SOUMIS EQUILIBRE'!$I$188+'CRP NON SOUMIS EQUIL'!$I$195+CRA_SF!$I$195","v":0}]
["TOTAL DES PRODUITS",0]
["RESULTAT COMPTABLE  DEFICITAIRE",0]
["TOTAL EQUILIBRE DES COMPTES DE RESULTAT",0]
[null,0]
[null,0]
[null,0]
["RESULTAT COMPTABLE  (DEFICIT) (1)",0]
["Produits des cessions d'éléments d'actif",0,{"$f":"'CRP NON SOUMIS EQUIL'!$I$172+'CRP SOUMIS EQUILIBRE'!$I$164+CRA_SF!$I$172","v":0}]
["Quotes-parts des subventions et fonds associatifs virées au résultat",0,{"$f":"'CRP NON SOUMIS EQUIL'!$I$173+'CRP NON SOUMIS EQUIL'!$I$175+'CRP SOUMIS EQUILIBRE'!$I$165+'CRP SOUMIS EQUILIBRE'!$I$167+CRA_SF!$I$173+CRA_SF!$I$175","v":0}]
["Reprises sur amortissements, dépréciations et provisions",0,{"$f":"'CRP NON SOUMIS EQUIL'!$I$178+'CRP NON SOUMIS EQUIL'!$I$179+'CRP NON SOUMIS EQUIL'!$I$180+'CRP NON SOUMIS EQUIL'!$I$181+'CRP NON SOUMIS EQUIL'!$I$182+'CRP NON SOUMIS EQUIL'!$I$183+'CRP NON SOUMIS EQUIL'!$I$184+'CRP NON SOUMIS EQUIL'!$I$185+'CRP NON SOUMIS EQUIL'!$I$186+'CRP NON SOUMIS EQUIL'!$I$187+'CRP NON SOUMIS EQUIL'!$I$188+'CRP SOUMIS EQUILIBRE'!$I$170+'CRP SOUMIS EQUILIBRE'!$I$171+'CRP SOUMIS EQUILIBRE'!$I$172+'CRP SOUMIS EQUILIBRE'!$I$173+'CRP SOUMIS EQUILIBRE'!$I$174+'CRP SOUMIS EQUILIBRE'!$I$175+'CRP SOUMIS EQUILIBRE'!$I$176+'CRP SOUMIS EQUILIBRE'!$I$177+'CRP SOUMIS EQUILIBRE'!$I$178+'CRP SOUMIS EQUILIBRE'!$I$179+'CRP SOUMIS EQUILIBRE'!$I$180+'CRP SOUMIS EQUILIBRE'!$I$181+CRA_SF!$I$178+CRA_SF!$I$179+CRA_SF!$I$180+CRA_SF!$I$181+CRA_SF!$I$182+CRA_SF!$I$183+CRA_SF!$I$184+CRA_SF!$I$185+CRA_SF!$I$186+CRA_SF!$I$187+CRA_SF!$I$188","v":0}]
["Utilisation de fonds dédiés et de fonds reportés (ESSMS privés)",0,{"$f":"SUM('CRP NON SOUMIS EQUIL'!$I$189:$I$192)+SUM('CRP SOUMIS EQUILIBRE'!$I$182:$I$185)+SUM(CRA_SF!$I$189:$I$192)","v":0}]
["SOUS-TOTAL 2",0]
["INSUFFISANCE D'AUTOFINANCEMENT (si 1-2<0)",0]
["Taux d'IAF en pourcentage des produits",0]
[]
[]
[]
["CAF Réel n-1"]
["Groupe I : charges afférentes à l'exploitation courante",{"$f":"SUM(C87:IV87)","v":0},{"$f":"+'CRP SOUMIS EQUILIBRE'!$D$35+'CRP NON SOUMIS EQUIL'!$D$35+CRA_SF!$D$35","v":0}]
["Groupe II : charges afférentes au personnel",0,{"$f":"+'CRP SOUMIS EQUILIBRE'!$D$53+'CRP NON SOUMIS EQUIL'!$D$53+CRA_SF!$D$53","v":0}]
["Groupe III : charges afférentes à la structure",0,{"$f":"+'CRP SOUMIS EQUILIBRE'!$D$107+'CRP NON SOUMIS EQUIL'!$D$109+CRA_SF!$D$109","v":0}]
["TOTAL DES CHARGES",{"$f":"SUM(B87:B89)","v":0},{"$f":"SUM(C87:C89)","v":0}]
["RESULTAT COMPTABLE  EXCEDENTAIRE"]
["TOTAL EQUILIBRE DES COMPTES DE RESULTAT"]
["Groupe I : produits de la tarification",0,{"$f":"'CRP SOUMIS EQUILIBRE'!$D$128+'CRP NON SOUMIS EQUIL'!$D$135+CRA_SF!$D$135","v":0}]
["Groupe II : autres produits relatifs à l'exploitation",0,{"$f":"'CRP SOUMIS EQUILIBRE'!$D$153+'CRP NON SOUMIS EQUIL'!$D$160+CRA_SF!$D$160","v":0}]
["Groupe III : produits financiers, produits exceptionnels et produits non encaissables",0,{"$f":"'CRP SOUMIS EQUILIBRE'!$D$188+'CRP NON SOUMIS EQUIL'!$D$195+CRA_SF!$D$195","v":0}]
["TOTAL DES PRODUITS",{"$f":"SUM(B93:B95)","v":0},{"$f":"SUM(C93:C95)","v":0}]
[]
[]
["RESULTAT COMPTABLE (EXCEDENT ou DEFICIT) (1)",{"$f":"B96-B90","v":0}]
["+ Flux internes (charges)",{"$f":"SUM(B101:B110)","v":0}]
["+ Valeurs comptables des éléments d'actif cédés",{"$f":"SUM(C101:IV101)","v":0},{"$f":"'CRP NON SOUMIS EQUIL'!$D$85+'CRP SOUMIS EQUILIBRE'!$D$85+CRA_SF!$D$85","v":0}]
["+ Dotations aux amortissements des immobilisations incorporelles et corporelles",0,{"$f":"'CRP NON SOUMIS EQUIL'!$D$89+'CRP SOUMIS EQUILIBRE'!$D$89+CRA_SF!$D$89","v":0}]
["+ Dotations aux provisions pour renouvellement des immobilisations et dotations aux amortissements dérogatoires",0,{"$f":"'CRP NON SOUMIS EQUIL'!$D$96+'CRP NON SOUMIS EQUIL'!$D$98+'CRP SOUMIS EQUILIBRE'!$D$96+'CRP SOUMIS EQUILIBRE'!$D$98+CRA_SF!$D$96+CRA_SF!$D$98","v":0}]
["+ Autres dotations aux amortissements, dépréciations et provisions impactant le FRI",0,{"$f":"'CRP NON SOUMIS EQUIL'!$D$90+'CRP NON SOUMIS EQUIL'!$D$92+'CRP NON SOUMIS EQUIL'!$D$95+'CRP NON SOUMIS EQUIL'!$D$99+'CRP NON SOUMIS EQUIL'!$D$100+'CRP SOUMIS EQUILIBRE'!$D$90+'CRP SOUMIS EQUILIBRE'!$D$92+'CRP SOUMIS EQUILIBRE'!$D$95+'CRP SOUMIS EQUILIBRE'!$D$99+'CRP SOUMIS EQUILIBRE'!$D$100+CRA_SF!$D$90+CRA_SF!$D$92+CRA_SF!$D$95+CRA_SF!$D$99+CRA_SF!$D$100","v":0}]
["+ Reports en fonds dédiés à l'investissement sur concours publics des entités gestionnaires d'ESSMS (ESSMS privés)",{"$f":"SUM(C105:IV105)","v":0},{"$f":"'CRP NON SOUMIS EQUIL'!$D$103+'CRP SOUMIS EQUILIBRE'!$D$103+CRA_SF!$D$103","v":0}]
["+ Dotations aux provisions d'exploitation",0,{"$f":"'CRP NON SOUMIS EQUIL'!$D$91+'CRP SOUMIS EQUILIBRE'!$D$91+CRA_SF!$D$91","v":0}]
["+ dotations aux provisions de couverture du BFR",0,{"$f":"'CRP NON SOUMIS EQUIL'!$D$97+'CRP SOUMIS EQUILIBRE'!$D$97+CRA_SF!$D$97","v":0}]
["+ Dotations aux dépréciations des actifs circulants: créances, stocks et en-cours",0,{"$f":"'CRP NON SOUMIS EQUIL'!$D$93+'CRP SOUMIS EQUILIBRE'!$D$93+CRA_SF!$D$93","v":0}]
["+ Autres dotations aux amortissements, dépréciations et provisions",0,{"$f":"'CRP NON SOUMIS EQUIL'!$D$94+'CRP NON SOUMIS EQUIL'!$D$101+'CRP SOUMIS EQUILIBRE'!$D$94+'CRP SOUMIS EQUILIBRE'!$D$101+CRA_SF!$D$94+CRA_SF!$D$101","v":0}]
["+ Reports en fonds dédiés (ESSMS privés) sauf c/68921",0,{"$f":"'CRP NON SOUMIS EQUIL'!$D$102+'CRP NON SOUMIS EQUIL'!$D$104+'CRP NON SOUMIS EQUIL'!$D$105+'CRP SOUMIS EQUILIBRE'!$D$102+'CRP SOUMIS EQUILIBRE'!$D$104+'CRP SOUMIS EQUILIBRE'!$D$105+CRA_SF!$D$102+CRA_SF!$D$104+CRA_SF!$D$105","v":0}]
["- Flux internes (produits)",{"$f":"SUM(B112:B122)","v":0}]
["- Produits des cessions d'éléments d'actif",0,{"$f":"'CRP NON SOUMIS EQUIL'!$D$172+'CRP SOUMIS EQUILIBRE'!$D$164+CRA_SF!$D$172","v":0}]
["- Quotes-parts des subventions d'investissement virées au résultat de l'exercice",0,{"$f":"'CRP NON SOUMIS EQUIL'!$D$173+'CRP SOUMIS EQUILIBRE'!$D$165+CRA_SF!$D$173","v":0}]
["- Reprises sur provisions pour renouvellement des immobilisations et reprises sur amortissements dérogatoires",0,{"$f":"'CRP NON SOUMIS EQUIL'!$D$185+'CRP NON SOUMIS EQUIL'!$D$183+'CRP SOUMIS EQUILIBRE'!$D$176+'CRP SOUMIS EQUILIBRE'!$D$178+CRA_SF!$D$185+CRA_SF!$D$183","v":0}]
["- Autres reprises sur amortissements, dépréciations et provisions impactant le FRI",0,{"$f":"'CRP NON SOUMIS EQUIL'!$D$178+'CRP NON SOUMIS EQUIL'!$D$180+'CRP NON SOUMIS EQUIL'!$D$186+'CRP NON SOUMIS EQUIL'!$D$187+'CRP SOUMIS EQUILIBRE'!$D$170+'CRP SOUMIS EQUILIBRE'!$D$172+'CRP SOUMIS EQUILIBRE'!$D$179+'CRP SOUMIS EQUILIBRE'!$D$180+CRA_SF!$D$178+CRA_SF!$D$180+CRA_SF!$D$186+CRA_SF!$D$187","v":0}]
["- Quote-part d'éléments du fonds associatif virée au compte de résultat (établissements privés)",0,{"$f":"'CRP NON SOUMIS EQUIL'!$D$175+'CRP SOUMIS EQUILIBRE'!$D$167+CRA_SF!$D$175","v":0}]
["- Utilisation des fonds dédiés à l'investissement sur concours publics des entités gestionnaires d'ESSMS (ESSMS privés)",{"$f":"SUM(C117:IV117)","v":0},{"$f":"'CRP NON SOUMIS EQUIL'!$D$190+'CRP SOUMIS EQUILIBRE'!$D$183+CRA_SF!$D$190","v":0}]
["- Reprises sur provisions d'exploitation",0,{"$f":"'CRP NON SOUMIS EQUIL'!$D$179+'CRP SOUMIS EQUILIBRE'!$D$171+CRA_SF!$D$179","v":0}]
["- Reprises sur provisions de couverture du BFR",0,{"$f":"'CRP NON SOUMIS EQUIL'!$D$184+'CRP SOUMIS EQUILIBRE'!$D$177+CRA_SF!$D$184","v":0}]
["- Reprises sur dépréciations des actifs circulants: créances, stocks et en-cours",0,{"$f":"'CRP NON SOUMIS EQUIL'!$D$181+'CRP SOUMIS EQUILIBRE'!$D$173+CRA_SF!$D$181","v":0}]
["- Autres reprises sur dépréciations et provisions",0,{"$f":"'CRP NON SOUMIS EQUIL'!$D$182+'CRP NON SOUMIS EQUIL'!$D$188+'CRP SOUMIS EQUILIBRE'!$D$174+'CRP SOUMIS EQUILIBRE'!$D$181+CRA_SF!$D$182+CRA_SF!$D$188","v":0}]
["- Utilisations de fonds reportés et de fonds dédiés (ESSMS privés) sauf c/78921",0,{"$f":"'CRP NON SOUMIS EQUIL'!$D$189+'CRP NON SOUMIS EQUIL'!$D$191+'CRP NON SOUMIS EQUIL'!$D$192+'CRP SOUMIS EQUILIBRE'!$D$182+'CRP SOUMIS EQUILIBRE'!$D$184+'CRP SOUMIS EQUILIBRE'!$D$185+CRA_SF!$D$189+CRA_SF!$D$191+CRA_SF!$D$192","v":0}]
["CAPACITE OU INSUFFISANCE D'AUTOFINANCEMENT (CAF ou IAF)",{"$f":"B99+B100-B111","v":0}]
["Dont montant affectant le FRI",{"$f":"B101+B102+B103+B104+B105-B112-B113-B114-B115-B116-B117","v":0}]
["Dont montant affectant le FRE",{"$f":"B99+B106+B107+B108+B109+B110-B118-B119-B120-B121-B122","v":0}]
["IAF",{"$f":"IF(B123>0,0,-B123)","v":0}]
["CAF +",{"$f":"+IF(B123>0,B123,0)","v":0}]
[]
[]
["CAF budget initial n"]
["Groupe I : charges afférentes à l'exploitation courante",{"$f":"SUM(C131:IV131)","v":0},{"$f":"+'CRP SOUMIS EQUILIBRE'!$E$35+'CRP NON SOUMIS EQUIL'!$E$35+CRA_SF!$E$35","v":0}]
["Groupe II : charges afférentes au personnel",{"$f":"SUM(C132:IV132)","v":0},{"$f":"+'CRP SOUMIS EQUILIBRE'!$E$53+'CRP NON SOUMIS EQUIL'!$E$53+CRA_SF!$E$53","v":0}]
["Groupe III : charges afférentes à la structure",{"$f":"SUM(C133:IV133)","v":0},{"$f":"+'CRP SOUMIS EQUILIBRE'!$E$107+'CRP NON SOUMIS EQUIL'!$E$109+CRA_SF!$E$109","v":0}]
["TOTAL DES CHARGES",{"$f":"SUM(B131:B133)","v":0},{"$f":"SUM(C131:C133)","v":0}]
["RESULTAT COMPTABLE  EXCEDENTAIRE"]
["TOTAL EQUILIBRE DES COMPTES DE RESULTAT"]
["Groupe I : produits de la tarification",{"$f":"SUM(C137:IV137)","v":0},{"$f":"'CRP SOUMIS EQUILIBRE'!$E$128+'CRP NON SOUMIS EQUIL'!$E$135+CRA_SF!$E$135","v":0}]
["Groupe II : autres produits relatifs à l'exploitation",{"$f":"SUM(C138:IV138)","v":0},{"$f":"'CRP SOUMIS EQUILIBRE'!$E$153+'CRP NON SOUMIS EQUIL'!$E$160+CRA_SF!$E$160","v":0}]
["Groupe III : produits financiers, produits exceptionnels et produits non encaissables",{"$f":"SUM(C139:IV139)","v":0},{"$f":"'CRP SOUMIS EQUILIBRE'!$E$188+'CRP NON SOUMIS EQUIL'!$E$195+CRA_SF!$E$195","v":0}]
["TOTAL DES PRODUITS",{"$f":"SUM(B137:B139)","v":0},{"$f":"SUM(C137:C139)","v":0}]
[]
[]
["RESULTAT COMPTABLE (EXCEDENT ou DEFICIT) (1)",{"$f":"B140-B134","v":0}]
["+ Flux internes (charges)",{"$f":"SUM(B145:B154)","v":0}]
["+ Valeurs comptables des éléments d'actif cédés",{"$f":"SUM(C145:IV145)","v":0},{"$f":"'CRP NON SOUMIS EQUIL'!$E$85+'CRP SOUMIS EQUILIBRE'!$E$85+CRA_SF!$E$85","v":0}]
["+ Dotations aux amortissements des immobilisations incorporelles et corporelles",0,{"$f":"'CRP NON SOUMIS EQUIL'!$E$89+'CRP SOUMIS EQUILIBRE'!$E$89+CRA_SF!$E$89","v":0}]
["+ Dotations aux provisions pour renouvellement des immobilisations et dotations aux amortissements dérogatoires",0,{"$f":"'CRP NON SOUMIS EQUIL'!$E$96+'CRP NON SOUMIS EQUIL'!$E$98+'CRP SOUMIS EQUILIBRE'!$E$96+'CRP SOUMIS EQUILIBRE'!$E$98+CRA_SF!$E$96+CRA_SF!$E$98","v":0}]
["+ Autres dotations aux amortissements, dépréciations et provisions impactant le FRI",0,{"$f":"'CRP NON SOUMIS EQUIL'!$E$90+'CRP NON SOUMIS EQUIL'!$E$92+'CRP NON SOUMIS EQUIL'!$E$95+'CRP NON SOUMIS EQUIL'!$E$99+'CRP NON SOUMIS EQUIL'!$E$100+'CRP SOUMIS EQUILIBRE'!$E$90+'CRP SOUMIS EQUILIBRE'!$E$92+'CRP SOUMIS EQUILIBRE'!$E$95+'CRP SOUMIS EQUILIBRE'!$E$99+'CRP SOUMIS EQUILIBRE'!$E$100+CRA_SF!$E$90+CRA_SF!$E$92+CRA_SF!$E$95+CRA_SF!$E$99+CRA_SF!$E$100","v":0}]
["+ Reports en fonds dédiés à l'investissement sur concours publics des entités gestionnaires d'ESSMS (ESSMS privés)",{"$f":"SUM(C149:IV149)","v":0},{"$f":"'CRP NON SOUMIS EQUIL'!$E$103+'CRP SOUMIS EQUILIBRE'!$E$103+CRA_SF!$E$103","v":0}]
["+ Dotations aux provisions d'exploitation",0,{"$f":"'CRP NON SOUMIS EQUIL'!$E$91+'CRP SOUMIS EQUILIBRE'!$E$91+CRA_SF!$E$91","v":0}]
["+ dotations aux provisions de couverture du BFR",0,{"$f":"'CRP NON SOUMIS EQUIL'!$E$97+'CRP SOUMIS EQUILIBRE'!$E$97+CRA_SF!$E$97","v":0}]
["+ Dotations aux dépréciations des actifs circulants: créances, stocks et en-cours",0,{"$f":"'CRP NON SOUMIS EQUIL'!$E$93+'CRP SOUMIS EQUILIBRE'!$E$93+CRA_SF!$E$93","v":0}]
["+ Autres dotations aux amortissements, dépréciations et provisions",0,{"$f":"'CRP NON SOUMIS EQUIL'!$E$94+'CRP NON SOUMIS EQUIL'!$E$101+'CRP SOUMIS EQUILIBRE'!$E$94+'CRP SOUMIS EQUILIBRE'!$E$101+CRA_SF!$E$94+CRA_SF!$E$101","v":0}]
["+ Reports en fonds dédiés (ESSMS privés) sauf c/68921",0,{"$f":"'CRP NON SOUMIS EQUIL'!$E$102+'CRP NON SOUMIS EQUIL'!$E$104+'CRP NON SOUMIS EQUIL'!$E$105+'CRP SOUMIS EQUILIBRE'!$E$102+'CRP SOUMIS EQUILIBRE'!$E$104+'CRP SOUMIS EQUILIBRE'!$E$105+CRA_SF!$E$102+CRA_SF!$E$104+CRA_SF!$E$105","v":0}]
["- Flux internes (produits)",{"$f":"SUM(B156:B166)","v":0}]
["- Produits des cessions d'éléments d'actif",0,{"$f":"'CRP NON SOUMIS EQUIL'!$E$172+'CRP SOUMIS EQUILIBRE'!$E$164+CRA_SF!$E$172","v":0}]
["- Quotes-parts des subventions d'investissement virées au résultat de l'exercice",0,{"$f":"'CRP NON SOUMIS EQUIL'!$E$173+'CRP SOUMIS EQUILIBRE'!$E$165+CRA_SF!$E$173","v":0}]
["- Reprises sur provisions pour renouvellement des immobilisations et reprises sur amortissements dérogatoires",0,{"$f":"'CRP NON SOUMIS EQUIL'!$E$185+'CRP NON SOUMIS EQUIL'!$E$183+'CRP SOUMIS EQUILIBRE'!$E$176+'CRP SOUMIS EQUILIBRE'!$E$178+CRA_SF!$E$185+CRA_SF!$E$183","v":0}]
["- Autres reprises sur amortissements, dépréciations et provisions impactant le FRI",0,{"$f":"'CRP NON SOUMIS EQUIL'!$E$178+'CRP NON SOUMIS EQUIL'!$E$180+'CRP NON SOUMIS EQUIL'!$E$186+'CRP NON SOUMIS EQUIL'!$E$187+'CRP SOUMIS EQUILIBRE'!$E$170+'CRP SOUMIS EQUILIBRE'!$E$172+'CRP SOUMIS EQUILIBRE'!$E$179+'CRP SOUMIS EQUILIBRE'!$E$180+CRA_SF!$E$178+CRA_SF!$E$180+CRA_SF!$E$186+CRA_SF!$E$187","v":0}]
["- Quote-part d'éléments du fonds associatif virée au compte de résultat (établissements privés)",0,{"$f":"'CRP NON SOUMIS EQUIL'!$E$175+'CRP SOUMIS EQUILIBRE'!$E$167+CRA_SF!$E$175","v":0}]
["- Utilisation des fonds dédiés à l'investissement sur concours publics des entités gestionnaires d'ESSMS (ESSMS privés)",{"$f":"SUM(C161:IV161)","v":0},{"$f":"'CRP NON SOUMIS EQUIL'!$E$190+'CRP SOUMIS EQUILIBRE'!$E$183+CRA_SF!$E$190","v":0}]
["- Reprises sur provisions d'exploitation",0,{"$f":"'CRP NON SOUMIS EQUIL'!$E$179+'CRP SOUMIS EQUILIBRE'!$E$171+CRA_SF!$E$179","v":0}]
["- Reprises sur provisions de couverture du BFR",0,{"$f":"'CRP NON SOUMIS EQUIL'!$E$184+'CRP SOUMIS EQUILIBRE'!$E$177+CRA_SF!$E$184","v":0}]
["- Reprises sur dépréciations des actifs circulants: créances, stocks et en-cours",0,{"$f":"'CRP NON SOUMIS EQUIL'!$E$181+'CRP SOUMIS EQUILIBRE'!$E$173+CRA_SF!$E$181","v":0}]
["- Autres reprises sur dépréciations et provisions",0,{"$f":"'CRP NON SOUMIS EQUIL'!$E$182+'CRP NON SOUMIS EQUIL'!$E$188+'CRP SOUMIS EQUILIBRE'!$E$174+'CRP SOUMIS EQUILIBRE'!$E$181+CRA_SF!$E$182+CRA_SF!$E$188","v":0}]
["- Utilisations de fonds reportés et de fonds dédiés (ESSMS privés), sauf c/78921",0,{"$f":"'CRP NON SOUMIS EQUIL'!$E$189+'CRP NON SOUMIS EQUIL'!$E$191+'CRP NON SOUMIS EQUIL'!$E$192+'CRP SOUMIS EQUILIBRE'!$E$182+'CRP SOUMIS EQUILIBRE'!$E$184+'CRP SOUMIS EQUILIBRE'!$E$185+CRA_SF!$E$189+CRA_SF!$E$191+CRA_SF!$E$192","v":0}]
["CAPACITE OU INSUFFISANCE D'AUTOFINANCEMENT (CAF ou IAF)",{"$f":"B143+B144-B155","v":0}]
["Dont montant affectant le FRI",{"$f":"B145+B146+B147+B148+B149-B156-B157-B158-B159-B160-B161","v":0}]
["Dont montant affectant le FRE",{"$f":"B143+B150+B151+B152+B153+B154-B162-B163-B164-B165-B166","v":0}]
["IAF",{"$f":"IF(B167>0,0,-B167)","v":0}]
["CAF +",{"$f":"+IF(B167>0,B167,0)","v":0}]
[]
[]
["CAF VRT N"]
["Groupe I : charges afférentes à l'exploitation courante",{"$f":"SUM(C175:IV175)","v":0},{"$f":"+'CRP SOUMIS EQUILIBRE'!$F$35+'CRP NON SOUMIS EQUIL'!$F$35+CRA_SF!$F$35","v":0}]
["Groupe II : charges afférentes au personnel",{"$f":"SUM(C176:IV176)","v":0},{"$f":"+'CRP SOUMIS EQUILIBRE'!$F$53+'CRP NON SOUMIS EQUIL'!$F$53+CRA_SF!$F$53","v":0}]
["Groupe III : charges afférentes à la structure",{"$f":"SUM(C177:IV177)","v":0},{"$f":"+'CRP SOUMIS EQUILIBRE'!$F$107+'CRP NON SOUMIS EQUIL'!$F$109+CRA_SF!$F$109","v":0}]
["TOTAL DES CHARGES",{"$f":"SUM(B175:B177)","v":0},{"$f":"SUM(C175:C177)","v":0}]
["RESULTAT COMPTABLE  EXCEDENTAIRE"]
["TOTAL EQUILIBRE DES COMPTES DE RESULTAT"]
["Groupe I : produits de la tarification",{"$f":"SUM(C181:IV181)","v":0},{"$f":"'CRP SOUMIS EQUILIBRE'!$F$128+'CRP NON SOUMIS EQUIL'!$F$135+CRA_SF!$F$135","v":0}]
["Groupe II : autres produits relatifs à l'exploitation",{"$f":"SUM(C182:IV182)","v":0},{"$f":"'CRP SOUMIS EQUILIBRE'!$F$153+'CRP NON SOUMIS EQUIL'!$F$160+CRA_SF!$F$160","v":0}]
["Groupe III : produits financiers, produits exceptionnels et produits non encaissables",{"$f":"SUM(C183:IV183)","v":0},{"$f":"'CRP SOUMIS EQUILIBRE'!$F$188+'CRP NON SOUMIS EQUIL'!$F$195+CRA_SF!$F$195","v":0}]
["TOTAL DES PRODUITS",{"$f":"SUM(B181:B183)","v":0},{"$f":"SUM(C181:C183)","v":0}]
[]
[]
["RESULTAT COMPTABLE (EXCEDENT ou DEFICIT) (1)",{"$f":"B184-B178","v":0}]
["+ Flux internes (charges)",{"$f":"SUM(B189:B198)","v":0}]
["+ Valeurs comptables des éléments d'actif cédés",{"$f":"SUM(C189:IV189)","v":0},{"$f":"'CRP NON SOUMIS EQUIL'!$F$85+'CRP SOUMIS EQUILIBRE'!$F$85+CRA_SF!$F$85","v":0}]
["+ Dotations aux amortissements des immobilisations incorporelles et corporelles",0,{"$f":"'CRP NON SOUMIS EQUIL'!$F$89+'CRP SOUMIS EQUILIBRE'!$F$89+CRA_SF!$F$89","v":0}]
["+ Dotations aux provisions pour renouvellement des immobilisations et dotations aux amortissements dérogatoires",0,{"$f":"'CRP NON SOUMIS EQUIL'!$F$96+'CRP NON SOUMIS EQUIL'!$F$98+'CRP SOUMIS EQUILIBRE'!$F$96+'CRP SOUMIS EQUILIBRE'!$F$98+CRA_SF!$F$96+CRA_SF!$F$98","v":0}]
["+ Autres dotations aux amortissements, dépréciations et provisions impactant le FRI",0,{"$f":"'CRP NON SOUMIS EQUIL'!$F$90+'CRP NON SOUMIS EQUIL'!$F$92+'CRP NON SOUMIS EQUIL'!$F$95+'CRP NON SOUMIS EQUIL'!$F$99+'CRP NON SOUMIS EQUIL'!$F$100+'CRP SOUMIS EQUILIBRE'!$F$90+'CRP SOUMIS EQUILIBRE'!$F$92+'CRP SOUMIS EQUILIBRE'!$F$95+'CRP SOUMIS EQUILIBRE'!$F$99+'CRP SOUMIS EQUILIBRE'!$F$100+CRA_SF!$F$90+CRA_SF!$F$92+CRA_SF!$F$95+CRA_SF!$F$99+CRA_SF!$F$100","v":0}]
["+ Reports en fonds dédiés à l'investissement sur concours publics des entités gestionnaires d'ESSMS (ESSMS privés)",{"$f":"SUM(C193:IV193)","v":0},{"$f":"'CRP NON SOUMIS EQUIL'!$F$103+'CRP SOUMIS EQUILIBRE'!$F$103+CRA_SF!$F$103","v":0}]
["+ Dotations aux provisions d'exploitation",0,{"$f":"'CRP NON SOUMIS EQUIL'!$F$91+'CRP SOUMIS EQUILIBRE'!$F$91+CRA_SF!$F$91","v":0}]
["+ dotations aux provisions de couverture du BFR",0,{"$f":"'CRP NON SOUMIS EQUIL'!$F$97+'CRP SOUMIS EQUILIBRE'!$F$97+CRA_SF!$F$97","v":0}]
["+ Dotations aux dépréciations des actifs circulants: créances, stocks et en-cours",0,{"$f":"'CRP NON SOUMIS EQUIL'!$F$93+'CRP SOUMIS EQUILIBRE'!$F$93+CRA_SF!$F$93","v":0}]
["+ Autres dotations aux amortissements, dépréciations et provisions",0,{"$f":"'CRP NON SOUMIS EQUIL'!$F$94+'CRP NON SOUMIS EQUIL'!$F$101+'CRP SOUMIS EQUILIBRE'!$F$94+'CRP SOUMIS EQUILIBRE'!$F$101+CRA_SF!$F$94+CRA_SF!$F$101","v":0}]
["+ Reports en fonds dédiés (ESSMS privés) sauf c/68921",0,{"$f":"'CRP NON SOUMIS EQUIL'!$F$102+'CRP NON SOUMIS EQUIL'!$F$104+'CRP NON SOUMIS EQUIL'!$F$105+'CRP SOUMIS EQUILIBRE'!$F$102+'CRP SOUMIS EQUILIBRE'!$F$104+'CRP SOUMIS EQUILIBRE'!$F$105+CRA_SF!$F$102+CRA_SF!$F$104+CRA_SF!$F$105","v":0}]
["- Flux internes (produits)",{"$f":"SUM(B200:B210)","v":0}]
["- Produits des cessions d'éléments d'actif",0,{"$f":"'CRP NON SOUMIS EQUIL'!$F$172+'CRP SOUMIS EQUILIBRE'!$F$164+CRA_SF!$F$172","v":0}]
["- Quotes-parts des subventions d'investissement virées au résultat de l'exercice",0,{"$f":"'CRP NON SOUMIS EQUIL'!$F$173+'CRP SOUMIS EQUILIBRE'!$F$165+CRA_SF!$F$173","v":0}]
["- Reprises sur provisions pour renouvellement des immobilisations et reprises sur amortissements dérogatoires",0,{"$f":"'CRP NON SOUMIS EQUIL'!$F$185+'CRP NON SOUMIS EQUIL'!$F$183+'CRP SOUMIS EQUILIBRE'!$F$176+'CRP SOUMIS EQUILIBRE'!$F$178+CRA_SF!$F$185+CRA_SF!$F$183","v":0}]
["- Autres reprises sur amortissements, dépréciations et provisions impactant le FRI",0,{"$f":"'CRP NON SOUMIS EQUIL'!$F$178+'CRP NON SOUMIS EQUIL'!$F$180+'CRP NON SOUMIS EQUIL'!$F$186+'CRP NON SOUMIS EQUIL'!$F$187+'CRP SOUMIS EQUILIBRE'!$F$170+'CRP SOUMIS EQUILIBRE'!$F$172+'CRP SOUMIS EQUILIBRE'!$F$179+'CRP SOUMIS EQUILIBRE'!$F$180+CRA_SF!$F$178+CRA_SF!$F$180+CRA_SF!$F$186+CRA_SF!$F$187","v":0}]
["- Quote-part d'éléments du fonds associatif virée au compte de résultat (établissements privés)",0,{"$f":"'CRP NON SOUMIS EQUIL'!$F$175+'CRP SOUMIS EQUILIBRE'!$F$167+CRA_SF!$F$175","v":0}]
["- Utilisation des fonds dédiés à l'investissement sur concours publics des entités gestionnaires d'ESSMS (ESSMS privés)",{"$f":"SUM(C205:IV205)","v":0},{"$f":"'CRP NON SOUMIS EQUIL'!$F$190+'CRP SOUMIS EQUILIBRE'!$F$183+CRA_SF!$F$190","v":0}]
["- Reprises sur provisions d'exploitation",0,{"$f":"'CRP NON SOUMIS EQUIL'!$F$179+'CRP SOUMIS EQUILIBRE'!$F$171+CRA_SF!$F$179","v":0}]
["- Reprises sur provisions de couverture du BFR",0,{"$f":"'CRP NON SOUMIS EQUIL'!$F$184+'CRP SOUMIS EQUILIBRE'!$F$177+CRA_SF!$F$184","v":0}]
["- Reprises sur dépréciations des actifs circulants: créances, stocks et en-cours",0,{"$f":"'CRP NON SOUMIS EQUIL'!$F$181+'CRP SOUMIS EQUILIBRE'!$F$173+CRA_SF!$F$181","v":0}]
["- Autres reprises sur dépréciations et provisions",0,{"$f":"'CRP NON SOUMIS EQUIL'!$F$182+'CRP NON SOUMIS EQUIL'!$F$188+'CRP SOUMIS EQUILIBRE'!$F$174+'CRP SOUMIS EQUILIBRE'!$F$181+CRA_SF!$F$182+CRA_SF!$F$188","v":0}]
["- Utilisations de fonds reportés et de fonds dédiés (ESSMS privés), sauf c/78921",0,{"$f":"'CRP NON SOUMIS EQUIL'!$F$189+'CRP NON SOUMIS EQUIL'!$F$191+'CRP NON SOUMIS EQUIL'!$F$192+'CRP SOUMIS EQUILIBRE'!$F$182+'CRP SOUMIS EQUILIBRE'!$F$184+'CRP SOUMIS EQUILIBRE'!$F$185+CRA_SF!$F$189+CRA_SF!$F$191+CRA_SF!$F$192","v":0}]
["CAPACITE OU INSUFFISANCE D'AUTOFINANCEMENT (CAF ou IAF)",{"$f":"B187+B188-B199","v":0}]
["Dont montant affectant le FRI",{"$f":"B189+B190+B191+B192+B193-B200-B201-B202-B203-B204-B205","v":0}]
["Dont montant affectant le FRE",{"$f":"B187+B194+B195+B196+B197+B198-B206-B207-B208-B209-B210","v":0}]
["IAF",{"$f":"IF(B211>0,0,-B211)","v":0}]
["CAF +",{"$f":"+IF(B211>0,B211,0)","v":0}]
[]
[]
["CAFDM N"]
["Groupe I : charges afférentes à l'exploitation courante",{"$f":"SUM(C219:IV219)","v":0},{"$f":"+'CRP SOUMIS EQUILIBRE'!$G$35+'CRP NON SOUMIS EQUIL'!$G$35+CRA_SF!$G$35","v":0}]
["Groupe II : charges afférentes au personnel",{"$f":"SUM(C220:IV220)","v":0},{"$f":"+'CRP SOUMIS EQUILIBRE'!$G$53+'CRP NON SOUMIS EQUIL'!$G$53+CRA_SF!$G$53","v":0}]
["Groupe III : charges afférentes à la structure",{"$f":"SUM(C221:IV221)","v":0},{"$f":"+'CRP SOUMIS EQUILIBRE'!$G$107+'CRP NON SOUMIS EQUIL'!$G$109+CRA_SF!$G$109","v":0}]
["TOTAL DES CHARGES",{"$f":"SUM(B219:B221)","v":0},{"$f":"SUM(C219:C221)","v":0}]
["RESULTAT COMPTABLE  EXCEDENTAIRE"]
["TOTAL EQUILIBRE DES COMPTES DE RESULTAT"]
["Groupe I : produits de la tarification",{"$f":"SUM(C225:IV225)","v":0},{"$f":"'CRP SOUMIS EQUILIBRE'!$G$128+'CRP NON SOUMIS EQUIL'!$G$135+CRA_SF!$G$135","v":0}]
["Groupe II : autres produits relatifs à l'exploitation",{"$f":"SUM(C226:IV226)","v":0},{"$f":"'CRP SOUMIS EQUILIBRE'!$G$153+'CRP NON SOUMIS EQUIL'!$G$160+CRA_SF!$G$160","v":0}]
["Groupe III : produits financiers, produits exceptionnels et produits non encaissables",{"$f":"SUM(C227:IV227)","v":0},{"$f":"'CRP SOUMIS EQUILIBRE'!$G$188+'CRP NON SOUMIS EQUIL'!$G$195+CRA_SF!$G$195","v":0}]
["TOTAL DES PRODUITS",{"$f":"SUM(B225:B227)","v":0},{"$f":"SUM(C225:C227)","v":0}]
[]
[]
["RESULTAT COMPTABLE (EXCEDENT ou DEFICIT) (1)",{"$f":"B228-B222","v":0}]
["+ Flux internes (charges)",{"$f":"SUM(B233:B242)","v":0}]
["+ Valeurs comptables des éléments d'actif cédés",{"$f":"SUM(C233:IV233)","v":0},{"$f":"'CRP NON SOUMIS EQUIL'!$G$85+'CRP SOUMIS EQUILIBRE'!$G$85+CRA_SF!$G$85","v":0}]
["+ Dotations aux amortissements des immobilisations incorporelles et corporelles",0,{"$f":"'CRP NON SOUMIS EQUIL'!$G$89+'CRP SOUMIS EQUILIBRE'!$G$89+CRA_SF!$G$89","v":0}]
["+ Dotations aux provisions pour renouvellement des immobilisations et dotations aux amortissements dérogatoires",0,{"$f":"'CRP NON SOUMIS EQUIL'!$G$96+'CRP NON SOUMIS EQUIL'!$G$98+'CRP SOUMIS EQUILIBRE'!$G$96+'CRP SOUMIS EQUILIBRE'!$G$98+CRA_SF!$G$96+CRA_SF!$G$98","v":0}]
["+ Autres dotations aux amortissements, dépréciations et provisions impactant le FRI",0,{"$f":"'CRP NON SOUMIS EQUIL'!$G$90+'CRP NON SOUMIS EQUIL'!$G$92+'CRP NON SOUMIS EQUIL'!$G$95+'CRP NON SOUMIS EQUIL'!$G$99+'CRP NON SOUMIS EQUIL'!$G$100+'CRP SOUMIS EQUILIBRE'!$G$90+'CRP SOUMIS EQUILIBRE'!$G$92+'CRP SOUMIS EQUILIBRE'!$G$95+'CRP SOUMIS EQUILIBRE'!$G$99+'CRP SOUMIS EQUILIBRE'!$G$100+CRA_SF!$G$90+CRA_SF!$G$92+CRA_SF!$G$95+CRA_SF!$G$99+CRA_SF!$G$100","v":0}]
["+ Reports en fonds dédiés à l'investissement sur concours publics des entités gestionnaires d'ESSMS (ESSMS privés)",{"$f":"SUM(C237:IV237)","v":0},{"$f":"'CRP NON SOUMIS EQUIL'!$G$103+'CRP SOUMIS EQUILIBRE'!$G$103+CRA_SF!$G$103","v":0}]
["+ Dotations aux provisions d'exploitation",0,{"$f":"'CRP NON SOUMIS EQUIL'!$G$91+'CRP SOUMIS EQUILIBRE'!$G$91+CRA_SF!$G$91","v":0}]
["+ dotations aux provisions de couverture du BFR",0,{"$f":"'CRP NON SOUMIS EQUIL'!$G$97+'CRP SOUMIS EQUILIBRE'!$G$97+CRA_SF!$G$97","v":0}]
["+ Dotations aux dépréciations des actifs circulants: créances, stocks et en-cours",0,{"$f":"'CRP NON SOUMIS EQUIL'!$G$93+'CRP SOUMIS EQUILIBRE'!$G$93+CRA_SF!$G$93","v":0}]
["+ Autres dotations aux amortissements, dépréciations et provisions",0,{"$f":"'CRP NON SOUMIS EQUIL'!$G$94+'CRP NON SOUMIS EQUIL'!$G$101+'CRP SOUMIS EQUILIBRE'!$G$94+'CRP SOUMIS EQUILIBRE'!$G$101+CRA_SF!$G$94+CRA_SF!$G$101","v":0}]
["+ Reports en fonds dédiés (ESSMS privés) sauf c/68921",0,{"$f":"'CRP NON SOUMIS EQUIL'!$G$102+'CRP NON SOUMIS EQUIL'!$G$104+'CRP NON SOUMIS EQUIL'!$G$105+'CRP SOUMIS EQUILIBRE'!$G$102+'CRP SOUMIS EQUILIBRE'!$G$104+'CRP SOUMIS EQUILIBRE'!$G$105+CRA_SF!$G$102+CRA_SF!$G$104+CRA_SF!$G$105","v":0}]
["- Flux internes (produits)",{"$f":"SUM(B244:B254)","v":0}]
["- Produits des cessions d'éléments d'actif",{"$f":"SUM(C244:IV244)","v":0},{"$f":"'CRP NON SOUMIS EQUIL'!$G$172+'CRP SOUMIS EQUILIBRE'!$G$164+CRA_SF!$G$172","v":0}]
["- Quotes-parts des subventions d'investissement virées au résultat de l'exercice",0,{"$f":"'CRP NON SOUMIS EQUIL'!$G$173+'CRP SOUMIS EQUILIBRE'!$G$165+CRA_SF!$G$173","v":0}]
["- Reprises sur provisions pour renouvellement des immobilisations et reprises sur amortissements dérogatoires",0,{"$f":"'CRP NON SOUMIS EQUIL'!$G$185+'CRP NON SOUMIS EQUIL'!$G$183+'CRP SOUMIS EQUILIBRE'!$G$176+'CRP SOUMIS EQUILIBRE'!$G$178+CRA_SF!$G$185+CRA_SF!$G$183","v":0}]
["- Autres reprises sur amortissements, dépréciations et provisions impactant le FRI",0,{"$f":"'CRP NON SOUMIS EQUIL'!$G$178+'CRP NON SOUMIS EQUIL'!$G$180+'CRP NON SOUMIS EQUIL'!$G$186+'CRP NON SOUMIS EQUIL'!$G$187+'CRP SOUMIS EQUILIBRE'!$G$170+'CRP SOUMIS EQUILIBRE'!$G$172+'CRP SOUMIS EQUILIBRE'!$G$179+'CRP SOUMIS EQUILIBRE'!$G$180+CRA_SF!$G$178+CRA_SF!$G$180+CRA_SF!$G$186+CRA_SF!$G$187","v":0}]
["- Quote-part d'éléments du fonds associatif virée au compte de résultat (établissements privés)",0,{"$f":"'CRP NON SOUMIS EQUIL'!$G$175+'CRP SOUMIS EQUILIBRE'!$G$167+CRA_SF!$G$175","v":0}]
["- Utilisation des fonds dédiés à l'investissement sur concours publics des entités gestionnaires d'ESSMS (ESSMS privés)",{"$f":"SUM(C249:IV249)","v":0},{"$f":"'CRP NON SOUMIS EQUIL'!$G$190+'CRP SOUMIS EQUILIBRE'!$G$183+CRA_SF!$G$190","v":0}]
["- Reprises sur provisions d'exploitation",0,{"$f":"'CRP NON SOUMIS EQUIL'!$G$179+'CRP SOUMIS EQUILIBRE'!$G$171+CRA_SF!$G$179","v":0}]
["- Reprises sur provisions de couverture du BFR",0,{"$f":"'CRP NON SOUMIS EQUIL'!$G$184+'CRP SOUMIS EQUILIBRE'!$G$177+CRA_SF!$G$184","v":0}]
["- Reprises sur dépréciations des actifs circulants: créances, stocks et en-cours",0,{"$f":"'CRP NON SOUMIS EQUIL'!$G$181+'CRP SOUMIS EQUILIBRE'!$G$173+CRA_SF!$G$181","v":0}]
["- Autres reprises sur dépréciations et provisions",0,{"$f":"'CRP NON SOUMIS EQUIL'!$G$182+'CRP NON SOUMIS EQUIL'!$G$188+'CRP SOUMIS EQUILIBRE'!$G$174+'CRP SOUMIS EQUILIBRE'!$G$181+CRA_SF!$G$182+CRA_SF!$G$188","v":0}]
["- Utilisations de fonds reportés et de fonds dédiés (ESSMS privés), sauf c/78921",0,{"$f":"'CRP NON SOUMIS EQUIL'!$G$189+'CRP NON SOUMIS EQUIL'!$G$191+'CRP NON SOUMIS EQUIL'!$G$192+'CRP SOUMIS EQUILIBRE'!$G$182+'CRP SOUMIS EQUILIBRE'!$G$184+'CRP SOUMIS EQUILIBRE'!$G$185+CRA_SF!$G$189+CRA_SF!$G$191+CRA_SF!$G$192","v":0}]
["CAPACITE OU INSUFFISANCE D'AUTOFINANCEMENT (CAF ou IAF)",{"$f":"B231+B232-B243","v":0}]
["Dont montant affectant le FRI",{"$f":"B233+B234+B235+B236+B237-B244-B245-B246-B247-B248-B249","v":0}]
["Dont montant affectant le FRE",{"$f":"B231+B238+B239+B240+B241+B242-B250-B251-B252-B253-B254","v":0}]
["IAF",{"$f":"IF(B255>0,0,-B255)","v":0}]
["CAF +",{"$f":"+IF(B255>0,B255,0)","v":0}]
[]
[]
["CAF BUDGET N"]
["Groupe I : charges afférentes à l'exploitation courante",{"$f":"SUM(C263:IV263)","v":0},{"$f":"+'CRP SOUMIS EQUILIBRE'!$H$35+'CRP NON SOUMIS EQUIL'!$H$35+CRA_SF!$H$35","v":0}]
["Groupe II : charges afférentes au personnel",{"$f":"SUM(C264:IV264)","v":0},{"$f":"+'CRP SOUMIS EQUILIBRE'!$H$53+'CRP NON SOUMIS EQUIL'!$H$53+CRA_SF!$H$53","v":0}]
["Groupe III : charges afférentes à la structure",{"$f":"SUM(C265:IV265)","v":0},{"$f":"+'CRP SOUMIS EQUILIBRE'!$H$107+'CRP NON SOUMIS EQUIL'!$H$109+CRA_SF!$H$109","v":0}]
["TOTAL DES CHARGES",{"$f":"SUM(B263:B265)","v":0},{"$f":"SUM(C263:C265)","v":0}]
["RESULTAT COMPTABLE  EXCEDENTAIRE"]
["TOTAL EQUILIBRE DES COMPTES DE RESULTAT"]
["Groupe I : produits de la tarification",{"$f":"SUM(C269:IV269)","v":0},{"$f":"'CRP SOUMIS EQUILIBRE'!$H$128+'CRP NON SOUMIS EQUIL'!$H$135+CRA_SF!$H$135","v":0}]
["Groupe II : autres produits relatifs à l'exploitation",{"$f":"SUM(C270:IV270)","v":0},{"$f":"'CRP SOUMIS EQUILIBRE'!$H$153+'CRP NON SOUMIS EQUIL'!$H$160+CRA_SF!$H$160","v":0}]
["Groupe III : produits financiers, produits exceptionnels et produits non encaissables",{"$f":"SUM(C271:IV271)","v":0},{"$f":"'CRP SOUMIS EQUILIBRE'!$H$188+'CRP NON SOUMIS EQUIL'!$H$195+CRA_SF!$H$195","v":0}]
["TOTAL DES PRODUITS",{"$f":"SUM(B269:B271)","v":0},{"$f":"SUM(C269:C271)","v":0}]
[]
[]
["RESULTAT COMPTABLE (EXCEDENT ou DEFICIT) (1)",{"$f":"B272-B266","v":0}]
["+ Flux internes (charges)",{"$f":"SUM(B277:B286)","v":0}]
["+ Valeurs comptables des éléments d'actif cédés",{"$f":"SUM(C277:IV277)","v":0},{"$f":"'CRP NON SOUMIS EQUIL'!$H$85+'CRP SOUMIS EQUILIBRE'!$H$85+CRA_SF!$H$85","v":0}]
["+ Dotations aux amortissements des immobilisations incorporelles et corporelles",0,{"$f":"'CRP NON SOUMIS EQUIL'!$H$89+'CRP SOUMIS EQUILIBRE'!$H$89+CRA_SF!$H$89","v":0}]
["+ Dotations aux provisions pour renouvellement des immobilisations et dotations aux amortissements dérogatoires",0,{"$f":"'CRP NON SOUMIS EQUIL'!$H$96+'CRP NON SOUMIS EQUIL'!$H$98+'CRP SOUMIS EQUILIBRE'!$H$96+'CRP SOUMIS EQUILIBRE'!$H$98+CRA_SF!$H$96+CRA_SF!$H$98","v":0}]
["+ Autres dotations aux amortissements, dépréciations et provisions impactant le FRI",0,{"$f":"'CRP NON SOUMIS EQUIL'!$H$90+'CRP NON SOUMIS EQUIL'!$H$92+'CRP NON SOUMIS EQUIL'!$H$95+'CRP NON SOUMIS EQUIL'!$H$99+'CRP NON SOUMIS EQUIL'!$H$100+'CRP SOUMIS EQUILIBRE'!$H$90+'CRP SOUMIS EQUILIBRE'!$H$92+'CRP SOUMIS EQUILIBRE'!$H$95+'CRP SOUMIS EQUILIBRE'!$H$99+'CRP SOUMIS EQUILIBRE'!$H$100+CRA_SF!$H$90+CRA_SF!$H$92+CRA_SF!$H$95+CRA_SF!$H$99+CRA_SF!$H$100","v":0}]
["+ Reports en fonds dédiés à l'investissement sur concours publics des entités gestionnaires d'ESSMS (ESSMS privés)",{"$f":"SUM(C281:IV281)","v":0},{"$f":"'CRP NON SOUMIS EQUIL'!$H$103+'CRP SOUMIS EQUILIBRE'!$H$103+CRA_SF!$H$103","v":0}]
["+ Dotations aux provisions d'exploitation",0,{"$f":"'CRP NON SOUMIS EQUIL'!$H$91+'CRP SOUMIS EQUILIBRE'!$H$91+CRA_SF!$H$91","v":0}]
["+ dotations aux provisions de couverture du BFR",0,{"$f":"'CRP NON SOUMIS EQUIL'!$H$97+'CRP SOUMIS EQUILIBRE'!$H$97+CRA_SF!$H$97","v":0}]
["+ Dotations aux dépréciations des actifs circulants: créances, stocks et en-cours",0,{"$f":"'CRP NON SOUMIS EQUIL'!$H$93+'CRP SOUMIS EQUILIBRE'!$H$93+CRA_SF!$H$93","v":0}]
["+ Autres dotations aux amortissements, dépréciations et provisions",0,{"$f":"'CRP NON SOUMIS EQUIL'!$H$94+'CRP NON SOUMIS EQUIL'!$H$101+'CRP SOUMIS EQUILIBRE'!$H$94+'CRP SOUMIS EQUILIBRE'!$H$101+CRA_SF!$H$94+CRA_SF!$H$101","v":0}]
["+ Reports en fonds dédiés (ESSMS privés) sauf c/68921",0,{"$f":"'CRP NON SOUMIS EQUIL'!$H$102+'CRP NON SOUMIS EQUIL'!$H$104+'CRP NON SOUMIS EQUIL'!$H$105+'CRP SOUMIS EQUILIBRE'!$H$102+'CRP SOUMIS EQUILIBRE'!$H$104+'CRP SOUMIS EQUILIBRE'!$H$105+CRA_SF!$H$102+CRA_SF!$H$104+CRA_SF!$H$105","v":0}]
["- Flux internes (produits)",{"$f":"SUM(B288:B298)","v":0}]
["- Produits des cessions d'éléments d'actif",{"$f":"SUM(C288:IV288)","v":0},{"$f":"'CRP NON SOUMIS EQUIL'!$H$172+'CRP SOUMIS EQUILIBRE'!$H$164+CRA_SF!$H$172","v":0}]
["- Quotes-parts des subventions d'investissement virées au résultat de l'exercice",0,{"$f":"'CRP NON SOUMIS EQUIL'!$H$173+'CRP SOUMIS EQUILIBRE'!$H$165+CRA_SF!$H$173","v":0}]
["- Reprises sur provisions pour renouvellement des immobilisations et reprises sur amortissements dérogatoires",0,{"$f":"'CRP NON SOUMIS EQUIL'!$H$185+'CRP NON SOUMIS EQUIL'!$H$183+'CRP SOUMIS EQUILIBRE'!$H$176+'CRP SOUMIS EQUILIBRE'!$H$178+CRA_SF!$H$185+CRA_SF!$H$183","v":0}]
["- Autres reprises sur amortissements, dépréciations et provisions impactant le FRI",0,{"$f":"'CRP NON SOUMIS EQUIL'!$H$178+'CRP NON SOUMIS EQUIL'!$H$180+'CRP NON SOUMIS EQUIL'!$H$186+'CRP NON SOUMIS EQUIL'!$H$187+'CRP SOUMIS EQUILIBRE'!$H$170+'CRP SOUMIS EQUILIBRE'!$H$172+'CRP SOUMIS EQUILIBRE'!$H$179+'CRP SOUMIS EQUILIBRE'!$H$180+CRA_SF!$H$178+CRA_SF!$H$180+CRA_SF!$H$186+CRA_SF!$H$187","v":0}]
["- Quote-part d'éléments du fonds associatif virée au compte de résultat (établissements privés)",0,{"$f":"'CRP NON SOUMIS EQUIL'!$H$175+'CRP SOUMIS EQUILIBRE'!$H$167+CRA_SF!$H$175","v":0}]
["- Utilisation des fonds dédiés à l'investissement sur concours publics des entités gestionnaires d'ESSMS (ESSMS privés)",{"$f":"SUM(C293:IV293)","v":0},{"$f":"'CRP NON SOUMIS EQUIL'!$H$190+'CRP SOUMIS EQUILIBRE'!$H$183+CRA_SF!$H$190","v":0}]
["- Reprises sur provisions d'exploitation",0,{"$f":"'CRP NON SOUMIS EQUIL'!$H$179+'CRP SOUMIS EQUILIBRE'!$H$171+CRA_SF!$H$179","v":0}]
["- Reprises sur provisions de couverture du BFR",0,{"$f":"'CRP NON SOUMIS EQUIL'!$H$184+'CRP SOUMIS EQUILIBRE'!$H$177+CRA_SF!$H$184","v":0}]
["- Reprises sur dépréciations des actifs circulants: créances, stocks et en-cours",0,{"$f":"'CRP NON SOUMIS EQUIL'!$H$181+'CRP SOUMIS EQUILIBRE'!$H$173+CRA_SF!$H$181","v":0}]
["- Autres reprises sur dépréciations et provisions",0,{"$f":"'CRP NON SOUMIS EQUIL'!$H$182+'CRP NON SOUMIS EQUIL'!$H$188+'CRP SOUMIS EQUILIBRE'!$H$174+'CRP SOUMIS EQUILIBRE'!$H$181+CRA_SF!$H$182+CRA_SF!$H$188","v":0}]
["- Utilisations de fonds reportés et de fonds dédiés (ESSMS privés), sauf c/78921",0,{"$f":"'CRP NON SOUMIS EQUIL'!$H$189+'CRP NON SOUMIS EQUIL'!$H$191+'CRP NON SOUMIS EQUIL'!$H$192+'CRP SOUMIS EQUILIBRE'!$H$182+'CRP SOUMIS EQUILIBRE'!$H$184+'CRP SOUMIS EQUILIBRE'!$H$185+CRA_SF!$H$189+CRA_SF!$H$191+CRA_SF!$H$192","v":0}]
["CAPACITE OU INSUFFISANCE D'AUTOFINANCEMENT (CAF ou IAF)",{"$f":"B275+B276-B287","v":0}]
["Dont montant affectant le FRI",{"$f":"B277+B278+B279+B280+B281-B288-B289-B290-B291-B292-B293","v":0}]
["Dont montant affectant le FRE",{"$f":"B275+B282+B283+B284+B285+B286-B294-B295-B296-B297-B298","v":0}]
["IAF",{"$f":"IF(B299>0,0,-B299)","v":0}]
["CAF +",{"$f":"+IF(B299>0,B299,0)","v":0}]
[]
[]
["CAF Réel n"]
["Groupe I : charges afférentes à l'exploitation courante",{"$f":"SUM(C307:IV307)","v":0},{"$f":"+'CRP SOUMIS EQUILIBRE'!$I$35+'CRP NON SOUMIS EQUIL'!$I$35+CRA_SF!$I$35","v":0}]
["Groupe II : charges afférentes au personnel",{"$f":"SUM(C308:IV308)","v":0},{"$f":"+'CRP SOUMIS EQUILIBRE'!$I$53+'CRP NON SOUMIS EQUIL'!$I$53+CRA_SF!$I$53","v":0}]
["Groupe III : charges afférentes à la structure",{"$f":"SUM(C309:IV309)","v":0},{"$f":"+'CRP SOUMIS EQUILIBRE'!$I$107+'CRP NON SOUMIS EQUIL'!$I$109+CRA_SF!$I$109","v":0}]
["TOTAL DES CHARGES",{"$f":"SUM(B307:B309)","v":0},{"$f":"SUM(C307:C309)","v":0}]
["RESULTAT COMPTABLE  EXCEDENTAIRE"]
["TOTAL EQUILIBRE DES COMPTES DE RESULTAT"]
["Groupe I : produits de la tarification",{"$f":"SUM(C313:IV313)","v":0},{"$f":"+'CRP SOUMIS EQUILIBRE'!$I$128+'CRP NON SOUMIS EQUIL'!$I$135+CRA_SF!$I$135","v":0}]
["Groupe II : autres produits relatifs à l'exploitation",{"$f":"SUM(C314:IV314)","v":0},{"$f":"+'CRP SOUMIS EQUILIBRE'!$I$153+'CRP NON SOUMIS EQUIL'!$I$160+CRA_SF!$I$160","v":0}]
["Groupe III : produits financiers, produits exceptionnels et produits non encaissables",{"$f":"SUM(C315:IV315)","v":0},{"$f":"+'CRP SOUMIS EQUILIBRE'!$I$188+'CRP NON SOUMIS EQUIL'!$I$195+CRA_SF!$I$195","v":0}]
["TOTAL DES PRODUITS",{"$f":"SUM(B313:B315)","v":0},{"$f":"SUM(C313:C315)","v":0}]
[]
[]
["RESULTAT COMPTABLE (EXCEDENT ou DEFICIT) (1)",{"$f":"B316-B310","v":0}]
["+ Flux internes (charges)",{"$f":"SUM(B321:B330)","v":0}]
["+ Valeurs comptables des éléments d'actif cédés",{"$f":"SUM(C321:IV321)","v":0},{"$f":"'CRP NON SOUMIS EQUIL'!$I$85+'CRP SOUMIS EQUILIBRE'!$I$85+CRA_SF!$I$85","v":0}]
["+ Dotations aux amortissements des immobilisations incorporelles et corporelles",0,{"$f":"'CRP NON SOUMIS EQUIL'!$I$89+'CRP SOUMIS EQUILIBRE'!$I$89+CRA_SF!$I$89","v":0}]
["+ Dotations aux provisions pour renouvellement des immobilisations et dotations aux amortissements dérogatoires",0,{"$f":"'CRP NON SOUMIS EQUIL'!$I$96+'CRP NON SOUMIS EQUIL'!$I$98+'CRP SOUMIS EQUILIBRE'!$I$96+'CRP SOUMIS EQUILIBRE'!$I$98+CRA_SF!$I$96+CRA_SF!$I$98","v":0}]
["+ Autres dotations aux amortissements, dépréciations et provisions impactant le FRI",0,{"$f":"'CRP NON SOUMIS EQUIL'!$I$90+'CRP NON SOUMIS EQUIL'!$I$92+'CRP NON SOUMIS EQUIL'!$I$95+'CRP NON SOUMIS EQUIL'!$I$99+'CRP NON SOUMIS EQUIL'!$I$100+'CRP SOUMIS EQUILIBRE'!$I$90+'CRP SOUMIS EQUILIBRE'!$I$92+'CRP SOUMIS EQUILIBRE'!$I$95+'CRP SOUMIS EQUILIBRE'!$I$99+'CRP SOUMIS EQUILIBRE'!$I$100+CRA_SF!$I$90+CRA_SF!$I$92+CRA_SF!$I$95+CRA_SF!$I$99+CRA_SF!$I$100","v":0}]
["+ Reports en fonds dédiés à l'investissement sur concours publics des entités gestionnaires d'ESSMS (ESSMS privés)",{"$f":"SUM(C325:IV325)","v":0},{"$f":"'CRP NON SOUMIS EQUIL'!$I$103+'CRP SOUMIS EQUILIBRE'!$I$103+CRA_SF!$I$103","v":0}]
["+ Dotations aux provisions d'exploitation",0,{"$f":"'CRP NON SOUMIS EQUIL'!$I$91+'CRP SOUMIS EQUILIBRE'!$I$91+CRA_SF!$I$91","v":0}]
["+ dotations aux provisions de couverture du BFR",0,{"$f":"'CRP NON SOUMIS EQUIL'!$I$97+'CRP SOUMIS EQUILIBRE'!$I$97+CRA_SF!$I$97","v":0}]
["+ Dotations aux dépréciations des actifs circulants: créances, stocks et en-cours",0,{"$f":"'CRP NON SOUMIS EQUIL'!$I$93+'CRP SOUMIS EQUILIBRE'!$I$93+CRA_SF!$I$93","v":0}]
["+ Autres dotations aux amortissements, dépréciations et provisions",0,{"$f":"'CRP NON SOUMIS EQUIL'!$I$94+'CRP NON SOUMIS EQUIL'!$I$101+'CRP SOUMIS EQUILIBRE'!$I$94+'CRP SOUMIS EQUILIBRE'!$I$101+CRA_SF!$I$94+CRA_SF!$I$101","v":0}]
["+ Reports en fonds dédiés (ESSMS privés) sauf c/68921",0,{"$f":"'CRP NON SOUMIS EQUIL'!$I$102+'CRP NON SOUMIS EQUIL'!$I$104+'CRP NON SOUMIS EQUIL'!$I$105+'CRP SOUMIS EQUILIBRE'!$I$102+'CRP SOUMIS EQUILIBRE'!$I$104+'CRP SOUMIS EQUILIBRE'!$I$105+CRA_SF!$I$102+CRA_SF!$I$104+CRA_SF!$I$105","v":0}]
["- Flux internes (produits)",{"$f":"SUM(B332:B342)","v":0}]
["- Produits des cessions d'éléments d'actif",{"$f":"SUM(C332:IV332)","v":0},{"$f":"'CRP NON SOUMIS EQUIL'!$I$172+'CRP SOUMIS EQUILIBRE'!$I$164+CRA_SF!$I$172","v":0}]
["- Quotes-parts des subventions d'investissement virées au résultat de l'exercice",0,{"$f":"'CRP NON SOUMIS EQUIL'!$I$173+'CRP SOUMIS EQUILIBRE'!$I$165+CRA_SF!$I$173","v":0}]
["- Reprises sur provisions pour renouvellement des immobilisations et reprises sur amortissements dérogatoires",0,{"$f":"'CRP NON SOUMIS EQUIL'!$I$185+'CRP NON SOUMIS EQUIL'!$I$183+'CRP SOUMIS EQUILIBRE'!$I$176+'CRP SOUMIS EQUILIBRE'!$I$178+CRA_SF!$I$185+CRA_SF!$I$183","v":0}]
["- Autres reprises sur amortissements, dépréciations et provisions impactant le FRI",0,{"$f":"'CRP NON SOUMIS EQUIL'!$I$178+'CRP NON SOUMIS EQUIL'!$I$180+'CRP NON SOUMIS EQUIL'!$I$186+'CRP NON SOUMIS EQUIL'!$I$187+'CRP SOUMIS EQUILIBRE'!$I$170+'CRP SOUMIS EQUILIBRE'!$I$172+'CRP SOUMIS EQUILIBRE'!$I$179+'CRP SOUMIS EQUILIBRE'!$I$180+CRA_SF!$I$178+CRA_SF!$I$180+CRA_SF!$I$186+CRA_SF!$I$187","v":0}]
["- Quote-part d'éléments du fonds associatif virée au compte de résultat (établissements privés)",0,{"$f":"'CRP NON SOUMIS EQUIL'!$I$175+'CRP SOUMIS EQUILIBRE'!$I$167+CRA_SF!$I$175","v":0}]
["- Utilisation des fonds dédiés à l'investissement sur concours publics des entités gestionnaires d'ESSMS (ESSMS privés)",{"$f":"SUM(C337:IV337)","v":0},{"$f":"'CRP NON SOUMIS EQUIL'!$I$190+'CRP SOUMIS EQUILIBRE'!$I$183+CRA_SF!$I$190","v":0}]
["- Reprises sur provisions d'exploitation",0,{"$f":"'CRP NON SOUMIS EQUIL'!$I$179+'CRP SOUMIS EQUILIBRE'!$I$171+CRA_SF!$I$179","v":0}]
["- Reprises sur provisions de couverture du BFR",0,{"$f":"'CRP NON SOUMIS EQUIL'!$I$184+'CRP SOUMIS EQUILIBRE'!$I$177+CRA_SF!$I$184","v":0}]
["- Reprises sur dépréciations des actifs circulants: créances, stocks et en-cours",0,{"$f":"'CRP NON SOUMIS EQUIL'!$I$181+'CRP SOUMIS EQUILIBRE'!$I$173+CRA_SF!$I$181","v":0}]
["- Autres reprises sur dépréciations et provisions",{"$f":"SUM(C341:IV341)","v":0},{"$f":"'CRP NON SOUMIS EQUIL'!$I$182+'CRP NON SOUMIS EQUIL'!$I$188+'CRP SOUMIS EQUILIBRE'!$I$174+'CRP SOUMIS EQUILIBRE'!$I$181+CRA_SF!$I$182+CRA_SF!$I$188","v":0}]
["- Utilisations de fonds reportés et de fonds dédiés (ESSMS privés), sauf c/78921",{"$f":"SUM(C342:IV342)","v":0},{"$f":"'CRP NON SOUMIS EQUIL'!$I$189+'CRP NON SOUMIS EQUIL'!$I$191+'CRP NON SOUMIS EQUIL'!$I$192+'CRP SOUMIS EQUILIBRE'!$I$182+'CRP SOUMIS EQUILIBRE'!$I$184+'CRP SOUMIS EQUILIBRE'!$I$185+CRA_SF!$I$189+CRA_SF!$I$191+CRA_SF!$I$192","v":0}]
["CAPACITE OU INSUFFISANCE D'AUTOFINANCEMENT (CAF ou IAF)",{"$f":"B319+B320-B331","v":0}]
["Dont montant affectant le FRI",{"$f":"B321+B322+B323+B324+B325-B332-B333-B334-B335-B336-B337","v":0}]
["Dont montant affectant le FRE",{"$f":"B319+B326+B327+B328+B329+B330-B338-B339-B340-B341-B342","v":0}]
["IAF",{"$f":"IF(B343>0,0,-B343)","v":0}]
["CAF +",{"$f":"+IF(B343>0,B343,0)","v":0}]
[]
["Ratios financiers n-1"]
["Données complémentaires au tableau \"FDR\" nécessaires au calcul des ratios",null,"N-1"]
["Montant cumulé des emprunts en fin d'année (comptes 16 hors c/165, c/1688 et c/169) (1)",{"$f":"SUM(C351:IV351)","v":0}]
["Montant cumulé des financements stables du FRI en fin d'année (hors amortissements)",0]
["Marge brute d'exploitation",0,{"$f":"'CRP NON SOUMIS EQUIL'!$D$135+'CRP NON SOUMIS EQUIL'!$D$160-'CRP NON SOUMIS EQUIL'!$D$35-'CRP NON SOUMIS EQUIL'!$D$53-SUM('CRP NON SOUMIS EQUIL'!$D$59:$D$69)-SUM('CRP NON SOUMIS EQUIL'!$D$72:$D$77)-'CRP NON SOUMIS EQUIL'!$D$158+'CRP SOUMIS EQUILIBRE'!$D$128+'CRP SOUMIS EQUILIBRE'!$D$153-'CRP SOUMIS EQUILIBRE'!$D$35-'CRP SOUMIS EQUILIBRE'!$D$53-SUM('CRP SOUMIS EQUILIBRE'!$D$59:$D$69)-SUM('CRP SOUMIS EQUILIBRE'!$D$72:$D$77)-'CRP SOUMIS EQUILIBRE'!$D$151+CRA_SF!$D$135+CRA_SF!$D$160-CRA_SF!$D$35-CRA_SF!$D$53-SUM(CRA_SF!$D$59:$D$69)-SUM(CRA_SF!$D$72:$D$77)-CRA_SF!$D$158","v":0}]
["Capacité d'autofinancement (ou insuffisance d'autofinancement)",0]
["Total des charges",0,{"$f":"'CRP NON SOUMIS EQUIL'!$D$113-'CRP NON SOUMIS EQUIL'!$D$16-'CRP NON SOUMIS EQUIL'!$D$17-SUM('CRP NON SOUMIS EQUIL'!$D$149:$D$158)+'CRP SOUMIS EQUILIBRE'!$D$109-'CRP SOUMIS EQUILIBRE'!$D$16-'CRP SOUMIS EQUILIBRE'!$D$17-SUM('CRP SOUMIS EQUILIBRE'!$D$142:$D$151)+CRA_SF!$D$113-CRA_SF!$D$16-CRA_SF!$D$17-SUM(CRA_SF!$D$149:$D$158)","v":0}]
["Dont achats stockés et variation des stocks",0,{"$f":"'CRP NON SOUMIS EQUIL'!$D$13-'CRP NON SOUMIS EQUIL'!$D$149+'CRP SOUMIS EQUILIBRE'!$D$13-'CRP SOUMIS EQUILIBRE'!$D$142+CRA_SF!$D$13-CRA_SF!$D$149","v":0}]
["Dont charges des comptes 60 à 62",0,{"$f":"'CRP NON SOUMIS EQUIL'!$D$35-SUM('CRP NON SOUMIS EQUIL'!$D$16:$D$17)+SUM('CRP NON SOUMIS EQUIL'!$D$41:$D$42)+SUM('CRP NON SOUMIS EQUIL'!$D$59:$D$67)-SUM('CRP NON SOUMIS EQUIL'!$D$150:$D$152)+'CRP SOUMIS EQUILIBRE'!$D$35-SUM('CRP SOUMIS EQUILIBRE'!$D$16:$D$17)+SUM('CRP SOUMIS EQUILIBRE'!$D$41:$D$42)+SUM('CRP SOUMIS EQUILIBRE'!$D$59:$D$67)-SUM('CRP SOUMIS EQUILIBRE'!$D$143:$D$145)+CRA_SF!$D$35-SUM(CRA_SF!$D$16:$D$17)+SUM(CRA_SF!$D$41:$D$42)+SUM(CRA_SF!$D$59:$D$67)-SUM(CRA_SF!$D$150:$D$152)","v":0}]
["Dont charges des comptes 63 et 645 à 647",0,{"$f":"'CRP NON SOUMIS EQUIL'!$D$43+'CRP NON SOUMIS EQUIL'!$D$44+'CRP NON SOUMIS EQUIL'!$D$48+'CRP NON SOUMIS EQUIL'!$D$49+'CRP NON SOUMIS EQUIL'!$D$50+'CRP NON SOUMIS EQUIL'!$D$68+'CRP NON SOUMIS EQUIL'!$D$69-'CRP NON SOUMIS EQUIL'!$D$156+'CRP SOUMIS EQUILIBRE'!$D$43+'CRP SOUMIS EQUILIBRE'!$D$44+'CRP SOUMIS EQUILIBRE'!$D$48+'CRP SOUMIS EQUILIBRE'!$D$49+'CRP SOUMIS EQUILIBRE'!$D$50+'CRP SOUMIS EQUILIBRE'!$D$68+'CRP SOUMIS EQUILIBRE'!$D$69-'CRP SOUMIS EQUILIBRE'!$D$149+CRA_SF!$D$43+CRA_SF!$D$44+CRA_SF!$D$48+CRA_SF!$D$49+CRA_SF!$D$50+CRA_SF!$D$68+CRA_SF!$D$69-CRA_SF!$D$156","v":0}]
["Dont charges non décaissables (2)",0,{"$f":"SUM('CRP NON SOUMIS EQUIL'!$D$84:$D$85)+SUM('CRP NON SOUMIS EQUIL'!$D$89:$D$105)+SUM('CRP SOUMIS EQUILIBRE'!$D$84:$D$85)+SUM('CRP SOUMIS EQUILIBRE'!$D$89:$D$105)+SUM(CRA_SF!$D$84:$D$85)+SUM(CRA_SF!$D$89:$D$105)","v":0}]
["Produits de la tarification",0,{"$f":"'CRP NON SOUMIS EQUIL'!$D$135+'CRP SOUMIS EQUILIBRE'!$D$128+CRA_SF!$D$135","v":0}]
["Produits du compte 70",0,{"$f":"'CRP NON SOUMIS EQUIL'!$D$141+'CRP NON SOUMIS EQUIL'!$D$142+'CRP NON SOUMIS EQUIL'!$D$143+'CRP NON SOUMIS EQUIL'!$D$144+'CRP SOUMIS EQUILIBRE'!$D$134+'CRP SOUMIS EQUILIBRE'!$D$135+'CRP SOUMIS EQUILIBRE'!$D$136+'CRP SOUMIS EQUILIBRE'!$D$137+CRA_SF!$D$141+CRA_SF!$D$142+CRA_SF!$D$143+CRA_SF!$D$144","v":0}]
["Produits courants d'exploitation (comptes 70 à 75 - c/ 709 et c/713)",0,{"$f":"'CRP NON SOUMIS EQUIL'!$D$135+SUM('CRP NON SOUMIS EQUIL'!$D$141:$D$148)-SUM('CRP NON SOUMIS EQUIL'!$D$16:$D$17)+'CRP SOUMIS EQUILIBRE'!$D$128+SUM('CRP SOUMIS EQUILIBRE'!$D$134:$D$141)-SUM('CRP SOUMIS EQUILIBRE'!$D$16:$D$17)+CRA_SF!$D$135+SUM(CRA_SF!$D$141:$D$148)-SUM(CRA_SF!$D$16:$D$17)","v":0}]
["Produits d'exploitation (total des comptes de classe 7 sauf c/76, c/77, c/786 et c/787 - c/709 et c/713)",0,{"$f":"'CRP NON SOUMIS EQUIL'!$D$135+SUM('CRP NON SOUMIS EQUIL'!$D$141:$D$148)+SUM('CRP NON SOUMIS EQUIL'!$D$178:$D$181)+SUM('CRP NON SOUMIS EQUIL'!$D$189:$D$193)-SUM('CRP NON SOUMIS EQUIL'!$D$16:$D$17)+'CRP SOUMIS EQUILIBRE'!$D$128+SUM('CRP SOUMIS EQUILIBRE'!$D$134:$D$141)+SUM('CRP SOUMIS EQUILIBRE'!$D$170:$D$173)+SUM('CRP SOUMIS EQUILIBRE'!$D$182:$D$186)-SUM('CRP SOUMIS EQUILIBRE'!$D$16:$D$17)+CRA_SF!$D$135+SUM(CRA_SF!$D$141:$D$148)+SUM(CRA_SF!$D$178:$D$181)+SUM(CRA_SF!$D$189:$D$193)-SUM(CRA_SF!$D$16:$D$17)","v":0}]
["Total classe 7 (sauf c/775, c/777, c/7781 et c/78) - c/709 et c/713",0,{"$f":"'CRP NON SOUMIS EQUIL'!$D$197-SUM('CRP NON SOUMIS EQUIL'!$D$16:$D$17)-SUM('CRP NON SOUMIS EQUIL'!$D$149:$D$158)-'CRP NON SOUMIS EQUIL'!$D$172-'CRP NON SOUMIS EQUIL'!$D$173-'CRP NON SOUMIS EQUIL'!$D$175-SUM('CRP NON SOUMIS EQUIL'!$D$178:$D$192)+'CRP SOUMIS EQUILIBRE'!$D$190-SUM('CRP SOUMIS EQUILIBRE'!$D$16:$D$17)-SUM('CRP SOUMIS EQUILIBRE'!$D$142:$D$151)-'CRP SOUMIS EQUILIBRE'!$D$164-'CRP SOUMIS EQUILIBRE'!$D$165-'CRP SOUMIS EQUILIBRE'!$D$167-SUM('CRP SOUMIS EQUILIBRE'!$D$170:$D$185)+CRA_SF!$D$197-SUM(CRA_SF!$D$16:$D$17)-SUM(CRA_SF!$D$149:$D$158)-CRA_SF!$D$172-CRA_SF!$D$173-CRA_SF!$D$175-SUM(CRA_SF!$D$178:$D$192)","v":0}]
[null,0]
[]
["Ratios financiers n"]
["Données complémentaires au tableau \"FDR\" nécessaires au calcul des ratios",null,"N"]
["Montant cumulé des emprunts en fin d'année (comptes 16 hors c/165, c/1688 et c/169) (1)",{"$f":"SUM(C369:IV369)","v":0}]
["Montant cumulé des financements stables du FRI en fin d'année (hors amortissements)",0]
["Marge brute d'exploitation",{"$f":"SUM(C371:IV371)","v":0},{"$f":"'CRP NON SOUMIS EQUIL'!$I$135+'CRP NON SOUMIS EQUIL'!$I$160-'CRP NON SOUMIS EQUIL'!$I$35-'CRP NON SOUMIS EQUIL'!$I$53-SUM('CRP NON SOUMIS EQUIL'!$I$59:$I$69)-SUM('CRP NON SOUMIS EQUIL'!$I$72:$I$77)-'CRP NON SOUMIS EQUIL'!$I$158+'CRP SOUMIS EQUILIBRE'!$I$128+'CRP SOUMIS EQUILIBRE'!$I$153-'CRP SOUMIS EQUILIBRE'!$I$35-'CRP SOUMIS EQUILIBRE'!$I$53-SUM('CRP SOUMIS EQUILIBRE'!$I$59:$I$69)-SUM('CRP SOUMIS EQUILIBRE'!$I$72:$I$77)-'CRP SOUMIS EQUILIBRE'!$I$151+CRA_SF!$I$135+CRA_SF!$I$160-CRA_SF!$I$35-CRA_SF!$I$53-SUM(CRA_SF!$I$59:$I$69)-SUM(CRA_SF!$I$72:$I$77)-CRA_SF!$I$158","v":0}]
["Capacité d'autofinancement (ou insuffisance d'autofinancement)",0]
["Total des charges",0,{"$f":"'CRP NON SOUMIS EQUIL'!$I$113-'CRP NON SOUMIS EQUIL'!$I$16-'CRP NON SOUMIS EQUIL'!$I$17-SUM('CRP NON SOUMIS EQUIL'!$I$149:$I$158)+'CRP SOUMIS EQUILIBRE'!$I$109-'CRP SOUMIS EQUILIBRE'!$I$16-'CRP SOUMIS EQUILIBRE'!$I$17-SUM('CRP SOUMIS EQUILIBRE'!$I$142:$I$151)+CRA_SF!$I$113-CRA_SF!$I$16-CRA_SF!$I$17-SUM(CRA_SF!$I$149:$I$158)","v":0}]
["Dont achats stockés et variation des stocks",0,{"$f":"'CRP NON SOUMIS EQUIL'!$I$13-'CRP NON SOUMIS EQUIL'!$I$149+'CRP SOUMIS EQUILIBRE'!$I$13-'CRP SOUMIS EQUILIBRE'!$I$142+CRA_SF!$I$13-CRA_SF!$I$149","v":0}]
["Dont charges des comptes 60 à 62",0,{"$f":"'CRP NON SOUMIS EQUIL'!$I$35-SUM('CRP NON SOUMIS EQUIL'!$I$16:$I$17)+SUM('CRP NON SOUMIS EQUIL'!$I$41:$I$42)+SUM('CRP NON SOUMIS EQUIL'!$I$59:$I$67)-SUM('CRP NON SOUMIS EQUIL'!$I$150:$I$152)+'CRP SOUMIS EQUILIBRE'!$I$35-SUM('CRP SOUMIS EQUILIBRE'!$I$16:$I$17)+SUM('CRP SOUMIS EQUILIBRE'!$I$41:$I$42)+SUM('CRP SOUMIS EQUILIBRE'!$I$59:$I$67)-SUM('CRP SOUMIS EQUILIBRE'!$I$143:$I$145)+CRA_SF!$I$35-SUM(CRA_SF!$I$16:$I$17)+SUM(CRA_SF!$I$41:$I$42)+SUM(CRA_SF!$I$59:$I$67)-SUM(CRA_SF!$I$150:$I$152)","v":0}]
["Dont charges des comptes 63 et 645 à 647",0,{"$f":"'CRP NON SOUMIS EQUIL'!$I$43+'CRP NON SOUMIS EQUIL'!$I$44+'CRP NON SOUMIS EQUIL'!$I$48+'CRP NON SOUMIS EQUIL'!$I$49+'CRP NON SOUMIS EQUIL'!$I$50+'CRP NON SOUMIS EQUIL'!$I$68+'CRP NON SOUMIS EQUIL'!$I$69-'CRP NON SOUMIS EQUIL'!$I$156+'CRP SOUMIS EQUILIBRE'!$I$43+'CRP SOUMIS EQUILIBRE'!$I$44+'CRP SOUMIS EQUILIBRE'!$I$48+'CRP SOUMIS EQUILIBRE'!$I$49+'CRP SOUMIS EQUILIBRE'!$I$50+'CRP SOUMIS EQUILIBRE'!$I$68+'CRP SOUMIS EQUILIBRE'!$I$69-'CRP SOUMIS EQUILIBRE'!$I$149+CRA_SF!$I$43+CRA_SF!$I$44+CRA_SF!$I$48+CRA_SF!$I$49+CRA_SF!$I$50+CRA_SF!$I$68+CRA_SF!$I$69-CRA_SF!$I$156","v":0}]
["Dont charges non décaissables (2)",0,{"$f":"SUM('CRP NON SOUMIS EQUIL'!$I$84:$I$85)+SUM('CRP NON SOUMIS EQUIL'!$I$89:$I$105)+SUM('CRP SOUMIS EQUILIBRE'!$I$84:$I$85)+SUM('CRP SOUMIS EQUILIBRE'!$I$89:$I$105)+SUM(CRA_SF!$I$84:$I$85)+SUM(CRA_SF!$I$89:$I$105)","v":0}]
["Produits de la tarification",0,{"$f":"'CRP NON SOUMIS EQUIL'!$I$135+'CRP SOUMIS EQUILIBRE'!$I$128+CRA_SF!$I$135","v":0}]
["Produits du compte 70",0,{"$f":"'CRP NON SOUMIS EQUIL'!$I$141+'CRP NON SOUMIS EQUIL'!$I$142+'CRP NON SOUMIS EQUIL'!$I$143+'CRP NON SOUMIS EQUIL'!$I$144+'CRP SOUMIS EQUILIBRE'!$I$134+'CRP SOUMIS EQUILIBRE'!$I$135+'CRP SOUMIS EQUILIBRE'!$I$136+'CRP SOUMIS EQUILIBRE'!$I$137+CRA_SF!$I$141+CRA_SF!$I$142+CRA_SF!$I$143+CRA_SF!$I$144","v":0}]
["Produits courants d'exploitation (comptes 70 à 75 - c/ 709 et c/713)",{"$f":"SUM(C380:IV380)","v":0},{"$f":"'CRP NON SOUMIS EQUIL'!$I$135+SUM('CRP NON SOUMIS EQUIL'!$I$141:$I$148)-SUM('CRP NON SOUMIS EQUIL'!$I$16:$I$17)+'CRP SOUMIS EQUILIBRE'!$I$128+SUM('CRP SOUMIS EQUILIBRE'!$I$134:$I$141)-SUM('CRP SOUMIS EQUILIBRE'!$I$16:$I$17)+CRA_SF!$I$135+SUM(CRA_SF!$I$141:$I$148)-SUM(CRA_SF!$I$16:$I$17)","v":0}]
["Produits d'exploitation (total classe 7 sauf c/76, c/77, c/786 et c/787 - c/709 et c/713)",{"$f":"SUM(C381:IV381)","v":0},{"$f":"'CRP NON SOUMIS EQUIL'!$I$135+SUM('CRP NON SOUMIS EQUIL'!$I$141:$I$148)+SUM('CRP NON SOUMIS EQUIL'!$I$178:$I$181)+SUM('CRP NON SOUMIS EQUIL'!$I$189:$I$193)-SUM('CRP NON SOUMIS EQUIL'!$I$16:$I$17)+'CRP SOUMIS EQUILIBRE'!$I$128+SUM('CRP SOUMIS EQUILIBRE'!$I$134:$I$141)+SUM('CRP SOUMIS EQUILIBRE'!$I$170:$I$173)+SUM('CRP SOUMIS EQUILIBRE'!$I$182:$I$186)-SUM('CRP SOUMIS EQUILIBRE'!$I$16:$I$17)+CRA_SF!$I$135+SUM(CRA_SF!$I$141:$I$148)+SUM(CRA_SF!$I$178:$I$181)+SUM(CRA_SF!$I$189:$I$193)-SUM(CRA_SF!$I$16:$I$17)","v":0}]
["Total classe 7 (sauf c/775, c/777, c/7781 et c/78) - c/709 et c/713",0,{"$f":"'CRP NON SOUMIS EQUIL'!$I$197-SUM('CRP NON SOUMIS EQUIL'!$I$16:$I$17)-SUM('CRP NON SOUMIS EQUIL'!$I$149:$I$158)-'CRP NON SOUMIS EQUIL'!$I$172-'CRP NON SOUMIS EQUIL'!$I$173-'CRP NON SOUMIS EQUIL'!$I$175-SUM('CRP NON SOUMIS EQUIL'!$I$178:$I$192)+'CRP SOUMIS EQUILIBRE'!$I$190-SUM('CRP SOUMIS EQUILIBRE'!$I$16:$I$17)-SUM('CRP SOUMIS EQUILIBRE'!$I$142:$I$151)-'CRP SOUMIS EQUILIBRE'!$I$164-'CRP SOUMIS EQUILIBRE'!$I$165-'CRP SOUMIS EQUILIBRE'!$I$167-SUM('CRP SOUMIS EQUILIBRE'!$I$170:$I$185)+CRA_SF!$I$197-SUM(CRA_SF!$I$16:$I$17)-SUM(CRA_SF!$I$149:$I$158)-CRA_SF!$I$172-CRA_SF!$I$173-CRA_SF!$I$175-SUM(CRA_SF!$I$178:$I$192)","v":0}]
[null,0]
[]
["Contrôle des provision"]
["Comptes 14"]
["Compte 14 vs 6872/6874",{"$f":"SUM(C387:IV387)","v":0},{"$f":"'CRP SOUMIS EQUILIBRE'!$I$96+'CRP SOUMIS EQUILIBRE'!$I$97+'CRP SOUMIS EQUILIBRE'!$I$98+'CRP SOUMIS EQUILIBRE'!$I$99+'CRP SOUMIS EQUILIBRE'!$I$100+'CRP NON SOUMIS EQUIL'!$I$96+'CRP NON SOUMIS EQUIL'!$I$97+'CRP NON SOUMIS EQUIL'!$I$98+'CRP NON SOUMIS EQUIL'!$I$99+'CRP NON SOUMIS EQUIL'!$I$100+CRA_SF!$I$96+CRA_SF!$I$97+CRA_SF!$I$98+CRA_SF!$I$99+CRA_SF!$I$100","v":{"v":0,"d":"0.00 €"}}]
["Compte 14 vs 7872/7874",0,{"$f":"+'CRP SOUMIS EQUILIBRE'!$I$176+'CRP SOUMIS EQUILIBRE'!$I$177+'CRP SOUMIS EQUILIBRE'!$I$178+'CRP SOUMIS EQUILIBRE'!$I$179+'CRP SOUMIS EQUILIBRE'!$I$180+'CRP NON SOUMIS EQUIL'!$I$183+'CRP NON SOUMIS EQUIL'!$I$184+'CRP NON SOUMIS EQUIL'!$I$185+'CRP NON SOUMIS EQUIL'!$I$186+'CRP NON SOUMIS EQUIL'!$I$187+CRA_SF!$I$183+CRA_SF!$I$184+CRA_SF!$I$185+CRA_SF!$I$186+CRA_SF!$I$187","v":{"v":0,"d":"0.00 €"}}]
["Comptes 15"]
["Comptes 15 vs 6815/6865",0]
["Comptes 15 vs 7815/7865",0]
["Comptes 29,39,49 et 59"]
["Comptes 29,39,49 et 59 vs 6816/6817/6866/6876",0]
["Comptes 29,39,49 et 59 vs 7816/7817/7866/7876",0]
["Fonds dédiés"]
["Fonds dédiés vs  689",0,{"$f":"SUM('CRP NON SOUMIS EQUIL'!$I$102:$I$105)+SUM('CRP SOUMIS EQUILIBRE'!$I$102:$I$105)+SUM(CRA_SF!$I$102:$I$105)","v":{"v":0,"d":"0.00 €"}}]
["Fonds dédiés vs  789",0,{"$f":"SUM('CRP NON SOUMIS EQUIL'!$I$189:$I$192)+SUM('CRP SOUMIS EQUILIBRE'!$I$182:$I$185)+SUM(CRA_SF!$I$189:$I$192)","v":{"v":0,"d":"0.00 €"}}]
["Tableau des subventions d'investissement"]
["Tableau des subventions d'investissement VS 777",0,{"$f":"+'CRP SOUMIS EQUILIBRE'!$I$165+'CRP NON SOUMIS EQUIL'!$I$173+CRA_SF!$I$173","v":{"v":0,"d":"0.00 €"}}]

{"sheet":"Page de garde","index":6,"n_rows":33,"n_cols":16,"rows_kept":33,"merged":[[1,2,1,12],[7,3,7,12],[11,3,11,12],[32,2,32,3],[32,4,32,11],[33,2,33,12]]}
["#ERRDHA-2025-01#"]
[null,null,"Annexe 8 : Cadre normalisé de présentation de l'Etat Réalisé des Recettes et des Dépenses (ERRD) des établissements et services sociaux et médico-sociaux relevant du I de l'article L. 312-1 du code de l'action sociale et des familles"]
[]
[null,null,"Exercice :"]
[]
[null,null,"N° FINESS (entité juridique) :",""]
[]
[null,null,"Organisme gestionnaire :"]
[]
[null,null,"Statut de l'entité juridique :"]
[]
[null,null,"Adresse :"]
[]
[null,null,"Téléphone :"]
[]
[null,null,"Fax :"]
[]
[null,null,"Email :"]
[]
[null,null,"Nom et qualité de la personne habilitée à représenter l'organisme gestionnaire :"]
[]
[null,null,"Date d'effet du contrat pluriannuel d'objectifs et de moyens :"]
[]
[]
[null,null,"Etablissements et services relevant du périmètre de l'ERRD"]
[]
[null,null,"Etablissements et services","Adresses","N° FINESS Etablissement","Catégorie","Date d'autorisation","Capacité autorisée","Capacité installée","Amplitude d'ouverture sur l'année (en jours)","ESSMS relevant du périmètre du CPOM - O/N ","CRP soumis à l'obligation d'une présentation équilibrée - O/N"]
[{"$nulls":4},"",{"$nulls":10},{"$f":"G28","v":0}]
[{"$nulls":15},{"$f":"G29","v":0}]
[]
[]
[]
[null,null,"Convention collective majoritaire de travail :"]

{"sheet":"Id_CR_SF","index":7,"n_rows":15,"n_cols":10,"rows_kept":15,"merged":[[1,1,1,9]]}
[]
[null,"Identification des activités sans numéro FINESS"]
[]
[null,"Liste des activités sans FINESS Etablissement relevant du périmètre de l'ERRD"]
[]
[]
[null,"Identifiant (*)","Dénomination du CR sans n° FINESS","Adresse","N° FINESS ET de rattachement","Catégorie","Capacité autorisée","Capacité installée","Amplitude d'ouverture sur l'année (en jours)","CR relevant du périmètre du CPOM \nO/N"]
[{"$nulls":3},"",""]
[]
[]
[]
[null,"(*) Veuillez saisir un identifiant de votre choix comprenant 6 caractères (sans caractères spéciaux, tirets, accents…)."]
[null,"Le modèle de compte de résultat créé est le compte de résultat non soumis à l'équilibre strict."]
[null,"Nous vous invitons à compléter le tableau de l'onglet \"Id_CR_SF\" selon le même ordonnancement chaque année, afin qu'un même numéro d'identification soit toujours attribué à la même activité."]
[null,"Tous les CR_SF sont pris en compte dans les calculs globaux (CAF, tableau de financement, etc.). Veillez à bien établir le CR de l'établissement d'adossement sans les charges relatives au CR_SF rattaché."]

{"sheet":"Sommaire","index":8,"n_rows":29,"n_cols":3,"rows_kept":29,"hidden":true}
["Sommaire"]
[]
["Documents","Identification de l'onglet","Pagination"]
["Comptes de résultat"]
["ESSMS 1","CRP","Page  à"]
["ESSMS 2","CRA_1","Page  à"]
["ESSMS …","CRA_...","Page  à"]
[]
["Synthèse des comptes de résultat","Synthèse CR","Page"]
[]
["ERRD synthétique","ERRD synthétique","Page"]
[]
["CAF détaillée","Tableau CAF","Page"]
[]
["Tableau de financement","Tabl. de financement","Page"]
[]
["Détermination du fonds de roulement au 31 décembre de l'année N","Bilan financier","Page  à"]
[]
["Ratios financiers","Ratios financiers","Page"]
[]
["Tableau de répartition des charges communes","Tableau Rcc","Page"]
[]
["Provisions, dépréciations, subventions","Provis°, dépréciat°, subvent","Page"]
[]
["Emprunts","Emprunts ESSMS privés/ESSMS publics Dettes fin.","Page  à"]
[]
["Détermination et affectation des résultats","Affectation_Resultats_Prive_I/II ou Affectation_Resultats_Public_I/II","Page"]
[]
["Suivi de l'affectation des résultats sur le périmètre de l'ERRD","Suivi_Affect_Result_Prive_I/II ou Suivi_Affect_Result_Public","Page"]

{"sheet":"CRP SOUMIS EQUILIBRE","index":9,"n_rows":206,"n_cols":11,"rows_kept":206,"hidden":true,"merged":[[1,1,1,2],[1,3,1,5],[2,1,2,2],[2,3,2,5],[5,1,5,10],[8,3,10,3],[8,4,8,7],[8,8,8,10],[9,4,10,4],[9,5,10,5],[9,6,10,6],[9,7,10,7],[9,8,10,8],[9,9,10,9],[9,10,10,10],[36,3,38,3],[36,4,36,7],[36,8,36,10],[37,4,38,4],[37,5,38,5],[37,6,38,6],[37,7,38,7],[37,8,38,8],[37,9,38,9],[37,10,38,10],[54,3,56,3],[54,4,54,7],[54,8,54,10],[55,4,56,4],[55,5,56,5],[55,6,56,6],[55,7,56,7],[55,8,56,8],[55,9,56,9],[55,10,56,10],[115,3,117,3],[115,4,115,7],[115,8,115,10],[116,4,117,4],[116,5,117,5],[116,6,117,6],[116,7,117,7],[116,8,117,8],[116,9,117,9],[116,10,117,10],[129,3,131,3],[129,4,129,7],[129,8,129,10],[130,4,131,4],[130,5,131,5],[130,6,131,6],[130,7,131,7],[130,8,131,8],[130,9,131,9],[130,10,131,10],[154,3,156,3],[154,4,154,7],[154,8,154,10],[155,4,156,4],[155,5,156,5],[155,6,156,6],[155,7,156,7],[155,8,156,8],[155,9,156,9],[155,10,156,10],[197,2,199,2],[197,3,199,3],[197,4,197,7],[197,8,197,10],[198,4,199,4],[198,5,199,5],[198,6,199,6],[198,7,199,7],[198,8,199,8],[198,9,199,9],[198,10,199,10]]}
[]
[null,"Raison sociale :"]
[null,"FINESS ET :"]
[]
[]
[null,"Compte de résultat principal/annexe soumis à l'obligation d'équilibre "]
[]
[]
[null,"Présentation des charges :",null,{"$f":"IF('Page de garde'!$D$4=\"\",\"Réalisations Exercice N-1\",\"Réalisations Exercice \"&('Page de garde'!$D$4-1))","v":"Réalisations Exercice N-1"},{"$f":"IF('Page de garde'!$D$4=\"\",\"Budget Exercice N\",\"Budget Exercice \"&'Page de garde'!$D$4)","v":"Budget Exercice N"},{"$nulls":3},{"$f":"IF('Page de garde'!$D$4=\"\",\"Réalisé Exercice N\",\"Réalisé Exercice \"&'Page de garde'!$D$4)","v":"Réalisé Exercice N"}]
[{"$nulls":4},"Budget initial","Virements de crédits","Décisions modificatives","Prévisions budgétaires totales ","Réalisations","Ecart réalisations / prévisions \n(€)","Ecart réalisations / prévisions \n(%)"]
[null,null,"GROUPE I : CHARGES AFFERENTES A L'EXPLOITATION COURANTE"]
[null,"ACHATS",null,null,"(1)","(2)","(3)","(4)=(1)+(2)+(3)","(5)","(5)-(4)","(5)-(4) / (4)"]
[null,"601/602 /603","Achats stockés et variation des stocks",{"$nulls":4},{"$f":"E13+F13+G13","v":{"v":0,"d":"0.00 €"}},null,{"$f":"I13-H13","v":{"v":0,"d":"0.00 €"}},{"$f":"IF(H13=0,0,J13/H13)","v":{"v":0,"d":"0.0%"}}]
[null,606,"Achats non stockés de matières et fournitures",{"$nulls":4},{"$f":"E14+F14+G14","v":{"v":0,"d":"0.00 €"}},null,{"$f":"I14-H14","v":{"v":0,"d":"0.00 €"}},{"$f":"IF(H14=0,0,J14/H14)","v":{"v":0,"d":"0.0%"}}]
[null,607,"Achats de marchandises",{"$nulls":4},{"$f":"E15+F15+G15","v":{"v":0,"d":"0.00 €"}},null,{"$f":"I15-H15","v":{"v":0,"d":"0.00 €"}},{"$f":"IF(H15=0,0,J15/H15)","v":{"v":0,"d":"0.0%"}}]
[null,709,"Rabais, remises, ristournes accordés par l'établissement",{"$nulls":4},{"$f":"E16+F16+G16","v":{"v":0,"d":"0.00 €"}},null,{"$f":"I16-H16","v":{"v":0,"d":"0.00 €"}},{"$f":"IF(H16=0,0,J16/H16)","v":{"v":0,"d":"0.0%"}}]
[null,713,"Variation des stocks, en cours de production, produits (en dépenses)",{"$nulls":4},{"$f":"E17+F17+G17","v":{"v":0,"d":"0.00 €"}},null,{"$f":"I17-H17","v":{"v":0,"d":"0.00 €"}},{"$f":"IF(H17=0,0,J17/H17)","v":{"v":0,"d":"0.0%"}}]
[]
[null,"SERVICES EXTERIEURS"]
[null,6111,"Sous-traitance: prestations à caractère médical",{"$nulls":4},{"$f":"E20+F20+G20","v":{"v":0,"d":"0.00 €"}},null,{"$f":"I20-H20","v":{"v":0,"d":"0.00 €"}},{"$f":"IF(H20=0,0,J20/H20)","v":{"v":0,"d":"0.0%"}}]
[null,6112,"Sous-traitance: prestations à caractère médico-social",{"$nulls":4},{"$f":"E21+F21+G21","v":{"v":0,"d":"0.00 €"}},null,{"$f":"I21-H21","v":{"v":0,"d":"0.00 €"}},{"$f":"IF(H21=0,0,J21/H21)","v":{"v":0,"d":"0.0%"}}]
[null,6118,"Sous-traitance: autres prestations de service",{"$nulls":4},{"$f":"E22+F22+G22","v":{"v":0,"d":"0.00 €"}},null,{"$f":"I22-H22","v":{"v":0,"d":"0.00 €"}},{"$f":"IF(H22=0,0,J22/H22)","v":{"v":0,"d":"0.0%"}}]
[null," "," "]
[null,"AUTRES SERVICES EXTERIEURS "]
[null,624,"Transports de biens, d'usagers et transports collectifs du personnel (autres que c/6242)",{"$nulls":4},{"$f":"E25+F25+G25","v":{"v":0,"d":"0.00 €"}},null,{"$f":"I25-H25","v":{"v":0,"d":"0.00 €"}},{"$f":"IF(H25=0,0,J25/H25)","v":{"v":0,"d":"0.0%"}}]
[null,6242,"Transports d'usagers",{"$nulls":4},{"v":0,"d":"0.00 €"},null,{"v":0,"d":"0.00 €"},{"v":0,"d":"0.0%"}]
[null,625,"Déplacements, missions et réceptions",{"$nulls":4},{"v":0,"d":"0.00 €"},null,{"v":0,"d":"0.00 €"},{"v":0,"d":"0.0%"}]
[null,626,"Frais postaux et frais de télécommunications",{"$nulls":4},{"v":0,"d":"0.00 €"},null,{"v":0,"d":"0.00 €"},{"v":0,"d":"0.0%"}]
[null,6281,"Prestations de blanchissage à l'extérieur",{"$nulls":4},{"v":0,"d":"0.00 €"},null,{"v":0,"d":"0.00 €"},{"v":0,"d":"0.0%"}]
[null,6282,"Prestations d'alimentation à l'extérieur",{"$nulls":4},{"v":0,"d":"0.00 €"},null,{"v":0,"d":"0.00 €"},{"v":0,"d":"0.0%"}]
[null,6283,"Prestations de nettoyage à l'extérieur",{"$nulls":4},{"v":0,"d":"0.00 €"},null,{"v":0,"d":"0.00 €"},{"v":0,"d":"0.0%"}]
[null,6284,"Prestations d'informatique à l'extérieur",{"$nulls":4},{"v":0,"d":"0.00 €"},null,{"v":0,"d":"0.00 €"},{"v":0,"d":"0.0%"}]
[null,"6287/ 6288","Divers - Remboursements de frais et autres",{"$nulls":4},{"v":0,"d":"0.00 €"},null,{"v":0,"d":"0.00 €"},{"v":0,"d":"0.0%"}]
[]
[null,null,"TOTAL GROUPE I",{"$f":"SUM(D13:D17)+SUM(D20:D22)+SUM(D25:D33)","v":{"v":0,"d":"0.00 €"}},{"$f":"SUM(E13:E17)+SUM(E20:E22)+SUM(E25:E33)","v":{"v":0,"d":"0.00 €"}},{"$f":"SUM(F13:F17)+SUM(F20:F22)+SUM(F25:F33)","v":{"v":0,"d":"0.00 €"}},{"$f":"SUM(G13:G17)+SUM(G20:G22)+SUM(G25:G33)","v":{"v":0,"d":"0.00 €"}},{"$f":"E35+F35+G35","v":{"v":0,"d":"0.00 €"}},{"$f":"SUM(I13:I17)+SUM(I20:I22)+SUM(I25:I33)","v":{"v":0,"d":"0.00 €"}},{"$f":"I35-H35","v":{"v":0,"d":"0.00 €"}},{"$f":"IF(H35=0,0,J35/H35)","v":{"v":0,"d":"0.0%"}}]
[]
[{"$nulls":3},{"$f":"IF('Page de garde'!$D$4=\"\",\"Réalisations Exercice N-1\",\"Réalisations Exercice \"&('Page de garde'!$D$4-1))","v":"Réalisations Exercice N-1"},{"$f":"IF('Page de garde'!$D$4=\"\",\"Budget Exercice N\",\"Budget Exercice \"&'Page de garde'!$D$4)","v":"Budget Exercice N"},{"$nulls":3},{"$f":"IF('Page de garde'!$D$4=\"\",\"Réalisé Exercice N\",\"Réalisé Exercice \"&'Page de garde'!$D$4)","v":"Réalisé Exercice N"}]
[null,null," GROUPE II : CHARGES AFFERENTES AU PERSONNEL",null,"Budget initial","Virements de crédits","Décisions modificatives","Prévisions budgétaires totales ","Réalisations","Ecart réalisations / prévisions \n(€)","Ecart réalisations / prévisions \n(%)"]
[]
[{"$nulls":4},"(1)","(2)","(3)","(4)=(1)+(2)+(3)","(5)","(5)-(4)","(5)-(4) / (4)"]
[null,621,"Personnel extérieur à l'établissement",{"$nulls":4},{"$f":"E41+F41+G41","v":{"v":0,"d":"0.00 €"}},null,{"$f":"I41-H41","v":{"v":0,"d":"0.00 €"}},{"$f":"IF(H41=0,0,J41/H41)","v":{"v":0,"d":"0.0%"}}]
[null,622,"Rémunérations d'intermédiaires et honoraires",{"$nulls":4},{"v":0,"d":"0.00 €"},null,{"v":0,"d":"0.00 €"},{"v":0,"d":"0.0%"}]
[null,631,"Impôts, taxes et versements assimilés sur rémunérations (administration des impôts)",{"$nulls":4},{"v":0,"d":"0.00 €"},null,{"v":0,"d":"0.00 €"},{"v":0,"d":"0.0%"}]
[null,633,"Impôts, taxes et versements assimilés sur rémunérations (autres organismes)",{"$nulls":4},{"v":0,"d":"0.00 €"},null,{"v":0,"d":"0.00 €"},{"v":0,"d":"0.0%"}]
[null,641,"Rémunérations du personnel non médical",{"$nulls":4},{"v":0,"d":"0.00 €"},null,{"v":0,"d":"0.00 €"},{"v":0,"d":"0.0%"}]
[null,642,"Rémunérations du personnel médical",{"$nulls":4},{"v":0,"d":"0.00 €"},null,{"v":0,"d":"0.00 €"},{"v":0,"d":"0.0%"}]
[null,643,"Rémunération du personnel handicapé",{"$nulls":4},{"v":0,"d":"0.00 €"},null,{"v":0,"d":"0.00 €"},{"v":0,"d":"0.0%"}]
[null,645,"Charges de sécurité sociale et de prévoyance",{"$nulls":4},{"v":0,"d":"0.00 €"},null,{"v":0,"d":"0.00 €"},{"v":0,"d":"0.0%"}]
[null,646,"Personnes handicapées",{"$nulls":4},{"v":0,"d":"0.00 €"},null,{"v":0,"d":"0.00 €"},{"v":0,"d":"0.0%"}]
[null,647,"Autres charges sociales",{"$nulls":4},{"v":0,"d":"0.00 €"},null,{"v":0,"d":"0.00 €"},{"v":0,"d":"0.0%"}]
[null,648,"Autres charges de personnel",{"$nulls":4},{"v":0,"d":"0.00 €"},null,{"v":0,"d":"0.00 €"},{"v":0,"d":"0.0%"}]
[]
[null,null,"TOTAL GROUPE II",{"$f":"SUM(D41:D51)","v":{"v":0,"d":"0.00 €"}},{"$f":"SUM(E41:E51)","v":{"v":0,"d":"0.00 €"}},{"$f":"SUM(F41:F51)","v":{"v":0,"d":"0.00 €"}},{"$f":"SUM(G41:G51)","v":{"v":0,"d":"0.00 €"}},{"$f":"E53+F53+G53","v":{"v":0,"d":"0.00 €"}},{"$f":"SUM(I41:I51)","v":{"v":0,"d":"0.00 €"}},{"$f":"I53-H53","v":{"v":0,"d":"0.00 €"}},{"$f":"IF(H53=0,0,J53/H53)","v":{"v":0,"d":"0.0%"}}]
[]
[{"$nulls":3},{"$f":"IF('Page de garde'!$D$4=\"\",\"Réalisations Exercice N-1\",\"Réalisations Exercice \"&('Page de garde'!$D$4-1))","v":"Réalisations Exercice N-1"},{"$f":"IF('Page de garde'!$D$4=\"\",\"Budget Exercice N\",\"Budget Exercice \"&'Page de garde'!$D$4)","v":"Budget Exercice N"},{"$nulls":3},{"$f":"IF('Page de garde'!$D$4=\"\",\"Réalisé Exercice N\",\"Réalisé Exercice \"&'Page de garde'!$D$4)","v":"Réalisé Exercice N"}]
[null,null," GROUPE III : CHARGES AFFERENTES A LA STRUCTURE ",null,"Budget initial","Virements de crédits","Décisions modificatives","Prévisions budgétaires totales ","Réalisations","Ecart réalisations / prévisions \n(€)","Ecart réalisations / prévisions \n(%)"]
[]
[{"$nulls":4},"(1)","(2)","(3)","(4)=(1)+(2)+(3)","(5)","(5)-(4)","(5)-(4) / (4)"]
[null,612,"Redevances de crédit-bail",{"$nulls":4},{"$f":"E59+F59+G59","v":{"v":0,"d":"0.00 €"}},null,{"$f":"I59-H59","v":{"v":0,"d":"0.00 €"}},{"$f":"IF(H59=0,0,J59/H59)","v":{"v":0,"d":"0.0%"}}]
[null,613,"Locations",{"$nulls":4},{"v":0,"d":"0.00 €"},null,{"v":0,"d":"0.00 €"},{"v":0,"d":"0.0%"}]
[null,614,"Charges locatives et de copropriété",{"$nulls":4},{"v":0,"d":"0.00 €"},null,{"v":0,"d":"0.00 €"},{"v":0,"d":"0.0%"}]
[null,615,"Entretien et réparations",{"$nulls":4},{"v":0,"d":"0.00 €"},null,{"v":0,"d":"0.00 €"},{"v":0,"d":"0.0%"}]
[null,616,"Primes d'assurances",{"$nulls":4},{"v":0,"d":"0.00 €"},null,{"v":0,"d":"0.00 €"},{"v":0,"d":"0.0%"}]
[null,617,"Etudes et recherches",{"$nulls":4},{"v":0,"d":"0.00 €"},null,{"v":0,"d":"0.00 €"},{"v":0,"d":"0.0%"}]
[null,618,"Divers",{"$nulls":4},{"v":0,"d":"0.00 €"},null,{"v":0,"d":"0.00 €"},{"v":0,"d":"0.0%"}]
[null,623,"Information, publications, relations publiques",{"$nulls":4},{"v":0,"d":"0.00 €"},null,{"v":0,"d":"0.00 €"},{"v":0,"d":"0.0%"}]
[null,627,"Services bancaires et assimilés",{"$nulls":4},{"v":0,"d":"0.00 €"},null,{"v":0,"d":"0.00 €"},{"v":0,"d":"0.0%"}]
[null,635,"Autres impôts taxes et versements assimilés (administration des impôts) ",{"$nulls":4},{"v":0,"d":"0.00 €"},null,{"v":0,"d":"0.00 €"},{"v":0,"d":"0.0%"}]
[null,637,"Autres impôts taxes et versements assimilés (autres organismes) ",{"$nulls":4},{"v":0,"d":"0.00 €"},null,{"v":0,"d":"0.00 €"},{"v":0,"d":"0.0%"}]
[]
[null,"AUTRES CHARGES DE GESTION COURANTE"]
[null,651,"Redevances pour concessions, brevets, licences, procédés, droits et valeurs similaires",{"$nulls":4},{"$f":"E72+F72+G72","v":{"v":0,"d":"0.00 €"}},null,{"$f":"I72-H72","v":{"v":0,"d":"0.00 €"}},{"$f":"IF(H72=0,0,J72/H72)","v":{"v":0,"d":"0.0%"}}]
[null,653,"Contribution versée au groupement hospitalier de territoire",{"$nulls":4},{"v":0,"d":"0.00 €"},null,{"$f":"I73-H73","v":{"v":0,"d":"0.00 €"}},{"$f":"IF(H73=0,0,J73/H73)","v":{"v":0,"d":"0.0%"}}]
[null,654,"Pertes sur créances irrécouvrables",{"$nulls":4},{"v":0,"d":"0.00 €"},null,{"v":0,"d":"0.00 €"},{"v":0,"d":"0.0%"}]
[null,655,"Quotes-parts de résultat sur opérations faites en commun",{"$nulls":4},{"v":0,"d":"0.00 €"},null,{"v":0,"d":"0.00 €"},{"v":0,"d":"0.0%"}]
[null,657,"Subventions",{"$nulls":4},{"v":0,"d":"0.00 €"},null,{"v":0,"d":"0.00 €"},{"v":0,"d":"0.0%"}]
[null,658,"Charges diverses de gestion courante",{"$nulls":4},{"v":0,"d":"0.00 €"},null,{"v":0,"d":"0.00 €"},{"v":0,"d":"0.0%"}]
[]
[null,"CHARGES FINANCIERES"]
[null,66,"Charges financières",{"$nulls":4},{"$f":"E80+F80+G80","v":{"v":0,"d":"0.00 €"}},null,{"$f":"I80-H80","v":{"v":0,"d":"0.00 €"}},{"$f":"IF(H80=0,0,J80/H80)","v":{"v":0,"d":"0.0%"}}]
[]
[null,"CHARGES EXCEPTIONNELLES"]
[null,671,"Charges exceptionnelles sur opérations de gestion",{"$nulls":4},{"$f":"E83+F83+G83","v":{"v":0,"d":"0.00 €"}},null,{"$f":"I83-H83","v":{"v":0,"d":"0.00 €"}},{"$f":"IF(H83=0,0,J83/H83)","v":{"v":0,"d":"0.0%"}}]
[null,673,"Titres annulés (sur exercices antérieurs) (ESSMS publics)",{"$nulls":4},{"$f":"E84+F84+G84","v":{"v":0,"d":"0.00 €"}},null,{"$f":"I84-H84","v":{"v":0,"d":"0.00 €"}},{"$f":"IF(H84=0,0,J84/H84)","v":{"v":0,"d":"0.0%"}}]
[null,675,"Valeurs comptables des éléments d'actif cédés",{"$nulls":4},{"$f":"E85+F85+G85","v":{"v":0,"d":"0.00 €"}},null,{"$f":"I85-H85","v":{"v":0,"d":"0.00 €"}},{"$f":"IF(H85=0,0,J85/H85)","v":{"v":0,"d":"0.0%"}}]
[null,678,"Autres charges exceptionnelles",{"$nulls":4},{"$f":"E86+F86+G86","v":{"v":0,"d":"0.00 €"}},null,{"$f":"I86-H86","v":{"v":0,"d":"0.00 €"}},{"$f":"IF(H86=0,0,J86/H86)","v":{"v":0,"d":"0.0%"}}]
[]
[null,"DOTATIONS AUX AMORTISSEMENTS, AUX DEPRECIATIONS, AUX PROVISIONS ET ENGAGEMENTS"]
[null,6811,"Dotations aux amortissements des immobilisations incorporelles et corporelles",{"$nulls":4},{"$f":"E89+F89+G89","v":{"v":0,"d":"0.00 €"}},null,{"$f":"I89-H89","v":{"v":0,"d":"0.00 €"}},{"$f":"IF(H89=0,0,J89/H89)","v":{"v":0,"d":"0.0%"}}]
[null,6812,"Dotations aux amortissements des charges d'exploitation à répartir",{"$nulls":4},{"v":0,"d":"0.00 €"},null,{"v":0,"d":"0.00 €"},{"v":0,"d":"0.0%"}]
[null,6815,"Dotations aux provisions d'exploitation",{"$nulls":4},{"v":0,"d":"0.00 €"},null,{"v":0,"d":"0.00 €"},{"v":0,"d":"0.0%"}]
[null,6816,"Dotations aux dépréciations des immobilisations incorporelles et corporelles",{"$nulls":4},{"v":0,"d":"0.00 €"},null,{"v":0,"d":"0.00 €"},{"v":0,"d":"0.0%"}]
[null,6817,"Dotations aux dépréciations des actifs circulants",{"$nulls":4},{"v":0,"d":"0.00 €"},null,{"v":0,"d":"0.00 €"},{"v":0,"d":"0.0%"}]
[null,686,"Dotations aux amortissements, dépréciations et provisions : charges financières",{"$nulls":4},{"v":0,"d":"0.00 €"},null,{"v":0,"d":"0.00 €"},{"v":0,"d":"0.0%"}]
[null,6871,"Dotations aux amortissements exceptionnels des immobilisations",{"$nulls":4},{"v":0,"d":"0.00 €"},null,{"v":0,"d":"0.00 €"},{"v":0,"d":"0.0%"}]
[null,68725,"Dotations aux amortissements dérogatoires",{"$nulls":4},{"v":0,"d":"0.00 €"},null,{"v":0,"d":"0.00 €"},{"v":0,"d":"0.0%"}]
[null,68741,"Dotations aux provisions réglementées destinées à renforcer la couverture du BFR",{"$nulls":4},{"v":0,"d":"0.00 €"},null,{"v":0,"d":"0.00 €"},{"v":0,"d":"0.0%"}]
[null,68742,"Dotations aux provisions réglementées pour renouvellement des immobilisations",{"$nulls":4},{"v":0,"d":"0.00 €"},null,{"v":0,"d":"0.00 €"},{"v":0,"d":"0.0%"}]
[null,68746,"Dotations aux provisions réglementées : réserves des plus-values nettes d'actif (ESSMS privés)",{"$nulls":4},{"v":0,"d":"0.00 €"},null,{"v":0,"d":"0.00 €"},{"v":0,"d":"0.0%"}]
[null,68748,"Autres dotations aux provisions réglementées",{"$nulls":4},{"$f":"E100+F100+G100","v":{"v":0,"d":"0.00 €"}},null,{"$f":"I100-H100","v":{"v":0,"d":"0.00 €"}},{"$f":"IF(H100=0,0,J100/H100)","v":{"v":0,"d":"0.0%"}}]
[null,6876,"Dotations aux dépréciations exceptionnelles",{"$nulls":4},{"v":0,"d":"0.00 €"},null,{"v":0,"d":"0.00 €"},{"v":0,"d":"0.0%"}]
[null,689,"Reports en fonds dédiés (sauf c/6892 et c/6895) (ESSMS privés)",{"$nulls":4},{"v":0,"d":"0.00 €"},null,{"v":0,"d":"0.00 €"},{"v":0,"d":"0.0%"}]
[null,68921,"Reports en fonds dédiés à l'investissement sur concours publics des entités gestionnaires d'ESSMS (ESSMS privés)",{"$nulls":4},{"v":0,"d":"0.00 €"},null,{"v":0,"d":"0.00 €"},{"v":0,"d":"0.0%"}]
[null,68922,"Reports en fonds dédiés à l'exploitation sur concours publics des entités gestionnaires d'ESSMS (ESSMS privés)",{"$nulls":4},{"$f":"E104+F104+G104","v":{"v":0,"d":"0.00 €"}},null,{"$f":"I104-H104","v":{"v":0,"d":"0.00 €"}},{"$f":"IF(H104=0,0,J104/H104)","v":{"v":0,"d":"0.0%"}}]
[null,6895,"Reports en fonds dédiés sur contribution financière d'autres organismes (ESSMS privés)",{"$nulls":4},{"v":0,"d":"0.00 €"},null,{"v":0,"d":"0.00 €"},{"v":0,"d":"0.0%"}]
[]
[null,null,"TOTAL GROUPE III",{"$f":"SUM(D59:D69)+SUM(D72:D77)+D80+SUM(D83:D86)+SUM(D89:D105)","v":{"v":0,"d":"0.00 €"}},{"$f":"SUM(E59:E69)+SUM(E72:E77)+E80+SUM(E83:E86)+SUM(E89:E105)","v":{"v":0,"d":"0.00 €"}},{"$f":"SUM(F59:F69)+SUM(F72:F77)+F80+SUM(F83:F86)+SUM(F89:F105)","v":{"v":0,"d":"0.00 €"}},{"$f":"SUM(G59:G69)+SUM(G72:G77)+G80+SUM(G83:G86)+SUM(G89:G105)","v":{"v":0,"d":"0.00 €"}},{"$f":"E107+F107+G107","v":{"v":0,"d":"0.00 €"}},{"$f":"SUM(I59:I69)+SUM(I72:I77)+I80+SUM(I83:I86)+SUM(I89:I105)","v":{"v":0,"d":"0.00 €"}},{"$f":"I107-H107","v":{"v":0,"d":"0.00 €"}},{"$f":"IF(H107=0,0,J107/H107)","v":{"v":0,"d":"0.0%"}}]
[]
[null,null,"TOTAL DES CHARGES (GROUPE I + GROUPE II + GROUPE III)",{"$f":"D35+D53+D107","v":{"v":0,"d":"0.00 €"}},{"$f":"E35+E53+E107","v":{"v":0,"d":"0.00 €"}},{"$f":"F35+F53+F107","v":{"v":0,"d":"0.00 €"}},{"$f":"G35+G53+G107","v":{"v":0,"d":"0.00 €"}},{"$f":"E109+F109+G109","v":{"v":0,"d":"0.00 €"}},{"$f":"I35+I53+I107","v":{"v":0,"d":"0.00 €"}},{"$f":"I109-H109","v":{"v":0,"d":"0.00 €"}},{"$f":"IF(H109=0,0,J109/H109)","v":{"v":0,"d":"0.0%"}}]
[]
[null,"002","Déficit antérieur du CRP reporté",{"$nulls":4},{"$f":"E111+F111+G111","v":{"v":0,"d":"0.00 €"}},null,{"$f":"I111-H111","v":{"v":0,"d":"0.00 €"}},{"$f":"IF(H111=0,0,J111/H111)","v":{"v":0,"d":"0.0%"}}]
[null,"005","Amortissements comptables excédentaires différés",{"$nulls":4},{"$f":"E112+F112+G112","v":{"v":0,"d":"0.00 €"}},null,{"$f":"I112-H112","v":{"v":0,"d":"0.00 €"}},{"$f":"IF(H112=0,0,J112/H112)","v":{"v":0,"d":"0.0%"}}]
[]
[null,null,"TOTAL GENERAL",{"$f":"D109+D111+D112","v":{"v":0,"d":"0.00 €"}},{"$f":"E109+E111+E112","v":{"v":0,"d":"0.00 €"}},{"$f":"F109+F111+F112","v":{"v":0,"d":"0.00 €"}},{"$f":"G109+G111+G112","v":{"v":0,"d":"0.00 €"}},{"$f":"E114+F114+G114","v":{"v":0,"d":"0.00 €"}},{"$f":"I109+I111+I112","v":{"v":0,"d":"0.00 €"}},{"$f":"I114-H114","v":{"v":0,"d":"0.00 €"}},{"$f":"IF(H114=0,0,J114/H114)","v":{"v":0,"d":"0.0%"}}]
[]
[null,"Présentation des produits :",null,{"$f":"IF('Page de garde'!$D$4=\"\",\"Réalisations Exercice N-1\",\"Réalisations Exercice \"&('Page de garde'!$D$4-1))","v":"Réalisations Exercice N-1"},{"$f":"IF('Page de garde'!$D$4=\"\",\"Budget Exercice N\",\"Budget Exercice \"&'Page de garde'!$D$4)","v":"Budget Exercice N"},{"$nulls":3},{"$f":"IF('Page de garde'!$D$4=\"\",\"Réalisé Exercice N\",\"Réalisé Exercice \"&'Page de garde'!$D$4)","v":"Réalisé Exercice N"}]
[{"$nulls":4},"Budget initial","Virements de crédits","Décisions modificatives","Prévisions budgétaires totales ","Réalisations","Ecart réalisations / prévisions \n(€)","Ecart réalisations / prévisions \n(%)"]
[null,null,"GROUPE I : PRODUITS DE LA TARIFICATION"]
[{"$nulls":4},"(1)","(2)","(3)","(4)=(1)+(2)+(3)","(5)","(5)-(4)","(5)-(4) / (4)"]
[null,731,"Produits à la charge de l’assurance maladie (hors EHPAD) (autres que c/731224 et c/7312132)",{"$nulls":4},{"$f":"E120+F120+G120","v":{"v":0,"d":"0.00 €"}},null,{"$f":"I120-H120","v":{"v":0,"d":"0.00 €"}},{"$f":"IF(H120=0,0,J120/H120)","v":{"v":0,"d":"0.0%"}}]
[null,"731224 / 7312132","Prise en charge au titre des dispositions de l'article L.242-4 du CASF",{"$nulls":4},{"v":0,"d":"0.00 €"},null,{"v":0,"d":"0.00 €"},{"v":0,"d":"0.0%"}]
[null,732,"Produits à la charge de l’Etat",{"$nulls":4},{"v":0,"d":"0.00 €"},null,{"v":0,"d":"0.00 €"},{"v":0,"d":"0.0%"}]
[null,733,"Produits à la charge du département (hors EHPAD) (autres que c/733222)",{"$nulls":4},{"v":0,"d":"0.00 €"},null,{"v":0,"d":"0.00 €"},{"v":0,"d":"0.0%"}]
[null,733222,"Prise en charge au titre des dispositions de l'article L.242-4 du CASF",{"$nulls":4},{"v":0,"d":"0.00 €"},null,{"v":0,"d":"0.00 €"},{"v":0,"d":"0.0%"}]
[null,734,"Produits à la charge de l’usager (hors EHPAD)",{"$nulls":4},{"v":0,"d":"0.00 €"},null,{"v":0,"d":"0.00 €"},{"v":0,"d":"0.0%"}]
[null,738,"Produits à la charge d’autres financeurs",{"$nulls":4},{"v":0,"d":"0.00 €"},null,{"v":0,"d":"0.00 €"},{"v":0,"d":"0.0%"}]
[]
[null,null,"TOTAL GROUPE I",{"$f":"SUM(D120:D126)","v":{"v":0,"d":"0.00 €"}},{"$f":"SUM(E120:E126)","v":{"v":0,"d":"0.00 €"}},{"$f":"SUM(F120:F126)","v":{"v":0,"d":"0.00 €"}},{"$f":"SUM(G120:G126)","v":{"v":0,"d":"0.00 €"}},{"$f":"E128+F128+G128","v":{"v":0,"d":"0.00 €"}},{"$f":"SUM(I120:I126)","v":{"v":0,"d":"0.00 €"}},{"$f":"I128-H128","v":{"v":0,"d":"0.00 €"}},{"$f":"IF(H128=0,0,J128/H128)","v":{"v":0,"d":"0.0%"}}]
[]
[null,null,"GROUPE II : AUTRES PRODUITS RELATIFS A L'EXPLOITATION",{"$f":"IF('Page de garde'!$D$4=\"\",\"Réalisations Exercice N-1\",\"Réalisations Exercice \"&('Page de garde'!$D$4-1))","v":"Réalisations Exercice N-1"},{"$f":"IF('Page de garde'!$D$4=\"\",\"Budget Exercice N\",\"Budget Exercice \"&'Page de garde'!$D$4)","v":"Budget Exercice N"},{"$nulls":3},{"$f":"IF('Page de garde'!$D$4=\"\",\"Réalisé Exercice N\",\"Réalisé Exercice \"&'Page de garde'!$D$4)","v":"Réalisé Exercice N"}]
[{"$nulls":4},"Budget initial","Virements de crédits","Décisions modificatives","Prévisions budgétaires totales ","Réalisations","Ecart réalisations / prévisions \n(€)","Ecart réalisations / prévisions \n(%)"]
[]
[{"$nulls":4},"(1)","(2)","(3)","(4)=(1)+(2)+(3)","(5)","(5)-(4)","(5)-(4) / (4)"]
[null,70,"Produits (autres que forfaits journaliers et participations ci-dessous:  c/70821, 70822 et 70823)",{"$nulls":4},{"$f":"E134+F134+G134","v":{"v":0,"d":"0.00 €"}},null,{"$f":"I134-H134","v":{"v":0,"d":"0.00 €"}},{"$f":"IF(H134=0,0,J134/H134)","v":{"v":0,"d":"0.0%"}}]
[null,70821,"Forfaits journaliers",{"$nulls":4},{"$f":"E135+F135+G135","v":{"v":0,"d":"0.00 €"}},null,{"$f":"I135-H135","v":{"v":0,"d":"0.00 €"}},{"$f":"IF(H135=0,0,J135/H135)","v":{"v":0,"d":"0.0%"}}]
[null,70822,"Participations des personnes handicapées prévues au 4° alinéa de l'article L. 242-4 du CASF",{"$nulls":4},{"v":0,"d":"0.00 €"},null,{"v":0,"d":"0.00 €"},{"v":0,"d":"0.0%"}]
[null,70823,"Participations aux frais de repas et de transport dans les ESAT",{"$nulls":4},{"$f":"E137+F137+G137","v":{"v":0,"d":"0.00 €"}},null,{"$f":"I137-H137","v":{"v":0,"d":"0.00 €"}},{"$f":"IF(H137=0,0,J137/H137)","v":{"v":0,"d":"0.0%"}}]
[null,71,"Production stockée",{"$nulls":4},{"v":0,"d":"0.00 €"},null,{"v":0,"d":"0.00 €"},{"v":0,"d":"0.0%"}]
[null,72,"Production immobilisée",{"$nulls":4},{"v":0,"d":"0.00 €"},null,{"v":0,"d":"0.00 €"},{"v":0,"d":"0.0%"}]
[null,74,"Subventions d'exploitation et participations",{"$nulls":4},{"v":0,"d":"0.00 €"},null,{"v":0,"d":"0.00 €"},{"v":0,"d":"0.0%"}]
[null,75,"Autres produits de gestion courante",{"$nulls":4},{"v":0,"d":"0.00 €"},null,{"v":0,"d":"0.00 €"},{"v":0,"d":"0.0%"}]
[null,603,"Variation des stocks (en recettes)",{"$nulls":4},{"v":0,"d":"0.00 €"},null,{"v":0,"d":"0.00 €"},{"v":0,"d":"0.0%"}]
[null,609,"Rabais, remises et ristournes obtenus sur achats ",{"$nulls":4},{"v":0,"d":"0.00 €"},null,{"v":0,"d":"0.00 €"},{"v":0,"d":"0.0%"}]
[null,619,"Rabais, remises et ristournes obtenus sur services extérieurs",{"$nulls":4},{"v":0,"d":"0.00 €"},null,{"v":0,"d":"0.00 €"},{"v":0,"d":"0.0%"}]
[null,629,"Rabais, remises et ristournes obtenus sur autres services extérieurs",{"$nulls":4},{"v":0,"d":"0.00 €"},null,{"v":0,"d":"0.00 €"},{"v":0,"d":"0.0%"}]
[null,6419,"Remboursements sur rémunérations du personnel non médical",{"$nulls":4},{"v":0,"d":"0.00 €"},null,{"v":0,"d":"0.00 €"},{"v":0,"d":"0.0%"}]
[null,6429,"Remboursements sur rémunérations du personnel médical",{"$nulls":4},{"v":0,"d":"0.00 €"},null,{"v":0,"d":"0.00 €"},{"v":0,"d":"0.0%"}]
[null,6439,"Remboursements sur rémunérations des personnes handicapées",{"$nulls":4},{"v":0,"d":"0.00 €"},null,{"v":0,"d":"0.00 €"},{"v":0,"d":"0.0%"}]
[null,"6459/ 69/79","Remboursements sur charges de sécurité sociale et de prévoyance et sur autres charges sociales",{"$nulls":4},{"v":0,"d":"0.00 €"},null,{"v":0,"d":"0.00 €"},{"v":0,"d":"0.0%"}]
[null,6489,"Fonds de compensation des cessations anticipées d'activité",{"$nulls":4},{"v":0,"d":"0.00 €"},null,{"v":0,"d":"0.00 €"},{"v":0,"d":"0.0%"}]
[null,6611,"Intérêts des emprunts et dettes - en recettes - (hors ESSMS publics)",{"$nulls":4},{"v":0,"d":"0.00 €"},null,{"v":0,"d":"0.00 €"},{"v":0,"d":"0.0%"}]
[]
[null,null,"TOTAL GROUPE II",{"$f":"SUM(D134:D151)","v":{"v":0,"d":"0.00 €"}},{"$f":"SUM(E134:E151)","v":{"v":0,"d":"0.00 €"}},{"$f":"SUM(F134:F151)","v":{"v":0,"d":"0.00 €"}},{"$f":"SUM(G134:G151)","v":{"v":0,"d":"0.00 €"}},{"$f":"E153+F153+G153","v":{"v":0,"d":"0.00 €"}},{"$f":"SUM(I134:I151)","v":{"v":0,"d":"0.00 €"}},{"$f":"I153-H153","v":{"v":0,"d":"0.00 €"}},{"$f":"IF(H153=0,0,J153/H153)","v":{"v":0,"d":"0.0%"}}]
[]
[{"$nulls":3},{"$f":"IF('Page de garde'!$D$4=\"\",\"Réalisations Exercice N-1\",\"Réalisations Exercice \"&('Page de garde'!$D$4-1))","v":"Réalisations Exercice N-1"},{"$f":"IF('Page de garde'!$D$4=\"\",\"Budget Exercice N\",\"Budget Exercice \"&'Page de garde'!$D$4)","v":"Budget Exercice N"},{"$nulls":3},{"$f":"IF('Page de garde'!$D$4=\"\",\"Réalisé Exercice N\",\"Réalisé Exercice \"&'Page de garde'!$D$4)","v":"Réalisé Exercice N"}]
[null,null,"GROUPE III : PRODUITS FINANCIERS, PRODUITS EXCEPTIONNELS ET PRODUITS NON ENCAISSABLES ",null,"Budget initial","Virements de crédits","Décisions modificatives","Prévisions budgétaires totales ","Réalisations","Ecart réalisations / prévisions \n(€)","Ecart réalisations / prévisions \n(%)"]
[]
[{"$nulls":4},"(1)","(2)","(3)","(4)=(1)+(2)+(3)","(5)","(5)-(4)","(5)-(4) / (4)"]
[null,76,"Produits financiers",{"$nulls":4},{"$f":"E159+F159+G159","v":{"v":0,"d":"0.00 €"}},null,{"$f":"I159-H159","v":{"v":0,"d":"0.00 €"}},{"$f":"IF(H159=0,0,J159/H159)","v":{"v":0,"d":"0.0%"}}]
[]
[null,"PRODUITS EXCEPTIONNELS "]
[null,771,"Produits exceptionnels sur opérations de gestion",{"$nulls":4},{"$f":"E162+F162+G162","v":{"v":0,"d":"0.00 €"}},null,{"$f":"I162-H162","v":{"v":0,"d":"0.00 €"}},{"$f":"IF(H162=0,0,J162/H162)","v":{"v":0,"d":"0.0%"}}]
[null,773,"Mandats annulés (sur exercices antérieurs) ou atteints par la déchéance quadriennale (ESSMS publics)",{"$nulls":4},{"v":0,"d":"0.00 €"},null,{"v":0,"d":"0.00 €"},{"v":0,"d":"0.0%"}]
[null,775,"Produits des cessions d'éléments d'actif",{"$nulls":4},{"v":0,"d":"0.00 €"},null,{"v":0,"d":"0.00 €"},{"v":0,"d":"0.0%"}]
[null,777,"Quotes-parts des subventions d'investissement virées au résultat de l'exercice",{"$nulls":4},{"v":0,"d":"0.00 €"},null,{"v":0,"d":"0.00 €"},{"v":0,"d":"0.0%"}]
[null,778,"Autres produits exceptionnels (autres que c/7781)",{"$nulls":4},{"v":0,"d":"0.00 €"},null,{"v":0,"d":"0.00 €"},{"v":0,"d":"0.0%"}]
[null,7781,"Quote-part d'éléments du fonds associatif virée au compte de résultat",{"$nulls":4},{"v":0,"d":"0.00 €"},null,{"v":0,"d":"0.00 €"},{"v":0,"d":"0.0%"}]
[]
[null,"AUTRES PRODUITS"]
[null,7811,"Reprises sur amortissements des immobilisations incorporelles et corporelles",{"$nulls":4},{"$f":"E170+F170+G170","v":{"v":0,"d":"0.00 €"}},null,{"$f":"I170-H170","v":{"v":0,"d":"0.00 €"}},{"$f":"IF(H170=0,0,J170/H170)","v":{"v":0,"d":"0.0%"}}]
[null,7815,"Reprises sur provisions d'exploitation",{"$nulls":4},{"v":0,"d":"0.00 €"},null,{"v":0,"d":"0.00 €"},{"v":0,"d":"0.0%"}]
[null,7816,"Reprises sur dépréciations des immobilisations incorporelles et corporelles",{"$nulls":4},{"v":0,"d":"0.00 €"},null,{"v":0,"d":"0.00 €"},{"v":0,"d":"0.0%"}]
[null,7817,"Reprises sur dépréciations des actifs circulants",{"$nulls":4},{"v":0,"d":"0.00 €"},null,{"v":0,"d":"0.00 €"},{"v":0,"d":"0.0%"}]
[null,786,"Reprises sur dépréciations et provisions (à inscrire dans les produits financiers)",{"$nulls":4},{"v":0,"d":"0.00 €"},null,{"v":0,"d":"0.00 €"},{"v":0,"d":"0.0%"}]
[]
[null,78725,"Reprises sur amortissements dérogatoires",{"$nulls":4},{"v":0,"d":"0.00 €"},null,{"v":0,"d":"0.00 €"},{"v":0,"d":"0.0%"}]
[null,78741,"Reprises sur provisions réglementées destinées à renforcer la couverture du besoin en fonds de roulement",{"$nulls":4},{"v":0,"d":"0.00 €"},null,{"v":0,"d":"0.00 €"},{"v":0,"d":"0.0%"}]
[null,78742,"Reprises sur provisions réglementées pour renouvellement des immobilisations",{"$nulls":4},{"v":0,"d":"0.00 €"},null,{"v":0,"d":"0.00 €"},{"v":0,"d":"0.0%"}]
[null,78746,"Reprises sur provisions réglementées : réserves des plus-values nettes d'actif (ESSMS privés)",{"$nulls":4},{"v":0,"d":"0.00 €"},null,{"v":0,"d":"0.00 €"},{"v":0,"d":"0.0%"}]
[null,78748,"Autres reprises sur provisions réglementées",{"$nulls":4},{"$f":"E180+F180+G180","v":{"v":0,"d":"0.00 €"}},null,{"$f":"I180-H180","v":{"v":0,"d":"0.00 €"}},{"$f":"IF(H180=0,0,J180/H180)","v":{"v":0,"d":"0.0%"}}]
[null,7876,"Reprises sur dépréciations exceptionnelles",{"$nulls":4},{"v":0,"d":"0.00 €"},null,{"v":0,"d":"0.00 €"},{"v":0,"d":"0.0%"}]
[null,789,"Utilisation de fonds dédiés et de fonds reportés (sauf c/7892 et c/7895) (ESSMS privés)",{"$nulls":4},{"v":0,"d":"0.00 €"},null,{"v":0,"d":"0.00 €"},{"v":0,"d":"0.0%"}]
[null,78921,"Utilisation des fonds dédiés à l'investissement sur concours publics des entités gestionnaires d'ESSMS (ESSMS privés)",{"$nulls":4},{"$f":"E183+F183+G183","v":{"v":0,"d":"0.00 €"}},null,{"$f":"I183-H183","v":{"v":0,"d":"0.00 €"}},{"$f":"IF(H183=0,0,J183/H183)","v":{"v":0,"d":"0.0%"}}]
[null,78922,"Utilisation des fonds dédiés à l'exploitation sur concours publics des entités gestionnaires d'ESSMS (ESSMS privés)",{"$nulls":4},{"$f":"E184+F184+G184","v":{"v":0,"d":"0.00 €"}},null,{"$f":"I184-H184","v":{"v":0,"d":"0.00 €"}},{"$f":"IF(H184=0,0,J184/H184)","v":{"v":0,"d":"0.0%"}}]
[null,7895,"Utilisations des fonds dédiés sur contributions financières d’autres organismes (ESSMS privés)",{"$nulls":4},{"$f":"E185+F185+G185","v":{"v":0,"d":"0.00 €"}},null,{"$f":"I185-H185","v":{"v":0,"d":"0.00 €"}},{"$f":"IF(H185=0,0,J185/H185)","v":{"v":0,"d":"0.0%"}}]
[null,79,"Transferts de charges",{"$nulls":4},{"v":0,"d":"0.00 €"},null,{"v":0,"d":"0.00 €"},{"v":0,"d":"0.0%"}]
[]
[null,null,"TOTAL GROUPE III",{"$f":"D159+SUM(D162:D167)+SUM(D170:D186)","v":{"v":0,"d":"0.00 €"}},{"$f":"E159+SUM(E162:E167)+SUM(E170:E186)","v":{"v":0,"d":"0.00 €"}},{"$f":"F159+SUM(F162:F167)+SUM(F170:F186)","v":{"v":0,"d":"0.00 €"}},{"$f":"G159+SUM(G162:G167)+SUM(G170:G186)","v":{"v":0,"d":"0.00 €"}},{"$f":"E188+F188+G188","v":{"v":0,"d":"0.00 €"}},{"$f":"I159+SUM(I162:I167)+SUM(I170:I186)","v":{"v":0,"d":"0.00 €"}},{"$f":"I188-H188","v":{"v":0,"d":"0.00 €"}},{"$f":"IF(H188=0,0,J188/H188)","v":{"v":0,"d":"0.0%"}}]
[]
[null,null,"TOTAL DES PRODUITS (GROUPE I + GROUPE II + GROUPE III)",{"$f":"D128+D153+D188","v":{"v":0,"d":"0.00 €"}},{"$f":"E128+E153+E188","v":{"v":0,"d":"0.00 €"}},{"$f":"F128+F153+F188","v":{"v":0,"d":"0.00 €"}},{"$f":"G128+G153+G188","v":{"v":0,"d":"0.00 €"}},{"$f":"E190+F190+G190","v":{"v":0,"d":"0.00 €"}},{"$f":"I128+I153+I188","v":{"v":0,"d":"0.00 €"}},{"$f":"I190-H190","v":{"v":0,"d":"0.00 €"}},{"$f":"IF(H190=0,0,J190/H190)","v":{"v":0,"d":"0.0%"}}]
[]
[null,"002","Excédent antérieur du CRP reporté",{"$nulls":4},{"$f":"E192+F192+G192","v":{"v":0,"d":"0.00 €"}},null,{"$f":"I192-H192","v":{"v":0,"d":"0.00 €"}},{"$f":"IF(H192=0,0,J192/H192)","v":{"v":0,"d":"0.0%"}}]
[null,"005","Amortissements comptables excédentaires différés",{"$nulls":4},{"$f":"E193+F193+G193","v":{"v":0,"d":"0.00 €"}},null,{"$f":"I193-H193","v":{"v":0,"d":"0.00 €"}},{"$f":"IF(H193=0,0,J193/H193)","v":{"v":0,"d":"0.0%"}}]
[]
[null,null,"TOTAL GENERAL",{"$f":"D190+D192+D193","v":{"v":0,"d":"0.00 €"}},{"$f":"E190+E192+E193","v":{"v":0,"d":"0.00 €"}},{"$f":"F190+F192+F193","v":{"v":0,"d":"0.00 €"}},{"$f":"G190+G192+G193","v":{"v":0,"d":"0.00 €"}},{"$f":"E195+F195+G195","v":{"v":0,"d":"0.00 €"}},{"$f":"I190+I192+I193","v":{"v":0,"d":"0.00 €"}},{"$f":"I195-H195","v":{"v":0,"d":"0.00 €"}},{"$f":"IF(H195=0,0,J195/H195)","v":{"v":0,"d":"0.0%"}}]
[]
[]
[null,null,"Ratios",{"$f":"IF('Page de garde'!$D$4=\"\",\"Réalisations Exercice N-1\",\"Réalisations Exercice \"&('Page de garde'!$D$4-1))","v":"Réalisations Exercice N-1"},{"$f":"IF('Page de garde'!$D$4=\"\",\"Budget Exercice N\",\"Budget Exercice \"&'Page de garde'!$D$4)","v":"Budget Exercice N"},{"$nulls":3},{"$f":"IF('Page de garde'!$D$4=\"\",\"Réalisé Exercice N\",\"Réalisé Exercice \"&'Page de garde'!$D$4)","v":"Réalisé Exercice N"}]
[{"$nulls":4},"Budget initial","Virements de crédits","Décisions modificatives","Prévisions budgétaires totales ","Réalisations","Ecart réalisations / prévisions (€)","Ecart réalisations / prévisions (%)"]
[]
[null,null,"Marge brute d'exploitation",{"$f":"D128+D153-D35-D53-SUM(D59:D69)-SUM(D72:D77)-D151","v":{"v":0,"d":"0.00 €"}},{"$nulls":3},{"$f":"H128+H153-H35-H53-SUM(H59:H69)-SUM(H72:H77)-H151","v":{"v":0,"d":"0.00 €"}},{"$f":"I128+I153-I35-I53-SUM(I59:I69)-SUM(I72:I77)-I151","v":{"v":0,"d":"0.00 €"}}]
[null,null,"Produits courants d'exploitation (comptes 70 à 75 - c/709 et c/713)",{"$f":"D128+SUM(D134:D141)-SUM(D16:D17)","v":{"v":0,"d":"0.00 €"}},{"$nulls":3},{"$f":"H128+SUM(H134:H141)-SUM(H16:H17)","v":{"v":0,"d":"0.00 €"}},{"$f":"I128+SUM(I134:I141)-SUM(I16:I17)","v":{"v":0,"d":"0.00 €"}}]
[null,null,"Taux de marge brute",{"$f":"IFERROR(D201/D202,0)","v":{"v":0,"d":"0.00%"}},{"$nulls":3},{"$f":"IFERROR(H201/H202,0)","v":{"v":0,"d":"0.00%"}},{"$f":"IFERROR(I201/I202,0)","v":{"v":0,"d":"0.00%"}}]
[null,null,"Résultat net",{"$f":"D190-D109","v":{"v":0,"d":"0.00 €"}},{"$nulls":3},{"$f":"H190-H109","v":{"v":0,"d":"0.00 €"}},{"$f":"I190-I109","v":{"v":0,"d":"0.00 €"}}]
[null,null,"Produits comptes classe 7 - c/709 et c/713",{"$f":"D190-SUM(D142:D151)-SUM(D16:D17)","v":{"v":0,"d":"0.00 €"}},{"$nulls":3},{"$f":"H190-SUM(H142:H151)-SUM(H16:H17)","v":{"v":0,"d":"0.00 €"}},{"$f":"I190-SUM(I142:I151)-SUM(I16:I17)","v":{"v":0,"d":"0.00 €"}}]
[null,null,"Taux de résultat ",{"$f":"IFERROR(D204/D205,0)","v":{"v":0,"d":"0.00%"}},{"$nulls":3},{"$f":"IFERROR(H204/H205,0)","v":{"v":0,"d":"0.00%"}},{"$f":"IFERROR(I204/I205,0)","v":{"v":0,"d":"0.00%"}}]

{"sheet":"CRP NON SOUMIS EQUIL","index":10,"n_rows":215,"n_cols":11,"rows_kept":215,"hidden":true,"merged":[[1,1,1,2],[1,3,1,5],[2,1,2,2],[2,3,2,5],[5,1,5,10],[8,3,10,3],[8,4,8,7],[8,8,8,10],[9,4,10,4],[9,5,10,5],[9,6,10,6],[9,7,10,7],[9,8,10,8],[9,9,10,9],[9,10,10,10],[36,3,38,3],[36,4,36,7],[36,8,36,10],[37,4,38,4],[37,5,38,5],[37,6,38,6],[37,7,38,7],[37,8,38,8],[37,9,38,9],[37,10,38,10],[54,3,56,3],[54,4,54,7],[54,8,54,10],[55,4,56,4],[55,5,56,5],[55,6,56,6],[55,7,56,7],[55,8,56,8],[55,9,56,9],[55,10,56,10],[118,3,120,3],[118,4,118,7],[118,8,118,10],[119,4,120,4],[119,5,120,5],[119,6,120,6],[119,7,120,7],[119,8,120,8],[119,9,120,9],[119,10,120,10],[136,3,138,3],[136,4,136,7],[136,8,136,10],[137,4,138,4],[137,5,138,5],[137,6,138,6],[137,7,138,7],[137,8,138,8],[137,9,138,9],[137,10,138,10],[162,3,164,3],[162,4,162,7],[162,8,162,10],[163,4,164,4],[163,5,164,5],[163,6,164,6],[163,7,164,7],[163,8,164,8],[163,9,164,9],[163,10,164,10],[206,2,208,2],[206,3,208,3],[206,4,206,7],[206,8,206,10],[207,4,208,4],[207,5,208,5],[207,6,208,6],[207,7,208,7],[207,8,208,8],[207,9,208,9],[207,10,208,10]]}
[]
[null,"Raison sociale :"]
[null,"FINESS ET :"]
[]
[]
[null,"Compte de résultat principal/annexe non soumis à l'obligation d'équilibre "]
[]
[]
[null,"Présentation des charges :",null,{"$f":"IF('Page de garde'!$D$4=\"\",\"Réalisations Exercice N-1\",\"Réalisations Exercice \"&('Page de garde'!$D$4-1))","v":"Réalisations Exercice N-1"},{"$f":"IF('Page de garde'!$D$4=\"\",\"Budget Exercice N\",\"Budget Exercice \"&'Page de garde'!$D$4)","v":"Budget Exercice N"},{"$nulls":3},{"$f":"IF('Page de garde'!$D$4=\"\",\"Réalisé Exercice N\",\"Réalisé Exercice \"&'Page de garde'!$D$4)","v":"Réalisé Exercice N"}]
[{"$nulls":4},"Budget initial","Virements de crédits","Décisions modificatives","Prévisions budgétaires totales ","Réalisations","Ecart réalisations / prévisions (€)","Ecart réalisations / prévisions (%)"]
[null,null,"GROUPE I : CHARGES AFFERENTES A L'EXPLOITATION COURANTE"]
[null,"ACHATS",null,null,"(1)","(2)","(3)","(4)=(1)+(2)+(3)","(5)","(5)-(4)","(5)-(4) / (4)"]
[null,"601/602 /603","Achats stockés et variation des stocks",{"$nulls":4},{"$f":"E13+F13+G13","v":{"v":0,"d":"0.00 €"}},null,{"$f":"I13-H13","v":{"v":0,"d":"0.00 €"}},{"$f":"IF(H13=0,0,J13/H13)","v":{"v":0,"d":"0.0%"}}]
[null,606,"Achats non stockés de matières et fournitures",{"$nulls":4},{"$f":"E14+F14+G14","v":{"v":0,"d":"0.00 €"}},null,{"$f":"I14-H14","v":{"v":0,"d":"0.00 €"}},{"$f":"IF(H14=0,0,J14/H14)","v":{"v":0,"d":"0.0%"}}]
[null,607,"Achats de marchandises",{"$nulls":4},{"$f":"E15+F15+G15","v":{"v":0,"d":"0.00 €"}},null,{"$f":"I15-H15","v":{"v":0,"d":"0.00 €"}},{"$f":"IF(H15=0,0,J15/H15)","v":{"v":0,"d":"0.0%"}}]
[null,709,"Rabais, remises, ristournes accordés par l'établissement",{"$nulls":4},{"$f":"E16+F16+G16","v":{"v":0,"d":"0.00 €"}},null,{"$f":"I16-H16","v":{"v":0,"d":"0.00 €"}},{"$f":"IF(H16=0,0,J16/H16)","v":{"v":0,"d":"0.0%"}}]
[null,713,"Variation des stocks, en cours de production, produits (en dépenses)",{"$nulls":4},{"$f":"E17+F17+G17","v":{"v":0,"d":"0.00 €"}},null,{"$f":"I17-H17","v":{"v":0,"d":"0.00 €"}},{"$f":"IF(H17=0,0,J17/H17)","v":{"v":0,"d":"0.0%"}}]
[]
[null,"SERVICES EXTERIEURS"]
[null,6111,"Sous-traitance: prestations à caractère médical",{"$nulls":4},{"$f":"E20+F20+G20","v":{"v":0,"d":"0.00 €"}},null,{"$f":"I20-H20","v":{"v":0,"d":"0.00 €"}},{"$f":"IF(H20=0,0,J20/H20)","v":{"v":0,"d":"0.0%"}}]
[null,6112,"Sous-traitance: prestations à caractère médico-social",{"$nulls":4},{"$f":"E21+F21+G21","v":{"v":0,"d":"0.00 €"}},null,{"$f":"I21-H21","v":{"v":0,"d":"0.00 €"}},{"$f":"IF(H21=0,0,J21/H21)","v":{"v":0,"d":"0.0%"}}]
[null,6118,"Sous-traitance: autres prestations de service",{"$nulls":4},{"$f":"E22+F22+G22","v":{"v":0,"d":"0.00 €"}},null,{"$f":"I22-H22","v":{"v":0,"d":"0.00 €"}},{"$f":"IF(H22=0,0,J22/H22)","v":{"v":0,"d":"0.0%"}}]
[null," "," "]
[null,"AUTRES SERVICES EXTERIEURS "]
[null,624,"Transports de biens, d'usagers et transports collectifs du personnel (autres que c/6242 )",{"$nulls":4},{"$f":"E25+F25+G25","v":{"v":0,"d":"0.00 €"}},null,{"$f":"I25-H25","v":{"v":0,"d":"0.00 €"}},{"$f":"IF(H25=0,0,J25/H25)","v":{"v":0,"d":"0.0%"}}]
[null,6242,"Transports d'usagers",{"$nulls":4},{"v":0,"d":"0.00 €"},null,{"v":0,"d":"0.00 €"},{"v":0,"d":"0.0%"}]
[null,625,"Déplacements, missions et réceptions",{"$nulls":4},{"v":0,"d":"0.00 €"},null,{"v":0,"d":"0.00 €"},{"v":0,"d":"0.0%"}]
[null,626,"Frais postaux et frais de télécommunications",{"$nulls":4},{"v":0,"d":"0.00 €"},null,{"v":0,"d":"0.00 €"},{"v":0,"d":"0.0%"}]
[null,6281,"Prestations de blanchissage à l'extérieur",{"$nulls":4},{"v":0,"d":"0.00 €"},null,{"v":0,"d":"0.00 €"},{"v":0,"d":"0.0%"}]
[null,6282,"Prestations d'alimentation à l'extérieur",{"$nulls":4},{"v":0,"d":"0.00 €"},null,{"v":0,"d":"0.00 €"},{"v":0,"d":"0.0%"}]
[null,6283,"Prestations de nettoyage à l'extérieur",{"$nulls":4},{"v":0,"d":"0.00 €"},null,{"v":0,"d":"0.00 €"},{"v":0,"d":"0.0%"}]
[null,6284,"Prestations d'informatique à l'extérieur",{"$nulls":4},{"v":0,"d":"0.00 €"},null,{"v":0,"d":"0.00 €"},{"v":0,"d":"0.0%"}]
[null,"6287/ 6288","Divers - Remboursements de frais et autres",{"$nulls":4},{"v":0,"d":"0.00 €"},null,{"v":0,"d":"0.00 €"},{"v":0,"d":"0.0%"}]
[]
[null,null,"TOTAL GROUPE I",{"$f":"SUM(D13:D17)+SUM(D20:D22)+SUM(D25:D33)","v":{"v":0,"d":"0.00 €"}},{"$f":"SUM(E13:E17)+SUM(E20:E22)+SUM(E25:E33)","v":{"v":0,"d":"0.00 €"}},{"$f":"SUM(F13:F17)+SUM(F20:F22)+SUM(F25:F33)","v":{"v":0,"d":"0.00 €"}},{"$f":"SUM(G13:G17)+SUM(G20:G22)+SUM(G25:G33)","v":{"v":0,"d":"0.00 €"}},{"$f":"E35+F35+G35","v":{"v":0,"d":"0.00 €"}},{"$f":"SUM(I13:I17)+SUM(I20:I22)+SUM(I25:I33)","v":{"v":0,"d":"0.00 €"}},{"$f":"I35-H35","v":{"v":0,"d":"0.00 €"}},{"$f":"IF(H35=0,0,J35/H35)","v":{"v":0,"d":"0.0%"}}]
[]
[{"$nulls":3},{"$f":"IF('Page de garde'!$D$4=\"\",\"Réalisations Exercice N-1\",\"Réalisations Exercice \"&('Page de garde'!$D$4-1))","v":"Réalisations Exercice N-1"},{"$f":"IF('Page de garde'!$D$4=\"\",\"Budget Exercice N\",\"Budget Exercice \"&'Page de garde'!$D$4)","v":"Budget Exercice N"},{"$nulls":3},{"$f":"IF('Page de garde'!$D$4=\"\",\"Réalisé Exercice N\",\"Réalisé Exercice \"&'Page de garde'!$D$4)","v":"Réalisé Exercice N"}]
[{"$nulls":4},"Budget initial","Virements de crédits","Décisions modificatives","Prévisions budgétaires totales ","Réalisations","Ecart réalisations / prévisions (€)","Ecart réalisations / prévisions (%)"]
[null,null,"GROUPE II : CHARGES AFFERENTES AU PERSONNEL"]
[{"$nulls":4},"(1)","(2)","(3)","(4)=(1)+(2)+(3)","(5)","(5)-(4)","(5)-(4) / (4)"]
[null,621,"Personnel extérieur à l'établissement",{"$nulls":4},{"$f":"E41+F41+G41","v":{"v":0,"d":"0.00 €"}},null,{"$f":"I41-H41","v":{"v":0,"d":"0.00 €"}},{"$f":"IF(H41=0,0,J41/H41)","v":{"v":0,"d":"0.0%"}}]
[null,622,"Rémunérations d'intermédiaires et honoraires",{"$nulls":4},{"v":0,"d":"0.00 €"},null,{"v":0,"d":"0.00 €"},{"v":0,"d":"0.0%"}]
[null,631,"Impôts, taxes et versements assimilés sur rémunérations (administration des impôts)",{"$nulls":4},{"v":0,"d":"0.00 €"},null,{"v":0,"d":"0.00 €"},{"v":0,"d":"0.0%"}]
[null,633,"Impôts, taxes et versements assimilés sur rémunérations (autres organismes)",{"$nulls":4},{"v":0,"d":"0.00 €"},null,{"v":0,"d":"0.00 €"},{"v":0,"d":"0.0%"}]
[null,641,"Rémunérations du personnel non médical",{"$nulls":4},{"v":0,"d":"0.00 €"},null,{"v":0,"d":"0.00 €"},{"v":0,"d":"0.0%"}]
[null,642,"Rémunérations du personnel médical",{"$nulls":4},{"v":0,"d":"0.00 €"},null,{"v":0,"d":"0.00 €"},{"v":0,"d":"0.0%"}]
[null,643,"Rémunération du personnel handicapé",{"$nulls":4},{"v":0,"d":"0.00 €"},null,{"v":0,"d":"0.00 €"},{"v":0,"d":"0.0%"}]
[null,645,"Charges de sécurité sociale et de prévoyance",{"$nulls":4},{"v":0,"d":"0.00 €"},null,{"v":0,"d":"0.00 €"},{"v":0,"d":"0.0%"}]
[null,646,"Personnes handicapées",{"$nulls":4},{"v":0,"d":"0.00 €"},null,{"v":0,"d":"0.00 €"},{"v":0,"d":"0.0%"}]
[null,647,"Autres charges sociales",{"$nulls":4},{"v":0,"d":"0.00 €"},null,{"v":0,"d":"0.00 €"},{"v":0,"d":"0.0%"}]
[null,648,"Autres charges de personnel",{"$nulls":4},{"v":0,"d":"0.00 €"},null,{"v":0,"d":"0.00 €"},{"v":0,"d":"0.0%"}]
[]
[null,null,"TOTAL GROUPE II",{"$f":"SUM(D41:D51)","v":{"v":0,"d":"0.00 €"}},{"$f":"SUM(E41:E51)","v":{"v":0,"d":"0.00 €"}},{"$f":"SUM(F41:F51)","v":{"v":0,"d":"0.00 €"}},{"$f":"SUM(G41:G51)","v":{"v":0,"d":"0.00 €"}},{"$f":"E53+F53+G53","v":{"v":0,"d":"0.00 €"}},{"$f":"SUM(I41:I51)","v":{"v":0,"d":"0.00 €"}},{"$f":"I53-H53","v":{"v":0,"d":"0.00 €"}},{"$f":"IF(H53=0,0,J53/H53)","v":{"v":0,"d":"0.0%"}}]
[]
[{"$nulls":3},{"$f":"IF('Page de garde'!$D$4=\"\",\"Réalisations Exercice N-1\",\"Réalisations Exercice \"&('Page de garde'!$D$4-1))","v":"Réalisations Exercice N-1"},{"$f":"IF('Page de garde'!$D$4=\"\",\"Budget Exercice N\",\"Budget Exercice \"&'Page de garde'!$D$4)","v":"Budget Exercice N"},{"$nulls":3},{"$f":"IF('Page de garde'!$D$4=\"\",\"Réalisé Exercice N\",\"Réalisé Exercice \"&'Page de garde'!$D$4)","v":"Réalisé Exercice N"}]
[{"$nulls":4},"Budget initial","Virements de crédits","Décisions modificatives","Prévisions budgétaires totales ","Réalisations","Ecart réalisations / prévisions (€)","Ecart réalisations / prévisions (%)"]
[null,null,"GROUPE III : CHARGES AFFERENTES A LA STRUCTURE "]
[{"$nulls":4},"(1)","(2)","(3)","(4)=(1)+(2)+(3)","(5)","(5)-(4)","(5)-(4) / (4)"]
[null,612,"Redevances de crédit-bail",{"$nulls":4},{"$f":"E59+F59+G59","v":{"v":0,"d":"0.00 €"}},null,{"$f":"I59-H59","v":{"v":0,"d":"0.00 €"}},{"$f":"IF(H59=0,0,J59/H59)","v":{"v":0,"d":"0.0%"}}]
[null,613,"Locations",{"$nulls":4},{"v":0,"d":"0.00 €"},null,{"v":0,"d":"0.00 €"},{"v":0,"d":"0.0%"}]
[null,614,"Charges locatives et de copropriété",{"$nulls":4},{"v":0,"d":"0.00 €"},null,{"v":0,"d":"0.00 €"},{"v":0,"d":"0.0%"}]
[null,615,"Entretien et réparations",{"$nulls":4},{"v":0,"d":"0.00 €"},null,{"v":0,"d":"0.00 €"},{"v":0,"d":"0.0%"}]
[null,616,"Primes d'assurances",{"$nulls":4},{"v":0,"d":"0.00 €"},null,{"v":0,"d":"0.00 €"},{"v":0,"d":"0.0%"}]
[null,617,"Etudes et recherches",{"$nulls":4},{"v":0,"d":"0.00 €"},null,{"v":0,"d":"0.00 €"},{"v":0,"d":"0.0%"}]
[null,618,"Divers",{"$nulls":4},{"v":0,"d":"0.00 €"},null,{"v":0,"d":"0.00 €"},{"v":0,"d":"0.0%"}]
[null,623,"Information, publications, relations publiques",{"$nulls":4},{"v":0,"d":"0.00 €"},null,{"v":0,"d":"0.00 €"},{"v":0,"d":"0.0%"}]
[null,627,"Services bancaires et assimilés",{"$nulls":4},{"v":0,"d":"0.00 €"},null,{"v":0,"d":"0.00 €"},{"v":0,"d":"0.0%"}]
[null,635,"Autres impôts taxes et versements assimilés (administration des impôts) ",{"$nulls":4},{"v":0,"d":"0.00 €"},null,{"v":0,"d":"0.00 €"},{"v":0,"d":"0.0%"}]
[null,637,"Autres impôts taxes et versements assimilés (autres organismes) ",{"$nulls":4},{"v":0,"d":"0.00 €"},null,{"v":0,"d":"0.00 €"},{"v":0,"d":"0.0%"}]
[]
[null,"AUTRES CHARGES DE GESTION COURANTE"]
[null,651,"Redevances pour concessions, brevets, licences, procédés, droits et valeurs similaires",{"$nulls":4},{"$f":"E72+F72+G72","v":{"v":0,"d":"0.00 €"}},null,{"$f":"I72-H72","v":{"v":0,"d":"0.00 €"}},{"$f":"IF(H72=0,0,J72/H72)","v":{"v":0,"d":"0.0%"}}]
[null,653,"Contribution versée au groupement hospitalier de territoire",{"$nulls":4},{"v":0,"d":"0.00 €"},null,{"$f":"I73-H73","v":{"v":0,"d":"0.00 €"}},{"$f":"IF(H73=0,0,J73/H73)","v":{"v":0,"d":"0.0%"}}]
[null,654,"Pertes sur créances irrécouvrables",{"$nulls":4},{"v":0,"d":"0.00 €"},null,{"v":0,"d":"0.00 €"},{"v":0,"d":"0.0%"}]
[null,655,"Quotes-parts de résultat sur opérations faites en commun",{"$nulls":4},{"v":0,"d":"0.00 €"},null,{"v":0,"d":"0.00 €"},{"v":0,"d":"0.0%"}]
[null,657,"Subventions",{"$nulls":4},{"v":0,"d":"0.00 €"},null,{"v":0,"d":"0.00 €"},{"v":0,"d":"0.0%"}]
[null,658,"Charges diverses de gestion courante",{"$nulls":4},{"v":0,"d":"0.00 €"},null,{"v":0,"d":"0.00 €"},{"v":0,"d":"0.0%"}]
[]
[null,"CHARGES FINANCIERES"]
[null,66,"Charges financières",{"$nulls":4},{"$f":"E80+F80+G80","v":{"v":0,"d":"0.00 €"}},null,{"$f":"I80-H80","v":{"v":0,"d":"0.00 €"}},{"$f":"IF(H80=0,0,J80/H80)","v":{"v":0,"d":"0.0%"}}]
[]
[null,"CHARGES EXCEPTIONNELLES"]
[null,671,"Charges exceptionnelles sur opérations de gestion",{"$nulls":4},{"$f":"E83+F83+G83","v":{"v":0,"d":"0.00 €"}},null,{"$f":"I83-H83","v":{"v":0,"d":"0.00 €"}},{"$f":"IF(H83=0,0,J83/H83)","v":{"v":0,"d":"0.0%"}}]
[null,673,"Titres annulés (sur exercices antérieurs) (ESSMS publics)",{"$nulls":4},{"$f":"E84+F84+G84","v":{"v":0,"d":"0.00 €"}},null,{"$f":"I84-H84","v":{"v":0,"d":"0.00 €"}},{"$f":"IF(H84=0,0,J84/H84)","v":{"v":0,"d":"0.0%"}}]
[null,675,"Valeurs comptables des éléments d'actif cédés",{"$nulls":4},{"$f":"E85+F85+G85","v":{"v":0,"d":"0.00 €"}},null,{"$f":"I85-H85","v":{"v":0,"d":"0.00 €"}},{"$f":"IF(H85=0,0,J85/H85)","v":{"v":0,"d":"0.0%"}}]
[null,678,"Autres charges exceptionnelles",{"$nulls":4},{"$f":"E86+F86+G86","v":{"v":0,"d":"0.00 €"}},null,{"$f":"I86-H86","v":{"v":0,"d":"0.00 €"}},{"$f":"IF(H86=0,0,J86/H86)","v":{"v":0,"d":"0.0%"}}]
[]
[null,"DOTATIONS AUX AMORTISSEMENTS, AUX DEPRECIATIONS, AUX PROVISIONS ET ENGAGEMENTS"]
[null,6811,"Dotations aux amortissements des immobilisations incorporelles et corporelles",{"$nulls":4},{"$f":"E89+F89+G89","v":{"v":0,"d":"0.00 €"}},null,{"$f":"I89-H89","v":{"v":0,"d":"0.00 €"}},{"$f":"IF(H89=0,0,J89/H89)","v":{"v":0,"d":"0.0%"}}]
[null,6812,"Dotations aux amortissements des charges d'exploitation à répartir",{"$nulls":4},{"v":0,"d":"0.00 €"},null,{"v":0,"d":"0.00 €"},{"v":0,"d":"0.0%"}]
[null,6815,"Dotations aux provisions d'exploitation",{"$nulls":4},{"v":0,"d":"0.00 €"},null,{"v":0,"d":"0.00 €"},{"v":0,"d":"0.0%"}]
[null,6816,"Dotations aux dépréciations des immobilisations incorporelles et corporelles",{"$nulls":4},{"v":0,"d":"0.00 €"},null,{"v":0,"d":"0.00 €"},{"v":0,"d":"0.0%"}]
[null,6817,"Dotations aux dépréciations des actifs circulants",{"$nulls":4},{"v":0,"d":"0.00 €"},null,{"v":0,"d":"0.00 €"},{"v":0,"d":"0.0%"}]
[null,686,"Dotations aux amortissements, dépréciations et provisions : charges financières",{"$nulls":4},{"v":0,"d":"0.00 €"},null,{"v":0,"d":"0.00 €"},{"v":0,"d":"0.0%"}]
[null,6871,"Dotations aux amortissements exceptionnels des immobilisations",{"$nulls":4},{"v":0,"d":"0.00 €"},null,{"v":0,"d":"0.00 €"},{"v":0,"d":"0.0%"}]
[null,68725,"Dotations aux amortissements dérogatoires",{"$nulls":4},{"v":0,"d":"0.00 €"},null,{"v":0,"d":"0.00 €"},{"v":0,"d":"0.0%"}]
[null,68741,"Dotations aux provisions réglementées destinées à renforcer la couverture du BFR",{"$nulls":4},{"v":0,"d":"0.00 €"},null,{"v":0,"d":"0.00 €"},{"v":0,"d":"0.0%"}]
[null,68742,"Dotations aux provisions réglementées pour renouvellement des immobilisations",{"$nulls":4},{"v":0,"d":"0.00 €"},null,{"v":0,"d":"0.00 €"},{"v":0,"d":"0.0%"}]
[null,68746,"Dotations aux provisions réglementées : réserves des plus-values nettes d'actif (ESSMS privés)",{"$nulls":4},{"$f":"E99+F99+G99","v":{"v":0,"d":"0.00 €"}},null,{"$f":"I99-H99","v":{"v":0,"d":"0.00 €"}},{"v":0,"d":"0.0%"}]
[null,68748,"Autres dotations aux provisions réglementées",{"$nulls":4},{"$f":"E100+F100+G100","v":{"v":0,"d":"0.00 €"}},null,{"$f":"I100-H100","v":{"v":0,"d":"0.00 €"}},{"v":0,"d":"0.0%"}]
[null,6876,"Dotations aux dépréciations exceptionnelles",{"$nulls":4},{"v":0,"d":"0.00 €"},null,{"v":0,"d":"0.00 €"},{"v":0,"d":"0.0%"}]
[null,689,"Reports en fonds dédiés (sauf c/6892 et c/6895) (ESSMS privés)",{"$nulls":4},{"$f":"E102+F102+G102","v":{"v":0,"d":"0.00 €"}},null,{"$f":"I102-H102","v":{"v":0,"d":"0.00 €"}},{"$f":"IF(H102=0,0,J102/H102)","v":{"v":0,"d":"0.0%"}}]
[null,68921,"Reports en fonds dédiés à l'investissement sur concours publics des entités gestionnaires d'ESSMS (ESSMS privés)",{"$nulls":4},{"$f":"E103+F103+G103","v":{"v":0,"d":"0.00 €"}},null,{"$f":"I103-H103","v":{"v":0,"d":"0.00 €"}},{"$f":"IF(H103=0,0,J103/H103)","v":{"v":0,"d":"0.0%"}}]
[null,68922,"Reports en fonds dédiés à l'exploitation sur concours publics des entités gestionnaires d'ESSMS (ESSMS privés)",{"$nulls":4},{"$f":"E104+F104+G104","v":{"v":0,"d":"0.00 €"}},null,{"$f":"I104-H104","v":{"v":0,"d":"0.00 €"}},{"$f":"IF(H104=0,0,J104/H104)","v":{"v":0,"d":"0.0%"}}]
[null,6895,"Reports en fonds dédiés sur contribution financière d'autres organismes (ESSMS privés)",{"$nulls":4},{"v":0,"d":"0.00 €"},null,{"$f":"I105-H105","v":{"v":0,"d":"0.00 €"}},{"$f":"IF(H105=0,0,J105/H105)","v":{"v":0,"d":"0.0%"}}]
[]
[]
[]
[null,null,"TOTAL GROUPE III",{"$f":"SUM(D59:D69)+SUM(D72:D77)+D80+SUM(D83:D86)+SUM(D89:D105)","v":{"v":0,"d":"0.00 €"}},{"$f":"SUM(E59:E69)+SUM(E72:E77)+E80+SUM(E83:E86)+SUM(E89:E105)","v":{"v":0,"d":"0.00 €"}},{"$f":"SUM(F59:F69)+SUM(F72:F77)+F80+SUM(F83:F86)+SUM(F89:F105)","v":{"v":0,"d":"0.00 €"}},{"$f":"SUM(G59:G69)+SUM(G72:G77)+G80+SUM(G83:G86)+SUM(G89:G105)","v":{"v":0,"d":"0.00 €"}},{"$f":"E109+F109+G109","v":{"v":0,"d":"0.00 €"}},{"$f":"SUM(I59:I69)+SUM(I72:I77)+I80+SUM(I83:I86)+SUM(I89:I105)","v":{"v":0,"d":"0.00 €"}},{"$f":"I109-H109","v":{"v":0,"d":"0.00 €"}},{"$f":"IF(H109=0,0,J109/H109)","v":{"v":0,"d":"0.0%"}}]
[]
[]
[]
[null,null,"TOTAL DES CHARGES",{"$f":"D35+D53+D109","v":{"v":0,"d":"0.00 €"}},{"$f":"E35+E53+E109","v":{"v":0,"d":"0.00 €"}},{"$f":"F35+F53+F109","v":{"v":0,"d":"0.00 €"}},{"$f":"G35+G53+G109","v":{"v":0,"d":"0.00 €"}},{"$f":"E113+F113+G113","v":{"v":0,"d":"0.00 €"}},{"$f":"I35+I53+I109","v":{"v":0,"d":"0.00 €"}},{"$f":"I113-H113","v":{"v":0,"d":"0.00 €"}},{"$f":"IF(H113=0,0,J113/H113)","v":{"v":0,"d":"0.0%"}}]
[]
[null,null,"EXCEDENT REALISE",{"$f":"IF(D113-D197>0,0,D197-D113)","v":{"v":0,"d":"0.00 €"}},{"$f":"IF(E113-E197>0,0,E197-E113)","v":{"v":0,"d":"0.00 €"}},{"$f":"IF(F113-F197>0,0,F197-F113)","v":{"v":0,"d":"0.00 €"}},{"$f":"IF(G113-G197>0,0,G197-G113)","v":{"v":0,"d":"0.00 €"}},{"$f":"IF((H113-H197)>0,0,H197-H113)","v":{"v":0,"d":"0.00 €"}},{"$f":"IF(I113-I197>0,0,I197-I113)","v":{"v":0,"d":"0.00 €"}},{"$f":"I115-H115","v":{"v":0,"d":"0.00 €"}},{"$f":"IF(H115=0,0,J115/H115)","v":{"v":0,"d":"0.0%"}}]
[]
[null,null,"TOTAL EQUILIBRE DU COMPTE DE RESULTAT PRINCIPAL/ANNEXE",{"$f":"D113+D115","v":{"v":0,"d":"0.00 €"}},{"v":0,"d":"0.00 €"},{"v":0,"d":"0.00 €"},{"v":0,"d":"0.00 €"},{"v":0,"d":"0.00 €"},{"v":0,"d":"0.00 €"},{"$f":"I117-H117","v":{"v":0,"d":"0.00 €"}},{"$f":"IF(H117=0,0,J117/H117)","v":{"v":0,"d":"0.0%"}}]
[]
[null,"Présentation des produits :",null,{"$f":"IF('Page de garde'!$D$4=\"\",\"Réalisations Exercice N-1\",\"Réalisations Exercice \"&('Page de garde'!$D$4-1))","v":"Réalisations Exercice N-1"},{"$f":"IF('Page de garde'!$D$4=\"\",\"Budget Exercice N\",\"Budget Exercice \"&'Page de garde'!$D$4)","v":"Budget Exercice N"},{"$nulls":3},{"$f":"IF('Page de garde'!$D$4=\"\",\"Réalisé Exercice N\",\"Réalisé Exercice \"&'Page de garde'!$D$4)","v":"Réalisé Exercice N"}]
[{"$nulls":4},"Budget initial","Virements de crédits","Décisions modificatives","Prévisions budgétaires totales ","Réalisations","Ecart réalisations / prévisions (€)","Ecart réalisations / prévisions (%)"]
[null,null,"GROUPE I : PRODUITS DE LA TARIFICATION"]
[{"$nulls":4},"(1)","(2)","(3)","(4)=(1)+(2)+(3)","(5)","(5)-(4)","(5)-(4) / (4)"]
[null,731,"Produits à la charge de l’assurance maladie (hors EHPAD) (autres que c/731224 et c/7312132)",{"$nulls":4},{"$f":"E123+F123+G123","v":{"v":0,"d":"0.00 €"}},null,{"$f":"I123-H123","v":{"v":0,"d":"0.00 €"}},{"$f":"IF(H123=0,0,J123/H123)","v":{"v":0,"d":"0.0%"}}]
[null,"731224/ 7312132","Prise en charge au titre des dispositions de l'article L.242-4 du CASF",{"$nulls":4},{"v":0,"d":"0.00 €"},null,{"v":0,"d":"0.00 €"},{"v":0,"d":"0.0%"}]
[null,732,"Produits à la charge de l’Etat",{"$nulls":4},{"v":0,"d":"0.00 €"},null,{"v":0,"d":"0.00 €"},{"v":0,"d":"0.0%"}]
[null,733,"Produits à la charge du département (hors EHPAD) (autres que c/733222)",{"$nulls":4},{"v":0,"d":"0.00 €"},null,{"v":0,"d":"0.00 €"},{"v":0,"d":"0.0%"}]
[null,733222,"Prise en charge au titre des dispositions de l'article L.242-4 du CASF",{"$nulls":4},{"v":0,"d":"0.00 €"},null,{"v":0,"d":"0.00 €"},{"v":0,"d":"0.0%"}]
[null,734,"Produits à la charge de l’usager (hors EHPAD)",{"$nulls":4},{"v":0,"d":"0.00 €"},null,{"v":0,"d":"0.00 €"},{"v":0,"d":"0.0%"}]
[null,7351,"Produits des EHPAD à la charge de l'assurance maladie",{"$nulls":4},{"v":0,"d":"0.00 €"},null,{"v":0,"d":"0.00 €"},{"v":0,"d":"0.0%"}]
[null,7352,"Produits des EHPAD à la charge du département",{"$nulls":4},{"v":0,"d":"0.00 €"},null,{"v":0,"d":"0.00 €"},{"v":0,"d":"0.0%"}]
[null,7353,"Produits des EHPAD à la charge de l'usager",{"$nulls":4},{"v":0,"d":"0.00 €"},null,{"v":0,"d":"0.00 €"},{"v":0,"d":"0.0%"}]
[null,7358,"Produits des EHPAD à la charge d'autres financeurs",{"$nulls":4},{"v":0,"d":"0.00 €"},null,{"v":0,"d":"0.00 €"},{"v":0,"d":"0.0%"}]
[null,738,"Produits à la charge d’autres financeurs",{"$nulls":4},{"v":0,"d":"0.00 €"},null,{"v":0,"d":"0.00 €"},{"v":0,"d":"0.0%"}]
[]
[null,null,"TOTAL GROUPE I",{"$f":"SUM(D123:D133)","v":{"v":0,"d":"0.00 €"}},{"$f":"SUM(E123:E133)","v":{"v":0,"d":"0.00 €"}},{"$f":"SUM(F123:F133)","v":{"v":0,"d":"0.00 €"}},{"$f":"SUM(G123:G133)","v":{"v":0,"d":"0.00 €"}},{"$f":"E135+F135+G135","v":{"v":0,"d":"0.00 €"}},{"$f":"SUM(I123:I133)","v":{"v":0,"d":"0.00 €"}},{"$f":"I135-H135","v":{"v":0,"d":"0.00 €"}},{"$f":"IF(H135=0,0,J135/H135)","v":{"v":0,"d":"0.0%"}}]
[]
[{"$nulls":3},{"$f":"IF('Page de garde'!$D$4=\"\",\"Réalisations Exercice N-1\",\"Réalisations Exercice \"&('Page de garde'!$D$4-1))","v":"Réalisations Exercice N-1"},{"$f":"IF('Page de garde'!$D$4=\"\",\"Budget Exercice N\",\"Budget Exercice \"&'Page de garde'!$D$4)","v":"Budget Exercice N"},{"$nulls":3},{"$f":"IF('Page de garde'!$D$4=\"\",\"Réalisé Exercice N\",\"Réalisé Exercice \"&'Page de garde'!$D$4)","v":"Réalisé Exercice N"}]
[{"$nulls":4},"Budget initial","Virements de crédits","Décisions modificatives","Prévisions budgétaires totales ","Réalisations","Ecart réalisations / prévisions (€)","Ecart réalisations / prévisions (%)"]
[null,null,"GROUPE II : AUTRES PRODUITS RELATIFS A L'EXPLOITATION"]
[{"$nulls":4},"(1)","(2)","(3)","(4)=(1)+(2)+(3)","(5)","(5)-(4)","(5)-(4) / (4)"]
[null,70,"Produits (autres que forfaits journaliers et participations ci-dessous:  c/70821, 70822 et 70823)",{"$nulls":4},{"$f":"E141+F141+G141","v":{"v":0,"d":"0.00 €"}},null,{"$f":"I141-H141","v":{"v":0,"d":"0.00 €"}},{"$f":"IF(H141=0,0,J141/H141)","v":{"v":0,"d":"0.0%"}}]
[null,70821,"Forfaits journaliers",{"$nulls":4},{"v":0,"d":"0.00 €"},null,{"v":0,"d":"0.00 €"},{"v":0,"d":"0.0%"}]
[null,70822,"Participations des personnes handicapées prévues au 4° alinéa de l'article L. 242-4 du CASF",{"$nulls":4},{"v":0,"d":"0.00 €"},null,{"v":0,"d":"0.00 €"},{"v":0,"d":"0.0%"}]
[null,70823,"Participations aux frais de repas et de transport dans les ESAT",{"$nulls":4},{"v":0,"d":"0.00 €"},null,{"v":0,"d":"0.00 €"},{"v":0,"d":"0.0%"}]
[null,71,"Production stockée",{"$nulls":4},{"v":0,"d":"0.00 €"},null,{"v":0,"d":"0.00 €"},{"v":0,"d":"0.0%"}]
[null,72,"Production immobilisée",{"$nulls":4},{"v":0,"d":"0.00 €"},null,{"v":0,"d":"0.00 €"},{"v":0,"d":"0.0%"}]
[null,74,"Subventions d'exploitation et participations",{"$nulls":4},{"v":0,"d":"0.00 €"},null,{"v":0,"d":"0.00 €"},{"v":0,"d":"0.0%"}]
[null,75,"Autres produits de gestion courante",{"$nulls":4},{"v":0,"d":"0.00 €"},null,{"v":0,"d":"0.00 €"},{"v":0,"d":"0.0%"}]
[null,603,"Variation des stocks (en recettes)",{"$nulls":4},{"v":0,"d":"0.00 €"},null,{"v":0,"d":"0.00 €"},{"v":0,"d":"0.0%"}]
[null,609,"Rabais, remises et ristournes obtenus sur achats ",{"$nulls":4},{"v":0,"d":"0.00 €"},null,{"v":0,"d":"0.00 €"},{"v":0,"d":"0.0%"}]
[null,619,"Rabais, remises et ristournes obtenus sur services extérieurs",{"$nulls":4},{"v":0,"d":"0.00 €"},null,{"v":0,"d":"0.00 €"},{"v":0,"d":"0.0%"}]
[null,629,"Rabais, remises et ristournes obtenus sur autres services extérieurs",{"$nulls":4},{"v":0,"d":"0.00 €"},null,{"v":0,"d":"0.00 €"},{"v":0,"d":"0.0%"}]
[null,6419,"Remboursements sur rémunérations du personnel non médical",{"$nulls":4},{"v":0,"d":"0.00 €"},null,{"v":0,"d":"0.00 €"},{"v":0,"d":"0.0%"}]
[null,6429,"Remboursements sur rémunérations du personnel médical",{"$nulls":4},{"v":0,"d":"0.00 €"},null,{"v":0,"d":"0.00 €"},{"v":0,"d":"0.0%"}]
[null,6439,"Remboursements sur rémunérations des personnes handicapées",{"$nulls":4},{"v":0,"d":"0.00 €"},null,{"v":0,"d":"0.00 €"},{"v":0,"d":"0.0%"}]
[null,"6459/ 69/79","Remboursements sur charges de sécurité sociale et de prévoyance et sur autres charges sociales",{"$nulls":4},{"v":0,"d":"0.00 €"},null,{"v":0,"d":"0.00 €"},{"v":0,"d":"0.0%"}]
[null,6489,"Fonds de compensation des cessations anticipées d'activité",{"$nulls":4},{"v":0,"d":"0.00 €"},null,{"v":0,"d":"0.00 €"},{"v":0,"d":"0.0%"}]
[null,6611,"Intérêts des emprunts et dettes - en recettes - (hors ESSMS publics)",{"$nulls":4},{"v":0,"d":"0.00 €"},null,{"v":0,"d":"0.00 €"},{"v":0,"d":"0.0%"}]
[]
[null,null,"TOTAL GROUPE II",{"$f":"SUM(D141:D158)","v":{"v":0,"d":"0.00 €"}},{"$f":"SUM(E141:E158)","v":{"v":0,"d":"0.00 €"}},{"$f":"SUM(F141:F158)","v":{"v":0,"d":"0.00 €"}},{"$f":"SUM(G141:G158)","v":{"v":0,"d":"0.00 €"}},{"$f":"E160+F160+G160","v":{"v":0,"d":"0.00 €"}},{"$f":"SUM(I141:I158)","v":{"v":0,"d":"0.00 €"}},{"$f":"I160-H160","v":{"v":0,"d":"0.00 €"}},{"$f":"IF(H160=0,0,J160/H160)","v":{"v":0,"d":"0.0%"}}]
[]
[]
[{"$nulls":3},{"$f":"IF('Page de garde'!$D$4=\"\",\"Réalisations Exercice N-1\",\"Réalisations Exercice \"&('Page de garde'!$D$4-1))","v":"Réalisations Exercice N-1"},{"$f":"IF('Page de garde'!$D$4=\"\",\"Budget Exercice N\",\"Budget Exercice \"&'Page de garde'!$D$4)","v":"Budget Exercice N"},{"$nulls":3},{"$f":"IF('Page de garde'!$D$4=\"\",\"Réalisé Exercice N\",\"Réalisé Exercice \"&'Page de garde'!$D$4)","v":"Réalisé Exercice N"}]
[{"$nulls":4},"Budget initial","Virements de crédits","Décisions modificatives","Prévisions budgétaires totales ","Réalisations","Ecart réalisations / prévisions (€)","Ecart réalisations / prévisions (%)"]
[null,null,"GROUPE III :  PRODUITS FINANCIERS, PRODUITS EXCEPTIONNELS ET PRODUITS NON ENCAISSABLES "]
[{"$nulls":4},"(1)","(2)","(3)","(4)=(1)+(2)+(3)","(5)","(5)-(4)","(5)-(4) / (4)"]
[null,76,"Produits financiers",{"$nulls":4},{"$f":"E167+F167+G167","v":{"v":0,"d":"0.00 €"}},null,{"$f":"I167-H167","v":{"v":0,"d":"0.00 €"}},{"$f":"IF(H167=0,0,J167/H167)","v":{"v":0,"d":"0.0%"}}]
[]
[null,"PRODUITS EXCEPTIONNELS "]
[null,771,"Produits exceptionnels sur opérations de gestion",{"$nulls":4},{"$f":"E170+F170+G170","v":{"v":0,"d":"0.00 €"}},null,{"$f":"I170-H170","v":{"v":0,"d":"0.00 €"}},{"$f":"IF(H170=0,0,J170/H170)","v":{"v":0,"d":"0.0%"}}]
[null,773,"Mandats annulés (sur exercices antérieurs) ou atteints par la déchéance quadriennale (ESSMS publics)",{"$nulls":4},{"v":0,"d":"0.00 €"},null,{"v":0,"d":"0.00 €"},{"v":0,"d":"0.0%"}]
[null,775,"Produits des cessions d'éléments d'actif",{"$nulls":4},{"v":0,"d":"0.00 €"},null,{"v":0,"d":"0.00 €"},{"v":0,"d":"0.0%"}]
[null,777,"Quotes-parts des subventions d'investissement virées au résultat de l'exercice",{"$nulls":4},{"v":0,"d":"0.00 €"},null,{"v":0,"d":"0.00 €"},{"v":0,"d":"0.0%"}]
[null,778,"Autres produits exceptionnels (autres que c/7781)",{"$nulls":4},{"v":0,"d":"0.00 €"},null,{"v":0,"d":"0.00 €"},{"v":0,"d":"0.0%"}]
[null,7781,"Quote-part d'éléments du fonds associatif virée au compte de résultat",{"$nulls":4},{"v":0,"d":"0.00 €"},null,{"v":0,"d":"0.00 €"},{"v":0,"d":"0.0%"}]
[]
[null,"AUTRES PRODUITS"]
[null,7811,"Reprises sur amortissements des immobilisations incorporelles et corporelles",{"$nulls":4},{"$f":"E178+F178+G178","v":{"v":0,"d":"0.00 €"}},null,{"$f":"I178-H178","v":{"v":0,"d":"0.00 €"}},{"$f":"IF(H178=0,0,J178/H178)","v":{"v":0,"d":"0.0%"}}]
[null,7815,"Reprises sur provisions d'exploitation",{"$nulls":4},{"v":0,"d":"0.00 €"},null,{"v":0,"d":"0.00 €"},{"v":0,"d":"0.0%"}]
[null,7816,"Reprises sur dépréciations des immobilisations incorporelles et corporelles",{"$nulls":4},{"v":0,"d":"0.00 €"},null,{"v":0,"d":"0.00 €"},{"v":0,"d":"0.0%"}]
[null,7817,"Reprises sur dépréciations des actifs circulants",{"$nulls":4},{"v":0,"d":"0.00 €"},null,{"v":0,"d":"0.00 €"},{"v":0,"d":"0.0%"}]
[null,786,"Reprises sur dépréciations et provisions (à inscrire dans les produits financiers)",{"$nulls":4},{"v":0,"d":"0.00 €"},null,{"v":0,"d":"0.00 €"},{"v":0,"d":"0.0%"}]
[null,78725,"Reprises sur amortissements dérogatoires",{"$nulls":4},{"v":0,"d":"0.00 €"},null,{"v":0,"d":"0.00 €"},{"v":0,"d":"0.0%"}]
[null,78741,"Reprises sur provisions réglementées destinées à renforcer la couverture du besoin en fonds de roulement",{"$nulls":4},{"v":0,"d":"0.00 €"},null,{"v":0,"d":"0.00 €"},{"v":0,"d":"0.0%"}]
[null,78742,"Reprises sur provisions réglementées pour renouvellement des immobilisations",{"$nulls":4},{"v":0,"d":"0.00 €"},null,{"v":0,"d":"0.00 €"},{"v":0,"d":"0.0%"}]
[null,78746,"Reprises sur provisions réglementées : réserves des plus-values nettes d'actif (ESSMS privés)",{"$nulls":4},{"v":0,"d":"0.00 €"},null,{"v":0,"d":"0.00 €"},{"v":0,"d":"0.0%"}]
[null,78748,"Autres reprises sur provisions réglementées",{"$nulls":4},{"$f":"E187+F187+G187","v":{"v":0,"d":"0.00 €"}},null,{"$f":"I187-H187","v":{"v":0,"d":"0.00 €"}},{"$f":"IF(H187=0,0,J187/H187)","v":{"v":0,"d":"0.0%"}}]
[null,7876,"Reprises sur dépréciations exceptionnelles",{"$nulls":4},{"v":0,"d":"0.00 €"},null,{"v":0,"d":"0.00 €"},{"v":0,"d":"0.0%"}]
[null,789,"Utilisation de fonds dédiés et de fonds reportés (sauf c/7892 et c/7895) (ESSMS privés)",{"$nulls":4},{"v":0,"d":"0.00 €"},null,{"v":0,"d":"0.00 €"},{"v":0,"d":"0.0%"}]
[null,78921,"Utilisation des fonds dédiés à l'investissement sur concours publics des entités gestionnaires d'ESSMS (ESSMS privés)",{"$nulls":4},{"$f":"E190+F190+G190","v":{"v":0,"d":"0.00 €"}},null,{"$f":"I190-H190","v":{"v":0,"d":"0.00 €"}},{"$f":"IF(H190=0,0,J190/H190)","v":{"v":0,"d":"0.0%"}}]
[null,78922,"Utilisation des fonds dédiés à l'exploitation sur concours publics des entités gestionnaires d'ESSMS (ESSMS privés)",{"$nulls":4},{"$f":"E191+F191+G191","v":{"v":0,"d":"0.00 €"}},null,{"$f":"I191-H191","v":{"v":0,"d":"0.00 €"}},{"$f":"IF(H191=0,0,J191/H191)","v":{"v":0,"d":"0.0%"}}]
[null,7895,"Utilisations des fonds dédiés sur contributions financières d’autres organismes (ESSMS privés)",{"$nulls":4},{"$f":"E192+F192+G192","v":{"v":0,"d":"0.00 €"}},null,{"$f":"I192-H192","v":{"v":0,"d":"0.00 €"}},{"$f":"IF(H192=0,0,J192/H192)","v":{"v":0,"d":"0.0%"}}]
[null,79,"Transferts de charges",{"$nulls":4},{"v":0,"d":"0.00 €"},null,{"v":0,"d":"0.00 €"},{"v":0,"d":"0.0%"}]
[]
[null,null,"TOTAL GROUPE III",{"$f":"D167+SUM(D170:D175)+SUM(D178:D193)","v":{"v":0,"d":"0.00 €"}},{"$f":"E167+SUM(E170:E175)+SUM(E178:E193)","v":{"v":0,"d":"0.00 €"}},{"$f":"F167+SUM(F170:F175)+SUM(F178:F193)","v":{"v":0,"d":"0.00 €"}},{"$f":"G167+SUM(G170:G175)+SUM(G178:G193)","v":{"v":0,"d":"0.00 €"}},{"$f":"E195+F195+G195","v":{"v":0,"d":"0.00 €"}},{"$f":"I167+SUM(I170:I175)+SUM(I178:I193)","v":{"v":0,"d":"0.00 €"}},{"$f":"I195-H195","v":{"v":0,"d":"0.00 €"}},{"$f":"IF(H195=0,0,J195/H195)","v":{"v":0,"d":"0.0%"}}]
[]
[null,null,"TOTAL DES PRODUITS",{"$f":"D135+D160+D195","v":{"v":0,"d":"0.00 €"}},{"$f":"E135+E160+E195","v":{"v":0,"d":"0.00 €"}},{"$f":"F135+F160+F195","v":{"v":0,"d":"0.00 €"}},{"$f":"G135+G160+G195","v":{"v":0,"d":"0.00 €"}},{"$f":"E197+F197+G197","v":{"v":0,"d":"0.00 €"}},{"$f":"I135+I160+I195","v":{"v":0,"d":"0.00 €"}},{"$f":"I197-H197","v":{"v":0,"d":"0.00 €"}},{"$f":"IF(H197=0,0,J197/H197)","v":{"v":0,"d":"0.0%"}}]
[]
[null,null,"DEFICIT REALISE",{"$f":"IF(D197-D113>0,0,D113-D197)","v":{"v":0,"d":"0.00 €"}},{"$f":"IF(E197-E113>0,0,E113-E197)","v":{"v":0,"d":"0.00 €"}},{"$f":"IF(F197-F113>0,0,F113-F197)","v":{"v":0,"d":"0.00 €"}},{"$f":"IF(G197-G113>0,0,G113-G197)","v":{"v":0,"d":"0.00 €"}},{"$f":"IF((H197-H113)>0,0,H113-H197)","v":{"v":0,"d":"0.00 €"}},{"$f":"IF(I197-I113>0,0,I113-I197)","v":{"v":0,"d":"0.00 €"}},{"$f":"I199-H199","v":{"v":0,"d":"0.00 €"}},{"$f":"IF(H199=0,0,J199/H199)","v":{"v":0,"d":"0.0%"}}]
[]
[null,null,"TOTAL EQUILIBRE DU COMPTE DE RESULTAT PRINCIPAL/ANNEXE",{"$f":"D197+D199","v":{"v":0,"d":"0.00 €"}},{"v":0,"d":"0.00 €"},{"v":0,"d":"0.00 €"},{"v":0,"d":"0.00 €"},{"v":0,"d":"0.00 €"},{"v":0,"d":"0.00 €"},{"$f":"I201-H201","v":{"v":0,"d":"0.00 €"}},{"$f":"IF(H201=0,0,J201/H201)","v":{"v":0,"d":"0.0%"}}]
[]
[null,null,"Résultats antérieurs repris dans le cadre de la tarification (déficits)",{"$nulls":4},{"$f":"E203+F203+G203","v":{"v":0,"d":"0.00 €"}},null,{"$f":"I203-H203","v":{"v":0,"d":"0.00 €"}},{"$f":"IF(H203=0,0,J203/H203)","v":{"v":0,"d":"0.0%"}}]
[null,null,"Résultats antérieurs repris dans le cadre de la tarification (excédents)",{"$nulls":4},{"$f":"E204+F204+G204","v":{"v":0,"d":"0.00 €"}},null,{"$f":"I204-H204","v":{"v":0,"d":"0.00 €"}},{"$f":"IF(H204=0,0,J204/H204)","v":{"v":0,"d":"0.0%"}}]
[]
[]
[null,null,"Ratios",{"$f":"IF('Page de garde'!$D$4=\"\",\"Réalisations Exercice N-1\",\"Réalisations Exercice \"&('Page de garde'!$D$4-1))","v":"Réalisations Exercice N-1"},{"$f":"IF('Page de garde'!$D$4=\"\",\"Budget Exercice N\",\"Budget Exercice \"&'Page de garde'!$D$4)","v":"Budget Exercice N"},{"$nulls":3},{"$f":"IF('Page de garde'!$D$4=\"\",\"Réalisé Exercice N\",\"Réalisé Exercice \"&'Page de garde'!$D$4)","v":"Réalisé Exercice N"}]
[{"$nulls":4},"Budget initial","Virements de crédits","Décisions modificatives","Prévisions budgétaires totales ","Réalisations","Ecart réalisations / prévisions (€)","Ecart réalisations / prévisions (%)"]
[]
[null,null,"Marge brute d'exploitation",{"$f":"D135+D160-D35-D53-SUM(D59:D69)-SUM(D72:D77)-D158","v":{"v":0,"d":"0.00 €"}},{"$nulls":3},{"$f":"H135+H160-H35-H53-SUM(H59:H69)-SUM(H72:H77)-H158","v":{"v":0,"d":"0.00 €"}},{"$f":"I135+I160-I35-I53-SUM(I59:I69)-SUM(I72:I77)-I158","v":{"v":0,"d":"0.00 €"}}]
[null,null,"Produits courants d'exploitation (comptes 70 à 75 - c/709 et c/713)",{"$f":"D135+SUM(D141:D148)-SUM(D16:D17)","v":{"v":0,"d":"0.00 €"}},{"$nulls":3},{"$f":"H135+SUM(H141:H148)-SUM(H16:H17)","v":{"v":0,"d":"0.00 €"}},{"$f":"I135+SUM(I141:I148)-SUM(I16:I17)","v":{"v":0,"d":"0.00 €"}}]
[null,null,"Taux de marge brute",{"$f":"IFERROR(D210/D211,0)","v":{"v":0,"d":"0.00%"}},{"$nulls":3},{"$f":"IFERROR(H210/H211,0)","v":{"v":0,"d":"0.00%"}},{"$f":"IFERROR(I210/I211,0)","v":{"v":0,"d":"0.00%"}}]
[null,null,"Résultat net",{"$f":"D115-D199","v":{"v":0,"d":"0.00 €"}},{"$nulls":3},{"$f":"H115-H199","v":{"v":0,"d":"0.00 €"}},{"$f":"I115-I199","v":{"v":0,"d":"0.00 €"}}]
[null,null,"Produits comptes classe 7 - c/709 et c/713",{"$f":"D197-SUM(D149:D158)-SUM(D16:D17)","v":{"v":0,"d":"0.00 €"}},{"$nulls":3},{"$f":"H197-SUM(H149:H158)-SUM(H16:H17)","v":{"v":0,"d":"0.00 €"}},{"$f":"I197-SUM(I149:I158)-SUM(I16:I17)","v":{"v":0,"d":"0.00 €"}}]
[null,null,"Taux de résultat ",{"$f":"IFERROR(D213/D214,0)","v":{"v":0,"d":"0.00%"}},{"$nulls":3},{"$f":"IFERROR(H213/H214,0)","v":{"v":0,"d":"0.00%"}},{"$f":"IFERROR(I213/I214,0)","v":{"v":0,"d":"0.00%"}}]

{"sheet":"CRA_SF","index":11,"n_rows":215,"n_cols":11,"rows_kept":215,"hidden":true,"merged":[[1,1,1,2],[1,3,1,5],[2,1,2,2],[2,3,2,5],[3,1,3,2],[3,3,3,5],[5,1,5,10],[8,3,10,3],[8,4,8,7],[8,8,8,10],[9,4,10,4],[9,5,10,5],[9,6,10,6],[9,7,10,7],[9,8,10,8],[9,9,10,9],[9,10,10,10],[36,3,38,3],[36,4,36,7],[36,8,36,10],[37,4,38,4],[37,5,38,5],[37,6,38,6],[37,7,38,7],[37,8,38,8],[37,9,38,9],[37,10,38,10],[54,3,56,3],[54,4,54,7],[54,8,54,10],[55,4,56,4],[55,5,56,5],[55,6,56,6],[55,7,56,7],[55,8,56,8],[55,9,56,9],[55,10,56,10],[118,3,120,3],[118,4,118,7],[118,8,118,10],[119,4,120,4],[119,5,120,5],[119,6,120,6],[119,7,120,7],[119,8,120,8],[119,9,120,9],[119,10,120,10],[136,3,138,3],[136,4,136,7],[136,8,136,10],[137,4,138,4],[137,5,138,5],[137,6,138,6],[137,7,138,7],[137,8,138,8],[137,9,138,9],[137,10,138,10],[162,2,163,2],[162,3,164,3],[162,4,162,7],[162,8,162,10],[163,4,164,4],[163,5,164,5],[163,6,164,6],[163,7,164,7],[163,8,164,8],[163,9,164,9],[163,10,164,10],[206,2,208,2],[206,3,208,3],[206,4,206,7],[206,8,206,10],[207,4,208,4],[207,5,208,5],[207,6,208,6],[207,7,208,7],[207,8,208,8],[207,9,208,9],[207,10,208,10]]}
[]
[null,"Dénomination du CR sans FINESS :"]
[null,"N° Identifiant "]
[null,"N° FINESS de rattachement : "]
[]
[null,"Compte de résultat annexe - Activité sans FINESS"]
[null," "]
[]
[{"$nulls":3},{"$f":"IF('Page de garde'!$D$4=\"\",\"Réalisations Exercice N-1\",\"Réalisations Exercice \"&('Page de garde'!$D$4-1))","v":"Réalisations Exercice N-1"},{"$f":"IF('Page de garde'!$D$4=\"\",\"Budget Exercice N\",\"Budget Exercice \"&'Page de garde'!$D$4)","v":"Budget Exercice N"},{"$nulls":3},{"$f":"IF('Page de garde'!$D$4=\"\",\"Réalisé Exercice N\",\"Réalisé Exercice \"&'Page de garde'!$D$4)","v":"Réalisé Exercice N"}]
[null,"Présentation des charges :",null,null,"Budget initial","Virements de crédits","Décisions modificatives","Prévisions budgétaires totales ","Réalisations","Ecart réalisations / prévisions (€)","Ecart réalisations / prévisions (%)"]
[null,null,"GROUPE I : CHARGES AFFERENTES A L'EXPLOITATION COURANTE"]
[null,"ACHATS",null,null,"(1)","(2)","(3)","(4)=(1)+(2)+(3)","(5)","(5)-(4)","(5)-(4) / (4)"]
[null,"601/602 /603","Achats stockés et variation des stocks",{"$nulls":4},{"$f":"E13+F13+G13","v":{"v":0,"d":"0.00 €"}},null,{"$f":"I13-H13","v":{"v":0,"d":"0.00 €"}},{"$f":"IF(H13=0,0,J13/H13)","v":{"v":0,"d":"0.0%"}}]
[null,606,"Achats non stockés de matières et fournitures",{"$nulls":4},{"$f":"E14+F14+G14","v":{"v":0,"d":"0.00 €"}},null,{"$f":"I14-H14","v":{"v":0,"d":"0.00 €"}},{"$f":"IF(H14=0,0,J14/H14)","v":{"v":0,"d":"0.0%"}}]
[null,607,"Achats de marchandises",{"$nulls":4},{"$f":"E15+F15+G15","v":{"v":0,"d":"0.00 €"}},null,{"$f":"I15-H15","v":{"v":0,"d":"0.00 €"}},{"$f":"IF(H15=0,0,J15/H15)","v":{"v":0,"d":"0.0%"}}]
[null,709,"Rabais, remises, ristournes accordés par l'établissement",{"$nulls":4},{"$f":"E16+F16+G16","v":{"v":0,"d":"0.00 €"}},null,{"$f":"I16-H16","v":{"v":0,"d":"0.00 €"}},{"$f":"IF(H16=0,0,J16/H16)","v":{"v":0,"d":"0.0%"}}]
[null,713,"Variation des stocks, en cours de production, produits (en dépenses)",{"$nulls":4},{"$f":"E17+F17+G17","v":{"v":0,"d":"0.00 €"}},null,{"$f":"I17-H17","v":{"v":0,"d":"0.00 €"}},{"$f":"IF(H17=0,0,J17/H17)","v":{"v":0,"d":"0.0%"}}]
[]
[null,"SERVICES EXTERIEURS"]
[null,6111,"Sous-traitance: prestations à caractère médical",{"$nulls":4},{"$f":"E20+F20+G20","v":{"v":0,"d":"0.00 €"}},null,{"$f":"I20-H20","v":{"v":0,"d":"0.00 €"}},{"$f":"IF(H20=0,0,J20/H20)","v":{"v":0,"d":"0.0%"}}]
[null,6112,"Sous-traitance: prestations à caractère médico-social",{"$nulls":4},{"$f":"E21+F21+G21","v":{"v":0,"d":"0.00 €"}},null,{"$f":"I21-H21","v":{"v":0,"d":"0.00 €"}},{"$f":"IF(H21=0,0,J21/H21)","v":{"v":0,"d":"0.0%"}}]
[null,6118,"Sous-traitance: autres prestations de service",{"$nulls":4},{"$f":"E22+F22+G22","v":{"v":0,"d":"0.00 €"}},null,{"$f":"I22-H22","v":{"v":0,"d":"0.00 €"}},{"$f":"IF(H22=0,0,J22/H22)","v":{"v":0,"d":"0.0%"}}]
[null," "," "]
[null,"AUTRES SERVICES EXTERIEURS "]
[null,624,"Transports de biens, d'usagers et transports collectifs du personnel (autres que c/6242 )",{"$nulls":4},{"$f":"E25+F25+G25","v":{"v":0,"d":"0.00 €"}},null,{"$f":"I25-H25","v":{"v":0,"d":"0.00 €"}},{"$f":"IF(H25=0,0,J25/H25)","v":{"v":0,"d":"0.0%"}}]
[null,6242,"Transports d'usagers",{"$nulls":4},{"v":0,"d":"0.00 €"},null,{"v":0,"d":"0.00 €"},{"v":0,"d":"0.0%"}]
[null,625,"Déplacements, missions et réceptions",{"$nulls":4},{"v":0,"d":"0.00 €"},null,{"v":0,"d":"0.00 €"},{"v":0,"d":"0.0%"}]
[null,626,"Frais postaux et frais de télécommunications",{"$nulls":4},{"v":0,"d":"0.00 €"},null,{"v":0,"d":"0.00 €"},{"v":0,"d":"0.0%"}]
[null,6281,"Prestations de blanchissage à l'extérieur",{"$nulls":4},{"v":0,"d":"0.00 €"},null,{"v":0,"d":"0.00 €"},{"v":0,"d":"0.0%"}]
[null,6282,"Prestations d'alimentation à l'extérieur",{"$nulls":4},{"v":0,"d":"0.00 €"},null,{"v":0,"d":"0.00 €"},{"v":0,"d":"0.0%"}]
[null,6283,"Prestations de nettoyage à l'extérieur",{"$nulls":4},{"v":0,"d":"0.00 €"},null,{"v":0,"d":"0.00 €"},{"v":0,"d":"0.0%"}]
[null,6284,"Prestations d'informatique à l'extérieur",{"$nulls":4},{"v":0,"d":"0.00 €"},null,{"v":0,"d":"0.00 €"},{"v":0,"d":"0.0%"}]
[null,"6287/ 6288","Divers - Remboursements de frais et autres",{"$nulls":4},{"v":0,"d":"0.00 €"},null,{"v":0,"d":"0.00 €"},{"v":0,"d":"0.0%"}]
[]
[null,null,"TOTAL GROUPE I",{"$f":"SUM(D13:D17)+SUM(D20:D22)+SUM(D25:D33)","v":{"v":0,"d":"0.00 €"}},{"$f":"SUM(E13:E17)+SUM(E20:E22)+SUM(E25:E33)","v":{"v":0,"d":"0.00 €"}},{"$f":"SUM(F13:F17)+SUM(F20:F22)+SUM(F25:F33)","v":{"v":0,"d":"0.00 €"}},{"$f":"SUM(G13:G17)+SUM(G20:G22)+SUM(G25:G33)","v":{"v":0,"d":"0.00 €"}},{"$f":"E35+F35+G35","v":{"v":0,"d":"0.00 €"}},{"$f":"SUM(I13:I17)+SUM(I20:I22)+SUM(I25:I33)","v":{"v":0,"d":"0.00 €"}},{"$f":"I35-H35","v":{"v":0,"d":"0.00 €"}},{"$f":"IF(H35=0,0,J35/H35)","v":{"v":0,"d":"0.0%"}}]
[]
[{"$nulls":3},{"$f":"IF('Page de garde'!$D$4=\"\",\"Réalisations Exercice N-1\",\"Réalisations Exercice \"&('Page de garde'!$D$4-1))","v":"Réalisations Exercice N-1"},{"$f":"IF('Page de garde'!$D$4=\"\",\"Budget Exercice N\",\"Budget Exercice \"&'Page de garde'!$D$4)","v":"Budget Exercice N"},{"$nulls":3},{"$f":"IF('Page de garde'!$D$4=\"\",\"Réalisé Exercice N\",\"Réalisé Exercice \"&'Page de garde'!$D$4)","v":"Réalisé Exercice N"}]
[null,null," GROUPE II : CHARGES AFFERENTES AU PERSONNEL",null,"Budget initial","Virements de crédits","Décisions modificatives","Prévisions budgétaires totales ","Réalisations","Ecart réalisations / prévisions (€)","Ecart réalisations / prévisions (%)"]
[]
[{"$nulls":4},"(1)","(2)","(3)","(4)=(1)+(2)+(3)","(5)","(5)-(4)","(5)-(4) / (4)"]
[null,621,"Personnel extérieur à l'établissement",{"$nulls":4},{"$f":"E41+F41+G41","v":{"v":0,"d":"0.00 €"}},null,{"$f":"I41-H41","v":{"v":0,"d":"0.00 €"}},{"$f":"IF(H41=0,0,J41/H41)","v":{"v":0,"d":"0.0%"}}]
[null,622,"Rémunérations d'intermédiaires et honoraires",{"$nulls":4},{"v":0,"d":"0.00 €"},null,{"v":0,"d":"0.00 €"},{"v":0,"d":"0.0%"}]
[null,631,"Impôts, taxes et versements assimilés sur rémunérations (administration des impôts)",{"$nulls":4},{"v":0,"d":"0.00 €"},null,{"v":0,"d":"0.00 €"},{"v":0,"d":"0.0%"}]
[null,633,"Impôts, taxes et versements assimilés sur rémunérations (autres organismes)",{"$nulls":4},{"v":0,"d":"0.00 €"},null,{"v":0,"d":"0.00 €"},{"v":0,"d":"0.0%"}]
[null,641,"Rémunérations du personnel non médical",{"$nulls":4},{"v":0,"d":"0.00 €"},null,{"v":0,"d":"0.00 €"},{"v":0,"d":"0.0%"}]
[null,642,"Rémunérations du personnel médical",{"$nulls":4},{"v":0,"d":"0.00 €"},null,{"v":0,"d":"0.00 €"},{"v":0,"d":"0.0%"}]
[null,643,"Rémunération du personnel handicapé",{"$nulls":4},{"v":0,"d":"0.00 €"},null,{"v":0,"d":"0.00 €"},{"v":0,"d":"0.0%"}]
[null,645,"Charges de sécurité sociale et de prévoyance",{"$nulls":4},{"v":0,"d":"0.00 €"},null,{"v":0,"d":"0.00 €"},{"v":0,"d":"0.0%"}]
[null,646,"Personnes handicapées",{"$nulls":4},{"v":0,"d":"0.00 €"},null,{"v":0,"d":"0.00 €"},{"v":0,"d":"0.0%"}]
[null,647,"Autres charges sociales",{"$nulls":4},{"v":0,"d":"0.00 €"},null,{"v":0,"d":"0.00 €"},{"v":0,"d":"0.0%"}]
[null,648,"Autres charges de personnel",{"$nulls":4},{"v":0,"d":"0.00 €"},null,{"v":0,"d":"0.00 €"},{"v":0,"d":"0.0%"}]
[]
[null,null,"TOTAL GROUPE II",{"$f":"SUM(D41:D51)","v":{"v":0,"d":"0.00 €"}},{"$f":"SUM(E41:E51)","v":{"v":0,"d":"0.00 €"}},{"$f":"SUM(F41:F51)","v":{"v":0,"d":"0.00 €"}},{"$f":"SUM(G41:G51)","v":{"v":0,"d":"0.00 €"}},{"$f":"E53+F53+G53","v":{"v":0,"d":"0.00 €"}},{"$f":"SUM(I41:I51)","v":{"v":0,"d":"0.00 €"}},{"$f":"I53-H53","v":{"v":0,"d":"0.00 €"}},{"$f":"IF(H53=0,0,J53/H53)","v":{"v":0,"d":"0.0%"}}]
[]
[{"$nulls":3},{"$f":"IF('Page de garde'!$D$4=\"\",\"Réalisations Exercice N-1\",\"Réalisations Exercice \"&('Page de garde'!$D$4-1))","v":"Réalisations Exercice N-1"},{"$f":"IF('Page de garde'!$D$4=\"\",\"Budget Exercice N\",\"Budget Exercice \"&'Page de garde'!$D$4)","v":"Budget Exercice N"},{"$nulls":3},{"$f":"IF('Page de garde'!$D$4=\"\",\"Réalisé Exercice N\",\"Réalisé Exercice \"&'Page de garde'!$D$4)","v":"Réalisé Exercice N"}]
[null,null," GROUPE III : CHARGES AFFERENTES A LA STRUCTURE ",null,"Budget initial","Virements de crédits","Décisions modificatives","Prévisions budgétaires totales ","Réalisations","Ecart réalisations / prévisions (€)","Ecart réalisations / prévisions (%)"]
[]
[{"$nulls":4},"(1)","(2)","(3)","(4)=(1)+(2)+(3)","(5)","(5)-(4)","(5)-(4) / (4)"]
[null,612,"Redevances de crédit-bail",{"$nulls":4},{"$f":"E59+F59+G59","v":{"v":0,"d":"0.00 €"}},null,{"$f":"I59-H59","v":{"v":0,"d":"0.00 €"}},{"$f":"IF(H59=0,0,J59/H59)","v":{"v":0,"d":"0.0%"}}]
[null,613,"Locations",{"$nulls":4},{"v":0,"d":"0.00 €"},null,{"v":0,"d":"0.00 €"},{"v":0,"d":"0.0%"}]
[null,614,"Charges locatives et de copropriété",{"$nulls":4},{"v":0,"d":"0.00 €"},null,{"v":0,"d":"0.00 €"},{"v":0,"d":"0.0%"}]
[null,615,"Entretien et réparations",{"$nulls":4},{"v":0,"d":"0.00 €"},null,{"v":0,"d":"0.00 €"},{"v":0,"d":"0.0%"}]
[null,616,"Primes d'assurances",{"$nulls":4},{"v":0,"d":"0.00 €"},null,{"v":0,"d":"0.00 €"},{"v":0,"d":"0.0%"}]
[null,617,"Etudes et recherches",{"$nulls":4},{"v":0,"d":"0.00 €"},null,{"v":0,"d":"0.00 €"},{"v":0,"d":"0.0%"}]
[null,618,"Divers",{"$nulls":4},{"v":0,"d":"0.00 €"},null,{"v":0,"d":"0.00 €"},{"v":0,"d":"0.0%"}]
[null,623,"Information, publications, relations publiques",{"$nulls":4},{"v":0,"d":"0.00 €"},null,{"v":0,"d":"0.00 €"},{"v":0,"d":"0.0%"}]
[null,627,"Services bancaires et assimilés",{"$nulls":4},{"v":0,"d":"0.00 €"},null,{"v":0,"d":"0.00 €"},{"v":0,"d":"0.0%"}]
[null,635,"Autres impôts taxes et versements assimilés (administration des impôts) ",{"$nulls":4},{"v":0,"d":"0.00 €"},null,{"v":0,"d":"0.00 €"},{"v":0,"d":"0.0%"}]
[null,637,"Autres impôts taxes et versements assimilés (autres organismes) ",{"$nulls":4},{"v":0,"d":"0.00 €"},null,{"v":0,"d":"0.00 €"},{"v":0,"d":"0.0%"}]
[]
[null,"AUTRES CHARGES DE GESTION COURANTE"]
[null,651,"Redevances pour concessions, brevets, licences, procédés, droits et valeurs similaires",{"$nulls":4},{"$f":"E72+F72+G72","v":{"v":0,"d":"0.00 €"}},null,{"$f":"I72-H72","v":{"v":0,"d":"0.00 €"}},{"$f":"IF(H72=0,0,J72/H72)","v":{"v":0,"d":"0.0%"}}]
[null,653,"Contribution versée au groupement hospitalier de territoire",{"$nulls":4},{"v":0,"d":"0.00 €"},null,{"v":0,"d":"0.00 €"},{"v":0,"d":"0.0%"}]
[null,654,"Pertes sur créances irrécouvrables",{"$nulls":4},{"v":0,"d":"0.00 €"},null,{"v":0,"d":"0.00 €"},{"v":0,"d":"0.0%"}]
[null,655,"Quotes-parts de résultat sur opérations faites en commun",{"$nulls":4},{"v":0,"d":"0.00 €"},null,{"v":0,"d":"0.00 €"},{"v":0,"d":"0.0%"}]
[null,657,"Subventions",{"$nulls":4},{"v":0,"d":"0.00 €"},null,{"v":0,"d":"0.00 €"},{"v":0,"d":"0.0%"}]
[null,658,"Charges diverses de gestion courante",{"$nulls":4},{"v":0,"d":"0.00 €"},null,{"v":0,"d":"0.00 €"},{"v":0,"d":"0.0%"}]
[]
[null,"CHARGES FINANCIERES"]
[null,66,"Charges financières",{"$nulls":4},{"$f":"E80+F80+G80","v":{"v":0,"d":"0.00 €"}},null,{"$f":"I80-H80","v":{"v":0,"d":"0.00 €"}},{"$f":"IF(H80=0,0,J80/H80)","v":{"v":0,"d":"0.0%"}}]
[]
[null,"CHARGES EXCEPTIONNELLES"]
[null,671,"Charges exceptionnelles sur opérations de gestion",{"$nulls":4},{"$f":"E83+F83+G83","v":{"v":0,"d":"0.00 €"}},null,{"$f":"I83-H83","v":{"v":0,"d":"0.00 €"}},{"$f":"IF(H83=0,0,J83/H83)","v":{"v":0,"d":"0.0%"}}]
[null,673,"Titres annulés (sur exercices antérieurs) (ESSMS publics)",{"$nulls":4},{"$f":"E84+F84+G84","v":{"v":0,"d":"0.00 €"}},null,{"$f":"I84-H84","v":{"v":0,"d":"0.00 €"}},{"$f":"IF(H84=0,0,J84/H84)","v":{"v":0,"d":"0.0%"}}]
[null,675,"Valeurs comptables des éléments d'actif cédés",{"$nulls":4},{"$f":"E85+F85+G85","v":{"v":0,"d":"0.00 €"}},null,{"$f":"I85-H85","v":{"v":0,"d":"0.00 €"}},{"$f":"IF(H85=0,0,J85/H85)","v":{"v":0,"d":"0.0%"}}]
[null,678,"Autres charges exceptionnelles",{"$nulls":4},{"$f":"E86+F86+G86","v":{"v":0,"d":"0.00 €"}},null,{"$f":"I86-H86","v":{"v":0,"d":"0.00 €"}},{"$f":"IF(H86=0,0,J86/H86)","v":{"v":0,"d":"0.0%"}}]
[]
[null,"DOTATIONS AUX AMORTISSEMENTS, AUX DEPRECIATIONS, AUX PROVISIONS ET ENGAGEMENTS"]
[null,6811,"Dotations aux amortissements des immobilisations incorporelles et corporelles",{"$nulls":4},{"$f":"E89+F89+G89","v":{"v":0,"d":"0.00 €"}},null,{"$f":"I89-H89","v":{"v":0,"d":"0.00 €"}},{"$f":"IF(H89=0,0,J89/H89)","v":{"v":0,"d":"0.0%"}}]
[null,6812,"Dotations aux amortissements des charges d'exploitation à répartir",{"$nulls":4},{"v":0,"d":"0.00 €"},null,{"v":0,"d":"0.00 €"},{"v":0,"d":"0.0%"}]
[null,6815,"Dotations aux provisions d'exploitation",{"$nulls":4},{"v":0,"d":"0.00 €"},null,{"v":0,"d":"0.00 €"},{"v":0,"d":"0.0%"}]
[null,6816,"Dotations aux dépréciations des immobilisations incorporelles et corporelles",{"$nulls":4},{"v":0,"d":"0.00 €"},null,{"v":0,"d":"0.00 €"},{"v":0,"d":"0.0%"}]
[null,6817,"Dotations aux dépréciations des actifs circulants",{"$nulls":4},{"v":0,"d":"0.00 €"},null,{"v":0,"d":"0.00 €"},{"v":0,"d":"0.0%"}]
[null,686,"Dotations aux amortissements, dépréciations et provisions : charges financières",{"$nulls":4},{"v":0,"d":"0.00 €"},null,{"v":0,"d":"0.00 €"},{"v":0,"d":"0.0%"}]
[null,6871,"Dotations aux amortissements exceptionnels des immobilisations",{"$nulls":4},{"v":0,"d":"0.00 €"},null,{"v":0,"d":"0.00 €"},{"v":0,"d":"0.0%"}]
[null,68725,"Dotations aux amortissements dérogatoires",{"$nulls":4},{"v":0,"d":"0.00 €"},null,{"v":0,"d":"0.00 €"},{"v":0,"d":"0.0%"}]
[null,68741,"Dotations aux provisions réglementées destinées à renforcer la couverture du BFR",{"$nulls":4},{"v":0,"d":"0.00 €"},null,{"v":0,"d":"0.00 €"},{"v":0,"d":"0.0%"}]
[null,68742,"Dotations aux provisions réglementées pour renouvellement des immobilisations",{"$nulls":4},{"v":0,"d":"0.00 €"},null,{"v":0,"d":"0.00 €"},{"v":0,"d":"0.0%"}]
[null,68746,"Dotations aux provisions réglementées : réserves des plus-values nettes d'actif (ESSMS privés)",{"$nulls":4},{"$f":"E99+F99+G99","v":{"v":0,"d":"0.00 €"}},null,{"$f":"I99-H99","v":{"v":0,"d":"0.00 €"}},{"v":0,"d":"0.0%"}]
[null,68748,"Autres dotations aux provisions réglementées",{"$nulls":4},{"$f":"E100+F100+G100","v":{"v":0,"d":"0.00 €"}},null,{"$f":"I100-H100","v":{"v":0,"d":"0.00 €"}},{"v":0,"d":"0.0%"}]
[null,6876,"Dotations aux dépréciations exceptionnelles",{"$nulls":4},{"v":0,"d":"0.00 €"},null,{"v":0,"d":"0.00 €"},{"v":0,"d":"0.0%"}]
[null,689,"Reports en fonds dédiés (sauf c/6892 et c/6895) (ESSMS privés)",{"$nulls":4},{"$f":"E102+F102+G102","v":{"v":0,"d":"0.00 €"}},null,{"$f":"I102-H102","v":{"v":0,"d":"0.00 €"}},{"$f":"IF(H102=0,0,J102/H102)","v":{"v":0,"d":"0.0%"}}]
[null,68921,"Reports en fonds dédiés à l'investissement sur concours publics des entités gestionnaires d'ESSMS (ESSMS privés)",{"$nulls":4},{"$f":"E103+F103+G103","v":{"v":0,"d":"0.00 €"}},null,{"$f":"I103-H103","v":{"v":0,"d":"0.00 €"}},{"$f":"IF(H103=0,0,J103/H103)","v":{"v":0,"d":"0.0%"}}]
[null,68922,"Reports en fonds dédiés à l'exploitation sur concours publics des entités gestionnaires d'ESSMS (ESSMS privés)",{"$nulls":4},{"$f":"E104+F104+G104","v":{"v":0,"d":"0.00 €"}},null,{"$f":"I104-H104","v":{"v":0,"d":"0.00 €"}},{"$f":"IF(H104=0,0,J104/H104)","v":{"v":0,"d":"0.0%"}}]
[null,6895,"Reports en fonds dédiés sur contribution financière d'autres organismes (ESSMS privés)",{"$nulls":4},{"v":0,"d":"0.00 €"},null,{"$f":"I105-H105","v":{"v":0,"d":"0.00 €"}},{"$f":"IF(H105=0,0,J105/H105)","v":{"v":0,"d":"0.0%"}}]
[]
[]
[]
[null,null,"TOTAL GROUPE III",{"$f":"SUM(D59:D69)+SUM(D72:D77)+D80+SUM(D83:D86)+SUM(D89:D105)","v":{"v":0,"d":"0.00 €"}},{"$f":"SUM(E59:E69)+SUM(E72:E77)+E80+SUM(E83:E86)+SUM(E89:E105)","v":{"v":0,"d":"0.00 €"}},{"$f":"SUM(F59:F69)+SUM(F72:F77)+F80+SUM(F83:F86)+SUM(F89:F105)","v":{"v":0,"d":"0.00 €"}},{"$f":"SUM(G59:G69)+SUM(G72:G77)+G80+SUM(G83:G86)+SUM(G89:G105)","v":{"v":0,"d":"0.00 €"}},{"$f":"E109+F109+G109","v":{"v":0,"d":"0.00 €"}},{"$f":"SUM(I59:I69)+SUM(I72:I77)+I80+SUM(I83:I86)+SUM(I89:I105)","v":{"v":0,"d":"0.00 €"}},{"$f":"I109-H109","v":{"v":0,"d":"0.00 €"}},{"$f":"IF(H109=0,0,J109/H109)","v":{"v":0,"d":"0.0%"}}]
[]
[]
[]
[null,null,"TOTAL DES CHARGES",{"$f":"D35+D53+D109","v":{"v":0,"d":"0.00 €"}},{"$f":"E35+E53+E109","v":{"v":0,"d":"0.00 €"}},{"$f":"F35+F53+F109","v":{"v":0,"d":"0.00 €"}},{"$f":"G35+G53+G109","v":{"v":0,"d":"0.00 €"}},{"$f":"E113+F113+G113","v":{"v":0,"d":"0.00 €"}},{"$f":"I35+I53+I109","v":{"v":0,"d":"0.00 €"}},{"$f":"I113-H113","v":{"v":0,"d":"0.00 €"}},{"$f":"IF(H113=0,0,J113/H113)","v":{"v":0,"d":"0.0%"}}]
[]
[null,null,"EXCEDENT REALISE",{"$f":"IF(D113-D197>0,0,D197-D113)","v":{"v":0,"d":"0.00 €"}},{"$f":"IF(E113-E197>0,0,E197-E113)","v":{"v":0,"d":"0.00 €"}},{"$f":"IF(F113-F197>0,0,F197-F113)","v":{"v":0,"d":"0.00 €"}},{"$f":"IF(G113-G197>0,0,G197-G113)","v":{"v":0,"d":"0.00 €"}},{"$f":"IF((H113-H197)>0,0,H197-H113)","v":{"v":0,"d":"0.00 €"}},{"$f":"IF(I113-I197>0,0,I197-I113)","v":{"v":0,"d":"0.00 €"}},{"$f":"I115-H115","v":{"v":0,"d":"0.00 €"}},{"$f":"IF(H115=0,0,J115/H115)","v":{"v":0,"d":"0.0%"}}]
[]
[null,null,"TOTAL EQUILIBRE DU COMPTE DE RESULTAT PRINCIPAL/ANNEXE",{"$f":"D113+D115","v":{"v":0,"d":"0.00 €"}},{"v":0,"d":"0.00 €"},{"v":0,"d":"0.00 €"},{"v":0,"d":"0.00 €"},{"v":0,"d":"0.00 €"},{"v":0,"d":"0.00 €"},{"$f":"I117-H117","v":{"v":0,"d":"0.00 €"}},{"$f":"IF(H117=0,0,J117/H117)","v":{"v":0,"d":"0.0%"}}]
[]
[null,"Présentation des produits :",null,{"$f":"IF('Page de garde'!$D$4=\"\",\"Réalisations Exercice N-1\",\"Réalisations Exercice \"&('Page de garde'!$D$4-1))","v":"Réalisations Exercice N-1"},{"$f":"IF('Page de garde'!$D$4=\"\",\"Budget Exercice N\",\"Budget Exercice \"&'Page de garde'!$D$4)","v":"Budget Exercice N"},{"$nulls":3},{"$f":"IF('Page de garde'!$D$4=\"\",\"Réalisé Exercice N\",\"Réalisé Exercice \"&'Page de garde'!$D$4)","v":"Réalisé Exercice N"}]
[{"$nulls":4},"Budget initial","Virements de crédits","Décisions modificatives","Prévisions budgétaires totales ","Réalisations","Ecart réalisations / prévisions (€)","Ecart réalisations / prévisions (%)"]
[null,null,"GROUPE I : PRODUITS DE LA TARIFICATION"]
[{"$nulls":4},"(1)","(2)","(3)","(4)=(1)+(2)+(3)","(5)","(5)-(4)","(5)-(4) / (4)"]
[null,731,"Produits à la charge de l’assurance maladie (hors EHPAD) (autres que c/731224 et c/7312132)",{"$nulls":4},{"$f":"E123+F123+G123","v":{"v":0,"d":"0.00 €"}},null,{"$f":"I123-H123","v":{"v":0,"d":"0.00 €"}},{"$f":"IF(H123=0,0,J123/H123)","v":{"v":0,"d":"0.0%"}}]
[null,"731224/ 7312132","Prise en charge au titre des dispositions de l'article L.242-4 du CASF",{"$nulls":4},{"v":0,"d":"0.00 €"},null,{"v":0,"d":"0.00 €"},{"v":0,"d":"0.0%"}]
[null,732,"Produits à la charge de l’Etat",{"$nulls":4},{"v":0,"d":"0.00 €"},null,{"v":0,"d":"0.00 €"},{"v":0,"d":"0.0%"}]
[null,733,"Produits à la charge du département (hors EHPAD) (autres que c/733222)",{"$nulls":4},{"v":0,"d":"0.00 €"},null,{"v":0,"d":"0.00 €"},{"v":0,"d":"0.0%"}]
[null,733222,"Prise en charge au titre des dispositions de l'article L.242-4 du CASF",{"$nulls":4},{"v":0,"d":"0.00 €"},null,{"v":0,"d":"0.00 €"},{"v":0,"d":"0.0%"}]
[null,734,"Produits à la charge de l’usager (hors EHPAD)",{"$nulls":4},{"v":0,"d":"0.00 €"},null,{"v":0,"d":"0.00 €"},{"v":0,"d":"0.0%"}]
[null,7351,"Produits des EHPAD à la charge de l'assurance maladie",{"$nulls":4},{"v":0,"d":"0.00 €"},null,{"v":0,"d":"0.00 €"},{"v":0,"d":"0.0%"}]
[null,7352,"Produits des EHPAD à la charge du département",{"$nulls":4},{"v":0,"d":"0.00 €"},null,{"v":0,"d":"0.00 €"},{"v":0,"d":"0.0%"}]
[null,7353,"Produits des EHPAD à la charge de l'usager",{"$nulls":4},{"v":0,"d":"0.00 €"},null,{"v":0,"d":"0.00 €"},{"v":0,"d":"0.0%"}]
[null,7358,"Produits des EHPAD à la charge d'autres financeurs",{"$nulls":4},{"v":0,"d":"0.00 €"},null,{"v":0,"d":"0.00 €"},{"v":0,"d":"0.0%"}]
[null,738,"Produits à la charge d’autres financeurs",{"$nulls":4},{"v":0,"d":"0.00 €"},null,{"v":0,"d":"0.00 €"},{"v":0,"d":"0.0%"}]
[]
[null,null,"TOTAL GROUPE I",{"$f":"SUM(D123:D133)","v":{"v":0,"d":"0.00 €"}},{"$f":"SUM(E123:E133)","v":{"v":0,"d":"0.00 €"}},{"$f":"SUM(F123:F133)","v":{"v":0,"d":"0.00 €"}},{"$f":"SUM(G123:G133)","v":{"v":0,"d":"0.00 €"}},{"$f":"E135+F135+G135","v":{"v":0,"d":"0.00 €"}},{"$f":"SUM(I123:I133)","v":{"v":0,"d":"0.00 €"}},{"$f":"I135-H135","v":{"v":0,"d":"0.00 €"}},{"$f":"IF(H135=0,0,J135/H135)","v":{"v":0,"d":"0.0%"}}]
[]
[{"$nulls":3},{"$f":"IF('Page de garde'!$D$4=\"\",\"Réalisations Exercice N-1\",\"Réalisations Exercice \"&('Page de garde'!$D$4-1))","v":"Réalisations Exercice N-1"},{"$f":"IF('Page de garde'!$D$4=\"\",\"Budget Exercice N\",\"Budget Exercice \"&'Page de garde'!$D$4)","v":"Budget Exercice N"},{"$nulls":3},{"$f":"IF('Page de garde'!$D$4=\"\",\"Réalisé Exercice N\",\"Réalisé Exercice \"&'Page de garde'!$D$4)","v":"Réalisé Exercice N"}]
[null,null,"GROUPE II : AUTRES PRODUITS RELATIFS A L'EXPLOITATION",null,"Budget initial","Virements de crédits","Décisions modificatives","Prévisions budgétaires totales ","Réalisations","Ecart réalisations / prévisions (€)","Ecart réalisations / prévisions (%)"]
[]
[{"$nulls":4},"(1)","(2)","(3)","(4)=(1)+(2)+(3)","(5)","(5)-(4)","(5)-(4) / (4)"]
[null,70,"Produits (autres que forfaits journaliers et participations ci-dessous:  c/70821, 70822 et 70823)",{"$nulls":4},{"$f":"E141+F141+G141","v":{"v":0,"d":"0.00 €"}},null,{"$f":"I141-H141","v":{"v":0,"d":"0.00 €"}},{"$f":"IF(H141=0,0,J141/H141)","v":{"v":0,"d":"0.0%"}}]
[null,70821,"Forfaits journaliers",{"$nulls":4},{"v":0,"d":"0.00 €"},null,{"v":0,"d":"0.00 €"},{"v":0,"d":"0.0%"}]
[null,70822,"Participations des personnes handicapées prévues au 4° alinéa de l'article L. 242-4 du CASF",{"$nulls":4},{"v":0,"d":"0.00 €"},null,{"v":0,"d":"0.00 €"},{"v":0,"d":"0.0%"}]
[null,70823,"Participations aux frais de repas et de transport dans les ESAT",{"$nulls":4},{"v":0,"d":"0.00 €"},null,{"v":0,"d":"0.00 €"},{"v":0,"d":"0.0%"}]
[null,71,"Production stockée",{"$nulls":4},{"v":0,"d":"0.00 €"},null,{"v":0,"d":"0.00 €"},{"v":0,"d":"0.0%"}]
[null,72,"Production immobilisée",{"$nulls":4},{"v":0,"d":"0.00 €"},null,{"v":0,"d":"0.00 €"},{"v":0,"d":"0.0%"}]
[null,74,"Subventions d'exploitation et participations",{"$nulls":4},{"v":0,"d":"0.00 €"},null,{"v":0,"d":"0.00 €"},{"v":0,"d":"0.0%"}]
[null,75,"Autres produits de gestion courante",{"$nulls":4},{"v":0,"d":"0.00 €"},null,{"v":0,"d":"0.00 €"},{"v":0,"d":"0.0%"}]
[null,603,"Variation des stocks (en recettes)",{"$nulls":4},{"v":0,"d":"0.00 €"},null,{"v":0,"d":"0.00 €"},{"v":0,"d":"0.0%"}]
[null,609,"Rabais, remises et ristournes obtenus sur achats ",{"$nulls":4},{"v":0,"d":"0.00 €"},null,{"v":0,"d":"0.00 €"},{"v":0,"d":"0.0%"}]
[null,619,"Rabais, remises et ristournes obtenus sur services extérieurs",{"$nulls":4},{"v":0,"d":"0.00 €"},null,{"v":0,"d":"0.00 €"},{"v":0,"d":"0.0%"}]
[null,629,"Rabais, remises et ristournes obtenus sur autres services extérieurs",{"$nulls":4},{"v":0,"d":"0.00 €"},null,{"v":0,"d":"0.00 €"},{"v":0,"d":"0.0%"}]
[null,6419,"Remboursements sur rémunérations du personnel non médical",{"$nulls":4},{"v":0,"d":"0.00 €"},null,{"v":0,"d":"0.00 €"},{"v":0,"d":"0.0%"}]
[null,6429,"Remboursements sur rémunérations du personnel médical",{"$nulls":4},{"v":0,"d":"0.00 €"},null,{"v":0,"d":"0.00 €"},{"v":0,"d":"0.0%"}]
[null,6439,"Remboursements sur rémunérations des personnes handicapées",{"$nulls":4},{"v":0,"d":"0.00 €"},null,{"v":0,"d":"0.00 €"},{"v":0,"d":"0.0%"}]
[null,"6459/ 69/79","Remboursements sur charges de sécurité sociale et de prévoyance et sur autres charges sociales",{"$nulls":4},{"v":0,"d":"0.00 €"},null,{"v":0,"d":"0.00 €"},{"v":0,"d":"0.0%"}]
[null,6489,"Fonds de compensation des cessations anticipées d'activité",{"$nulls":4},{"v":0,"d":"0.00 €"},null,{"v":0,"d":"0.00 €"},{"v":0,"d":"0.0%"}]
[null,6611,"Intérêts des emprunts et dettes - en recettes - (hors ESSMS publics)",{"$nulls":4},{"v":0,"d":"0.00 €"},null,{"v":0,"d":"0.00 €"},{"v":0,"d":"0.0%"}]
[]
[null,null,"TOTAL GROUPE II",{"$f":"SUM(D141:D158)","v":{"v":0,"d":"0.00 €"}},{"$f":"SUM(E141:E158)","v":{"v":0,"d":"0.00 €"}},{"$f":"SUM(F141:F158)","v":{"v":0,"d":"0.00 €"}},{"$f":"SUM(G141:G158)","v":{"v":0,"d":"0.00 €"}},{"$f":"E160+F160+G160","v":{"v":0,"d":"0.00 €"}},{"$f":"SUM(I141:I158)","v":{"v":0,"d":"0.00 €"}},{"$f":"I160-H160","v":{"v":0,"d":"0.00 €"}},{"$f":"IF(H160=0,0,J160/H160)","v":{"v":0,"d":"0.0%"}}]
[]
[]
[null,null,"GROUPE III : PRODUITS FINANCIERS, PRODUITS EXCEPTIONNELS ET PRODUITS NON ENCAISSABLES ",{"$f":"IF('Page de garde'!$D$4=\"\",\"Réalisations Exercice N-1\",\"Réalisations Exercice \"&('Page de garde'!$D$4-1))","v":"Réalisations Exercice N-1"},{"$f":"IF('Page de garde'!$D$4=\"\",\"Budget Exercice N\",\"Budget Exercice \"&'Page de garde'!$D$4)","v":"Budget Exercice N"},{"$nulls":3},{"$f":"IF('Page de garde'!$D$4=\"\",\"Réalisé Exercice N\",\"Réalisé Exercice \"&'Page de garde'!$D$4)","v":"Réalisé Exercice N"}]
[{"$nulls":4},"Budget initial","Virements de crédits","Décisions modificatives","Prévisions budgétaires totales ","Réalisations","Ecart réalisations / prévisions (€)","Ecart réalisations / prévisions (%)"]
[]
[{"$nulls":4},"(1)","(2)","(3)","(4)=(1)+(2)+(3)","(5)","(5)-(4)","(5)-(4) / (4)"]
[null,76,"Produits financiers",{"$nulls":4},{"$f":"E167+F167+G167","v":{"v":0,"d":"0.00 €"}},null,{"$f":"I167-H167","v":{"v":0,"d":"0.00 €"}},{"$f":"IF(H167=0,0,J167/H167)","v":{"v":0,"d":"0.0%"}}]
[]
[null,"PRODUITS EXCEPTIONNELS "]
[null,771,"Produits exceptionnels sur opérations de gestion",{"$nulls":4},{"$f":"E170+F170+G170","v":{"v":0,"d":"0.00 €"}},null,{"$f":"I170-H170","v":{"v":0,"d":"0.00 €"}},{"$f":"IF(H170=0,0,J170/H170)","v":{"v":0,"d":"0.0%"}}]
[null,773,"Mandats annulés (sur exercices antérieurs) ou atteints par la déchéance quadriennale (ESSMS publics)",{"$nulls":4},{"v":0,"d":"0.00 €"},null,{"v":0,"d":"0.00 €"},{"v":0,"d":"0.0%"}]
[null,775,"Produits des cessions d'éléments d'actif",{"$nulls":4},{"v":0,"d":"0.00 €"},null,{"v":0,"d":"0.00 €"},{"v":0,"d":"0.0%"}]
[null,777,"Quotes-parts des subventions d'investissement virées au résultat de l'exercice",{"$nulls":4},{"v":0,"d":"0.00 €"},null,{"v":0,"d":"0.00 €"},{"v":0,"d":"0.0%"}]
[null,778,"Autres produits exceptionnels (autres que c/7781)",{"$nulls":4},{"v":0,"d":"0.00 €"},null,{"v":0,"d":"0.00 €"},{"v":0,"d":"0.0%"}]
[null,7781,"Quote-part d'éléments du fonds associatif virée au compte de résultat",{"$nulls":4},{"v":0,"d":"0.00 €"},null,{"v":0,"d":"0.00 €"},{"v":0,"d":"0.0%"}]
[]
[null,"AUTRES PRODUITS"]
[null,7811,"Reprises sur amortissements des immobilisations incorporelles et corporelles",{"$nulls":4},{"$f":"E178+F178+G178","v":{"v":0,"d":"0.00 €"}},null,{"$f":"I178-H178","v":{"v":0,"d":"0.00 €"}},{"$f":"IF(H178=0,0,J178/H178)","v":{"v":0,"d":"0.0%"}}]
[null,7815,"Reprises sur provisions d'exploitation",{"$nulls":4},{"v":0,"d":"0.00 €"},null,{"v":0,"d":"0.00 €"},{"v":0,"d":"0.0%"}]
[null,7816,"Reprises sur dépréciations des immobilisations incorporelles et corporelles",{"$nulls":4},{"v":0,"d":"0.00 €"},null,{"v":0,"d":"0.00 €"},{"v":0,"d":"0.0%"}]
[null,7817,"Reprises sur dépréciations des actifs circulants",{"$nulls":4},{"v":0,"d":"0.00 €"},null,{"v":0,"d":"0.00 €"},{"v":0,"d":"0.0%"}]
[null,786,"Reprises sur dépréciations et provisions (à inscrire dans les produits financiers)",{"$nulls":4},{"v":0,"d":"0.00 €"},null,{"v":0,"d":"0.00 €"},{"v":0,"d":"0.0%"}]
[null,78725,"Reprises sur amortissements dérogatoires",{"$nulls":4},{"v":0,"d":"0.00 €"},null,{"v":0,"d":"0.00 €"},{"v":0,"d":"0.0%"}]
[null,78741,"Reprises sur provisions réglementées destinées à renforcer la couverture du besoin en fonds de roulement",{"$nulls":4},{"v":0,"d":"0.00 €"},null,{"v":0,"d":"0.00 €"},{"v":0,"d":"0.0%"}]
[null,78742,"Reprises sur provisions réglementées pour renouvellement des immobilisations",{"$nulls":4},{"v":0,"d":"0.00 €"},null,{"v":0,"d":"0.00 €"},{"v":0,"d":"0.0%"}]
[null,78746,"Reprises sur provisions réglementées : réserves des plus-values nettes d'actif (ESSMS privés)",{"$nulls":4},{"v":0,"d":"0.00 €"},null,{"v":0,"d":"0.00 €"},{"v":0,"d":"0.0%"}]
[null,78748,"Autres reprises sur provisions réglementées",{"$nulls":4},{"$f":"E187+F187+G187","v":{"v":0,"d":"0.00 €"}},null,{"$f":"I187-H187","v":{"v":0,"d":"0.00 €"}},{"$f":"IF(H187=0,0,J187/H187)","v":{"v":0,"d":"0.0%"}}]
[null,7876,"Reprises sur dépréciations exceptionnelles",{"$nulls":4},{"v":0,"d":"0.00 €"},null,{"v":0,"d":"0.00 €"},{"v":0,"d":"0.0%"}]
[null,789,"Utilisation de fonds dédiés et de fonds reportés (sauf c/7892 et c/7895) (ESSMS privés)",{"$nulls":4},{"v":0,"d":"0.00 €"},null,{"v":0,"d":"0.00 €"},{"v":0,"d":"0.0%"}]
[null,78921,"Utilisation des fonds dédiés à l'investissement sur concours publics des entités gestionnaires d'ESSMS (ESSMS privés)",{"$nulls":4},{"$f":"E190+F190+G190","v":{"v":0,"d":"0.00 €"}},null,{"$f":"I190-H190","v":{"v":0,"d":"0.00 €"}},{"$f":"IF(H190=0,0,J190/H190)","v":{"v":0,"d":"0.0%"}}]
[null,78922,"Utilisation des fonds dédiés à l'exploitation sur concours publics des entités gestionnaires d'ESSMS (ESSMS privés)",{"$nulls":4},{"$f":"E191+F191+G191","v":{"v":0,"d":"0.00 €"}},null,{"$f":"I191-H191","v":{"v":0,"d":"0.00 €"}},{"$f":"IF(H191=0,0,J191/H191)","v":{"v":0,"d":"0.0%"}}]
[null,7895,"Utilisations des fonds dédiés sur contributions financières d’autres organismes (ESSMS privés)",{"$nulls":4},{"$f":"E192+F192+G192","v":{"v":0,"d":"0.00 €"}},null,{"$f":"I192-H192","v":{"v":0,"d":"0.00 €"}},{"$f":"IF(H192=0,0,J192/H192)","v":{"v":0,"d":"0.0%"}}]
[null,79,"Transferts de charges",{"$nulls":4},{"v":0,"d":"0.00 €"},null,{"v":0,"d":"0.00 €"},{"v":0,"d":"0.0%"}]
[]
[null,null,"TOTAL GROUPE III",{"$f":"D167+SUM(D170:D175)+SUM(D178:D193)","v":{"v":0,"d":"0.00 €"}},{"$f":"E167+SUM(E170:E175)+SUM(E178:E193)","v":{"v":0,"d":"0.00 €"}},{"$f":"F167+SUM(F170:F175)+SUM(F178:F193)","v":{"v":0,"d":"0.00 €"}},{"$f":"G167+SUM(G170:G175)+SUM(G178:G193)","v":{"v":0,"d":"0.00 €"}},{"$f":"E195+F195+G195","v":{"v":0,"d":"0.00 €"}},{"$f":"I167+SUM(I170:I175)+SUM(I178:I193)","v":{"v":0,"d":"0.00 €"}},{"$f":"I195-H195","v":{"v":0,"d":"0.00 €"}},{"$f":"IF(H195=0,0,J195/H195)","v":{"v":0,"d":"0.0%"}}]
[]
[null,null,"TOTAL DES PRODUITS",{"$f":"D135+D160+D195","v":{"v":0,"d":"0.00 €"}},{"$f":"E135+E160+E195","v":{"v":0,"d":"0.00 €"}},{"$f":"F135+F160+F195","v":{"v":0,"d":"0.00 €"}},{"$f":"G135+G160+G195","v":{"v":0,"d":"0.00 €"}},{"$f":"E197+F197+G197","v":{"v":0,"d":"0.00 €"}},{"$f":"I135+I160+I195","v":{"v":0,"d":"0.00 €"}},{"$f":"I197-H197","v":{"v":0,"d":"0.00 €"}},{"$f":"IF(H197=0,0,J197/H197)","v":{"v":0,"d":"0.0%"}}]
[]
[null,null,"DEFICIT REALISE",{"$f":"IF(D197-D113>0,0,D113-D197)","v":{"v":0,"d":"0.00 €"}},{"$f":"IF(E197-E113>0,0,E113-E197)","v":{"v":0,"d":"0.00 €"}},{"$f":"IF(F197-F113>0,0,F113-F197)","v":{"v":0,"d":"0.00 €"}},{"$f":"IF(G197-G113>0,0,G113-G197)","v":{"v":0,"d":"0.00 €"}},{"$f":"IF((H197-H113)>0,0,H113-H197)","v":{"v":0,"d":"0.00 €"}},{"$f":"IF(I197-I113>0,0,I113-I197)","v":{"v":0,"d":"0.00 €"}},{"$f":"I199-H199","v":{"v":0,"d":"0.00 €"}},{"$f":"IF(H199=0,0,J199/H199)","v":{"v":0,"d":"0.0%"}}]
[]
[null,null,"TOTAL EQUILIBRE DU COMPTE DE RESULTAT PRINCIPAL/ANNEXE",{"$f":"D197+D199","v":{"v":0,"d":"0.00 €"}},{"v":0,"d":"0.00 €"},{"v":0,"d":"0.00 €"},{"v":0,"d":"0.00 €"},{"v":0,"d":"0.00 €"},{"v":0,"d":"0.00 €"},{"$f":"I201-H201","v":{"v":0,"d":"0.00 €"}},{"$f":"IF(H201=0,0,J201/H201)","v":{"v":0,"d":"0.0%"}}]
[]
[null,null,"Résultats antérieurs repris dans le cadre de la tarification (déficits)",{"$nulls":4},{"$f":"E203+F203+G203","v":{"v":0,"d":"0.00 €"}},null,{"$f":"I203-H203","v":{"v":0,"d":"0.00 €"}},{"$f":"IF(H203=0,0,J203/H203)","v":{"v":0,"d":"0.0%"}}]
[null,null,"Résultats antérieurs repris dans le cadre de la tarification (excédents)",{"$nulls":4},{"$f":"E204+F204+G204","v":{"v":0,"d":"0.00 €"}},null,{"$f":"I204-H204","v":{"v":0,"d":"0.00 €"}},{"$f":"IF(H204=0,0,J204/H204)","v":{"v":0,"d":"0.0%"}}]
[]
[]
[null,null,"Ratios",{"$f":"IF('Page de garde'!$D$4=\"\",\"Réalisations Exercice N-1\",\"Réalisations Exercice \"&('Page de garde'!$D$4-1))","v":"Réalisations Exercice N-1"},{"$f":"IF('Page de garde'!$D$4=\"\",\"Budget Exercice N\",\"Budget Exercice \"&'Page de garde'!$D$4)","v":"Budget Exercice N"},{"$nulls":3},{"$f":"IF('Page de garde'!$D$4=\"\",\"Réalisé Exercice N\",\"Réalisé Exercice \"&'Page de garde'!$D$4)","v":"Réalisé Exercice N"}]
[{"$nulls":4},"Budget initial","Virements de crédits","Décisions modificatives","Prévisions budgétaires totales ","Réalisations","Ecart réalisations / prévisions (€)","Ecart réalisations / prévisions (%)"]
[]
[null,null,"Marge brute d'exploitation",{"$f":"D135+D160-D35-D53-SUM(D59:D69)-SUM(D72:D77)-D158","v":{"v":0,"d":"0.00 €"}},{"$nulls":3},{"$f":"H135+H160-H35-H53-SUM(H59:H69)-SUM(H72:H77)-H158","v":{"v":0,"d":"0.00 €"}},{"$f":"I135+I160-I35-I53-SUM(I59:I69)-SUM(I72:I77)-I158","v":{"v":0,"d":"0.00 €"}}]
[null,null,"Produits courants d'exploitation (comptes 70 à 75 - c/709 et c/713)",{"$f":"D135+SUM(D141:D148)-SUM(D16:D17)","v":{"v":0,"d":"0.00 €"}},{"$nulls":3},{"$f":"H135+SUM(H141:H148)-SUM(H16:H17)","v":{"v":0,"d":"0.00 €"}},{"$f":"I135+SUM(I141:I148)-SUM(I16:I17)","v":{"v":0,"d":"0.00 €"}}]
[null,null,"Taux de marge brute",{"$f":"IFERROR(D210/D211,0)","v":{"v":0,"d":"0.00%"}},{"$nulls":3},{"$f":"IFERROR(H210/H211,0)","v":{"v":0,"d":"0.00%"}},{"$f":"IFERROR(I210/I211,0)","v":{"v":0,"d":"0.00%"}}]
[null,null,"Résultat net",{"$f":"D115-D199","v":{"v":0,"d":"0.00 €"}},{"$nulls":3},{"$f":"H115-H199","v":{"v":0,"d":"0.00 €"}},{"$f":"I115-I199","v":{"v":0,"d":"0.00 €"}}]
[null,null,"Produits comptes classe 7 - c/709 et c/713",{"$f":"D197-SUM(D149:D158)-SUM(D16:D17)","v":{"v":0,"d":"0.00 €"}},{"$nulls":3},{"$f":"H197-SUM(H149:H158)-SUM(H16:H17)","v":{"v":0,"d":"0.00 €"}},{"$f":"I197-SUM(I149:I158)-SUM(I16:I17)","v":{"v":0,"d":"0.00 €"}}]
[null,null,"Taux de résultat ",{"$f":"IFERROR(D213/D214,0)","v":{"v":0,"d":"0.00%"}},{"$nulls":3},{"$f":"IFERROR(H213/H214,0)","v":{"v":0,"d":"0.00%"}},{"$f":"IFERROR(I213/I214,0)","v":{"v":0,"d":"0.00%"}}]

{"sheet":"Synthèse CR","index":12,"n_rows":66,"n_cols":7,"rows_kept":66,"hidden":true,"merged":[[1,1,1,6],[3,2,3,6],[4,2,4,6],[6,1,6,6],[8,2,8,3],[8,4,8,5],[19,1,19,6],[21,2,21,3],[21,4,21,5],[34,2,34,6],[35,2,35,6],[37,2,37,4],[38,2,38,4],[39,2,39,4],[41,1,41,6],[43,2,43,3],[43,4,43,5],[54,1,54,6],[56,2,56,3],[56,4,56,5]]}
[]
[null,"Synthèse des comptes de résultat"]
[]
[null,"FINESS ET"]
[null,"Raison sociale"]
[]
[null,{"$f":"IF('Page de garde'!$D$4=\"\",\"COMPTE DE RESULTAT PRINCIPAL NON SOUMIS A EQUILIBRE STRICT (REALISATIONS EXERCICE N)\",\"COMPTE DE RESULTAT PRINCIPAL NON SOUMIS A EQUILIBRE STRICT (REALISATIONS EXERCICE \"&'Page de garde'!$D$4& \")\")","v":"COMPTE DE RESULTAT PRINCIPAL NON SOUMIS A EQUILIBRE STRICT (REALISATIONS EXERCICE N)"}]
[]
[null,null,"CHARGES",null,"PRODUITS"]
[null,null,"PREVUES","REALISEES","PREVUS","REALISES"]
[null,"Groupe I : charges afférentes à l'exploitation courante",{"$f":"'CRP NON SOUMIS EQUIL'!$H$35","v":0},{"$f":"'CRP NON SOUMIS EQUIL'!$I$35","v":0},{"$f":"'CRP NON SOUMIS EQUIL'!$H$135","v":0},{"$f":"'CRP NON SOUMIS EQUIL'!$I$135","v":0},"Groupe I : produits de la tarification"]
[null,"Groupe II : charges afférentes au personnel",{"$f":"'CRP NON SOUMIS EQUIL'!$H$53","v":0},{"$f":"'CRP NON SOUMIS EQUIL'!$I$53","v":0},{"$f":"'CRP NON SOUMIS EQUIL'!$H$160","v":0},{"$f":"'CRP NON SOUMIS EQUIL'!$I$160","v":0},"Groupe II : autres produits relatifs à l'exploitation"]
[null,"Groupe III : charges afférentes à la structure",{"$f":"'CRP NON SOUMIS EQUIL'!$H$109","v":0},{"$f":"'CRP NON SOUMIS EQUIL'!$I$109","v":0},{"$f":"'CRP NON SOUMIS EQUIL'!$H$195","v":0},{"$f":"'CRP NON SOUMIS EQUIL'!$I$195","v":0},"Groupe III : produits financiers, produits exceptionnels et produits non encaissables"]
[null,"TOTAL DES CHARGES",{"$f":"SUM(C11:C13)","v":0},{"$f":"SUM(D11:D13)","v":0},{"$f":"SUM(E11:E13)","v":0},{"$f":"SUM(F11:F13)","v":0},"TOTAL DES PRODUITS"]
[null,"RESULTAT COMPTABLE  EXCEDENTAIRE",{"$f":"IF(E14-C14<0,0,E14-C14)","v":0},{"$f":"IF(F14-D14<0,0,F14-D14)","v":0},{"$f":"IF(E14-C14>0,0,C14-E14)","v":0},{"$f":"IF(F14-D14>0,0,D14-F14)","v":0},"RESULTAT COMPTABLE  DEFICITAIRE"]
[null,"TOTAL EQUILIBRE DU COMPTE DE RESULTAT",{"$f":"SUM(C14:C15)","v":0},{"$f":"SUM(D14:D15)","v":0},{"$f":"SUM(E14:E15)","v":0},{"$f":"SUM(F14:F15)","v":0},"TOTAL EQUILIBRE DU COMPTE DE RESULTAT"]
[]
[]
[]
[null,{"$f":"IF('Page de garde'!$D$4=\"\",\"COMPTE DE RESULTAT PRINCIPAL SOUMIS A OBLIGATION D'EQUILIBRE STRICT (REALISATIONS EXERCICE N)\",\"COMPTE DE RESULTAT PRINCIPAL SOUMIS A OBLIGATION D'EQUILIBRE STRICT (REALISATIONS EXERCICE \"&'Page de garde'!$D$4& \")\")","v":"COMPTE DE RESULTAT PRINCIPAL SOUMIS A OBLIGATION D'EQUILIBRE STRICT (REALISATIONS EXERCICE N)"}]
[]
[null,null,"CHARGES",null,"PRODUITS"]
[null,null,"PREVUES","REALISEES","PREVUS","REALISES"]
[null,"Groupe I : charges afférentes à l'exploitation courante",{"$f":"'CRP SOUMIS EQUILIBRE'!$H$35","v":0},{"$f":"'CRP SOUMIS EQUILIBRE'!$I$35","v":0},{"$f":"'CRP SOUMIS EQUILIBRE'!$H$128","v":0},{"$f":"'CRP SOUMIS EQUILIBRE'!$I$128","v":0},"Groupe I : produits de la tarification"]
[null,"Groupe II : charges afférentes au personnel",{"$f":"'CRP SOUMIS EQUILIBRE'!$H$53","v":0},{"$f":"'CRP SOUMIS EQUILIBRE'!$I$53","v":0},{"$f":"'CRP SOUMIS EQUILIBRE'!$H$153","v":0},{"$f":"'CRP SOUMIS EQUILIBRE'!$I$153","v":0},"Groupe II : autres produits relatifs à l'exploitation"]
[null,"Groupe III : charges afférentes à la structure",{"$f":"'CRP SOUMIS EQUILIBRE'!$H$107","v":0},{"$f":"'CRP SOUMIS EQUILIBRE'!$I$107","v":0},{"$f":"'CRP SOUMIS EQUILIBRE'!$H$188","v":0},{"$f":"'CRP SOUMIS EQUILIBRE'!$I$188","v":0},"Groupe III : produits financiers, produits exceptionnels et produits non encaissables"]
[null,"TOTAL DES CHARGES",{"$f":"SUM(C24:C26)","v":0},{"$f":"SUM(D24:D26)","v":0},{"$f":"SUM(E24:E26)","v":0},{"$f":"SUM(F24:F26)","v":0},"TOTAL DES PRODUITS"]
[null,"RESULTAT COMPTABLE  EXCEDENTAIRE",{"$f":"IF(E27-C27<0,0,E27-C27)","v":0},{"$f":"IF(F27-D27<0,0,F27-D27)","v":0},{"$f":"IF(E27-C27>0,0,C27-E27)","v":0},{"$f":"IF(F27-D27>0,0,D27-F27)","v":0},"RESULTAT COMPTABLE  DEFICITAIRE"]
[null,"Déficit antérieur du compte de résultat reporté (002)",{"$f":"+'CRP SOUMIS EQUILIBRE'!$H$111","v":0},{"$f":"+'CRP SOUMIS EQUILIBRE'!$I$111","v":0},{"$f":"+'CRP SOUMIS EQUILIBRE'!$H$192","v":0},{"$f":"+'CRP SOUMIS EQUILIBRE'!$I$192","v":0},"Excédent antérieur du compte de résultat reporté (002)"]
[null,"Amortissements comptables excédentaires différés (005)",{"$f":"+'CRP SOUMIS EQUILIBRE'!$H$112","v":0},{"$f":"+'CRP SOUMIS EQUILIBRE'!$I$112","v":0},{"$f":"+'CRP SOUMIS EQUILIBRE'!$H$193","v":0},{"$f":"+'CRP SOUMIS EQUILIBRE'!$I$193","v":0},"Amortissements comptables excédentaires différés (005)"]
[null,"TOTAL GENERAL",{"$f":"C27+C29+C30","v":0},{"$f":"D27+D29+D30","v":0},{"$f":"E27+E29+E30","v":0},{"$f":"F27+F29+F30","v":0},"TOTAL GENERAL"]
[]
[]
[]
[null,"FINESS ET",{"$f":"'CRP NON SOUMIS EQUIL'!$D$3&'CRP SOUMIS EQUILIBRE'!$D$3","v":""}]
[null,"Raison sociale",{"$f":"'CRP NON SOUMIS EQUIL'!$D$2&'CRP SOUMIS EQUILIBRE'!$D$2","v":""}]
[]
[null,"N° Identifiant : ",{"$f":"+CRA_SF!$D$3&\"\"","v":""}]
[null,"Dénomination du CR sans Finess :",{"$f":"+CRA_SF!$D$2&\"\"","v":""}]
[null,"FINESS de rattachement :",{"$f":"+CRA_SF!$D$4&\"\"","v":""}]
[]
[null,{"$f":"IF('Page de garde'!$D$4=\"\",\"COMPTE DE RESULTAT ANNEXE - ESMS NON SOUMIS A EQUILIBRE STRICT (REALISATIONS EXERCICE N)\",\"COMPTE DE RESULTAT ANNEXE - ESMS NON SOUMIS A EQUILIBRE STRICT (REALISATIONS EXERCICE \"&'Page de garde'!$D$4& \")\")","v":"COMPTE DE RESULTAT ANNEXE - ESMS NON SOUMIS A EQUILIBRE STRICT (REALISATIONS EXERCICE N)"}]
[]
[null,null,"CHARGES",null,"PRODUITS"]
[null,null,"PREVUES","REALISEES","PREVUS","REALISES"]
[null,"Groupe I : charges afférentes à l'exploitation courante",{"$f":"+'CRP NON SOUMIS EQUIL'!$H$35+CRA_SF!$H$35","v":0},{"$f":"+'CRP NON SOUMIS EQUIL'!$I$35+CRA_SF!$I$35","v":0},{"$f":"+'CRP NON SOUMIS EQUIL'!$H$135+CRA_SF!$H$135","v":0},{"$f":"+'CRP NON SOUMIS EQUIL'!$I$135+CRA_SF!$I$135","v":0},"Groupe I : produits de la tarification"]
[null,"Groupe II : charges afférentes au personnel",{"$f":"+'CRP NON SOUMIS EQUIL'!$H$53+CRA_SF!$H$53","v":0},{"$f":"+'CRP NON SOUMIS EQUIL'!$I$53+CRA_SF!$I$53","v":0},{"$f":"+'CRP NON SOUMIS EQUIL'!$H$160+CRA_SF!$H$160","v":0},{"$f":"+'CRP NON SOUMIS EQUIL'!$I$160+CRA_SF!$I$160","v":0},"Groupe II : autres produits relatifs à l'exploitation"]
[null,"Groupe III : charges afférentes à la structure",{"$f":"+'CRP NON SOUMIS EQUIL'!$H$109+CRA_SF!$H$109","v":0},{"$f":"+'CRP NON SOUMIS EQUIL'!$I$109+CRA_SF!$I$109","v":0},{"$f":"+'CRP NON SOUMIS EQUIL'!$H$195+CRA_SF!$H$195","v":0},{"$f":"+'CRP NON SOUMIS EQUIL'!$I$195+CRA_SF!$I$195","v":0},"Groupe III : produits financiers, produits exceptionnels et produits non encaissables"]
[null,"TOTAL DES CHARGES",{"$f":"SUM(C46:C48)","v":0},{"$f":"SUM(D46:D48)","v":0},{"$f":"SUM(E46:E48)","v":0},{"$f":"SUM(F46:F48)","v":0},"TOTAL DES PRODUITS"]
[null,"RESULTAT COMPTABLE  EXCEDENTAIRE",{"$f":"IF(E49-C49<0,0,E49-C49)","v":0},{"$f":"IF(F49-D49<0,0,F49-D49)","v":0},{"$f":"IF(E49-C49>0,0,C49-E49)","v":0},{"$f":"IF(F49-D49>0,0,D49-F49)","v":0},"RESULTAT COMPTABLE  DEFICITAIRE"]
[null,"TOTAL EQUILIBRE DU COMPTE DE RESULTAT",{"$f":"SUM(C49:C50)","v":0},{"$f":"SUM(D49:D50)","v":0},{"$f":"SUM(E49:E50)","v":0},{"$f":"SUM(F49:F50)","v":0},"TOTAL EQUILIBRE DU COMPTE DE RESULTAT"]
[]
[]
[]
[null,{"$f":"IF('Page de garde'!$D$4=\"\",\"COMPTE DE RESULTAT ANNEXE - ESMS SOUMIS A OBLIGATION D'EQUILIBRE STRICT (REALISATIONS EXERCICE N)\",\"COMPTE DE RESULTAT ANNEXE - ESMS SOUMIS A OBLIGATION D'EQUILIBRE STRICT (REALISATIONS EXERCICE \"&'Page de garde'!$D$4& \")\")","v":"COMPTE DE RESULTAT ANNEXE - ESMS SOUMIS A OBLIGATION D'EQUILIBRE STRICT (REALISATIONS EXERCICE N)"}]
[]
[null,null,"CHARGES",null,"PRODUITS"]
[null,null,"PREVUES","REALISEES","PREVUS","REALISES"]
[null,"Groupe I : charges afférentes à l'exploitation courante",{"$f":"+'CRP SOUMIS EQUILIBRE'!$H$35","v":0},{"$f":"+'CRP SOUMIS EQUILIBRE'!$I$35","v":0},{"$f":"+'CRP SOUMIS EQUILIBRE'!$H$128","v":0},{"$f":"+'CRP SOUMIS EQUILIBRE'!$I$128","v":0},"Groupe I : produits de la tarification"]
[null,"Groupe II : charges afférentes au personnel",{"$f":"+'CRP SOUMIS EQUILIBRE'!$H$53","v":0},{"$f":"+'CRP SOUMIS EQUILIBRE'!$I$53","v":0},{"$f":"+'CRP SOUMIS EQUILIBRE'!$H$153","v":0},{"$f":"+'CRP SOUMIS EQUILIBRE'!$I$153","v":0},"Groupe II : autres produits relatifs à l'exploitation"]
[null,"Groupe III : charges afférentes à la structure",{"$f":"+'CRP SOUMIS EQUILIBRE'!$H$107","v":0},{"$f":"+'CRP SOUMIS EQUILIBRE'!$I$107","v":0},{"$f":"+'CRP SOUMIS EQUILIBRE'!$H$188","v":0},{"$f":"+'CRP SOUMIS EQUILIBRE'!$I$188","v":0},"Groupe III : produits financiers, produits exceptionnels et produits non encaissables"]
[null,"TOTAL DES CHARGES",{"$f":"SUM(C59:C61)","v":0},{"$f":"SUM(D59:D61)","v":0},{"$f":"SUM(E59:E61)","v":0},{"$f":"SUM(F59:F61)","v":0},"TOTAL DES PRODUITS"]
[null,"RESULTAT COMPTABLE  EXCEDENTAIRE",{"$f":"IF(E62-C62<0,0,E62-C62)","v":0},{"$f":"IF(F62-D62<0,0,F62-D62)","v":0},{"$f":"IF(E62-C62>0,0,C62-E62)","v":0},{"$f":"IF(F62-D62>0,0,D62-F62)","v":0},"RESULTAT COMPTABLE  DEFICITAIRE"]
[null,"Déficit antérieur du compte de résultat reporté (002)",{"$f":"+'CRP SOUMIS EQUILIBRE'!$H$111","v":0},{"$f":"+'CRP SOUMIS EQUILIBRE'!$I$111","v":0},{"$f":"+'CRP SOUMIS EQUILIBRE'!$H$192","v":0},{"$f":"+'CRP SOUMIS EQUILIBRE'!$I$192","v":0},"Excédent antérieur du compte de résultat reporté (002)"]
[null,"Amortissements comptables excédentaires différés (005)",{"$f":"+'CRP SOUMIS EQUILIBRE'!$H$112","v":0},{"$f":"+'CRP SOUMIS EQUILIBRE'!$I$112","v":0},{"$f":"+'CRP SOUMIS EQUILIBRE'!$H$193","v":0},{"$f":"+'CRP SOUMIS EQUILIBRE'!$I$193","v":0},"Amortissements comptables excédentaires différés (005)"]
[null,"TOTAL GENERAL",{"$f":"C62+C64+C65","v":0},{"$f":"D62+D64+D65","v":0},{"$f":"E62+E64+E65","v":0},{"$f":"F62+F64+F65","v":0},"TOTAL GENERAL"]

{"sheet":"ERRD synthétique","index":13,"n_rows":64,"n_cols":7,"rows_kept":64,"hidden":true,"merged":[[1,1,1,6],[3,1,3,6],[4,2,4,3],[4,4,4,5],[61,1,61,3]]}
[]
[null,"Cadre ERRD synthétique"]
[]
[null,{"$f":"IF('Page de garde'!$D$4=\"\",\"COMPTES DE RESULTAT CONSOLIDES (CRP + CRA) - EXERCICE N\",\"COMPTES DE RESULTAT CONSOLIDES (CRP + CRA) - EXERCICE \"&'Page de garde'!$D$4)","v":"COMPTES DE RESULTAT CONSOLIDES (CRP + CRA) - EXERCICE N"}]
[null,null,"CHARGES",null,"PRODUITS"]
[null,null,"PREVUES","REALISEES","PREVUS","REALISES"]
[null,"Groupe I : charges afférentes à l'exploitation courante",{"$f":"+Conso!B4","v":0},{"$f":"Conso!B24","v":0},{"$f":"+Conso!B45","v":0},{"$f":"Conso!B66","v":0},"Groupe I : produits de la tarification"]
[null,"Groupe II : charges afférentes au personnel",{"$f":"+Conso!B5","v":0},{"$f":"Conso!B25","v":0},{"$f":"+Conso!B46","v":0},{"$f":"Conso!B67","v":0},"Groupe II : autres produits relatifs à l'exploitation"]
[null,"Groupe III : charges afférentes à la structure",{"$f":"+Conso!B6","v":0},{"$f":"Conso!B26","v":0},{"$f":"+Conso!B47","v":0},{"$f":"Conso!B68","v":0},"Groupe III : produits financiers, produits exceptionnels et produits non encaissables"]
[null,"TOTAL DES CHARGES",{"$f":"SUM(C7:C9)","v":0},{"$f":"SUM(D7:D9)","v":0},{"$f":"SUM(E7:E9)","v":0},{"$f":"SUM(F7:F9)","v":0},"TOTAL DES PRODUITS"]
[null,"RESULTAT COMPTABLE  EXCEDENTAIRE",{"$f":"IF(E10-C10<0,0,E10-C10)","v":0},{"$f":"IF(F10-D10<0,0,F10-D10)","v":0},{"$f":"IF(E10-C10>0,0,C10-E10)","v":0},{"$f":"IF(F10-D10>0,0,D10-F10)","v":0},"RESULTAT COMPTABLE  DEFICITAIRE"]
[null,"TOTAL EQUILIBRE DES COMPTES DE RESULTAT",{"$f":"SUM(C10:C11)","v":0},{"$f":"SUM(D10:D11)","v":0},{"$f":"SUM(E10:E11)","v":0},{"$f":"SUM(F10:F11)","v":0},"TOTAL EQUILIBRE DES COMPTES DE RESULTAT"]
[]
[null,{"$f":"IF('Page de garde'!$D$4=\"\",\"TABLEAU DE PASSAGE DU RESULTAT A LA CAF - EXERCICE N\",\"TABLEAU DE PASSAGE DU RESULTAT A LA CAF - EXERCICE \"&'Page de garde'!$D$4)","v":"TABLEAU DE PASSAGE DU RESULTAT A LA CAF - EXERCICE N"}]
[null,null,"PREVU","REALISE","PREVU","REALISE"]
[null,"RESULTAT COMPTABLE  (EXCEDENT) (1)",{"$f":"C11","v":0},{"$f":"D11","v":0},{"$f":"E11","v":0},{"$f":"F11","v":0},"RESULTAT COMPTABLE  (DEFICIT) (1)"]
[null,"Valeurs comptables des éléments d'actif cédés",{"$f":"+Conso!B14","v":0},{"$f":"Conso!B34","v":0},{"$f":"+Conso!B55","v":0},{"$f":"Conso!B76","v":0},"Produits des cessions d'éléments d'actif"]
[null,"Dotations aux amortissements, aux dépréciations et aux provisions",{"$f":"+Conso!B15","v":0},{"$f":"Conso!B35","v":0},{"$f":"+Conso!B56","v":0},{"$f":"Conso!B77","v":0},"Quotes-parts des subventions et fonds associatifs virées au résultat"]
[null,"Reports en fonds dédiés (ESSMS privés)",{"$f":"+Conso!B16","v":0},{"$f":"Conso!B36","v":0},{"$f":"+Conso!B57","v":0},{"$f":"Conso!B78","v":0},"Reprises sur amortissements, dépréciations et provisions"]
[{"$nulls":4},{"$f":"+Conso!B58","v":0},{"$f":"Conso!B79","v":0},"Utilisation de fonds dédiés et de fonds reportés (ESSMS privés)"]
[null,"SOUS-TOTAL 1",{"$f":"SUM(C16:C20)","v":0},{"$f":"SUM(D16:D20)","v":0},{"$f":"SUM(E16:E20)","v":0},{"$f":"SUM(F16:F20)","v":0},"SOUS-TOTAL 2"]
[null,"CAPACITE D'AUTOFINANCEMENT (si 1-2>0)",{"$f":"IF(C21<E21,0,-(E21-C21))","v":0},{"$f":"IF(D21<F21,0,-(F21-D21))","v":0},{"$f":"IF(E21<C21,0,-(C21-E21))","v":0},{"$f":"IF(F21<D21,0,-(D21-F21))","v":0},"INSUFFISANCE D'AUTOFINANCEMENT (si 1-2<0)"]
[null,"Taux de CAF en pourcentage des produits",{"$f":"IF(E10=0,0,C22/E10)","v":{"v":0,"d":"0.00%"}},{"$f":"IF(F10=0,0,D22/F10)","v":{"v":0,"d":"0.00%"}},{"$f":"IF(E10=0,0,E22/E10)","v":{"v":0,"d":"0.00%"}},{"$f":"IF(F10=0,0,F22/F10)","v":{"v":0,"d":"0.00%"}},"Taux d'IAF en pourcentage des produits"]
[]
[null,{"$f":"IF('Page de garde'!$D$4=\"\",\"TABLEAU DE FINANCEMENT (TF) - EXERCICE N\",\"TABLEAU DE FINANCEMENT (TF) - EXERCICE \"&'Page de garde'!$D$4)","v":"TABLEAU DE FINANCEMENT (TF) - EXERCICE N"}]
[null,null,"PREVU","REALISE","PREVU","REALISE"]
[null,"INSUFFISANCE D'AUTOFINANCEMENT ",{"$f":"E22","v":0},{"$f":"F22","v":0},{"$f":"C22","v":0},{"$f":"D22","v":0},"CAPACITE D'AUTOFINANCEMENT "]
[null,"Remboursement des dettes financières",{"$f":"'Tabl. de financement'!$H$30+'Tabl. de financement'!$H$31+'Tabl. de financement'!$H$32","v":0},{"$f":"'Tabl. de financement'!$I$30+'Tabl. de financement'!$I$31+'Tabl. de financement'!$I$32","v":0},{"$f":"'Tabl. de financement'!$H$12+'Tabl. de financement'!$H$13","v":0},{"$f":"'Tabl. de financement'!$I$12+'Tabl. de financement'!$I$13","v":0},"Emprunts à plus d'un an et dettes assimilées"]
[null,"Immobilisations (2)",{"$f":"+'Tabl. de financement'!$H$35+'Tabl. de financement'!$H$36+'Tabl. de financement'!$H$42+'Tabl. de financement'!$H$43+'Tabl. de financement'!$H$44","v":0},{"$f":"+'Tabl. de financement'!$I$35+'Tabl. de financement'!$I$36+'Tabl. de financement'!$I$42+'Tabl. de financement'!$I$43+'Tabl. de financement'!$I$44","v":0},{"$f":"+'Tabl. de financement'!$H$9+'Tabl. de financement'!$H$10","v":0},{"$f":"+'Tabl. de financement'!$I$9+'Tabl. de financement'!$I$10","v":0},"Apports, dotations, réserves, fonds propres (sauf 106) et subventions d'investissement"]
[null,"Autres emplois",{"$f":"+'Tabl. de financement'!$H$28+'Tabl. de financement'!$H$33+'Tabl. de financement'!$H$46+'Tabl. de financement'!$H$47","v":0},{"$f":"+'Tabl. de financement'!$I$28+'Tabl. de financement'!$I$33+'Tabl. de financement'!$I$46+'Tabl. de financement'!$I$47","v":0},{"$f":"+'Tabl. de financement'!$H$14+'Tabl. de financement'!$H$16+'Tabl. de financement'!$H$17+'Tabl. de financement'!$H$18+'Tabl. de financement'!$H$19","v":0},{"$f":"+'Tabl. de financement'!$I$14+'Tabl. de financement'!$I$16+'Tabl. de financement'!$I$17+'Tabl. de financement'!$I$18+'Tabl. de financement'!$I$19","v":0},"Autres ressources (dont produits des cessions d'éléments d'actif)"]
[null,"TOTAL DES EMPLOIS",{"$f":"SUM(C27:C30)","v":0},{"$f":"SUM(D27:D30)","v":0},{"$f":"SUM(E27:E30)","v":0},{"$f":"SUM(F27:F30)","v":0},"TOTAL DES RESSOURCES"]
[null,"APPORT AU FONDS DE ROULEMENT",{"$f":"IF(C31>E31,0,E31-C31)","v":0},{"$f":"IF(D31>F31,0,F31-D31)","v":0},{"$f":"IF(E31>C31,0,C31-E31)","v":0},{"$f":"IF(F31>D31,0,D31-F31)","v":0},"PRELEVEMENT SUR LE FONDS DE ROULEMENT"]
[null,"TOTAL EQUILIBRE DU TABLEAU DE FINANCEMENT ",{"$f":"SUM(C31:C32)","v":0},{"$f":"SUM(D31:D32)","v":0},{"$f":"SUM(E31:E32)","v":0},{"$f":"SUM(F31:F32)","v":0},"TOTAL EQUILIBRE DU TABLEAU DE FINANCEMENT "]
[]
[null,{"$f":"IF('Page de garde'!$D$4=\"\",\"MOUVEMENTS DE L'EXERCICE SUR LES COMPTES DE LIAISON STABLES DE TRESORERIE - EXERCICE N (3)\",\"MOUVEMENTS DE L'EXERCICE SUR LES COMPTES DE LIAISON STABLES DE TRESORERIE - EXERCICE \"&'Page de garde'!$D$4&\" (3)\")","v":"MOUVEMENTS DE L'EXERCICE SUR LES COMPTES DE LIAISON STABLES DE TRESORERIE - EXERCICE N (3)"}]
[]
[null,null,"PREVUS","REALISES","PREVUS","REALISES"]
[null,"Compte de liaison stable de trésorerie (en emploi)",null,{"$f":"IF('Bilan financier'!$M$37-'Bilan financier'!$G$37-'Bilan financier'!$L$37+'Bilan financier'!$F$37<0,-('Bilan financier'!$M$37-'Bilan financier'!$G$37-'Bilan financier'!$L$37+'Bilan financier'!$F$37),0)","v":0},null,{"$f":"IF('Bilan financier'!$M$37-'Bilan financier'!$G$37-'Bilan financier'!$L$37+'Bilan financier'!$F$37>0,'Bilan financier'!$M$37-'Bilan financier'!$G$37-'Bilan financier'!$L$37+'Bilan financier'!$F$37,0)","v":0},"Compte de liaison stable de trésorerie (en ressource)"]
[]
[null,{"$f":"IF('Page de garde'!$D$4=\"\",\"FONDS DE ROULEMENT NET GLOBAL (FRNG) - EXERCICE N\",\"FONDS DE ROULEMENT NET GLOBAL (FRNG) - EXERCICE \"&'Page de garde'!$D$4)","v":"FONDS DE ROULEMENT NET GLOBAL (FRNG) - EXERCICE N"}]
[null,null,"PREVU","REALISE"]
[null,{"$f":"IF('Page de garde'!$D$4=\"\",\"FRNG au 1er janvier N\",\"FRNG au 1er janvier \"&'Page de garde'!$D$4)","v":"FRNG au 1er janvier N"},{"$f":"+'Bilan financier'!$L$40-'Bilan financier'!F40","v":0},{"$f":"+'Bilan financier'!$L$40-'Bilan financier'!F40","v":0}]
[null,"Variation du fonds de roulement : Apport ou (Prélèvement) calculé à partir du TF, corrigé, pour les ESSMS privés, des mouvements de l’exercice sur les comptes de liaison stables de trésorerie",{"$f":"C32-E32+E38-C38","v":0},{"$f":"D32-F32+F38-D38","v":0}]
[null,{"$f":"IF('Page de garde'!$D$4=\"\",\"FRNG au 31 décembre N\",\"FRNG au 31 décembre \"&'Page de garde'!$D$4)","v":"FRNG au 31 décembre N"},{"$f":"+C42+C43","v":0},{"$f":"+D42+D43","v":0}]
[]
[null,"Cadre ERRD synthétique (suite)"]
[]
[null,{"$f":"IF('Page de garde'!$D$4=\"\",\"BESOIN EN FONDS DE ROULEMENT (BFR) - EXERCICE N\",\"BESOIN EN FONDS DE ROULEMENT (BFR) - EXERCICE \"&'Page de garde'!$D$4)","v":"BESOIN EN FONDS DE ROULEMENT (BFR) - EXERCICE N"}]
[null,null,"PREVU","REALISE"]
[null,{"$f":"IF('Page de garde'!$D$4=\"\",\"BFR au 1er janvier N\",\"BFR au 1er janvier \"&'Page de garde'!$D$4)","v":"BFR au 1er janvier N"},{"$f":"+'Bilan financier'!F53-'Bilan financier'!$L$53","v":0},{"$f":"+'Bilan financier'!F53-'Bilan financier'!$L$53","v":0}]
[null,"Augmentation du besoin en fonds de roulement de la période",null,{"$f":"(IF('Bilan financier'!$G$42-'Bilan financier'!$F$42>0,'Bilan financier'!$G$42-'Bilan financier'!$F$42,0)+(IF(SUM('Bilan financier'!$G$44:$G$46)>SUM('Bilan financier'!$F$44:$F$46),SUM('Bilan financier'!$G$44:$G$46)-SUM('Bilan financier'!$F$44:$F$46),0)+(IF('Bilan financier'!$M$43<'Bilan financier'!$L$43,'Bilan financier'!$L$43-'Bilan financier'!$M$43,0)+(IF(('Bilan financier'!$G$43+SUM('Bilan financier'!$G$47:$G$49)+'Bilan financier'!$G$51-'Bilan financier'!$M$42-SUM('Bilan financier'!$M$44:$M$49)-'Bilan financier'!$M$51)>('Bilan financier'!$F$43+SUM('Bilan financier'!$F$47:$F$49)+'Bilan financier'!$F$51-'Bilan financier'!$L$42-SUM('Bilan financier'!$L$44:$L$49)-'Bilan financier'!$L$51),'Bilan financier'!$G$43+SUM('Bilan financier'!$G$47:$G$49)+'Bilan financier'!$G$51-'Bilan financier'!$M$42-SUM('Bilan financier'!$M$44:$M$49)-'Bilan financier'!$M$51-'Bilan financier'!$F$43-SUM('Bilan financier'!$F$47:$F$49)-'Bilan financier'!$F$51+'Bilan financier'!$L$42+SUM('Bilan financier'!$L$44:$L$49)+'Bilan financier'!$L$51,0)))))","v":{"v":0,"d":"0.00 €"}}]
[null,"Diminution du besoin en fonds de roulement de la période",null,{"$f":"(IF('Bilan financier'!$G$42-'Bilan financier'!$F$42<0,'Bilan financier'!$F$42-'Bilan financier'!$G$42,0)+(IF(SUM('Bilan financier'!$G$44:$G$46)<SUM('Bilan financier'!$F$44:$F$46),SUM('Bilan financier'!$F$44:$F$46)-SUM('Bilan financier'!$G$44:$G$46),0)+(IF('Bilan financier'!$M$43>'Bilan financier'!$L$43,'Bilan financier'!$M$43-'Bilan financier'!$L$43,0)+(IF(('Bilan financier'!$G$43+SUM('Bilan financier'!$G$47:$G$49)+'Bilan financier'!$G$51-'Bilan financier'!$M$42-SUM('Bilan financier'!$M$44:$M$49)-'Bilan financier'!$M$51)<('Bilan financier'!$F$43+SUM('Bilan financier'!$F$47:$F$49)+'Bilan financier'!$F$51-'Bilan financier'!$L$42-SUM('Bilan financier'!$L$44:$L$49)-'Bilan financier'!$L$51),-('Bilan financier'!$G$43+SUM('Bilan financier'!$G$47:$G$49)+'Bilan financier'!$G$51-'Bilan financier'!$M$42-SUM('Bilan financier'!$M$44:$M$49)-'Bilan financier'!$M$51-'Bilan financier'!$F$43-SUM('Bilan financier'!$F$47:$F$49)-'Bilan financier'!$F$51+'Bilan financier'!$L$42+SUM('Bilan financier'!$L$44:$L$49)+'Bilan financier'!$L$51),0)))))","v":{"v":0,"d":"0.00 €"}}]
[null,{"$f":"IF('Page de garde'!$D$4=\"\",\"BFR (ou EFE signe \"\"\"&\"-\"\"\"&\") au 31 décembre N\",\"BFR (ou EFE signe \"\"\"&\"-\"\"\"&\") au 31 décembre \"&'Page de garde'!$D$4)","v":"BFR (ou EFE signe \"-\") au 31 décembre N"},{"$f":"C50+C51-C52","v":0},{"$f":"D50+D51-D52","v":0}]
[]
[null,{"$f":"IF('Page de garde'!$D$4=\"\",\"TRESORERIE - EXERCICE N\",\"TRESORERIE - EXERCICE \"&'Page de garde'!$D$4)","v":"TRESORERIE - EXERCICE N"}]
[null,null,"PREVU","REALISE"]
[null,{"$f":"IF('Page de garde'!$D$4=\"\",\"Trésorerie au 1er janvier N\",\"Trésorerie au 1er janvier \"&'Page de garde'!$D$4)","v":"Trésorerie au 1er janvier N"},{"$f":"'Bilan financier'!$F$63-'Bilan financier'!$L$63","v":0},{"$f":"'Bilan financier'!$F$63-'Bilan financier'!$L$63","v":0}]
[null,"Variation de trésorerie de la période",{"$f":"C43-(C51-C52)","v":0},{"$f":"D43-(D51-D52)","v":0}]
[null,{"$f":"IF('Page de garde'!$D$4=\"\",\"Trésorerie au 31 décembre N\",\"Trésorerie au 31 décembre \"&'Page de garde'!$D$4)","v":"Trésorerie au 31 décembre N"},{"$f":"C57+C58","v":0},{"$f":"D57+D58","v":0}]
[]
[null,"Contrôle de la variation de trésorerie entre ERRD synthétique et bilan financier",null,{"$f":"IF(D58-('Bilan financier'!G63-'Bilan financier'!M63-'Bilan financier'!F63+'Bilan financier'!$L$63)=0,\"Ok\",\"Ecart de : \n\"&TEXT(ROUND(D58-('Bilan financier'!G63-'Bilan financier'!M63-'Bilan financier'!F63+'Bilan financier'!$L$63),2),\"# #0,00\")&\" €\")","v":"Ok"}]
[null,"(1) Hors report à nouveau (ligne 002) et ligne d'équilibre des amortissements comptables excédentaires différés (ligne 005)"]
[null,"(2) Y compris participations et créances rattachées à des participations"]
[null,"(3) ESSMS privés uniquement"]

{"sheet":"Tabl. de financement","index":14,"n_rows":53,"n_cols":11,"rows_kept":53,"hidden":true,"merged":[[1,1,1,10],[3,1,4,2],[3,3,5,3],[3,4,3,7],[3,8,3,10],[4,4,5,4],[4,5,5,5],[4,6,5,6],[4,7,5,7],[4,8,5,8],[4,9,5,9],[4,10,5,10],[23,1,24,2],[23,3,25,3],[23,4,23,7],[23,8,23,10],[24,4,25,4],[24,5,25,5],[24,6,25,6],[24,7,25,7],[24,8,25,8],[24,9,25,9],[24,10,25,10]]}
[]
[null,"Tableau de financement"]
[]
[null,"Ressources",null,{"$f":"IF('Page de garde'!$D$4=\"\",\"Réalisations Exercice N-1\",\"Réalisations Exercice \"&('Page de garde'!$D$4-1))","v":"Réalisations Exercice N-1"},{"$f":"IF('Page de garde'!$D$4=\"\",\"Budget Exercice N\",\"Budget Exercice \"&'Page de garde'!$D$4)","v":"Budget Exercice N"},{"$nulls":3},{"$f":"IF('Page de garde'!$D$4=\"\",\"Réalisé Exercice N\",\"Réalisé Exercice \"&'Page de garde'!$D$4)","v":"Réalisé Exercice N"}]
[{"$nulls":4},"Budget initial","Virements de crédits ","Décisions modificatives","Prévisions budgétaires totales ","Réalisations","Ecart réalisations / prévisions (€)","Ecart réalisations / prévisions (%)"]
[null,"N° de comptes","Libellés"]
[null,null,"Capacité d'autofinancement",{"$f":"+Conso!B127","v":{"v":0,"d":"0.00 €"}},{"$f":"+Conso!B171","v":{"v":0,"d":"0.00 €"}},{"$f":"+Conso!B215","v":{"v":0,"d":"0.00 €"}},{"$f":"+Conso!B259","v":{"v":0,"d":"0.00 €"}},{"$f":"+Conso!B303","v":{"v":0,"d":"0.00 €"}},{"$f":"+Conso!B347","v":{"v":0,"d":"0.00 €"}},{"$f":"I7-H7","v":{"v":0,"d":"0.00 €"}},{"$f":"IF(H7=0,0,J7/H7)","v":{"v":0,"d":"0.00%"}}]
[null,null,"Titre 1 : Augmentation des capitaux propres :"]
[null,10,"Apport, dotations et réserves (ESSMS publics) / Fonds propres et réserves (ESSMS privés) - (sauf compte 106)",{"$nulls":4},{"$f":"E9+F9+G9","v":{"v":0,"d":"0.00 €"}},null,{"$f":"I9-H9","v":{"v":0,"d":"0.00 €"}},{"$f":"IF(H9=0,0,J9/H9)","v":{"v":0,"d":"0.00%"}}]
[null,13,"Subventions d'investissement (sauf 139)",{"$nulls":4},{"$f":"E10+F10+G10","v":{"v":0,"d":"0.00 €"}},null,{"v":0,"d":"0.00 €"},{"$f":"IF(H10=0,0,J10/H10)","v":{"v":0,"d":"0.00%"}}]
[null,null,"Titre 2: Augmentation des dettes financières :"]
[null,16,"Emprunts et dettes assimilées (sauf compte 165 (1))",{"$nulls":4},{"$f":"E12+F12+G12","v":{"v":0,"d":"0.00 €"}},null,{"$f":"I12-H12","v":{"v":0,"d":"0.00 €"}},{"$f":"IF(H12=0,0,J12/H12)","v":{"v":0,"d":"0.00%"}}]
[null,165,"Dépôts et cautionnements reçus (1)",{"$nulls":4},{"$f":"E13+F13+G13","v":{"v":0,"d":"0.00 €"}},null,{"$f":"I13-H13","v":{"v":0,"d":"0.00 €"}},{"$f":"IF(H13=0,0,J13/H13)","v":{"v":0,"d":"0.00%"}}]
[null,18,"Comptes de liaison affectés à l'investissement (ressources) (1)",{"$nulls":4},{"$f":"E14+F14+G14","v":{"v":0,"d":"0.00 €"}},null,{"$f":"I14-H14","v":{"v":0,"d":"0.00 €"}},{"$f":"IF(H14=0,0,J14/H14)","v":{"v":0,"d":"0.00%"}}]
[null,null,"Titre 3 : Autres ressources :"]
[null,17,"Dettes rattachées à des participations (1)",{"$nulls":4},{"$f":"E16+F16+G16","v":{"v":0,"d":"0.00 €"}},null,{"v":0,"d":"0.00 €"},{"$f":"IF(H16=0,0,J16/H16)","v":{"v":0,"d":"0.00%"}}]
[null,27,"Autres immobilisations financières (sauf 271, 272, 273 et 2768)",{"$nulls":4},{"$f":"E17+F17+G17","v":{"v":0,"d":"0.00 €"}},null,{"v":0,"d":"0.00 €"},{"v":0,"d":"0.00%"}]
[null,775,"Produits des cessions d'éléments d'actif",{"$f":"+Conso!$B$112","v":{"v":0,"d":"0.00 €"}},{"$f":"+Conso!$B$156","v":{"v":0,"d":"0.00 €"}},{"$f":"+Conso!$B$200","v":{"v":0,"d":"0.00 €"}},{"$f":"+Conso!$B$244","v":{"v":0,"d":"0.00 €"}},{"$f":"+'Tableau CAF'!E18","v":{"v":0,"d":"0.00 €"}},{"$f":"+Conso!$B$332","v":{"v":0,"d":"0.00 €"}},{"v":0,"d":"0.00 €"},{"v":0,"d":"0.00%"}]
[null,"070","Annulations de mandats sur exercices clos (2)",{"$nulls":4},{"$f":"E19+F19+G19","v":{"v":0,"d":"0.00 €"}},null,{"v":0,"d":"0.00 €"},{"v":0,"d":"0.00%"}]
[null,null,"TOTAL DES RESSOURCES",{"$f":"D7+D9+D10+D12+D13+D14+D16+D17+D18+D19","v":{"v":0,"d":"0.00 €"}},{"v":0,"d":"0.00 €"},{"v":0,"d":"0.00 €"},{"v":0,"d":"0.00 €"},{"v":0,"d":"0.00 €"},{"v":0,"d":"0.00 €"},{"v":0,"d":"0.00 €"},{"v":0,"d":"0.00%"}]
[null,null,"PRELEVEMENT SUR LE FONDS DE ROULEMENT",{"$f":"IF((D20-D48)>0,0,D48-D20)","v":{"v":0,"d":"0.00 €"}},{"v":0,"d":"0.00 €"},{"$f":"IF((F20-F48)>0,0,F48-F20)","v":{"v":0,"d":"0.00 €"}},{"v":0,"d":"0.00 €"},{"$f":"IF((H20-H48)>0,0,H48-H20)","v":{"v":0,"d":"0.00 €"}},{"v":0,"d":"0.00 €"},{"$f":"I21-H21","v":{"v":0,"d":"0.00 €"}},{"v":0,"d":"0.00%"}]
[null,null,"TOTAL EQUILIBRE DU TABLEAU DE FINANCEMENT",{"$f":"D20+D21","v":{"v":0,"d":"0.00 €"}},{"$f":"E20+E21","v":{"v":0,"d":"0.00 €"}},{"$f":"F20+F21","v":{"v":0,"d":"0.00 €"}},{"v":0,"d":"0.00 €"},{"$f":"H20+H21","v":{"v":0,"d":"0.00 €"}},{"v":0,"d":"0.00 €"},{"v":0,"d":"0.00 €"},{"v":0,"d":"0.00%"}]
[]
[null,"Emplois",null,{"$f":"IF('Page de garde'!$D$4=\"\",\"Réalisations Exercice N-1\",\"Réalisations Exercice \"&('Page de garde'!$D$4-1))","v":"Réalisations Exercice N-1"},{"$f":"IF('Page de garde'!$D$4=\"\",\"Budget Exercice N\",\"Budget Exercice \"&'Page de garde'!$D$4)","v":"Budget Exercice N"},{"$nulls":3},{"$f":"IF('Page de garde'!$D$4=\"\",\"Réalisé Exercice N\",\"Réalisé Exercice \"&'Page de garde'!$D$4)","v":"Réalisé Exercice N"}]
[{"$nulls":4},"Budget initial","Virements de crédits ","Décisions modificatives","Prévisions budgétaires totales ","Réalisations","Ecart réalisations / prévisions (€)","Ecart réalisations / prévisions (%)"]
[null,"N° de comptes","Libellés"]
[null,null,"Insuffisance d'autofinancement",{"$f":"+Conso!B126","v":{"v":0,"d":"0.00 €"}},{"$f":"+Conso!B170","v":{"v":0,"d":"0.00 €"}},{"$f":"+Conso!B214","v":{"v":0,"d":"0.00 €"}},{"$f":"+Conso!B258","v":{"v":0,"d":"0.00 €"}},{"$f":"+Conso!B302","v":{"v":0,"d":"0.00 €"}},{"$f":"+Conso!B346","v":{"v":0,"d":"0.00 €"}},{"$f":"I27-H27","v":{"v":0,"d":"0.00 €"}},{"$f":"IF(H27=0,0,J27/H27)","v":{"v":0,"d":"0.00%"}}]
[null,10,"Fonds propres et réserves – Réduction - (sauf compte 106) (1)",{"$nulls":4},{"$f":"E28+F28+G28","v":{"v":0,"d":"0.00 €"}},null,{"$f":"I28-H28","v":{"v":0,"d":"0.00 €"}},{"$f":"IF(H28=0,0,J28/H28)","v":{"v":0,"d":"0.00%"}}]
[null,null,"Titre 1 : Remboursement des dettes financières :"]
[null,16,"Emprunts et dettes assimilées (sauf 165 (1)))",{"$nulls":4},{"$f":"E30+F30+G30","v":{"v":0,"d":"0.00 €"}},null,{"$f":"I30-H30","v":{"v":0,"d":"0.00 €"}},{"$f":"IF(H30=0,0,J30/H30)","v":{"v":0,"d":"0.00%"}}]
[null,165,"Dépôts et cautionnements reçus (remboursements aux usagers) (1)",{"$nulls":4},{"$f":"E31+F31+G31","v":{"v":0,"d":"0.00 €"}},null,{"$f":"I31-H31","v":{"v":0,"d":"0.00 €"}},{"$f":"IF(H31=0,0,J31/H31)","v":{"v":0,"d":"0.00%"}}]
[null,17,"Dettes rattachées à des participations (1)",{"$nulls":4},{"$f":"E32+F32+G32","v":{"v":0,"d":"0.00 €"}},null,{"$f":"I32-H32","v":{"v":0,"d":"0.00 €"}},{"$f":"IF(H32=0,0,J32/H32)","v":{"v":0,"d":"0.00%"}}]
[null,18,"Comptes de liaison affectés à l'investissement (emplois) (1)",{"$nulls":4},{"$f":"E33+F33+G33","v":{"v":0,"d":"0.00 €"}},null,{"$f":"I33-H33","v":{"v":0,"d":"0.00 €"}},{"$f":"IF(H33=0,0,J33/H33)","v":{"v":0,"d":"0.00%"}}]
[null,null,"Titre 2 : Acquisition d'éléments de l'actif immobilisé :"]
[null,20,"Immobilisations incorporelles",{"$nulls":4},{"$f":"E35+F35+G35","v":{"v":0,"d":"0.00 €"}},null,{"$f":"I35-H35","v":{"v":0,"d":"0.00 €"}},{"$f":"IF(H35=0,0,J35/H35)","v":{"v":0,"d":"0.00%"}}]
[null,21,"Immobilisations corporelles",{"$f":"SUM(D37:D41)","v":{"v":0,"d":"0.00 €"}},{"$f":"SUM(E37:E41)","v":{"v":0,"d":"0.00 €"}},{"$f":"SUM(F37:F41)","v":{"v":0,"d":"0.00 €"}},{"$f":"SUM(G37:G41)","v":{"v":0,"d":"0.00 €"}},{"v":0,"d":"0.00 €"},{"$f":"SUM(I37:I41)","v":{"v":0,"d":"0.00 €"}},{"v":0,"d":"0.00 €"},{"v":0,"d":"0.00%"}]
[null,null,"- dont terrains",{"$nulls":4},{"v":0,"d":"0.00 €"},null,{"v":0,"d":"0.00 €"},{"v":0,"d":"0.00%"}]
[null,null,"- dont agencements de terrains",{"$nulls":4},{"v":0,"d":"0.00 €"},null,{"v":0,"d":"0.00 €"},{"v":0,"d":"0.00%"}]
[null,null,"- dont constructions",{"$nulls":4},{"v":0,"d":"0.00 €"},null,{"v":0,"d":"0.00 €"},{"v":0,"d":"0.00%"}]
[null,null,"- dont installations techniques, matériel et outillage",{"$nulls":4},{"v":0,"d":"0.00 €"},null,{"v":0,"d":"0.00 €"},{"v":0,"d":"0.00%"}]
[null,null,"- dont autres immobilisations corporelles",{"$nulls":4},{"v":0,"d":"0.00 €"},null,{"v":0,"d":"0.00 €"},{"v":0,"d":"0.00%"}]
[null,23,"Immobilisations en cours",{"$nulls":4},{"v":0,"d":"0.00 €"},null,{"v":0,"d":"0.00 €"},{"v":0,"d":"0.00%"}]
[null,26,"Participations et créances rattachées à des participations",{"$nulls":4},{"v":0,"d":"0.00 €"},null,{"v":0,"d":"0.00 €"},{"v":0,"d":"0.00%"}]
[null,27,"Autres immobilisations financières (sauf 2768)",{"$nulls":4},{"v":0,"d":"0.00 €"},null,{"v":0,"d":"0.00 €"},{"v":0,"d":"0.00%"}]
[null,null,"Titres 3 : Autres emplois :"]
[null,481,"Charges à répartir sur plusieurs exercices (augmentation)",{"$nulls":4},{"$f":"E46+F46+G46","v":{"v":0,"d":"0.00 €"}},null,{"$f":"I46-H46","v":{"v":0,"d":"0.00 €"}},{"$f":"IF(H46=0,0,J46/H46)","v":{"v":0,"d":"0.00%"}}]
[null,"071","Annulation de titres sur exercices clos (2)",{"$nulls":4},{"$f":"E47+F47+G47","v":{"v":0,"d":"0.00 €"}},null,{"$f":"I47-H47","v":{"v":0,"d":"0.00 €"}},{"$f":"IF(H47=0,0,J47/H47)","v":{"v":0,"d":"0.00%"}}]
[null,null,"TOTAL DES EMPLOIS",{"$f":"D27+D28+D30+D31+D32+D33+D35+D36+D42+D43+D44+D46+D47","v":{"v":0,"d":"0.00 €"}},{"v":0,"d":"0.00 €"},{"v":0,"d":"0.00 €"},{"v":0,"d":"0.00 €"},{"v":0,"d":"0.00 €"},{"v":0,"d":"0.00 €"},{"v":0,"d":"0.00 €"},{"$f":"IF(H48=0,0,J48/H48)","v":{"v":0,"d":"0.00%"}}]
[null,null,"APPORT AU FONDS DE ROULEMENT",{"$f":"IF((D48-D20)>0,0,D20-D48)","v":{"v":0,"d":"0.00 €"}},{"$f":"IF((E48-E20)>0,0,E20-E48)","v":{"v":0,"d":"0.00 €"}},{"$f":"IF((F48-F20)>0,0,F20-F48)","v":{"v":0,"d":"0.00 €"}},{"v":0,"d":"0.00 €"},{"$f":"IF((H48-H20)>0,0,H20-H48)","v":{"v":0,"d":"0.00 €"}},{"v":0,"d":"0.00 €"},{"$f":"I49-H49","v":{"v":0,"d":"0.00 €"}},{"$f":"IF(H49=0,0,J49/H49)","v":{"v":0,"d":"0.00%"}}]
[null,null,"TOTAL EQUILIBRE DU TABLEAU DE FINANCEMENT",{"$f":"D48+D49","v":{"v":0,"d":"0.00 €"}},{"v":0,"d":"0.00 €"},{"$f":"F48+F49","v":{"v":0,"d":"0.00 €"}},{"v":0,"d":"0.00 €"},{"$f":"H48+H49","v":{"v":0,"d":"0.00 €"}},{"v":0,"d":"0.00 €"},{"v":0,"d":"0.00 €"},{"$f":"IF(H50=0,0,J50/H50)","v":{"v":0,"d":"0.00%"}}]
[]
[null,null,"(1) ESSMS privés seulement"]
[null,null,"(2) ESSMS publics seulement"]

{"sheet":"Tableau CAF","index":15,"n_rows":33,"n_cols":8,"rows_kept":33,"hidden":true,"merged":[[1,1,1,7],[4,1,4,2],[5,1,5,2],[6,1,10,1],[11,1,15,1],[16,1,16,2],[17,1,22,1],[23,1,27,1],[28,1,28,2]]}
[]
[null,"Tableau de détermination et d'affectation de la capacité d'autofinancement (CAF)"]
[]
[{"$nulls":3},"Comptes","Prévisions ","Réalisations","Ecarts réalisations/ prévisions (€)","Ecarts réalisations/ prévisions (%)"]
[null,"RESULTAT COMPTABLE (EXCEDENT ou DEFICIT) (1)",null,null,{"$f":"+Conso!B275","v":0},{"$f":"+Conso!B319","v":0},{"$f":"F5-E5","v":0},{"$f":"IF(E5=0,0,G5/E5)","v":{"v":0,"d":"0.00%"}}]
[null,"+ Flux internes (charges)",null,null,{"$f":"SUM(E7:E16)","v":0},{"$f":"SUM(F7:F16)","v":0},{"$f":"F6-E6","v":0},{"$f":"IF(E6=0,0,G6/E6)","v":{"v":0,"d":"0.00%"}}]
[null,"FRI","+ Valeurs comptables des éléments d'actif cédés","c/675",{"$f":"+Conso!B277","v":0},{"$f":"+Conso!B321","v":0},0,{"v":0,"d":"0.00%"}]
[null,null,"+ Dotations aux amortissements des immobilisations incorporelles et corporelles","c/6811",{"$f":"+Conso!B278","v":0},{"$f":"+Conso!B322","v":0},0,{"v":0,"d":"0.00%"}]
[null,null,"+ Dotations aux provisions pour renouvellement des immobilisations et dotations aux amortissements dérogatoires","c/68742, c/68725",{"$f":"+Conso!B279","v":0},{"$f":"+Conso!B323","v":0},0,{"v":0,"d":"0.00%"}]
[null,null,"+ Autres dotations aux amortissements, dépréciations et provisions impactant le FRI","c/6812, c/6816,  c/6871, c/68746, c/68748",{"$f":"+Conso!B280","v":0},{"$f":"+Conso!B324","v":0},0,{"v":0,"d":"0.00%"}]
[null,null,"+ Reports en fonds dédiés à l'investissement sur concours publics des entités gestionnaires d'ESSMS (ESSMS privés)","c/68921",{"$f":"Conso!B281","v":0},{"$f":"Conso!B325","v":0},{"$f":"F11-E11","v":0},{"$f":"IF(E11=0,0,G11/E11)","v":{"v":0,"d":"0.00%"}}]
[null,"FRE","+ Dotations aux provisions d'exploitation","c/6815",{"$f":"+Conso!B282","v":0},{"$f":"+Conso!B326","v":0},0,{"v":0,"d":"0.00%"}]
[null,null,"+ Dotations aux provisions de couverture du BFR","c/68741",{"$f":"+Conso!B283","v":0},{"$f":"+Conso!B327","v":0},0,{"v":0,"d":"0.00%"}]
[null,null,"+ Dotations aux dépréciations des actifs circulants: créances, stocks et en-cours","c/6817",{"$f":"+Conso!B284","v":0},{"$f":"+Conso!B328","v":0},0,{"v":0,"d":"0.00%"}]
[null,null,"+ Autres dotations aux amortissements, dépréciations et provisions","c/686, c/6876",{"$f":"+Conso!B285","v":0},{"$f":"+Conso!B329","v":0},0,{"v":0,"d":"0.00%"}]
[null,null,"+ Reports en fonds dédiés (ESSMS privés) sauf c/68921","c/689 (hors c/68921)",{"$f":"+Conso!B286","v":0},{"$f":"+Conso!B330","v":0},0,{"v":0,"d":"0.00%"}]
[null,"- Flux internes (produits)",null,null,{"$f":"SUM(E18:E28)","v":0},{"$f":"SUM(F18:F28)","v":0},0,{"v":0,"d":"0.00%"}]
[null,"FRI","- Produits des cessions d'éléments d'actif","c/775",{"$f":"+Conso!B288","v":0},{"$f":"+Conso!B332","v":0},0,{"v":0,"d":"0.00%"}]
[null,null,"- Quotes-parts des subventions d'investissement virées au résultat de l'exercice","c/777",{"$f":"+Conso!B289","v":0},{"$f":"+Conso!B333","v":0},0,{"v":0,"d":"0.00%"}]
[null,null,"- Reprises sur provisions pour renouvellement des immobilisations et reprises sur amortissements dérogatoires","c/78742, c/78725",{"$f":"+Conso!B290","v":0},{"$f":"+Conso!B334","v":0},0,{"v":0,"d":"0.00%"}]
[null,null,"- Autres reprises sur amortissements, dépréciations et provisions impactant le FRI","c/7811, c/7816, c/78746, c/78748",{"$f":"+Conso!B291","v":0},{"$f":"+Conso!B335","v":0},0,{"v":0,"d":"0.00%"}]
[null,null,"- Quote-part d'éléments du fonds associatif virée au compte de résultat (ESSMS privés)","c/7781",{"$f":"+Conso!B292","v":0},{"$f":"+Conso!B336","v":0},0,{"v":0,"d":"0.00%"}]
[null,null,"- Utilisation des fonds dédiés à l'investissement sur concours publics des entités gestionnaires d'ESSMS (ESSMS privés)","c/78921",{"$f":"Conso!B293","v":0},{"$f":"Conso!B337","v":0},{"$f":"F23-E23","v":0},{"v":0,"d":"0.00%"}]
[null,"FRE","- Reprises sur provisions d'exploitation","c/7815",{"$f":"+Conso!B294","v":0},{"$f":"+Conso!B338","v":0},0,{"v":0,"d":"0.00%"}]
[null,null,"- Reprises sur provisions de couverture du BFR","c/78741",{"$f":"+Conso!B295","v":0},{"$f":"+Conso!B339","v":0},0,{"v":0,"d":"0.00%"}]
[null,null,"- Reprises sur dépréciations des actifs circulants: créances, stocks et en-cours","c/7817",{"$f":"+Conso!B296","v":0},{"$f":"+Conso!B340","v":0},0,{"v":0,"d":"0.00%"}]
[null,null,"- Autres reprises sur dépréciations et provisions","c/786, c/7876",{"$f":"+Conso!B297","v":0},{"$f":"+Conso!B341","v":0},0,{"v":0,"d":"0.00%"}]
[null,null,"- Utilisations de fonds reportés et de fonds dédiés (ESSMS privés) sauf c/78921","c/789 (hors c/78921)",{"$f":"+Conso!B298","v":0},{"$f":"+Conso!B342","v":0},0,{"v":0,"d":"0.00%"}]
[null,"CAPACITE OU INSUFFISANCE D'AUTOFINANCEMENT (CAF ou IAF)",null,null,{"$f":"E5+E6-E17","v":0},{"$f":"F5+F6-F17","v":0},{"$f":"F29-E29","v":0},{"$f":"IF(E29=0,0,G29/E29)","v":{"v":0,"d":"0.00%"}}]
[null,null,"Dont montant affectant le FRI",null,{"$f":"SUM(E7:E11)-SUM(E18:E23)","v":0},{"$f":"SUM(F7:F11)-SUM(F18:F23)","v":0},0,{"v":0,"d":"0.00%"}]
[null,null,"Dont montant affectant le FRE",null,{"$f":"E5+SUM(E12:E16)-SUM(E24:E28)","v":0},{"$f":"F5+SUM(F12:F16)-SUM(F24:F28)","v":0},0,{"v":0,"d":"0.00%"}]
[]
[null,"(1) : Montant précédé du signe \"-\" pour un déficit "]

{"sheet":"Bilan financier","index":16,"n_rows":70,"n_cols":13,"rows_kept":70,"hidden":true,"merged":[[1,1,1,12],[3,1,3,6],[3,7,3,12],[4,1,4,4],[4,7,4,10],[26,1,26,4],[26,7,26,10],[38,1,38,4],[38,7,38,10],[39,1,39,4],[39,7,39,10],[52,1,52,4],[52,7,52,10],[62,1,62,4],[62,7,62,10],[63,1,63,4],[63,7,63,10],[65,5,65,6]]}
[]
[null,{"$f":"IF('Page de garde'!$D$4=\"\",\"Bilan financier - Détermination du fonds de roulement au 31 décembre N\",\"Bilan financier - Détermination du fonds de roulement au 31 décembre \"&'Page de garde'!$D$4)","v":"Bilan financier - Détermination du fonds de roulement au 31 décembre N"}]
[]
[null,null,"Biens"]
[null,"BIENS",{"$nulls":3},{"$f":"IF('Page de garde'!$D$4=\"\",\"N-1\",'Page de garde'!$D$4-1)","v":"N-1"},{"$f":"IF('Page de garde'!$D$4=\"\",\"N\",'Page de garde'!$D$4)","v":"N"},"FINANCEMENTS",{"$nulls":3},{"$f":"IF('Page de garde'!$D$4=\"\",\"N-1\",'Page de garde'!$D$4-1)","v":"N-1"},{"$f":"IF('Page de garde'!$D$4=\"\",\"N\",'Page de garde'!$D$4)","v":"N"}]
[null,null,"Biens stables",{"$nulls":5},"Financements stables"]
[{"$nulls":3},"Immobilisations incorporelles brutes",{"$nulls":5},"Apports, dotations, réserves et fonds propres"]
[{"$nulls":3},"Immobilisations corporelles brutes",null,{"$f":"SUM(F9:F13)","v":{"v":0,"d":"0.00 €"}},{"$f":"SUM(G9:G13)","v":{"v":0,"d":"0.00 €"}},null,null,"Excédents affectés à l'investissement"]
[{"$nulls":4},"- Terrains",{"$nulls":4},"Subventions d'investissement"]
[{"$nulls":4},"- Agencements de terrain",{"$nulls":4},"Réserve de compensation des charges d'amortissement"]
[{"$nulls":4},"- Constructions",{"$nulls":4},"Provisions pour renouvellement des immobilisations"]
[{"$nulls":4},"- Installations techniques, matériel et outillage",{"$nulls":4},"Fonds dédiés à l'investisement (2)"]
[{"$nulls":4},"- Autres immobilisations corporelles",{"$nulls":4},"Provisions réglementées des plus-values nettes d'actif"]
[{"$nulls":3},"Immobilisations corporelles et incorporelles en cours",{"$nulls":5},"Emprunts et dettes assimilées (à plus d'un an à l'origine)"]
[{"$nulls":3},"Immobilisations en cours - Part investissement PPP (1)",{"$nulls":5},"Dépôts et cautionnements reçus"]
[{"$nulls":9},"Amortissements des immobilisations corporelles",null,{"$f":"SUM(L17:L20)","v":{"v":0,"d":"0.00 €"}},{"$f":"SUM(M17:M20)","v":{"v":0,"d":"0.00 €"}}]
[{"$nulls":10},"- Agencements de terrain"]
[{"$nulls":10},"- Constructions"]
[{"$nulls":10},"- Installations techniques, matériel et outillage"]
[{"$nulls":10},"- Autres immobilisations corporelles"]
[{"$nulls":3},"Immobilisations financières",{"$nulls":5},"Amortissement des immobilisations incorporelles"]
[{"$nulls":3},"Amortissements comptables excédentaires différés (2)",{"$nulls":5},"Dépenses refusées par l'autorité de tarification (2) (5) "]
[{"$nulls":3},"Charges à répartir sur plusieurs exercices",{"$nulls":5},"Dépréciation des immobilisations"]
[{"$nulls":3},"Autres",{"$nulls":5},"Autres (6)"]
[{"$nulls":3},"Compte de liaison investissement (2)",{"$nulls":5},"Compte de liaison investissement (2) (7)"]
[{"$nulls":4},"Total II",{"$f":"F7+F8+F14+F15+F21+F22+F23+F24+F25","v":{"v":0,"d":"0.00 €"}},{"$f":"G7+G8+G14+G15+G21+G22+G23+G24+G25","v":{"v":0,"d":"0.00 €"}},{"$nulls":3},"Total I",{"$f":"L7+L8+L9+L10+L11+L12+L13+L14+L15+L16+L21+L22+L23+L24+L25","v":{"v":0,"d":"0.00 €"}},{"$f":"M7+M8+M9+M10+M11+M12+M13+M14+M15+M16+M21+M22+M23+M24+M25","v":{"v":0,"d":"0.00 €"}}]
[null,"Fonds de roulement d'investissement négatif (I-II)","Fonds de roulement d'investissement négatif (I-II)",null,null,{"$f":"IF(L26-F26>0,0,F26-L26)","v":{"v":0,"d":"0.00 €"}},{"$f":"IF(M26-G26>0,0,G26-M26)","v":{"v":0,"d":"0.00 €"}},"Fonds de roulement d'investissement positif (I-II)",{"$nulls":3},{"$f":"IF(L26-F26<0,0,L26-F26)","v":{"v":0,"d":"0.00 €"}},{"$f":"IF(M26-G26<0,0,M26-G26)","v":{"v":0,"d":"0.00 €"}}]
[null,null,"Actifs stables d'exploitation",{"$nulls":5},"Financements stables d'exploitation"]
[{"$nulls":3},"Report à nouveau déficitaire (3)",{"$nulls":5},"Réserves et provisions affectées à la couverture du BFR"]
[{"$nulls":3},"Résultat déficitaire (3)",{"$nulls":5},"Réserves de compensation des déficits"]
[{"$nulls":3},"Créances glissantes",{"$nulls":5},"Résultat excédentaire (3)"]
[{"$nulls":3},"Droits acquis par les salariés, non provisionnés (2)",{"$nulls":5},"Report à nouveau excédentaire en attente d'affectation (3)"]
[{"$nulls":9},"Provisions pour risques et charges"]
[{"$nulls":9},"Fonds dédiés à l'exploitation (2)"]
[{"$nulls":9},"Dépréciation des stocks, créances et éléments financiers"]
[{"$nulls":9},"Autres"]
[{"$nulls":3},"Compte de liaison trésorerie (stable) (2)",{"$nulls":5},"Compte de liaison trésorerie (stable) (2)"]
[{"$nulls":4},"Total IV",{"$f":"F29+F30+F31+F32+F37","v":{"v":0,"d":"0.00 €"}},{"$f":"G29+G30+G31+G32+G37","v":{"v":0,"d":"0.00 €"}},{"$nulls":3},"Total III",{"$f":"L29+L30+L31+L32+L33+L34+L35+L36+L37","v":{"v":0,"d":"0.00 €"}},{"$f":"M29+M30+M31+M32+M33+M34+M35+M36+M37","v":{"v":0,"d":"0.00 €"}}]
[null,"Fonds de roulement d'exploitation négatif (III-IV)",{"$nulls":3},{"$f":"IF(L38-F38>0,0,F38-L38)","v":{"v":0,"d":"0.00 €"}},{"$f":"IF(M38-G38>0,0,G38-M38)","v":{"v":0,"d":"0.00 €"}},"Fonds de roulement d'exploitation positif (III-IV)",{"$nulls":3},{"$f":"IF(L38-F38<0,0,L38-F38)","v":{"v":0,"d":"0.00 €"}},{"$f":"IF(M38-G38<0,0,M38-G38)","v":{"v":0,"d":"0.00 €"}}]
[null,"Fonds de roulement net global négatif",{"$nulls":3},{"$f":"IF(L39+L27-F39-F27>0,0,F39+F27-L39-L27)","v":{"v":0,"d":"0.00 €"}},{"$f":"IF(M39+M27-G39-G27>0,0,G39+G27-M39-M27)","v":{"v":0,"d":"0.00 €"}},"Fonds de roulement net global positif",{"$nulls":3},{"$f":"IF(L39+L27-F39-F27<0,0,L39+L27-F39-F27)","v":{"v":0,"d":"0.00 €"}},{"$f":"IF(M39+M27-G39-G27<0,0,M39+M27-G39-G27)","v":{"v":0,"d":"0.00 €"}}]
[null,null,"Valeurs d'exploitation",{"$nulls":5},"Dettes d'exploitation"]
[{"$nulls":3},"Stocks et en-cours",{"$nulls":5},"Avances reçues"]
[{"$nulls":3},"Avances et acomptes versés",{"$nulls":5},"Fournisseurs"]
[{"$nulls":3},"Créances sur organismes payeurs, usagers et clients",{"$nulls":5},"Dettes sociales et fiscales"]
[{"$nulls":3},"Créances diverses d'exploitation",{"$nulls":5},"Dettes diverses d'exploitation"]
[{"$nulls":3},"Créances irrécouvrables admises en non valeur (4)",{"$nulls":5},"Produits constatés d'avance"]
[{"$nulls":3},"Charges constatées d'avance",{"$nulls":5},"Ressources à reverser à l'aide sociale"]
[{"$nulls":3},"Dépenses pour congés payés",{"$nulls":5},"Fonds déposés par les résidents"]
[{"$nulls":3},"Autres",{"$nulls":5},"Autres"]
[]
[{"$nulls":3},"Compte de liaison d'exploitation (2)",{"$nulls":5},"Compte de liaison d'exploitation (2)"]
[{"$nulls":4},"Total VI",{"$f":"F42+F43+F44+F45+F46+F47+F48+F49+F51","v":{"v":0,"d":"0.00 €"}},{"$f":"G42+G43+G44+G45+G46+G47+G48+G49+G51","v":{"v":0,"d":"0.00 €"}},{"$nulls":3},"Total V",{"$f":"L42+L43+L44+L45+L46+L47+L48+L49+L51","v":{"v":0,"d":"0.00 €"}},{"$f":"M42+M43+M44+M45+M46+M47+M48+M49+M51","v":{"v":0,"d":"0.00 €"}}]
[null,"Besoin en fonds de roulement (VI-V)",{"$nulls":3},{"$f":"IF(L52-F52>0,0,F52-L52)","v":{"v":0,"d":"0.00 €"}},{"$f":"IF(M52-G52>0,0,G52-M52)","v":{"v":0,"d":"0.00 €"}},"Excédent de financement d'exploitation (VI-V)",{"$nulls":3},{"$f":"IF(L52-F52<0,0,L52-F52)","v":{"v":0,"d":"0.00 €"}},{"$f":"IF(M52-G52<0,0,M52-G52)","v":{"v":0,"d":"0.00 €"}}]
[null,null,"Liquidités",{"$nulls":5},"Financements à court terme"]
[{"$nulls":3},"Valeurs mobilières de placement",{"$nulls":5},"Fournisseurs d'immobilisations"]
[{"$nulls":3},"Disponibilités",{"$nulls":5},"Fonds des majeurs protégés"]
[{"$nulls":3},"Autres",{"$nulls":5},"Concours bancaires courants"]
[{"$nulls":9},"Ligne de trésorerie"]
[{"$nulls":9},"Intérêts courus non échus"]
[{"$nulls":9},"Autres (dont emprunts à un an au plus)"]
[{"$nulls":3},"Compte de liaison trésorerie (2)",{"$nulls":5},"Compte de liaison trésorerie (2)"]
[{"$nulls":4},"Total VIII",{"$f":"F55+F56+F57+F61","v":{"v":0,"d":"0.00 €"}},{"$f":"G55+G56+G57+G61","v":{"v":0,"d":"0.00 €"}},{"$nulls":3},"Total VII",{"$f":"L55+L56+L57+L58+L59+L60+L61","v":{"v":0,"d":"0.00 €"}},{"$f":"M55+M56+M57+M58+M59+M60+M61","v":{"v":0,"d":"0.00 €"}}]
[null,"Trésorerie positive (VIII-VII)",{"$nulls":3},{"$f":"IF(L62-F62>0,0,F62-L62)","v":{"v":0,"d":"0.00 €"}},{"$f":"IF(M62-G62>0,0,G62-M62)","v":{"v":0,"d":"0.00 €"}},"Trésorerie négative (VIII-VII)",{"$nulls":3},{"$f":"IF(L62-F62<0,0,L62-F62)","v":{"v":0,"d":"0.00 €"}},{"$f":"IF(M62-G62<0,0,M62-G62)","v":{"v":0,"d":"0.00 €"}}]
[null,"TOTAL DES BIENS (II+IV+VI+VIII)",{"$nulls":3},{"$f":"F26+F38+F52+F62","v":{"v":0,"d":"0.00 €"}},{"$f":"G26+G38+G52+G62","v":{"v":0,"d":"0.00 €"}},"TOTAL DES FINANCEMENTS (I+III+V+VII)",{"$nulls":3},{"$f":"L26+L38+L52+L62","v":{"v":0,"d":"0.00 €"}},{"$f":"M26+M38+M52+M62","v":{"v":0,"d":"0.00 €"}}]
[null,null,"(1) : PPP = partenariat public privé",{"$nulls":5},"(4) : ESSMS publics seulement"]
[null,null,"(2) : ESSMS privés seulement",{"$nulls":5},"(5) : Montant précédé du signe \"-\""]
[null,null,"(3) : Sous contrôle de tiers financeurs",{"$nulls":5},"(6) : Dont résultats non contrôlés par des tiers financeurs"]
[{"$nulls":8},"(7) : Pour les ESSMS publics, ESSMS rattachés à une collectivité territoriale, un CCAS ou un CIAS seulement"]
[{"$nulls":5},"N-1","N"]
[null,"Contrôle entre TOTAL BIENS et TOTAL FINANCEMENTS",{"$nulls":3},{"$f":"IF(ROUND(F64-L64,0)=0,\"Ok\",\"Ecart de : \"&ROUND(F64-L64,2))","v":"Ok"},{"$f":"IF(ROUND(G64-M64,0)=0,\"Ok\",\"Ecart de : \"&ROUND(G64-M64,2))","v":"Ok"}]

{"sheet":"Ratios financiers","index":17,"n_rows":53,"n_cols":5,"rows_kept":53,"hidden":true,"merged":[[1,1,1,4],[4,1,4,2],[5,1,5,2],[6,1,6,2],[7,1,7,2],[8,1,8,2],[9,1,9,2],[10,1,10,2],[11,1,11,2],[12,1,12,2],[13,1,13,2],[14,1,14,2],[15,1,15,2],[16,1,16,2],[17,1,17,2],[18,1,18,2],[30,2,33,2],[36,2,38,2]]}
[]
[null,"Ratios d'analyse financière"]
[]
[null,"Données complémentaires au tableau \"FDR\" nécessaires au calcul des ratios",null,{"$f":"IF('Page de garde'!$D$4=\"\",\"N-1\",'Page de garde'!$D$4-1)","v":"N-1"},{"$f":"IF('Page de garde'!$D$4=\"\",\"N\",'Page de garde'!$D$4)","v":"N"}]
[null,"Montant cumulé des emprunts en fin d'année (comptes 16 hors c/165, c/1688 et c/169) (1)",null,{"$f":"'Bilan financier'!$L$14","v":{"v":0,"d":"0.00 €"}},{"$f":"'Bilan financier'!$M$14","v":{"v":0,"d":"0.00 €"}}]
[null,"Montant cumulé des financements stables du FRI en fin d'année (hors amortissements)",null,{"$f":"+'Bilan financier'!$L$26-'Bilan financier'!$L$16-'Bilan financier'!$L$21","v":{"v":0,"d":"0.00 €"}},{"$f":"+'Bilan financier'!$M$26-'Bilan financier'!$M$16-'Bilan financier'!$M$21","v":{"v":0,"d":"0.00 €"}}]
[null,"Marge brute d'exploitation (comptes 70 à 75 - comptes 60 à 65)",null,{"$f":"Conso!$B$353","v":{"v":0,"d":"0.00 €"}},{"$f":"Conso!$B$371","v":{"v":0,"d":"0.00 €"}}]
[null,"Capacité d'autofinancement (ou insuffisance d'autofinancement)",null,{"$f":"'Tabl. de financement'!$D$7-'Tabl. de financement'!$D$27","v":{"v":0,"d":"0.00 €"}},{"$f":"'Tabl. de financement'!I7-'Tabl. de financement'!I27","v":{"v":0,"d":"0.00 €"}}]
[null,"Total des charges",null,{"$f":"Conso!B355","v":{"v":0,"d":"0.00 €"}},{"$f":"Conso!B373","v":{"v":0,"d":"0.00 €"}}]
[null,"Dont achats stockés et variation des stocks",null,{"$f":"Conso!B356","v":{"v":0,"d":"0.00 €"}},{"$f":"Conso!B374","v":{"v":0,"d":"0.00 €"}}]
[null,"Dont charges des comptes 60 à 62",null,{"$f":"Conso!B357","v":{"v":0,"d":"0.00 €"}},{"$f":"Conso!B375","v":{"v":0,"d":"0.00 €"}}]
[null,"Dont charges des comptes 63 et 645 à 647",null,{"$f":"Conso!B358","v":{"v":0,"d":"0.00 €"}},{"$f":"Conso!B376","v":{"v":0,"d":"0.00 €"}}]
[null,"Dont charges non décaissables (2)",null,{"$f":"Conso!B359","v":{"v":0,"d":"0.00 €"}},{"$f":"Conso!B377","v":{"v":0,"d":"0.00 €"}}]
[null,"Produits de la tarification",null,{"$f":"Conso!B360","v":{"v":0,"d":"0.00 €"}},{"$f":"Conso!B378","v":{"v":0,"d":"0.00 €"}}]
[null,"Produits du compte 70",null,{"$f":"Conso!B361","v":{"v":0,"d":"0.00 €"}},{"$f":"Conso!B379","v":{"v":0,"d":"0.00 €"}}]
[null,"Produits courants d'exploitation (comptes 70 à 75 - c/ 709 et c/713)",null,{"$f":"Conso!$B$362","v":{"v":0,"d":"0.00 €"}},{"$f":"Conso!$B$380","v":{"v":0,"d":"0.00 €"}}]
[null,"Produits d'exploitation (total classe 7 sauf c/76, c/77, c/786 et c/787 - c/709 et c/713)",null,{"$f":"Conso!$B$363","v":{"v":0,"d":"0.00 €"}},{"$f":"Conso!$B$381","v":{"v":0,"d":"0.00 €"}}]
[null,"Produits classe 7 (sauf c/775, c/777, c/7781 et c/78) - c/709 et c/713",null,{"$f":"Conso!$B$364","v":{"v":0,"d":"0.00 €"}},{"$f":"Conso!$B$382","v":{"v":0,"d":"0.00 €"}}]
[null,"Solde débiteur comptes 41"]
[]
[null,"(1) : Montant et calcul des ratios afférents à affiner si nécessaire dans le rapport financier.  "]
[null,"(2) : Par défaut comptes 673, 675 et 68, à compléter le cas échéant."]
[]
[]
[null,"Thèmes & intitulés\n(valeurs indicatives)","Mode de calcul",{"$f":"IF('Page de garde'!$D$4=\"\",\"Valeur de l'indicateur pour   N-1\",\"Valeur de l'indicateur pour \"&'Page de garde'!$D$4-1)","v":"Valeur de l'indicateur pour   N-1"},{"$f":"IF('Page de garde'!$D$4=\"\",\"Valeur de l'indicateur pour N\",\"Valeur de l'indicateur pour \"&'Page de garde'!$D$4)","v":"Valeur de l'indicateur pour N"}]
[null,"1. Endettement à moyen et long terme"]
[null,"1.1. Indépendance financière (<50%)","Emprunts (comptes 16 hors c/165, c/1688 et c/169) x 100\nFinancements stables du FRI (hors amortissements cumulés)",{"$f":"IF(D6=0,0,D5/D6)","v":{"v":0,"d":"0.00%"}},{"$f":"IF(E6=0,0,E5/E6)","v":{"v":0,"d":"0.00%"}}]
[null,"1.2. Apurement de la dette (>2)","Immobilisations nettes amortissables\nDettes financières à moyen et long terme",{"$f":"IF(D5=0,0,('Bilan financier'!$F$7+'Bilan financier'!$F$8-'Bilan financier'!$F$9+'Bilan financier'!$F$14+'Bilan financier'!$F$15-'Bilan financier'!$L$16-'Bilan financier'!$L$21)/D5)","v":{"v":0,"d":"0.00"}},{"$f":"IF(E5=0,0,('Bilan financier'!$G$7+'Bilan financier'!$G$8-'Bilan financier'!$G$9+'Bilan financier'!$G$14+'Bilan financier'!$G$15-'Bilan financier'!$M$16-'Bilan financier'!$M$21)/E5)","v":{"v":0,"d":"0.00"}}]
[null,"1.3. Durée apparente de la dette","Emprunts (comptes 16 hors c/165, c/1688 et c/169)\nCAF",{"$f":"IF(D8=0,0,D5/D8)","v":{"v":0,"d":"0.00"}},{"$f":"IF(E8=0,0,E5/E8)","v":{"v":0,"d":"0.00"}}]
[null,"2. Patrimoine immobilier"]
[null,"2.1. Vétusté des immobilisations (1)","Solde créditeur des comptes 28\nSolde débiteur des comptes 21 correspondants"]
[null,"Construction",null,{"$f":"IF('Bilan financier'!$F$11=0,0,'Bilan financier'!$L$18/'Bilan financier'!$F$11)","v":{"v":0,"d":"0.00%"}},{"$f":"IF('Bilan financier'!$G$11=0,0,'Bilan financier'!$M$18/'Bilan financier'!$G$11)","v":{"v":0,"d":"0.00%"}}]
[null,"Installations techniques, matériel et outillage",null,{"$f":"IF('Bilan financier'!$F$12=0,0,'Bilan financier'!$L$19/'Bilan financier'!$F$12)","v":{"v":0,"d":"0.00%"}},{"$f":"IF('Bilan financier'!$G$12=0,0,'Bilan financier'!$M$19/'Bilan financier'!$G$12)","v":{"v":0,"d":"0.00%"}}]
[null,"Autres immobilisations corporelles",null,{"$f":"IF('Bilan financier'!$F$13=0,0,'Bilan financier'!$L$20/'Bilan financier'!$F$13)","v":{"v":0,"d":"0.00%"}},{"$f":"IF('Bilan financier'!$G$13=0,0,'Bilan financier'!$M$20/'Bilan financier'!$G$13)","v":{"v":0,"d":"0.00%"}}]
[null,"3. Equilibres du bilan"]
[null,"3.1.a. Fonds de roulement en jours d'exploitation"]
[null,"Fonds de roulement d'investissement (FRI)","FRI ou FRE ou FRNG x 365 j.\nTotal classe 6 (charges décaissables uniquement)",{"$f":"IF((D9-D13)=0,0,('Bilan financier'!$L$27-'Bilan financier'!$F$27)*365/(D9-D13))","v":{"v":0,"d":"0.00"}},{"$f":"IF((E9-E13)=0,0,('Bilan financier'!$M$27-'Bilan financier'!$G$27)*365/(E9-E13))","v":{"v":0,"d":"0.00"}}]
[null,"Fonds de roulement d'exploitation (FRE)",null,{"$f":"IF((D9-D13)=0,0,('Bilan financier'!$L$39-'Bilan financier'!$F$39)*365/(D9-D13))","v":{"v":0,"d":"0.00"}},{"$f":"IF((E9-E13)=0,0,('Bilan financier'!$M$39-'Bilan financier'!$G$39)*365/(E9-E13))","v":{"v":0,"d":"0.00"}}]
[null,"Fonds de roulement net global (FRNG)",null,{"$f":"IF((D9-D13)=0,0,('Bilan financier'!$L$40-'Bilan financier'!$F$40)*365/(D9-D13))","v":{"v":0,"d":"0.00"}},{"$f":"IF((E9-E13)=0,0,('Bilan financier'!$M$40-'Bilan financier'!$G$40)*365/(E9-E13))","v":{"v":0,"d":"0.00"}}]
[null,"3.1.b. Besoin en fonds de roulement en jours d'exploitation","BFR x 365 j.\nTotal classe 6 (charges décaissables uniquement)",{"$f":"IF((D9-D13)=0,0,('Bilan financier'!$F$53-'Bilan financier'!$L$53)*365/(D9-D13))","v":{"v":0,"d":"0.00"}},{"$f":"IF((E9-E13)=0,0,('Bilan financier'!$G$53-'Bilan financier'!$M$53)*365/(E9-E13))","v":{"v":0,"d":"0.00"}}]
[null,"3.1.c. Trésorerie en jours d'exploitation","Trésorerie x 365 j.\nTotal classe 6 (charges décaissables uniquement)",{"$f":"IF((D9-D13)=0,0,('Bilan financier'!$F$63-'Bilan financier'!$L$63)*365/(D9-D13))","v":{"v":0,"d":"0.00"}},{"$f":"IF((E9-E13)=0,0,('Bilan financier'!$G$63-'Bilan financier'!$M$63)*365/(E9-E13))","v":{"v":0,"d":"0.00"}}]
[null,"3.2. Réserve de couverture du BFR en jours d'exploitation","Solde des comptes 141 et 10685 x 365 j.\nTotal classe 6 (charges décaissables uniquement)",{"$f":"IF((D9-D13)=0,0,'Bilan financier'!$L$29*365/(D9-D13))","v":{"v":0,"d":"0.00"}},{"$f":"IF((E9-E13)=0,0,'Bilan financier'!$M$29*365/(E9-E13))","v":{"v":0,"d":"0.00"}}]
[null,"4. Rotation des postes d'exploitation en jours"]
[null,"4.1. Stocks\n(10-20 j.)","[Stocks (solde débiteur classe 3)] x 365 j.\nTotal des consommations (comptes 601 à 603)",{"$f":"IF(D10=0,0,('Bilan financier'!$F$42*365/D10))","v":{"v":0,"d":"0.00"}},{"$f":"IF(E10=0,0,('Bilan financier'!$G$42*365/E10))","v":{"v":0,"d":"0.00"}}]
[null,"4.2. Créances\n(< 30 j.)","(Solde débiteur comptes 41) x 365 j.\nTotal des produits (comptes 70 et 73)",{"$f":"IF((D14+D15)=0,0,D19*365/(D14+D15))","v":{"v":0,"d":"0.00"}},{"$f":"IF((E14+E15)=0,0,E19*365/(E14+E15))","v":{"v":0,"d":"0.00"}}]
[null,"4.3. Dettes fournisseurs\n(< 45 j.)","(Solde créditeur comptes 401) x 365 j.\nTotal des charges (comptes 60 à 62) (2)",{"$f":"IF(D11=0,0,'Bilan financier'!$L$43*365/D11)","v":{"v":0,"d":"0.00"}},{"$f":"IF(E11=0,0,'Bilan financier'!$M$43*365/E11)","v":{"v":0,"d":"0.00"}}]
[null,"4.4. Dettes sociales et dettes fiscales","(Solde créditeur comptes 43 et 44) x 365 j.\nTotal des charges (comptes 63 et 645 à 647)",{"$f":"IF(D12=0,0,'Bilan financier'!$L$44*365/D12)","v":{"v":0,"d":"0.00"}},{"$f":"IF(E12=0,0,'Bilan financier'!$M$44*365/E12)","v":{"v":0,"d":"0.00"}}]
[null,"5. Autres"]
[null,"5.1 Taux de CAF (5 à 10%)","CAF x100\nTotal classe 7 (sauf c/775, c/777, c/7781 et c/78) - c/709 et c/713",{"$f":"IF(D18=0,0,D8/D18)","v":{"v":0,"d":"0.00%"}},{"$f":"IF(E18=0,0,E8/E18)","v":{"v":0,"d":"0.00%"}}]
[null,"5.2 Taux de réserve de compensation des déficits","Réserve de compensation des déficits (c/10686 ou c/106856) x100\nTotal classe 7 (sauf c/76, c/77, c/786 et c/787) - c/709 et c/713",{"$f":"IF(D17=0,0,'Bilan financier'!$L$30/D17)","v":{"v":0,"d":"0.00%"}},{"$f":"IF(E17=0,0,'Bilan financier'!$M$30/E17)","v":{"v":0,"d":"0.00%"}}]
[null,"5.3 Taux de marge brute","(Comptes 70 à 75 - comptes 60 à 65) x 100\nComptes 70 à 75 - c/ 709 et c/713",{"$f":"IF(D16=0,0,D7/D16)","v":{"v":0,"d":"0.00%"}},{"$f":"IF(E16=0,0,E7/E16)","v":{"v":0,"d":"0.00%"}}]
[null,"(1) Hors comptes 23"]
[null,"(2) Hors comptes 709 et 713 inscrits dans les charges du groupe I"]

{"sheet":"Tableau Rcc","index":18,"n_rows":42,"n_cols":13,"rows_kept":42,"hidden":true,"merged":[[1,1,1,12],[5,1,7,1],[5,2,7,2],[5,3,7,3],[5,4,7,4],[5,5,5,10],[5,11,6,12],[6,5,6,6],[6,7,6,8],[6,9,6,10]]}
[]
[null,"Tableau de répartition des charges communes et opérations faites en commun"]
[]
[]
[null,"Préconisation de remplissage : la somme des budgets (2) + (3) devrait être égale à (1)"]
[null,"N° de compte","Libellé","Montant total du compte (1)","Clé de répartition\n(nature)","Activités/ESSMS relevant du périmètre du CPOM (2)",{"$nulls":5},"Budgets hors périmètre du CPOM (synthèse) (3)"]
[{"$nulls":5},"CRP",null,"CRA 1",null,"CRA…"]
[{"$nulls":5},"%","Montant","%","Montant","%","Montant","%","Montant"]
[{"$nulls":5},{"$f":"IF($D9=0,0,G9/$D9)","v":{"v":0,"d":"0%"}},null,{"$f":"IF($D9=0,0,I9/$D9)","v":{"v":0,"d":"0%"}},null,{"$f":"IF($D9=0,0,K9/$D9)","v":{"v":0,"d":"0%"}},null,{"$f":"IF($D9=0,0,M9/$D9)","v":{"v":0,"d":"0%"}}]
[{"$nulls":5},{"v":0,"d":"0%"},null,{"v":0,"d":"0%"},null,{"v":0,"d":"0%"},null,{"v":0,"d":"0%"}]
[{"$nulls":5},{"v":0,"d":"0%"},null,{"v":0,"d":"0%"},null,{"v":0,"d":"0%"},null,{"v":0,"d":"0%"}]
[{"$nulls":5},{"v":0,"d":"0%"},null,{"v":0,"d":"0%"},null,{"v":0,"d":"0%"},null,{"v":0,"d":"0%"}]
[{"$nulls":5},{"v":0,"d":"0%"},null,{"v":0,"d":"0%"},null,{"v":0,"d":"0%"},null,{"v":0,"d":"0%"}]
[{"$nulls":5},{"v":0,"d":"0%"},null,{"v":0,"d":"0%"},null,{"v":0,"d":"0%"},null,{"v":0,"d":"0%"}]
[{"$nulls":5},{"v":0,"d":"0%"},null,{"v":0,"d":"0%"},null,{"v":0,"d":"0%"},null,{"v":0,"d":"0%"}]
[{"$nulls":5},{"v":0,"d":"0%"},null,{"v":0,"d":"0%"},null,{"v":0,"d":"0%"},null,{"v":0,"d":"0%"}]
[{"$nulls":5},{"v":0,"d":"0%"},null,{"v":0,"d":"0%"},null,{"v":0,"d":"0%"},null,{"v":0,"d":"0%"}]
[{"$nulls":5},{"v":0,"d":"0%"},null,{"v":0,"d":"0%"},null,{"v":0,"d":"0%"},null,{"v":0,"d":"0%"}]
[{"$nulls":5},{"v":0,"d":"0%"},null,{"v":0,"d":"0%"},null,{"v":0,"d":"0%"},null,{"v":0,"d":"0%"}]
[{"$nulls":5},{"v":0,"d":"0%"},null,{"v":0,"d":"0%"},null,{"v":0,"d":"0%"},null,{"v":0,"d":"0%"}]
[{"$nulls":5},{"v":0,"d":"0%"},null,{"v":0,"d":"0%"},null,{"v":0,"d":"0%"},null,{"v":0,"d":"0%"}]
[{"$nulls":5},{"v":0,"d":"0%"},null,{"v":0,"d":"0%"},null,{"v":0,"d":"0%"},null,{"v":0,"d":"0%"}]
[{"$nulls":5},{"v":0,"d":"0%"},null,{"v":0,"d":"0%"},null,{"v":0,"d":"0%"},null,{"v":0,"d":"0%"}]
[{"$nulls":5},{"v":0,"d":"0%"},null,{"v":0,"d":"0%"},null,{"v":0,"d":"0%"},null,{"v":0,"d":"0%"}]
[{"$nulls":5},{"v":0,"d":"0%"},null,{"v":0,"d":"0%"},null,{"v":0,"d":"0%"},null,{"v":0,"d":"0%"}]
[{"$nulls":5},{"v":0,"d":"0%"},null,{"v":0,"d":"0%"},null,{"v":0,"d":"0%"},null,{"v":0,"d":"0%"}]
[{"$nulls":5},{"v":0,"d":"0%"},null,{"v":0,"d":"0%"},null,{"v":0,"d":"0%"},null,{"v":0,"d":"0%"}]
[{"$nulls":5},{"v":0,"d":"0%"},null,{"v":0,"d":"0%"},null,{"v":0,"d":"0%"},null,{"v":0,"d":"0%"}]
[{"$nulls":5},{"v":0,"d":"0%"},null,{"v":0,"d":"0%"},null,{"v":0,"d":"0%"},null,{"v":0,"d":"0%"}]
[{"$nulls":5},{"v":0,"d":"0%"},null,{"v":0,"d":"0%"},null,{"v":0,"d":"0%"},null,{"v":0,"d":"0%"}]
[{"$nulls":5},{"v":0,"d":"0%"},null,{"v":0,"d":"0%"},null,{"v":0,"d":"0%"},null,{"v":0,"d":"0%"}]
[{"$nulls":5},{"v":0,"d":"0%"},null,{"v":0,"d":"0%"},null,{"v":0,"d":"0%"},null,{"v":0,"d":"0%"}]
[{"$nulls":5},{"v":0,"d":"0%"},null,{"v":0,"d":"0%"},null,{"v":0,"d":"0%"},null,{"v":0,"d":"0%"}]
[{"$nulls":5},{"v":0,"d":"0%"},null,{"v":0,"d":"0%"},null,{"v":0,"d":"0%"},null,{"v":0,"d":"0%"}]
[{"$nulls":5},{"v":0,"d":"0%"},null,{"v":0,"d":"0%"},null,{"v":0,"d":"0%"},null,{"v":0,"d":"0%"}]
[null,"Total",null,{"$f":"SUM(D9:D35)","v":0},null,{"v":0,"d":"0%"},{"$f":"SUM(G9:G35)","v":0},{"v":0,"d":"0%"},0,{"v":0,"d":"0%"},0,{"v":0,"d":"0%"},0]
[]
[null,null,"Montant des quotes-parts des opérations faites en commun",null,null,{"$f":"IF($D38=0,0,G38/$D38)","v":{"v":0,"d":"0%"}},null,{"$f":"IF($D38=0,0,I38/$D38)","v":{"v":0,"d":"0%"}},null,{"$f":"IF($D38=0,0,K38/$D38)","v":{"v":0,"d":"0%"}},null,{"$f":"IF($D38=0,0,M38/$D38)","v":{"v":0,"d":"0%"}}]
[null,null,"Quote-part des frais de siège",null,null,{"$f":"IF($D39=0,0,G39/$D39)","v":{"v":0,"d":"0%"}},null,{"$f":"IF($D39=0,0,I39/$D39)","v":{"v":0,"d":"0%"}},null,{"$f":"IF($D39=0,0,K39/$D39)","v":{"v":0,"d":"0%"}},null,{"$f":"IF($D39=0,0,M39/$D39)","v":{"v":0,"d":"0%"}}]
[null,null,"Quotes-parts Autres opérations faites en commun",null,null,{"$f":"IF($D40=0,0,G40/$D40)","v":{"v":0,"d":"0%"}},null,{"$f":"IF($D40=0,0,I40/$D40)","v":{"v":0,"d":"0%"}},null,{"$f":"IF($D40=0,0,K40/$D40)","v":{"v":0,"d":"0%"}},null,{"$f":"IF($D40=0,0,M40/$D40)","v":{"v":0,"d":"0%"}}]
[null,null,"…",null,null,{"$f":"IF($D41=0,0,G41/$D41)","v":{"v":0,"d":"0%"}},null,{"$f":"IF($D41=0,0,I41/$D41)","v":{"v":0,"d":"0%"}},null,{"$f":"IF($D41=0,0,K41/$D41)","v":{"v":0,"d":"0%"}},null,{"$f":"IF($D41=0,0,M41/$D41)","v":{"v":0,"d":"0%"}}]
[null,"Total",null,{"$f":"SUM(D38:D41)","v":0},null,{"$f":"IF($D42=0,0,G42/$D42)","v":{"v":0,"d":"0%"}},{"$f":"SUM(G38:G41)","v":0},{"$f":"IF($D42=0,0,I42/$D42)","v":{"v":0,"d":"0%"}},0,{"$f":"IF($D42=0,0,K42/$D42)","v":{"v":0,"d":"0%"}},0,{"$f":"IF($D42=0,0,M42/$D42)","v":{"v":0,"d":"0%"}},0]

{"sheet":"Provis°, dépréciat°, subvent","index":19,"n_rows":48,"n_cols":12,"rows_kept":48,"hidden":true,"merged":[[1,1,1,11],[6,1,6,2],[7,1,7,2],[8,1,8,2],[11,1,11,2],[12,1,12,2],[13,1,13,2],[16,1,16,2],[17,1,17,2],[18,1,18,2],[21,1,21,2],[22,1,22,2],[23,1,23,2],[26,1,26,2],[27,1,27,2],[28,1,28,2],[31,1,31,2],[32,1,32,2],[33,1,33,2],[36,1,36,2],[37,1,37,2],[38,1,38,2],[45,1,45,2],[46,1,46,2],[47,1,47,2]]}
[]
[null,"Tableau des provisions et des dépréciations"]
[]
[{"$nulls":3},"Compte de résultat concerné","Compte d'imputation","Objet de la provision, dépréciation ou fonds dédiés","Montants au  début de l’exercice","Dotations de l’exercice","Reprises de l’exercice","Montant à la fin de l’exercice"]
[{"$nulls":6},"(1)","(2)","(3)","(4)=(1)+(2)-(3)"]
[{"$nulls":7},{"$f":"IF(ROUND(H7-Conso!B387,2)=0,\"\",\"Ecart avec comptes 6872/6874 de : \n\"&TEXT(ROUND(H7-Conso!B387,2),\"# ##,00\"&\" €\"))","v":""},{"$f":"IF(ROUND(I7-Conso!B388,2)=0,\"\",\"Ecart avec comptes 7872/7874 de : \n\"&TEXT(ROUND(I7-Conso!B388,2),\"# ##,00\"&\" €\"))","v":""}]
[null,"Provisions réglementées (comptes 14)",{"$nulls":4},{"$f":"SUM(G8:G9)","v":{"v":0,"d":"0.00 €"}},{"$f":"SUM(H8:H9)","v":{"v":0,"d":"0.00 €"}},{"$f":"SUM(I8:I9)","v":{"v":0,"d":"0.00 €"}},{"$f":"+G7+H7-I7","v":{"v":0,"d":"0.00 €"}}]
[{"$nulls":9},{"$f":"+G8+H8-I8","v":{"v":0,"d":"0.00 €"}}]
[{"$nulls":9},{"$f":"+G9+H9-I9","v":{"v":0,"d":"0.00 €"}}]
[]
[]
[null,"Provisions pour risques et charges  (comptes 15)",{"$nulls":4},{"$f":"SUM(G13:G14)","v":{"v":0,"d":"0.00 €"}},{"$f":"SUM(H13:H14)","v":{"v":0,"d":"0.00 €"}},{"$f":"SUM(I13:I14)","v":{"v":0,"d":"0.00 €"}},{"$f":"+G12+H12-I12","v":{"v":0,"d":"0.00 €"}}]
[{"$nulls":9},{"$f":"+G13+H13-I13","v":{"v":0,"d":"0.00 €"}}]
[{"$nulls":9},{"$f":"+G14+H14-I14","v":{"v":0,"d":"0.00 €"}}]
[]
[null,null,"Dépréciations (comptes 29, 39, 49 59)"]
[null,"Dépréciation des immobilisations",{"$nulls":4},{"$f":"SUM(G18:G19)","v":{"v":0,"d":"0.00 €"}},{"$f":"SUM(H18:H19)","v":{"v":0,"d":"0.00 €"}},{"$f":"SUM(I18:I19)","v":{"v":0,"d":"0.00 €"}},{"$f":"+G17+H17-I17","v":{"v":0,"d":"0.00 €"}}]
[{"$nulls":9},{"$f":"+G18+H18-I18","v":{"v":0,"d":"0.00 €"}}]
[{"$nulls":9},{"$f":"+G19+H19-I19","v":{"v":0,"d":"0.00 €"}}]
[]
[]
[null,"Dépréciation des stocks et en-cours",{"$nulls":4},{"$f":"SUM(G23:G24)","v":{"v":0,"d":"0.00 €"}},{"$f":"SUM(H23:H24)","v":{"v":0,"d":"0.00 €"}},{"$f":"SUM(I23:I24)","v":{"v":0,"d":"0.00 €"}},{"$f":"+G22+H22-I22","v":{"v":0,"d":"0.00 €"}}]
[{"$nulls":9},{"$f":"+G23+H23-I23","v":{"v":0,"d":"0.00 €"}}]
[{"$nulls":9},{"$f":"+G24+H24-I24","v":{"v":0,"d":"0.00 €"}}]
[]
[]
[null,"Dépréciation des comptes de tiers",{"$nulls":4},{"$f":"SUM(G28:G29)","v":{"v":0,"d":"0.00 €"}},{"$f":"SUM(H28:H29)","v":{"v":0,"d":"0.00 €"}},{"$f":"SUM(I28:I29)","v":{"v":0,"d":"0.00 €"}},{"$f":"+G27+H27-I27","v":{"v":0,"d":"0.00 €"}}]
[{"$nulls":9},{"$f":"+G28+H28-I28","v":{"v":0,"d":"0.00 €"}}]
[{"$nulls":9},{"$f":"+G29+H29-I29","v":{"v":0,"d":"0.00 €"}}]
[]
[]
[null,"Dépréciation des comptes financiers",{"$nulls":4},{"$f":"SUM(G33:G34)","v":{"v":0,"d":"0.00 €"}},{"$f":"SUM(H33:H34)","v":{"v":0,"d":"0.00 €"}},{"$f":"SUM(I33:I34)","v":{"v":0,"d":"0.00 €"}},{"$f":"+G32+H32-I32","v":{"v":0,"d":"0.00 €"}}]
[{"$nulls":9},{"$f":"+G33+H33-I33","v":{"v":0,"d":"0.00 €"}}]
[{"$nulls":9},{"$f":"+G34+H34-I34","v":{"v":0,"d":"0.00 €"}}]
[]
[{"$nulls":7},{"$f":"IF(ROUND(H37,2)-ROUND(Conso!B396,2)=0,\"\",\"Ecart avec comptes 689 de : \"&TEXT(ROUND(H37-Conso!B396,2),\"# ##,00\"&\" €\"))","v":""},{"$f":"IF(ROUND(I37,2)-ROUND(Conso!B397,2)=0,\"\",\"Ecart avec comptes 789 de : \"&TEXT(ROUND(I37-Conso!B397,2),\"# ##,00\"&\" €\"))","v":""}]
[null,"Fonds dédiés",{"$nulls":4},{"$f":"SUM(G38:G39)","v":{"v":0,"d":"0.00 €"}},{"$f":"SUM(H38:H39)","v":{"v":0,"d":"0.00 €"}},{"$f":"SUM(I38:I39)","v":{"v":0,"d":"0.00 €"}},{"$f":"+G37+H37-I37","v":{"v":0,"d":"0.00 €"}}]
[{"$nulls":9},{"$f":"+G38+H38-I38","v":{"v":0,"d":"0.00 €"}}]
[{"$nulls":9},{"$f":"+G39+H39-I39","v":{"v":0,"d":"0.00 €"}}]
[]
[null,"Tableau des subventions d'investissement à caractère transférable"]
[]
[{"$nulls":3},"Compte de résultat concerné","Organisme attributaire","Compte d'imputation","Montants initiaux",{"$f":"IF('Page de garde'!$D$4=\"\",\"Reprises déjà effectuées (au 31 déc. N-1)\",\"Reprises déjà effectuées (au 31 déc. \"&('Page de garde'!$D$4-1)&\")\")","v":"Reprises déjà effectuées (au 31 déc. N-1)"},{"$f":"IF('Page de garde'!$D$4=\"\",\"Solde des subventions au 1er janv. N\",\"Solde des subventions au 1er janv. \"&('Page de garde'!$D$4))","v":"Solde des subventions au 1er janv. N"},{"$f":"IF('Page de garde'!$D$4=\"\",\"Montant perçus au cours de l'exercice N\",\"Montant perçus au cours de l'exercice \"&('Page de garde'!$D$4))","v":"Montant perçus au cours de l'exercice N"},{"$f":"IF('Page de garde'!$D$4=\"\",\"Reprises effectuées au titre de l'exercice N\",\"Reprises effectuées au titre de l'exercice \"&('Page de garde'!$D$4))","v":"Reprises effectuées au titre de l'exercice N"},{"$f":"IF('Page de garde'!$D$4=\"\",\"Solde des subventions au 31 déc. N\",\"Solde des subventions au 31 déc. \"&('Page de garde'!$D$4))","v":"Solde des subventions au 31 déc. N"}]
[{"$nulls":6},"(1)","(2)","(1)-(2) = (3)","(4)","(5)","(3)+(4)-(5)"]
[{"$nulls":10},{"$f":"IF(K46-Conso!$B$399=0,\"\",\"Ecart avec les comptes 777 de : \n\"&TEXT(ROUND(K46-Conso!$B$399,2),\"# ##,00\"&\" €\"))","v":""}]
[null,"Comptes 13",{"$nulls":4},{"$f":"SUM(G47:G48)","v":{"v":0,"d":"0.00 €"}},{"$f":"SUM(H47:H48)","v":{"v":0,"d":"0.00 €"}},{"$f":"+G46-H46","v":{"v":0,"d":"0.00 €"}},{"$f":"SUM(J47:J48)","v":{"v":0,"d":"0.00 €"}},{"$f":"SUM(K47:K48)","v":{"v":0,"d":"0.00 €"}},{"$f":"I46+J46-K46","v":{"v":0,"d":"0.00 €"}}]
[{"$nulls":8},{"$f":"+G47-H47","v":{"v":0,"d":"0.00 €"}},null,null,{"$f":"I47+J47-K47","v":{"v":0,"d":"0.00 €"}}]
[{"$nulls":8},{"$f":"+G48-H48","v":{"v":0,"d":"0.00 €"}},null,null,{"$f":"I48+J48-K48","v":{"v":0,"d":"0.00 €"}}]

{"sheet":"Emprunts ESSMS privés","index":20,"n_rows":14,"n_cols":17,"rows_kept":14,"hidden":true,"merged":[[1,1,1,14],[4,1,5,1],[4,2,5,2],[4,3,5,3],[4,4,5,4],[4,5,5,5],[4,6,5,6],[4,7,5,7],[4,8,5,8],[4,9,5,9],[4,10,4,11],[4,12,5,12],[4,13,5,13],[4,14,5,14],[4,15,4,16],[9,1,9,3]]}
[]
[null,"Tableau des emprunts en cours (établissements et services privés)"]
[]
[]
[null,"ESSMS concerné","Organisme prêteur","Date de souscription","Montant emprunté","Nature de l'emprunt (1)","Durée (années)","Taux %","Type de taux d'intérêt (2)","Formule de calcul du taux d'intérêt (3)",{"$f":"IF('Page de garde'!$D$4=\"\",\"Dette en fin d'exercice N-1\",\"Dette en fin d'exercice \"&('Page de garde'!$D$4-1))","v":"Dette en fin d'exercice N-1"},null,{"$f":"IF('Page de garde'!$D$4=\"\",\"Remboursement du capital de l'exercice N\",\"Remboursement du capital de l'exercice \"&('Page de garde'!$D$4))","v":"Remboursement du capital de l'exercice N"},"Remboursement anticipé (oui / non)",{"$f":"IF('Page de garde'!$D$4=\"\",\"Montant des intérêts de l'exercice N\",\"Montant des intérêts de l'exercice \"&('Page de garde'!$D$4))","v":"Montant des intérêts de l'exercice N"},{"$f":"IF('Page de garde'!$D$4=\"\",\"Dette en fin d'exercice N\",\"Dette en fin d'exercice \"&('Page de garde'!$D$4))","v":"Dette en fin d'exercice N"}]
[{"$nulls":10},"Capital","Intérêts",{"$nulls":3},"Capital","Intérêts"]
[]
[]
[]
[null,"TOTAL",null,null,{"$f":"SUM(E8:E9)","v":{"v":0,"d":"0.00 €"}},{"$nulls":5},{"$f":"SUM(K8:K9)","v":{"v":0,"d":"0.00 €"}},{"$f":"SUM(L8:L9)","v":{"v":0,"d":"0.00 €"}},{"$f":"SUM(M8:M9)","v":{"v":0,"d":"0.00 €"}},null,{"$f":"SUM(O8:O9)","v":{"v":0,"d":"0.00 €"}},{"$f":"SUM(P8:P9)","v":{"v":0,"d":"0.00 €"}},{"$f":"SUM(Q8:Q9)","v":{"v":0,"d":"0.00 €"}}]
[]
[null,"(1): Contrat initial /contrat refinancé / contrat renégocié"]
[null,"(2) :  F: fixe; V : variable; C : complexe (c'est-à-dire un taux variable qui n'est pas seulement défini comme la simple addition d'un taux usuel de référence et d'une marge exprimée en points de pourcentage)"]
[null,"(3) : Indiquer la formule de calcul du taux d'intérêt lorsque celui-ci est complexe, ou, en l'absence de taux d'intérêt complexe, référence fixe ou variable du taux d'intérêt (ex : euribor 3 mois)"]

{"sheet":"ESSMS publics Dettes fin.1","index":21,"n_rows":63,"n_cols":7,"rows_kept":63,"hidden":true,"merged":[[1,1,1,6],[3,1,3,6],[4,1,5,2],[4,3,5,3],[4,4,4,6],[7,1,7,2],[8,1,8,2],[12,1,12,2],[13,1,13,2],[16,1,16,2],[17,1,17,2],[20,1,20,2],[21,1,21,2],[25,1,25,2],[26,1,26,2],[29,1,29,2],[30,1,30,2],[34,1,34,2],[35,1,35,2],[38,1,38,2],[39,1,39,2],[48,1,48,2],[49,1,49,2],[50,1,50,2],[51,1,51,2]]}
[]
[null,"Information générale sur l'état de la dette financière (hors crédits de trésorerie) - ESSMS publics"]
[]
[]
[null,"N° Compte",null,{"$f":"IF('Page de garde'!$D$4=\"\",\"Dette en fin d'exercice N-1 (1)\",\"Dette en fin d'exercice \"&('Page de garde'!$D$4-1)&\" (1)\")","v":"Dette en fin d'exercice N-1 (1)"},{"$f":"IF('Page de garde'!$D$4=\"\",\"Exercice N\",\"Exercice \"&('Page de garde'!$D$4))","v":"Exercice N"}]
[{"$nulls":4},"Nouveaux emprunts (2)","Remboursements en capital (3)",{"$f":"IF('Page de garde'!$D$4=\"\",\"Dette en fin d'exercice N (4)\",\"Dette en fin d'exercice \"&('Page de garde'!$D$4)&\" (4)\")","v":"Dette en fin d'exercice N (4)"}]
[null,"C/163 Emprunts obligataires",null,{"$f":"SUM(D8:D9)","v":{"v":0,"d":"0.00 €"}},{"$f":"SUM(E8:E9)","v":{"v":0,"d":"0.00 €"}},{"$f":"SUM(F8:F9)","v":{"v":0,"d":"0.00 €"}},{"$f":"+D7+E7-F7","v":{"v":0,"d":"0.00 €"}}]
[{"$nulls":6},{"$f":"+D8+E8-F8","v":{"v":0,"d":"0.00 €"}}]
[{"$nulls":6},{"$f":"+D9+E9-F9","v":{"v":0,"d":"0.00 €"}}]
[]
[null,"C/164 Emprunts auprès des établissements de crédit",null,{"$f":"D12+D16+D20","v":{"v":0,"d":"0.00 €"}},{"$f":"E12+E16+E20","v":{"v":0,"d":"0.00 €"}},{"$f":"F12+F16+F20","v":{"v":0,"d":"0.00 €"}},{"$f":"+D11+E11-F11","v":{"v":0,"d":"0.00 €"}}]
[null,null,"C/ 1641 Emprunts en euros",{"$f":"SUM(D13:D14)","v":{"v":0,"d":"0.00 €"}},{"$f":"SUM(E13:E14)","v":{"v":0,"d":"0.00 €"}},{"$f":"SUM(F13:F14)","v":{"v":0,"d":"0.00 €"}},{"$f":"+D12+E12-F12","v":{"v":0,"d":"0.00 €"}}]
[{"$nulls":6},{"$f":"+D13+E13-F13","v":{"v":0,"d":"0.00 €"}}]
[{"$nulls":6},{"$f":"+D14+E14-F14","v":{"v":0,"d":"0.00 €"}}]
[]
[null,null,"C/ 1643 Emprunts en devises",{"$f":"SUM(D17:D18)","v":{"v":0,"d":"0.00 €"}},{"$f":"SUM(E17:E18)","v":{"v":0,"d":"0.00 €"}},{"$f":"SUM(F17:F18)","v":{"v":0,"d":"0.00 €"}},{"$f":"+D16+E16-F16","v":{"v":0,"d":"0.00 €"}}]
[{"$nulls":6},{"$f":"+D17+E17-F17","v":{"v":0,"d":"0.00 €"}}]
[{"$nulls":6},{"$f":"+D18+E18-F18","v":{"v":0,"d":"0.00 €"}}]
[]
[null,null,"C/ 1644 Emprunts assortis d'une option de tirage sur ligne de trésorerie",{"$f":"SUM(D21:D22)","v":{"v":0,"d":"0.00 €"}},{"$f":"SUM(E21:E22)","v":{"v":0,"d":"0.00 €"}},{"$f":"SUM(F21:F22)","v":{"v":0,"d":"0.00 €"}},{"$f":"+D20+E20-F20","v":{"v":0,"d":"0.00 €"}}]
[{"$nulls":6},{"$f":"+D21+E21-F21","v":{"v":0,"d":"0.00 €"}}]
[{"$nulls":6},{"$f":"+D22+E22-F22","v":{"v":0,"d":"0.00 €"}}]
[]
[null,"C/167 Emprunts et dettes assortis de conditions particulières",null,{"$f":"+D25+D29","v":{"v":0,"d":"0.00 €"}},{"$f":"+E25+E29","v":{"v":0,"d":"0.00 €"}},{"$f":"+F25+F29","v":{"v":0,"d":"0.00 €"}},{"$f":"+D24+E24-F24","v":{"v":0,"d":"0.00 €"}}]
[null,null,"C/ 1675 Dettes Partenariats public-privé",{"$f":"SUM(D26:D27)","v":{"v":0,"d":"0.00 €"}},{"$f":"SUM(E26:E27)","v":{"v":0,"d":"0.00 €"}},{"$f":"SUM(F26:F27)","v":{"v":0,"d":"0.00 €"}},{"$f":"+D25+E25-F25","v":{"v":0,"d":"0.00 €"}}]
[{"$nulls":6},{"$f":"+D26+E26-F26","v":{"v":0,"d":"0.00 €"}}]
[{"$nulls":6},{"$f":"+D27+E27-F27","v":{"v":0,"d":"0.00 €"}}]
[]
[null,null,"C/ 1678 Autres emprunts et dettes assortis de conditions particulières",{"$f":"SUM(D30:D31)","v":{"v":0,"d":"0.00 €"}},{"$f":"SUM(E30:E31)","v":{"v":0,"d":"0.00 €"}},{"$f":"SUM(F30:F31)","v":{"v":0,"d":"0.00 €"}},{"$f":"+D29+E29-F29","v":{"v":0,"d":"0.00 €"}}]
[{"$nulls":6},{"$f":"+D30+E30-F30","v":{"v":0,"d":"0.00 €"}}]
[{"$nulls":6},{"$f":"+D31+E31-F31","v":{"v":0,"d":"0.00 €"}}]
[]
[null,"C/168 Autres emprunts et dettes assimilées (sauf ICNE*)",null,{"$f":"+D34+D38","v":{"v":0,"d":"0.00 €"}},{"$f":"+E34+E38","v":{"v":0,"d":"0.00 €"}},{"$f":"+F34+F38","v":{"v":0,"d":"0.00 €"}},{"$f":"+D33+E33-F33","v":{"v":0,"d":"0.00 €"}}]
[null,null,"C/1681 Autres emprunts",{"$f":"SUM(D35:D36)","v":{"v":0,"d":"0.00 €"}},{"$f":"SUM(E35:E36)","v":{"v":0,"d":"0.00 €"}},{"$f":"SUM(F35:F36)","v":{"v":0,"d":"0.00 €"}},{"$f":"+D34+E34-F34","v":{"v":0,"d":"0.00 €"}}]
[{"$nulls":6},{"$f":"+D35+E35-F35","v":{"v":0,"d":"0.00 €"}}]
[{"$nulls":6},{"$f":"+D36+E36-F36","v":{"v":0,"d":"0.00 €"}}]
[]
[null,null,"C/1687 Autres dettes",{"$f":"SUM(D39:D40)","v":{"v":0,"d":"0.00 €"}},{"$f":"SUM(E39:E40)","v":{"v":0,"d":"0.00 €"}},{"$f":"SUM(F39:F40)","v":{"v":0,"d":"0.00 €"}},{"$f":"+D38+E38-F38","v":{"v":0,"d":"0.00 €"}}]
[{"$nulls":6},{"$f":"+D39+E39-F39","v":{"v":0,"d":"0.00 €"}}]
[{"$nulls":6},{"$f":"+D40+E40-F40","v":{"v":0,"d":"0.00 €"}}]
[]
[null,"TOTAL ",null,{"$f":"D33+D24+D11+D7","v":{"v":0,"d":"0.00 €"}},{"$f":"E33+E24+E11+E7","v":{"v":0,"d":"0.00 €"}},{"$f":"F33+F24+F11+F7","v":{"v":0,"d":"0.00 €"}},{"$f":"G33+G24+G11+G7","v":{"v":0,"d":"0.00 €"}}]
[null,"(1): Balance de sortie N-1                       * ICNE : intérêts courus non échus"]
[null,"(2): Masses débitrices de N"]
[null,"(3): Masses créditrices de N"]
[null,"(4): Balance de sortie N"]
[]
[null,"Récapitulatif par prêteur"]
[null,"Prêteur",null,{"$f":"IF('Page de garde'!$D$4=\"\",\"Encours au 31/12/N\",\"Encours au 31/12/\"&('Page de garde'!$D$4))","v":"Encours au 31/12/N"}]
[]
[]
[null,"TOTAL",null,{"$f":"SUM(D50:D51)","v":{"v":0,"d":"0.00 €"}}]
[]
[null,{"$f":"IF('Page de garde'!$D$4=\"\",\"Profil d'extinction de la dette financière existant au 31 décembre N\",\"Profil d'extinction de la dette financière existant au 31 décembre \"&('Page de garde'!$D$4))","v":"Profil d'extinction de la dette financière existant au 31 décembre N"}]
[null,"Exercice","Remboursement en capital **","Capital restant dû"]
[]
[null,{"$f":"IF(B56=\"\",\"\",B56+1)","v":""}]
[null,{"$f":"IF(B57=\"\",\"\",B57+1)","v":""}]
[null,{"$f":"IF(B58=\"\",\"\",B58+1)","v":""}]
[null,{"$f":"IF(B59=\"\",\"\",B59+1)","v":""}]
[null,{"$f":"INDIRECT(\"b\"&ROW()-1)+1","v":{"$error":"#VALUE!"}}]
[]
[null,"** Opérations réelles correspondant à des décaissements effectifs"]

{"sheet":"ESSMS publics Dettes fin.2","index":22,"n_rows":57,"n_cols":22,"rows_kept":57,"hidden":true,"merged":[[1,1,1,21],[4,1,5,2],[4,3,4,17],[4,18,4,21],[5,3,6,3],[5,4,6,4],[5,5,6,5],[5,6,6,6],[5,7,6,7],[5,8,6,8],[5,9,6,9],[5,10,6,10],[5,11,6,11],[5,12,6,12],[5,13,6,13],[5,14,6,14],[5,15,6,15],[5,16,6,16],[5,17,6,17],[5,18,6,18],[5,19,5,21],[9,1,9,2],[10,1,10,2],[14,1,14,2],[15,1,15,2],[18,1,18,2],[19,1,19,2],[22,1,22,2],[23,1,23,2],[27,1,27,2],[28,1,28,2],[31,1,31,2],[32,1,32,2],[36,1,36,2],[37,1,37,2],[40,1,40,2],[41,1,41,2]]}
[]
[null,"Informations complémentaires sur l'état de la dette financière (hors crédits de trésorerie) (1/2) - ESSMS publics"]
[]
[]
[null,"N° Compte",null,"CARACTERISTIQUES GENERALES A L'ORIGINE DU CONTRAT",{"$nulls":14},"NIVEAU\n DE RISQUE "]
[{"$nulls":3},"Numéro de contrat","Établis-sement de crédit","Date de signature du contrat","Date de consoli-dation du prêt","Montant nominal contractuel ","Type de taux d'intérêt","Formule de calcul du taux d'intérêt ","Taux d'intérêt","Taux actuariel","Devise","Modalités de rembour-sement du capital","Périodicité de rembour-sement du capital","Rembour-sement anticipé (oui / non)","Montant des pénalités de rembour-sement anticipé","Couverture  (oui / non)","Niveau de risque","Si risque > 2A"]
[{"$nulls":19},"Date de passage en phase structurée","Date d'échéance de la phase structurée","Formule de calcul de la phase structurée"]
[{"$nulls":6},1,2,3,4,5,null,null,6,7,null,null,8,9,10,11,12]
[null,"C/163 Emprunts obligataires",{"$nulls":5},{"$f":"SUM(H10:H11)","v":{"v":0,"d":"0.00 €"}},{"$nulls":8},{"$f":"SUM(Q10:Q11)","v":{"v":0,"d":"0.00 €"}}]
[]
[]
[]
[null,"C/164 Emprunts auprès des établissements de crédit",{"$nulls":5},{"$f":"+H14+H18+H22","v":{"v":0,"d":"0.00 €"}},{"$nulls":8},{"$f":"+Q14+Q18+Q22","v":{"v":0,"d":"0.00 €"}}]
[null,null,"C/ 1641 Emprunts en euros",{"$nulls":4},{"$f":"SUM(H15:H16)","v":{"v":0,"d":"0.00 €"}},{"$nulls":8},{"$f":"SUM(Q15:Q16)","v":{"v":0,"d":"0.00 €"}}]
[]
[]
[]
[null,null,"C/ 1643 Emprunts en devises",{"$nulls":4},{"$f":"SUM(H19:H20)","v":{"v":0,"d":"0.00 €"}},{"$nulls":8},{"$f":"SUM(Q19:Q20)","v":{"v":0,"d":"0.00 €"}}]
[]
[]
[]
[null,null,"C/ 1644 Emprunts assortis d'une option de tirage sur ligne de trésorerie",{"$nulls":4},{"$f":"SUM(H23:H24)","v":{"v":0,"d":"0.00 €"}},{"$nulls":8},{"$f":"SUM(Q23:Q24)","v":{"v":0,"d":"0.00 €"}}]
[]
[]
[]
[null,"C/167 Emprunts et dettes assortis de conditions particulières",{"$nulls":5},{"$f":"+H27+H31","v":{"v":0,"d":"0.00 €"}},{"$nulls":8},{"$f":"+Q27+Q31","v":{"v":0,"d":"0.00 €"}}]
[null,null,"C/ 1675 Dettes Partenariats public-privé",{"$nulls":4},{"$f":"SUM(H28:H29)","v":{"v":0,"d":"0.00 €"}},{"$nulls":8},{"$f":"SUM(Q28:Q29)","v":{"v":0,"d":"0.00 €"}}]
[]
[]
[]
[null,null,"C/ 1678 Autres emprunts et dettes assortis de conditions particulières",{"$nulls":4},{"$f":"SUM(H32:H33)","v":{"v":0,"d":"0.00 €"}},{"$nulls":8},{"$f":"SUM(Q32:Q33)","v":{"v":0,"d":"0.00 €"}}]
[]
[]
[]
[null,"C/168 Autres emprunts et dettes assimilées ",{"$nulls":5},{"$f":"+H36+H40","v":{"v":0,"d":"0.00 €"}},{"$nulls":8},{"$f":"+Q36+Q40","v":{"v":0,"d":"0.00 €"}}]
[null,null,"C/1681 Autres emprunts",{"$nulls":4},{"$f":"SUM(H37:H38)","v":{"v":0,"d":"0.00 €"}},{"$nulls":8},{"$f":"SUM(Q37:Q38)","v":{"v":0,"d":"0.00 €"}}]
[]
[]
[]
[null,null,"C/1687 Autres dettes",{"$nulls":4},{"$f":"SUM(H41:H42)","v":{"v":0,"d":"0.00 €"}},{"$nulls":8},{"$f":"SUM(Q41:Q42)","v":{"v":0,"d":"0.00 €"}}]
[]
[]
[]
[null,"TOTAL ",{"$nulls":5},{"$f":"H35+H26+H13+H9","v":{"v":0,"d":"0.00 €"}},{"$nulls":8},{"$f":"Q35+Q26+Q13+Q9","v":{"v":0,"d":"0.00 €"}}]
[]
[null,"1 : Date à partir de laquelle les fonds sont amortis"]
[null,"2 : Montant emprunté à l'origine"]
[null,"3 :  F: fixe; V : variable; C : complexe (c'est-à-dire un taux variable qui n'est pas seulement défini comme la simple addition d'un taux usuel de référence et d'une marge exprimée en points de pourcentage)"]
[null,"4 : Indiquer la formule de calcul du taux d'intérêt lorsque celui-ci est complexe, ou, en l'absence de taux d'intérêt complexe, référence fixe ou variable du taux d'intérêt (ex : euribor 3 mois)"]
[null,"5 : Taux servant de base pour le calcul des intérêts de l'emprunt ; taux à exprimer en pourcentage "]
[null,"6 : I : in fine ; P : progressif ; AC : annuités constantes ; D: dégressif ; V: variable"]
[null,"7 : A :annuelle ; T : trimestriel ; M : mensuel "]
[null,"8 : Si l'emprunt fait l'objet d'une opération de couverture, il convient de compléter les tableaux sur les opérations de couverture "]
[null,"9 : Catégorie d’emprunt prévue dans la charte « Gissler »"]
[null,"10 : Date de la première échéance payée sur la phase structurée"]
[null,"11 : Date de la dernière échéance payée sur la phase structurée"]
[null,"12 : Indiquer la formule entière du calcul du taux en phase structurée"]

{"sheet":"ESSMS publics Dettes fin.3","index":23,"n_rows":52,"n_cols":15,"rows_kept":52,"hidden":true,"merged":[[1,1,1,14],[4,1,7,3],[4,4,4,14],[5,4,5,5],[5,6,6,6],[5,7,6,7],[5,8,6,8],[5,9,6,9],[5,10,5,11],[5,12,6,12],[5,13,5,14],[9,1,9,2],[10,1,10,2],[14,1,14,2],[15,1,15,2],[18,1,18,2],[19,1,19,2],[22,1,22,2],[23,1,23,2],[27,1,27,2],[28,1,28,2],[31,1,31,2],[32,1,32,2],[36,1,36,2],[37,1,37,2],[40,1,40,2],[41,1,41,2],[45,1,45,14],[46,1,46,14],[47,1,47,14],[48,1,48,14],[49,1,49,14],[50,1,50,14],[51,1,51,14],[52,1,52,14]]}
[]
[null,"Informations complémentaires sur l'état de la dette financière (hors crédits de trésorerie) (2/2) - ESSMS publics"]
[]
[]
[null,"N° Compte",null,null,{"$f":"IF('Page de garde'!$D$4=\"\",\"CARACTERISTIQUES GENERALES DU CONTRAT AU 31/12/N\",\"CARACTERISTIQUES GENERALES DU CONTRAT AU 31/12/\"&('Page de garde'!$D$4))","v":"CARACTERISTIQUES GENERALES DU CONTRAT AU 31/12/N"}]
[{"$nulls":4},"Annuité de l'exercice",null,"Type de taux d'intérêt","Formule de calcul du taux d'intérêt ","Taux d'intérêt","Taux actuariel","Remboursement anticipé",null,"Couverture","Capital restant dû"]
[{"$nulls":4},"Echéance de l'exercice  – capital ","Echéance de l'exercice – intérêts",{"$nulls":4},{"$f":"IF('Page de garde'!$D$4=\"\",\"Montant remboursé en N\",\"Montant remboursé en \"&('Page de garde'!$D$4))","v":"Montant remboursé en N"},{"$f":"IF('Page de garde'!$D$4=\"\",\"Valorisation du coût de sortie au 31/12/N\",\"Valorisation du coût de sortie au 31/12/\"&('Page de garde'!$D$4))","v":"Valorisation du coût de sortie au 31/12/N"},null,{"$f":"IF('Page de garde'!$D$4=\"\",\"Au 31/12/N\",\"Au 31/12/\"&('Page de garde'!$D$4))","v":"Au 31/12/N"},{"$f":"IF('Page de garde'!$D$4=\"\",\"Au 31/12/N-1\",\"Au 31/12/\"&('Page de garde'!$D$4)-1)","v":"Au 31/12/N-1"}]
[{"$nulls":6},1,2,3,4,5,6,7]
[null,"C/163 Emprunts obligataires",null,null,{"$f":"SUM(E10:E11)","v":{"v":0,"d":"0.00 €"}},{"$f":"SUM(F10:F11)","v":{"v":0,"d":"0.00 €"}},{"$nulls":4},{"$f":"SUM(K10:K11)","v":{"v":0,"d":"0.00 €"}},{"$f":"SUM(L10:L11)","v":{"v":0,"d":"0.00 €"}},null,{"$f":"SUM(N10:N11)","v":{"v":0,"d":"0.00 €"}},{"$f":"SUM(O10:O11)","v":{"v":0,"d":"0.00 €"}}]
[]
[]
[]
[null,"C/164 Emprunts auprès des établissements de crédit",null,null,{"$f":"+E14+E18+E22","v":{"v":0,"d":"0.00 €"}},{"$f":"+F14+F18+F22","v":{"v":0,"d":"0.00 €"}},{"$nulls":4},{"$f":"+K14+K18+K22","v":{"v":0,"d":"0.00 €"}},{"$f":"+L14+L18+L22","v":{"v":0,"d":"0.00 €"}},null,{"$f":"+N14+N18+N22","v":{"v":0,"d":"0.00 €"}},{"$f":"+O14+O18+O22","v":{"v":0,"d":"0.00 €"}}]
[null,null,"C/ 1641 Emprunts en euros",null,{"$f":"SUM(E15:E16)","v":{"v":0,"d":"0.00 €"}},{"$f":"SUM(F15:F16)","v":{"v":0,"d":"0.00 €"}},{"$nulls":4},{"$f":"SUM(K15:K16)","v":{"v":0,"d":"0.00 €"}},{"$f":"SUM(L15:L16)","v":{"v":0,"d":"0.00 €"}},null,{"$f":"SUM(N15:N16)","v":{"v":0,"d":"0.00 €"}},{"$f":"SUM(O15:O16)","v":{"v":0,"d":"0.00 €"}}]
[]
[]
[]
[null,null,"C/ 1643 Emprunts en devises",null,{"$f":"SUM(E19:E20)","v":{"v":0,"d":"0.00 €"}},{"$f":"SUM(F19:F20)","v":{"v":0,"d":"0.00 €"}},{"$nulls":4},{"$f":"SUM(K19:K20)","v":{"v":0,"d":"0.00 €"}},{"$f":"SUM(L19:L20)","v":{"v":0,"d":"0.00 €"}},null,{"$f":"SUM(N19:N20)","v":{"v":0,"d":"0.00 €"}},{"$f":"SUM(O19:O20)","v":{"v":0,"d":"0.00 €"}}]
[]
[]
[]
[null,null,"C/ 1644 Emprunts assortis d'une option de tirage sur ligne de trésorerie",null,{"$f":"SUM(E23:E24)","v":{"v":0,"d":"0.00 €"}},{"$f":"SUM(F23:F24)","v":{"v":0,"d":"0.00 €"}},{"$nulls":4},{"$f":"SUM(K23:K24)","v":{"v":0,"d":"0.00 €"}},{"$f":"SUM(L23:L24)","v":{"v":0,"d":"0.00 €"}},null,{"$f":"SUM(N23:N24)","v":{"v":0,"d":"0.00 €"}},{"$f":"SUM(O23:O24)","v":{"v":0,"d":"0.00 €"}}]
[]
[]
[]
[null,"C/167 Emprunts et dettes assortis de conditions particulières",null,null,{"$f":"+E27+E31","v":{"v":0,"d":"0.00 €"}},{"$f":"+F27+F31","v":{"v":0,"d":"0.00 €"}},{"$nulls":4},{"$f":"+K27+K31","v":{"v":0,"d":"0.00 €"}},{"$f":"+L27+L31","v":{"v":0,"d":"0.00 €"}},null,{"$f":"+N27+N31","v":{"v":0,"d":"0.00 €"}},{"$f":"+O27+O31","v":{"v":0,"d":"0.00 €"}}]
[null,null,"C/ 1675 Dettes Partenariats public-privé",null,{"$f":"SUM(E28:E29)","v":{"v":0,"d":"0.00 €"}},{"$f":"SUM(F28:F29)","v":{"v":0,"d":"0.00 €"}},{"$nulls":4},{"$f":"SUM(K28:K29)","v":{"v":0,"d":"0.00 €"}},{"$f":"SUM(L28:L29)","v":{"v":0,"d":"0.00 €"}},null,{"$f":"SUM(N28:N29)","v":{"v":0,"d":"0.00 €"}},{"$f":"SUM(O28:O29)","v":{"v":0,"d":"0.00 €"}}]
[]
[]
[]
[null,null,"C/ 1678 Autres emprunts et dettes assortis de conditions particulières",null,{"$f":"SUM(E32:E33)","v":{"v":0,"d":"0.00 €"}},{"$f":"SUM(F32:F33)","v":{"v":0,"d":"0.00 €"}},{"$nulls":4},{"$f":"SUM(K32:K33)","v":{"v":0,"d":"0.00 €"}},{"$f":"SUM(L32:L33)","v":{"v":0,"d":"0.00 €"}},null,{"$f":"SUM(N32:N33)","v":{"v":0,"d":"0.00 €"}},{"$f":"SUM(O32:O33)","v":{"v":0,"d":"0.00 €"}}]
[]
[]
[]
[null,"C/168 Autres emprunts et dettes assimilées ",null,null,{"$f":"+E36+E40","v":{"v":0,"d":"0.00 €"}},{"$f":"+F36+F40","v":{"v":0,"d":"0.00 €"}},{"$nulls":4},{"$f":"+K36+K40","v":{"v":0,"d":"0.00 €"}},{"$f":"+L36+L40","v":{"v":0,"d":"0.00 €"}},null,{"$f":"+N36+N40","v":{"v":0,"d":"0.00 €"}},{"$f":"+O36+O40","v":{"v":0,"d":"0.00 €"}}]
[null,null,"C/1681 Autres emprunts",null,{"$f":"SUM(E37:E38)","v":{"v":0,"d":"0.00 €"}},{"$f":"SUM(F37:F38)","v":{"v":0,"d":"0.00 €"}},{"$nulls":4},{"$f":"SUM(K37:K38)","v":{"v":0,"d":"0.00 €"}},{"$f":"SUM(L37:L38)","v":{"v":0,"d":"0.00 €"}},null,{"$f":"SUM(N37:N38)","v":{"v":0,"d":"0.00 €"}},{"$f":"SUM(O37:O38)","v":{"v":0,"d":"0.00 €"}}]
[]
[]
[]
[null,null,"C/1687 Autres dettes",null,{"$f":"SUM(E41:E42)","v":{"v":0,"d":"0.00 €"}},{"$f":"SUM(F41:F42)","v":{"v":0,"d":"0.00 €"}},{"$nulls":4},{"$f":"SUM(K41:K42)","v":{"v":0,"d":"0.00 €"}},{"$f":"SUM(L41:L42)","v":{"v":0,"d":"0.00 €"}},null,{"$f":"SUM(N41:N42)","v":{"v":0,"d":"0.00 €"}},{"$f":"SUM(O41:O42)","v":{"v":0,"d":"0.00 €"}}]
[]
[]
[]
[null,"TOTAL ",null,null,{"$f":"E35+E26+E13+E9","v":{"v":0,"d":"0.00 €"}},{"$f":"F35+F26+F13+F9","v":{"v":0,"d":"0.00 €"}},{"$nulls":4},{"$f":"K35+K26+K13+K9","v":{"v":0,"d":"0.00 €"}},{"$f":"L35+L26+L13+L9","v":{"v":0,"d":"0.00 €"}},null,{"$f":"N35+N26+N13+N9","v":{"v":0,"d":"0.00 €"}},{"$f":"O35+O26+O13+O9","v":{"v":0,"d":"0.00 €"}}]
[]
[null,"1 :  Pour la dernière échéance payée sur l'exercice N, indiquer : F: fixe; V : variable; C : complexe (c'est-à-dire un taux variable qui n'est pas seulement défini comme la simple addition d'un taux usuel de référence et d'une marge exprimée en points de pourcentage)"]
[null,"2 :  Pour la dernière échéance payée sur l'exercice N, indiquer la formule de calcul du taux d'intérêt lorsque celui-ci est complexe, ou, en l'absence de taux d'intérêt complexe, référence fixe ou variable du taux d'intérêt (ex : euribor 3 mois)"]
[null,"3 :  Pour la dernière échéance payée sur l'exercice N, indiquer le taux d'intérêt en pourcentage "]
[null,"4 : Taux effectif de l'emprunt d'une durée d'un an dont les intérêts sont payés à l'échéance d'un an"]
[null,"5 : Montant remboursé en cas de remboursement anticipé partiel"]
[null,"6 : Inscrire le montant des pénalités de remboursement anticipé payé en N"]
[null,"7 : En cas d'opération de couverture, indiquer le montant couvert "]

{"sheet":"ESSMS publics Dettes fin.4","index":24,"n_rows":19,"n_cols":10,"rows_kept":19,"hidden":true,"merged":[[1,1,1,9],[2,1,2,9],[4,2,5,2],[4,3,5,3],[4,4,5,4],[4,5,5,5],[4,6,5,6],[4,7,4,8],[4,9,5,9],[10,1,10,2],[11,1,11,2],[14,1,14,2],[15,1,15,2]]}
[]
[null,"Etat des crédits de trésorerie - ESSMS publics"]
[]
[]
[null,null,"N° Compte","Numéro de contrat","Date d'autorisation de la ligne","Montant maximum autorisé au 1/01/N",{"$f":"IF('Page de garde'!$D$4=\"\",\"Montant des tirages N\",\"Montant des tirages \"&('Page de garde'!$D$4))","v":"Montant des tirages N"},"Montant des remboursements N",null,{"$f":"IF('Page de garde'!$D$4=\"\",\"Encours restant dû au 31/12/N\",\"Encours restant dû au 31/12/\"&('Page de garde'!$D$4))","v":"Encours restant dû au 31/12/N"}]
[{"$nulls":7},"Remboursement du tirage","Intérêts"]
[{"$nulls":8},1]
[null,"C/519 crédit de trésorerie ",{"$nulls":3},{"$f":"+F9","v":{"v":0,"d":"0.00 €"}},{"$f":"+G9","v":{"v":0,"d":"0.00 €"}},{"$f":"+H9","v":{"v":0,"d":"0.00 €"}},{"$f":"+I9","v":{"v":0,"d":"0.00 €"}},{"$f":"+J9","v":{"v":0,"d":"0.00 €"}}]
[null,"C/5193 lignes de crédit de trésorerie ",{"$nulls":3},{"$f":"+F10+F14","v":{"v":0,"d":"0.00 €"}},{"$f":"+G10+G14","v":{"v":0,"d":"0.00 €"}},{"$f":"+H10+H14","v":{"v":0,"d":"0.00 €"}},{"$f":"+I10+I14","v":{"v":0,"d":"0.00 €"}},{"$f":"+J10+J14","v":{"v":0,"d":"0.00 €"}}]
[null,null,"C/ 51931 Lignes de crédit de trésorerie",null,null,{"$f":"SUM(F11:F12)","v":{"v":0,"d":"0.00 €"}},{"$f":"SUM(G11:G12)","v":{"v":0,"d":"0.00 €"}},{"$f":"SUM(H11:H12)","v":{"v":0,"d":"0.00 €"}},{"$f":"SUM(I11:I12)","v":{"v":0,"d":"0.00 €"}},{"$f":"SUM(J11:J12)","v":{"v":0,"d":"0.00 €"}}]
[]
[]
[]
[null,null,"C/ 51932 Lignes de crédit de trésorerie liées à un emprunt",null,null,{"$f":"SUM(F15:F16)","v":{"v":0,"d":"0.00 €"}},{"$f":"SUM(G15:G16)","v":{"v":0,"d":"0.00 €"}},{"$f":"SUM(H15:H16)","v":{"v":0,"d":"0.00 €"}},{"$f":"SUM(I15:I16)","v":{"v":0,"d":"0.00 €"}},{"$f":"SUM(J15:J16)","v":{"v":0,"d":"0.00 €"}}]
[]
[]
[]
[]
[null,"1 : Y compris les commissions de non utilisation et autres frais payés sur l'exercice au titre de la ligne de trésorerie"]

{"sheet":"ESSMS publics Dettes fin.5","index":25,"n_rows":25,"n_cols":9,"rows_kept":25,"hidden":true,"merged":[[1,1,1,8],[3,1,3,8],[5,1,7,1],[8,1,10,1],[11,1,13,1],[14,1,16,1],[17,1,19,1],[20,1,22,1]]}
[]
[null,"Informations complémentaires sur l'état de la dette financière à moyen et long terme - Typologie de l'encours de dette (*) - ESSMS publics"]
[]
[]
[null,"Structure","Indices sous-jacents","Indices zone euro","Indice inflation française ou zone euro ou écart entre ces indices","Ecarts d'indices zone euro","Indices hors zone euro ou écarts d'indices dont l'un est un indice hors zone euro","Ecarts d'indices hors zone euro","Autres indices"]
[null,"(A) Taux fixe simple. Taux variable simple. Echange de taux structuré contre taux variable ou taux fixe (sens unique). Taux variable simple plafonné (cap) ou encadré (tunnel)","Nombre de produits"]
[null,null,"% de l'encours"]
[null,null,"Montant en euros"]
[null,"(B) Barrière simple. Pas d'effet de levier","Nombre de produits"]
[null,null,"% de l'encours"]
[null,null,"Montant en euros"]
[null,"(C) Option d'échange (swaption)","Nombre de produits"]
[null,null,"% de l'encours"]
[null,null,"Montant en euros"]
[null,"(D) Multiplicateur jusqu'à 3;\nmultiplicateur jusqu'à 5\ncapé","Nombre de produits"]
[null,null,"% de l'encours"]
[null,null,"Montant en euros"]
[null,"( E) Multiplicateur jusqu'à 5","Nombre de produits"]
[null,null,"% de l'encours"]
[null,null,"Montant en euros"]
[null,"(F) Autres types de structures","Nombre de produits"]
[null,null,"% de l'encours"]
[null,null,"Montant en euros"]
[]
[null,"(*) Cette annexe retrace le stock de la dette financière au 31/12/N après opérations de couverture éventuelles."]

{"sheet":"ESSMS publics Dettes fin.6","index":26,"n_rows":47,"n_cols":13,"rows_kept":47,"hidden":true,"merged":[[1,1,1,12],[4,1,4,12],[5,1,5,4],[5,5,5,12],[25,1,25,12],[26,1,28,1],[26,2,26,9],[26,10,26,12],[27,2,27,5],[27,6,27,9],[27,10,28,10],[27,11,27,12]]}
[]
[null,"Informations complémentaires sur l'état de la dette financière à moyen et long terme  - Détail des opérations de couverture - ESSMS publics"]
[]
[]
[null,"(page 1/2)"]
[null,"Emprunts couverts",{"$nulls":3},"Instrument de couverture"]
[null,"Emprunts couverts  (pour chaque ligne, indiquer le numéro de contrat)",{"$f":"IF('Page de garde'!$D$4=\"\",\"Capital restant dû au 31/12/N\",\"Capital restant dû au 31/12/\"&('Page de garde'!$D$4))","v":"Capital restant dû au 31/12/N"},"Formule de calcul du taux d'intérêt (avant couverture)","Niveau de risque selon la charte \"Gissler\"","Organisme cocontractant","N° de contrat","Type de couverture","Nature de la couverture (change ou taux)",{"$f":"IF('Page de garde'!$D$4=\"\",\"Capital restant dû au 31/12/N\",\"Capital restant dû au 31/12/\"&('Page de garde'!$D$4))","v":"Capital restant dû au 31/12/N"},"Date début de contrat","Date fin de contrat","Niveau de risque selon la charte \"Gissler\" après couverture"]
[null,1,null,2,{"$nulls":3},3]
[null,"Taux fixe (total)",{"$f":"SUM(C10:C11)","v":{"v":0,"d":"0.00 €"}},{"$nulls":6},{"$f":"SUM(J10:J11)","v":{"v":0,"d":"0.00 €"}}]
[]
[]
[]
[null,"Taux variable simple (total)",{"$f":"SUM(C14:C15)","v":{"v":0,"d":"0.00 €"}},{"$nulls":6},{"$f":"SUM(J14:J15)","v":{"v":0,"d":"0.00 €"}}]
[]
[]
[]
[null,"Taux complexe (total)",{"$f":"SUM(C18:C19)","v":{"v":0,"d":"0.00 €"}},{"$nulls":6},{"$f":"SUM(J18:J19)","v":{"v":0,"d":"0.00 €"}}]
[]
[]
[]
[null,"Total",{"$f":"C17+C13+C9","v":{"v":0,"d":"0.00 €"}},{"$nulls":6},{"$f":"J17+J13+J9","v":{"v":0,"d":"0.00 €"}}]
[null,"1 : Classer les emprunts selon le type de taux avant couverture"]
[null,"2 : Pour la dernière échéance payée sur l'exercice, indiquer la formule de calcul du taux d'intérêt lorsque celui-ci est complexe, sinon la référence fixe ou variable du taux d'intérêt"]
[null,"3 : Indiquer s'il s'agit d'un swap, d'une option (cap, floor, tunnel, swaption)"]
[]
[null,"(page 2/2)"]
[null,"Emprunts couverts  (pour chaque ligne, indiquer le numéro de contrat)","Instrument de couverture (swap de taux)",{"$nulls":7},"Instrument de couverture (option)"]
[null,null,"Taux payé",{"$nulls":3},"Taux reçu",{"$nulls":3},"Niveau de l'option (en taux)","Primes (en taux)"]
[null,null,"Type de taux","Formule de calcul du taux d'intérêt","Taux d'intérêt","Montant des intérêts payés sur l'exercice","Type de taux","Formule de calcul du taux d'intérêt","Taux d'intérêt","Montant des intérêts reçus sur l'exercice",null,"reçues","payées"]
[null,1,2,3,4,null,2,3,4]
[null,"Taux fixe (total)",{"$nulls":3},{"$f":"SUM(F32:F33)","v":{"v":0,"d":"0.00 €"}},{"$nulls":3},{"$f":"SUM(J32:J33)","v":{"v":0,"d":"0.00 €"}}]
[]
[]
[]
[null,"Taux variable simple (total)",{"$nulls":3},{"$f":"SUM(F36:F37)","v":{"v":0,"d":"0.00 €"}},{"$nulls":3},{"$f":"SUM(J36:J37)","v":{"v":0,"d":"0.00 €"}}]
[]
[]
[]
[null,"Taux complexe (total)",{"$nulls":3},{"$f":"SUM(F40:F41)","v":{"v":0,"d":"0.00 €"}},{"$nulls":3},{"$f":"SUM(J40:J41)","v":{"v":0,"d":"0.00 €"}}]
[]
[]
[]
[null,"Total",{"$nulls":3},{"$f":"F39+F35+F31","v":{"v":0,"d":"0.00 €"}},{"$nulls":3},{"$f":"J39+J35+J31","v":{"v":0,"d":"0.00 €"}}]
[null,"1 : Classer les emprunts selon le type de taux avant couverture"]
[null,"2 : F: fixe; V : variable; C : complexe"]
[null,"3 : Pour la dernière échéance payée sur l'exercice, indiquer la formule de calcul du taux d'intérêt lorsque celui-ci est complexe, sinon la référence fixe ou variable du taux d'intérêt"]
[null,"4 : Pour la dernière échéance payée sur l'exercice, indiquer le taux d'intérêt en pourcentage"]

{"sheet":"ESSMS publics Dettes fin.7","index":27,"n_rows":21,"n_cols":23,"rows_kept":21,"hidden":true,"merged":[[1,1,1,22],[2,1,2,22],[4,1,6,1],[4,2,6,2],[4,3,6,3],[4,4,6,4],[4,5,6,5],[4,6,6,6],[4,7,6,7],[4,8,4,9],[4,10,4,15],[4,16,4,17],[4,18,4,19],[4,20,4,22],[5,8,6,8],[5,9,6,9],[5,10,5,12],[5,13,5,15],[5,16,6,16],[5,17,6,17],[5,18,6,18],[5,19,6,19],[5,20,6,20],[5,21,6,21],[5,22,6,22]]}
[]
[null,{"$f":"IF('Page de garde'!$D$4=\"\",\"Informations complémentaires sur l'état de la dette financière à moyen et long terme - Emprunts refinancés ou renégociés au cours de l'exercice N - ESSMS publics\",\"Informations complémentaires sur l'état de la dette financière à moyen et long terme - Emprunts refinancés ou renégociés au cours de l'exercice \"&('Page de garde'!$D$4)&\" - ESSMS publics\")","v":"Informations complémentaires sur l'état de la dette financière à moyen et long terme - Emprunts refinancés ou renégociés au cours de l'exercice N - ESSMS publics"}]
[]
[]
[null,"N° du contrat d'emprunt initial","Date de signature du contrat initial","Organisme prêteur du contrat initial","N° du contrat refinancé","Date de refinancement / renégociation","Date de la 1ère échéance du prêt refinancé / renégocié","Organisme prêteur du contrat refinancé","Durée résiduelle en années (1)",null,"Taux (2)",{"$nulls":5},"Capital restant dû à la date de refinancement (5)",null,"Profil d'amortissement (6)",null,"Pénalités de sortie payées"]
[{"$nulls":8},"Contrat initial","Contrat refinancé / renégocié","Contrat initial",null,null,"Contrat refinancé / renégocié",null,null,"Contrat initial","Contrat refinancé (7)","Contrat initial","Contrat refinancé / renégocié","Total","Dont autofinan-cé","Dont capitalisé"]
[{"$nulls":10},"Type de taux (3)","Formule de calcul du taux (4)","Niveau de risque (Charte \"Gissler\")","Type de taux (3)","Formule de calcul du taux (4)","Niveau de risque (Charte \"Gissler\")"]
[]
[{"$nulls":16},{"$f":"SUM(Q10:Q11)","v":{"v":0,"d":"0.00 €"}},{"$f":"SUM(R10:R11)","v":{"v":0,"d":"0.00 €"}},null,null,{"$f":"SUM(U10:U11)","v":{"v":0,"d":"0.00 €"}},{"$f":"SUM(V10:V11)","v":{"v":0,"d":"0.00 €"}},{"$f":"SUM(W10:W11)","v":{"v":0,"d":"0.00 €"}}]
[]
[]
[]
[null,"Total",{"$nulls":14},{"$f":"+Q9","v":{"v":0,"d":"0.00 €"}},{"$f":"+R9","v":{"v":0,"d":"0.00 €"}},null,null,{"$f":"+U9","v":{"v":0,"d":"0.00 €"}},{"$f":"+V9","v":{"v":0,"d":"0.00 €"}},{"$f":"+W9","v":{"v":0,"d":"0.00 €"}}]
[]
[null,"1: Durée résiduelle au 31/12/N"]
[null,"2: Taux à la date de refinancement ou de renégociation"]
[null,"3: F: fixe; V: variable simple; C: complexe (c'est-à-dire taux variable qui n'est pas seulement défini comme la simple addition d'un taux usuel de référence et d'une marge exprimée en points de pourcentage)"]
[null,"4: Indiquer la formule entière du calcul du taux; si le taux est complexe, indiquer la formule de la phase structurée"]
[null,"5: Le refinancement peut porter sur une partie seulement du prêt, les capitaux restant dus au titre du contrat initial et refinancé peuvent être différents"]
[null,"6: AC: amortissement constant, P: progressif; D: dégressif; F: in fine; V: variable."]
[null,"7: Le total de la colonne doit correspondre au montant comptabilisé au compte 166 sur l'exercice (crédit ou débit). Ce compte est utilisé pour enregistrer les opérations de réaménagement (refinancement ou renégociation)"]

{"sheet":"ESSMS publics Dettes fin.8","index":28,"n_rows":25,"n_cols":9,"rows_kept":25,"hidden":true,"merged":[[1,1,1,8],[2,1,2,8],[4,1,5,1],[4,2,4,8]]}
[]
[null,"Echéancier flux de trésorerie - ESSMS publics"]
[]
[]
[null,"Catégories d'emprunts ","Echéancier"]
[null,null,"1 an","2 ans","3 ans ","4 ans","5 ans ","+ 5 ans ","Total"]
[null,"Emprunts non structurés (cotés 1A)",{"$f":"+C8+C9","v":{"v":0,"d":"0.00 €"}},{"v":0,"d":"0.00 €"},{"v":0,"d":"0.00 €"},{"v":0,"d":"0.00 €"},{"v":0,"d":"0.00 €"},{"v":0,"d":"0.00 €"},{"$f":"SUM(C7:H7)","v":{"v":0,"d":"0.00 €"}}]
[null,"- capital ",{"$nulls":6},{"$f":"SUM(C8:H8)","v":{"v":0,"d":"0.00 €"}}]
[null,"- intérêts",{"$nulls":6},{"$f":"SUM(C9:H9)","v":{"v":0,"d":"0.00 €"}}]
[]
[null,"Emprunts structurés - risque limité (cotés 1B, 2B, 2A, 3A, 3B et 3C)",{"$f":"+C12+C13","v":{"v":0,"d":"0.00 €"}},{"v":0,"d":"0.00 €"},{"v":0,"d":"0.00 €"},{"v":0,"d":"0.00 €"},{"v":0,"d":"0.00 €"},{"v":0,"d":"0.00 €"},{"$f":"SUM(C11:H11)","v":{"v":0,"d":"0.00 €"}}]
[null,"- capital ",{"$nulls":6},{"$f":"SUM(C12:H12)","v":{"v":0,"d":"0.00 €"}}]
[null,"- intérêts",{"$nulls":6},{"$f":"SUM(C13:H13)","v":{"v":0,"d":"0.00 €"}}]
[]
[null,"Emprunts structurés - risque élevé (non cités ci-dessus)",{"$f":"+C16+C17","v":{"v":0,"d":"0.00 €"}},{"v":0,"d":"0.00 €"},{"v":0,"d":"0.00 €"},{"v":0,"d":"0.00 €"},{"v":0,"d":"0.00 €"},{"v":0,"d":"0.00 €"},{"$f":"SUM(C15:H15)","v":{"v":0,"d":"0.00 €"}}]
[null,"- capital ",{"$nulls":6},{"$f":"SUM(C16:H16)","v":{"v":0,"d":"0.00 €"}}]
[null,"- intérêts",{"$nulls":6},{"$f":"SUM(C17:H17)","v":{"v":0,"d":"0.00 €"}}]
[]
[null,"Emprunts structurés - Hors Charte \"Gissler\" (6H)",{"$f":"+C20+C21","v":{"v":0,"d":"0.00 €"}},{"v":0,"d":"0.00 €"},{"v":0,"d":"0.00 €"},{"v":0,"d":"0.00 €"},{"v":0,"d":"0.00 €"},{"v":0,"d":"0.00 €"},{"$f":"SUM(C19:H19)","v":{"v":0,"d":"0.00 €"}}]
[null,"- capital ",{"$nulls":6},{"$f":"SUM(C20:H20)","v":{"v":0,"d":"0.00 €"}}]
[null,"- intérêts",{"$nulls":6},{"$f":"SUM(C21:H21)","v":{"v":0,"d":"0.00 €"}}]
[]
[null,"Total toutes catégories",{"$f":"+C7+C11+C15+C19","v":{"v":0,"d":"0.00 €"}},{"v":0,"d":"0.00 €"},{"v":0,"d":"0.00 €"},{"v":0,"d":"0.00 €"},{"v":0,"d":"0.00 €"},{"v":0,"d":"0.00 €"},{"$f":"SUM(C23:H23)","v":{"v":0,"d":"0.00 €"}}]
[null,"- capital ",{"v":0,"d":"0.00 €"},{"v":0,"d":"0.00 €"},{"v":0,"d":"0.00 €"},{"v":0,"d":"0.00 €"},{"v":0,"d":"0.00 €"},{"v":0,"d":"0.00 €"},{"$f":"SUM(C24:H24)","v":{"v":0,"d":"0.00 €"}}]
[null,"- intérêts",{"v":0,"d":"0.00 €"},{"v":0,"d":"0.00 €"},{"v":0,"d":"0.00 €"},{"v":0,"d":"0.00 €"},{"v":0,"d":"0.00 €"},{"v":0,"d":"0.00 €"},{"$f":"SUM(C25:H25)","v":{"v":0,"d":"0.00 €"}}]

{"sheet":"Affectation_Resultats_Prive_I","index":29,"n_rows":41,"n_cols":12,"rows_kept":41,"hidden":true,"merged":[[1,1,1,3],[3,1,4,1],[3,4,3,5],[3,6,4,6],[3,7,3,8],[3,9,4,9],[3,11,4,11],[5,1,6,1],[5,2,6,2],[8,1,8,3],[13,1,15,1],[17,2,17,3],[20,1,28,1],[29,1,33,1],[32,2,33,2],[35,2,35,3],[37,1,37,3],[38,1,38,3],[39,1,39,3],[40,1,40,3]]}
[]
[null,"ESSMS privés avant la signature du CPOM et EHPAD privés relevant de l'article L. 342-1 du CASF - Détermination et affectation des résultats des ESSMS privés relevant du périmètre de l'ERRD (pour les établissements en tarification ternaire, une colonne pour les sections \"soins\" et \"dépendance\" et une colonne pour la section \"hébergement\")"]
[]
[null,"(Tableau à dimensionner en fonction du nombre et de la nature des ESSMS)",null,null,"Etablissement en tarification ternaire …",null,"Autre ESSMS …","Etablissement en tarification ternaire …",null,"Autre ESSMS …",null,"Total"]
[null,null,"N° de compte (1)","Compte","Soins et dépendance","Hébergement ",null,"Soins et dépendance","Hébergement "]
[null,"Résultat comptable de l'exercice = classe 6 - classe 7","1205 ou 1295","Excédent de l'exercice des activités sociales et médico-sociales sous gestion contrôlée",{"$nulls":7},{"$f":"SUM(E6:K6)","v":{"v":0,"d":"0.00 €"}}]
[{"$nulls":3},"Déficit de l'exercice des activités sociales et médico-sociales sous gestion contrôlée (sans signe \"-\")",{"$nulls":7},{"$f":"SUM(E7:K7)","v":{"v":0,"d":"0.00 €"}}]
[]
[null,"Affectation de résultats des ESSMS inclus dans le périmètre du CPOM (comptes de résultats mentionnés au 1° du II de l'article R. 314-222 du CASF)"]
[null,"Diminution de l'excédent comptable résultant du transfert vers un autre établissement ou service",{"$nulls":9},{"$f":"SUM(E10:K10)","v":{"v":0,"d":"0.00 €"}}]
[null,"Augmentation du résultat comptable résultant du transfert d'un autre établissement ou service",{"$nulls":9},{"$f":"SUM(E11:K11)","v":{"v":0,"d":"0.00 €"}}]
[]
[null,"Reports à nouveau des exercices antérieurs (2)"]
[null,"Comptes de report à nouveau des exercices antérieurs (hors gestion non contrôlée)",11502,"Report à nouveau effectué en application du 1° du I de l'article R. 314-51 du CASF",{"$nulls":7},{"$f":"SUM(E14:K14)","v":{"v":0,"d":"0.00 €"}}]
[null,null,11503,"Report à nouveau affecté au financement de mesures d'exploitation n'accroissant pas les charges d'exploitation des exercices suivants celui auquel le résultat est affecté",{"$nulls":7},{"$f":"SUM(E15:K15)","v":{"v":0,"d":"0.00 €"}}]
[null,null,115902,"Report à nouveau des activités sociales et médico-sociales  prises en charge sous gestion contrôlée (solde débiteur)  - Autres ESSMS relevant du I de l'article L. 312-1 du CASF (sans signe \"-\")",{"$nulls":7},{"$f":"SUM(E16:K16)","v":{"v":0,"d":"0.00 €"}}]
[]
[null,"A. RESULTAT A AFFECTER (précédé du signe \"-\" pour un déficit)","(Résultat administratif)",null,{"$f":"E6-E7-E10+E11+SUM(E14:E15)-E16","v":{"v":0,"d":"0.00 €"}},{"v":0,"d":"0.00 €"},{"v":0,"d":"0.00 €"},{"v":0,"d":"0.00 €"},{"v":0,"d":"0.00 €"},{"v":0,"d":"0.00 €"},null,{"$f":"SUM(E18:K18)","v":{"v":0,"d":"0.00 €"}}]
[]
[null,"Affectation du résultat administratif"]
[null,"Affectations en report à nouveau ",11501,"Report à nouveau excédentaire effectué en application du b) du 1° de l'article R. 314-234 du CASF",{"$nulls":7},{"$f":"SUM(E21:K21)","v":{"v":0,"d":"0.00 €"}}]
[null,null,"11502 (2)","Report à nouveau effectué en application du 1° du I de l'article R. 314-51 du CASF",{"$nulls":7},{"v":0,"d":"0.00 €"}]
[null,null,"11503 (2)","Report à nouveau affecté au financement de mesures d'exploitation n'accroissant pas les charges d'exploitation des exercices suivants celui auquel le résultat est affecté",{"$nulls":7},{"v":0,"d":"0.00 €"}]
[null,null,11590,"Report à nouveau des activités sociales et médico-sociales  prises en charge sous gestion contrôlée (solde débiteur) (sans signe \"-\")",{"$nulls":7},{"v":0,"d":"0.00 €"}]
[null,null,"11591 ou 1195 (3)","Report à nouveau constitué de charges rejetées des activités sociales et médico-sociales (dépenses refusées par l'autorité de tarification) (sans signe \"-\")",{"$nulls":7},{"v":0,"d":"0.00 €"}]
[null,null,"115921 (4)","Amortissements comptables excédentaires différés",{"$nulls":7},{"v":0,"d":"0.00 €"}]
[null,null,"115922 (4)","Dépenses pour congés payés",{"$nulls":7},{"v":0,"d":"0.00 €"}]
[null,null,"115923 (4)","Autres droits acquis par les salariés non provisionnés en application du 3° de l’article R 314-45",{"$nulls":7},{"v":0,"d":"0.00 €"}]
[null,null,"115928 (4)","Autres dépenses non opposables aux tiers financeurs",{"$nulls":7},{"v":0,"d":"0.00 €"}]
[null,"Affectation en réserves",106852,"Excédents et réserves affectés à l'investissement",{"$nulls":7},{"v":0,"d":"0.00 €"}]
[null,null,106855,"Excédents affectés à la couverture du besoin en fonds de roulement (réserve de trésorerie)",{"$nulls":7},{"v":0,"d":"0.00 €"}]
[null,null,"106856 (5)","Réserves de compensation des déficits",{"$nulls":7},{"v":0,"d":"0.00 €"}]
[null,null,106857,"Affectation en réserves de compensation des charges d’amortissement",{"$nulls":7},{"v":0,"d":"0.00 €"}]
[{"$nulls":3},"Reprise sur les réserves de compensation des charges d'amortissement (montant précédé du \nsigne \"-\")",{"$nulls":7},{"v":0,"d":"0.00 €"}]
[null,"B - TOTAL DES AFFECTATIONS DE RESULTAT (égal à A)",null,null,{"$f":"SUM(E21:E23)-SUM(E24:E25)+SUM(E26:E34)","v":{"v":0,"d":"0.00 €"}},{"v":0,"d":"0.00 €"},{"v":0,"d":"0.00 €"},{"v":0,"d":"0.00 €"},{"v":0,"d":"0.00 €"},{"v":0,"d":"0.00 €"},null,{"v":0,"d":"0.00 €"}]
[null,null,"Affectation complète (zone de contrôle)",null,{"$f":"IF(ROUND(E35-E18,0)=0,\"Ok\",\"Ecart de : \"&ROUND(E35-E18,2))","v":"Ok"},"Ok","Ok","Ok","Ok","Ok",null,{"$f":"IF(ROUND(L35-L18,0)=0,\"Ok\",\"Ecart de : \"&ROUND(L35-L18,2))","v":"Ok"}]
[null,"(1) Ou comptes ad hoc pour les activités sociales et médico-sociales sous gestion non contrôlée (notamment budget commercial et de production d'un ESAT)"]
[null,"(2) CRP soumis à un équilibre strict uniquement, en application notamment des articles R. 314-106 du CASF (dotations globales de financement) et R. 314-113 du CASF (prix de journée)."]
[null,"(3) Compte 11591, dans l'attente de la décision du juge de la tarification, puis 1195 (en gestion non contrôlée) après décision du juge de la tarification ou en cas de non saisine du juge de la tarification."]
[null,"(4) Mouvements débiteurs (précédés du signe \"-\" - correspondant aux augmentations sur l'exercice des dépenses dont la prise en compte est différée)  et créditeurs (correspondant aux diminutions sur l'exercice des dépenses dont la prise en compte est différée) - Compte 11592 : Affectation en report à nouveau de charges dont la prise en compte est différée (dépenses non opposables aux tiers financeurs)"]
[null,"(5) Précédé du signe \"-\" en cas de reprise sur ces réserves"]

{"sheet":"Affectation_Resultats_Prive_II","index":30,"n_rows":41,"n_cols":10,"rows_kept":41,"hidden":true,"merged":[[1,1,1,3],[3,1,4,1],[3,4,4,4],[3,5,4,5],[3,6,4,6],[3,7,4,7],[3,9,4,9],[5,1,6,1],[5,2,6,2],[8,1,8,3],[13,1,15,1],[17,2,17,3],[20,1,28,1],[29,1,33,1],[32,2,33,2],[35,2,35,3],[37,1,37,3],[38,1,38,3],[39,1,39,3],[40,1,40,3]]}
[]
[null,"ESSMS privés après la signature du CPOM uniquement, hors EHPAD relevant de l'article L. 342-1 du CASF - Détermination et affectation des résultats des ESSMS privés relevant du périmètre de l'ERRD (pour les établissements en tarification ternaire, une colonne unique)"]
[]
[null,"(Tableau à dimensionner en fonction du nombre et de la nature des ESSMS)",null,null,"Etablissement en tarification ternaire …","Autre ESSMS …","Etablissement en tarification ternaire …","Autre ESSMS …",null,"Total"]
[null,null,"N° de compte (1)","Compte"]
[null,"Résultat comptable de l'exercice = classe 6 - classe 7","1205 ou 1295","Excédent de l'exercice des activités sociales et médico-sociales sous gestion contrôlée",{"$nulls":5},{"$f":"SUM(E6:I6)","v":{"v":0,"d":"0.00 €"}}]
[{"$nulls":3},"Déficit de l'exercice des activités sociales et médico-sociales sous gestion contrôlée (sans signe \"-\")",{"$nulls":5},{"$f":"SUM(E7:I7)","v":{"v":0,"d":"0.00 €"}}]
[]
[null,"Affectation de résultats des ESSMS inclus dans le périmètre du CPOM (comptes de résultats mentionnés au 1° du II de l'article R. 314-222 du CASF)"]
[null,"Diminution de l'excédent comptable résultant du transfert vers un autre établissement ou service",{"$nulls":7},{"$f":"SUM(E10:I10)","v":{"v":0,"d":"0.00 €"}}]
[null,"Augmentation du résultat comptable résultant du transfert d'un autre établissement ou service",{"$nulls":7},{"$f":"SUM(E11:I11)","v":{"v":0,"d":"0.00 €"}}]
[]
[null,"Reports à nouveau des exercices antérieurs (2)"]
[null,"Comptes de report à nouveau des exercices antérieurs (hors gestion non contrôlée)",11502,"Report à nouveau effectué en application du 1° du I de l'article R. 314-51 du CASF",{"$nulls":5},{"$f":"SUM(E14:I14)","v":{"v":0,"d":"0.00 €"}}]
[null,null,11503,"Report à nouveau affecté au financement de mesures d'exploitation n'accroissant pas les charges d'exploitation des exercices suivants celui auquel le résultat est affecté",{"$nulls":5},{"$f":"SUM(E15:I15)","v":{"v":0,"d":"0.00 €"}}]
[null,null,115902,"Report à nouveau des activités sociales et médico-sociales  prises en charge sous gestion contrôlée (solde débiteur)  - Autres ESSMS relevant du I de l'article L. 312-1 du CASF (sans signe \"-\")",{"$nulls":5},{"$f":"SUM(E16:I16)","v":{"v":0,"d":"0.00 €"}}]
[]
[null,"A. RESULTAT A AFFECTER (précédé du signe \"-\" pour un déficit)","(Résultat administratif)",null,{"$f":"E6-E7-E10+E11+SUM(E14:E15)-E16","v":{"v":0,"d":"0.00 €"}},{"$f":"F6-F7-F10+F11+SUM(F14:F15)-F16","v":{"v":0,"d":"0.00 €"}},{"$f":"G6-G7-G10+G11+SUM(G14:G15)-G16","v":{"v":0,"d":"0.00 €"}},{"$f":"H6-H7-H10+H11+SUM(H14:H15)-H16","v":{"v":0,"d":"0.00 €"}},null,{"$f":"SUM(E18:I18)","v":{"v":0,"d":"0.00 €"}}]
[]
[null,"Affectation du résultat administratif"]
[null,"Affectations en report à nouveau ",11501,"Report à nouveau excédentaire effectué en application du b) du 1° de l'article R. 314-234 du CASF",{"$nulls":5},{"$f":"SUM(E21:I21)","v":{"v":0,"d":"0.00 €"}}]
[null,null,"11502 (2)","Report à nouveau effectué en application du 1° du I de l'article R. 314-51 du CASF",{"$nulls":5},{"v":0,"d":"0.00 €"}]
[null,null,"11503 (2)","Report à nouveau affecté au financement de mesures d'exploitation n'accroissant pas les charges d'exploitation des exercices suivants celui auquel le résultat est affecté",{"$nulls":5},{"v":0,"d":"0.00 €"}]
[null,null,11590,"Report à nouveau des activités sociales et médico-sociales  prises en charge sous gestion contrôlée (solde débiteur) (sans signe \"-\")",{"$nulls":5},{"v":0,"d":"0.00 €"}]
[null,null,"11591 ou 1195 (3)","Report à nouveau constitué de charges rejetées des activités sociales et médico-sociales (dépenses refusées par l'autorité de tarification) (sans signe \"-\")",{"$nulls":5},{"v":0,"d":"0.00 €"}]
[null,null,"115921 (4)","Amortissements comptables excédentaires différés",{"$nulls":5},{"v":0,"d":"0.00 €"}]
[null,null,"115922 (4)","Dépenses pour congés payés",{"$nulls":5},{"v":0,"d":"0.00 €"}]
[null,null,"115923 (4)","Autres droits acquis par les salariés non provisionnés en application du 3° de l’article R 314-45",{"$nulls":5},{"v":0,"d":"0.00 €"}]
[null,null,"115928 (4)","Autres dépenses non opposables aux tiers financeurs",{"$nulls":5},{"v":0,"d":"0.00 €"}]
[null,"Affectation en réserves",106852,"Excédents et réserves affectés à l'investissement",{"$nulls":5},{"v":0,"d":"0.00 €"}]
[null,null,106855,"Excédents affectés à la couverture du besoin en fonds de roulement (réserve de trésorerie)",{"$nulls":5},{"v":0,"d":"0.00 €"}]
[null,null,"106856 (5)","Réserves de compensation des déficits",{"$nulls":5},{"v":0,"d":"0.00 €"}]
[null,null,106857,"Affectation en réserves de compensation des charges d’amortissement",{"$nulls":5},{"v":0,"d":"0.00 €"}]
[{"$nulls":3},"Reprise sur les réserves de compensation des charges d'amortissement (montant précédé du \nsigne \"-\")",{"$nulls":5},{"v":0,"d":"0.00 €"}]
[null,"B - TOTAL DES AFFECTATIONS DE RESULTAT (égal à A)",null,null,{"$f":"SUM(E21:E23)-SUM(E24:E25)+SUM(E26:E34)","v":{"v":0,"d":"0.00 €"}},{"$f":"SUM(F21:F23)-SUM(F24:F25)+SUM(F26:F34)","v":{"v":0,"d":"0.00 €"}},{"$f":"SUM(G21:G23)-SUM(G24:G25)+SUM(G26:G34)","v":{"v":0,"d":"0.00 €"}},{"$f":"SUM(H21:H23)-SUM(H24:H25)+SUM(H26:H34)","v":{"v":0,"d":"0.00 €"}},null,{"v":0,"d":"0.00 €"}]
[null,null,"Affectation complète (zone de contrôle)",null,{"$f":"IF(ROUND(E35-E18,0)=0,\"Ok\",\"Ecart de : \"&ROUND(E35-E18,2))","v":"Ok"},{"$f":"IF(ROUND(F35-F18,0)=0,\"Ok\",\"Ecart de : \"&ROUND(F35-F18,2))","v":"Ok"},{"$f":"IF(ROUND(G35-G18,0)=0,\"Ok\",\"Ecart de : \"&ROUND(G35-G18,2))","v":"Ok"},{"$f":"IF(ROUND(H35-H18,0)=0,\"Ok\",\"Ecart de : \"&ROUND(H35-H18,2))","v":"Ok"},null,{"$f":"IF(ROUND(J35-J18,0)=0,\"Ok\",\"Ecart de : \"&ROUND(J35-J18,2))","v":"Ok"}]
[null,"(1) Ou comptes ad hoc pour les activités sociales et médico-sociales sous gestion non contrôlée (notamment budget commercial et de production d'un ESAT)"]
[null,"(2) CRP soumis à un équilibre strict uniquement, en application notamment des articles R. 314-106 du CASF (dotations globales de financement) et R. 314-113 du CASF (prix de journée)."]
[null,"(3) Compte 11591, dans l'attente de la décision du juge de la tarification, puis 1195 (en gestion non contrôlée) après décision du juge de la tarification ou en cas de non saisine du juge de la tarification."]
[null,"(4) Mouvements débiteurs (précédés du signe \"-\" - correspondant aux augmentations sur l'exercice des dépenses dont la prise en compte est différée)  et créditeurs (correspondant aux diminutions sur l'exercice des dépenses dont la prise en compte est différée) - Compte 11592 : Affectation en report à nouveau de charges dont la prise en compte est différée (dépenses non opposables aux tiers financeurs)"]
[null,"(5) Précédé du signe \"-\" en cas de reprise sur ces réserves"]

{"sheet":"Affectation_Resultats_Public_I","index":31,"n_rows":34,"n_cols":12,"rows_kept":34,"hidden":true,"merged":[[1,1,1,3],[4,1,5,1],[4,4,4,5],[4,6,5,6],[4,7,4,8],[4,9,5,9],[4,11,5,11],[6,1,7,1],[6,2,7,2],[10,1,11,1],[13,2,13,3],[16,1,17,1],[18,1,22,1],[21,2,22,2],[24,2,24,3],[32,1,32,3],[33,1,33,3]]}
[]
[null,"ESSMS publics avant signature du CPOM uniquement - Détermination et affectation des résultats des ESSMS publics relevant du périmètre de l'ERRD (pour les établissements en tarification ternaire, une colonne pour les sections \"soins\" et \"dépendance\" et une colonne pour la section \"hébergement\")"]
[]
[null,"1. Détermination et affectation des résultats :"]
[null,"(Tableau à dimensionner en fonction du nombre et de la nature des ESSMS)",null,null,"Etablissement en tarification ternaire …",null,"Autre ESSMS …","Etablissement en tarification ternaire …",null,"Autre ESSMS …",null,"Total"]
[null,null,"N° de compte","Compte","Soins et dépendance","Hébergement ",null,"Soins et dépendance","Hébergement "]
[null,"Résultat comptable de l'exercice = classe 6 - classe 7",12,"Excédent",{"$nulls":7},{"$f":"SUM(E7:K7)","v":{"v":0,"d":"0.00 €"}}]
[{"$nulls":3},"Déficit (sans signe \"-\")",{"$nulls":7},{"$f":"SUM(E8:K8)","v":{"v":0,"d":"0.00 €"}}]
[]
[null,"Reports à nouveau des exercices antérieurs (1)"]
[null,"Comptes de report à nouveau des exercices antérieurs",110,"Report à nouveau (solde créditeur)",{"$nulls":7},{"$f":"SUM(E11:K11)","v":{"v":0,"d":"0.00 €"}}]
[null,null,119,"Report à nouveau (solde débiteur) (sans signe \"-\")",{"$nulls":7},{"$f":"SUM(E12:K12)","v":{"v":0,"d":"0.00 €"}}]
[]
[null,"A. RESULTAT A AFFECTER (précédé du signe \"-\" pour un déficit)","(Résultat administratif)",null,{"$f":"E7-E8+E11-E12","v":{"v":0,"d":"0.00 €"}},{"v":0,"d":"0.00 €"},{"v":0,"d":"0.00 €"},{"v":0,"d":"0.00 €"},{"v":0,"d":"0.00 €"},{"v":0,"d":"0.00 €"},null,{"$f":"SUM(E14:K14)","v":{"v":0,"d":"0.00 €"}}]
[]
[null,"Affectation du résultat administratif"]
[null,"Affectations en report à nouveau ",110,"Report à nouveau (solde créditeur)",{"$nulls":7},{"$f":"SUM(E17:K17)","v":{"v":0,"d":"0.00 €"}}]
[null,null,119,"Report à nouveau (solde débiteur) (sans signe \"-\")",{"$nulls":7},{"v":0,"d":"0.00 €"}]
[null,"Affectation en réserves",10682,"Réserves affectées à l'investissement",{"$nulls":7},{"v":0,"d":"0.00 €"}]
[null,null,10685,"Excédents affectés à la couverture du besoin en fonds de roulement (réserve de trésorerie)",{"$nulls":7},{"v":0,"d":"0.00 €"}]
[null,null,"10686 (2)","Réserves de compensation des déficits",{"$nulls":7},{"v":0,"d":"0.00 €"}]
[null,null,10687,"Affectation en réserves de compensation des charges d'amortissement",{"$nulls":7},{"v":0,"d":"0.00 €"}]
[{"$nulls":3},"Reprise sur les réserves de compensation des charges d'amortissement (montant précédé du \nsigne \"-\")",{"$nulls":7},{"v":0,"d":"0.00 €"}]
[null,"B - TOTAL DES AFFECTATIONS DE RESULTAT (égal à A)",null,null,{"$f":"E17-E18+SUM(E19:E23)","v":{"v":0,"d":"0.00 €"}},{"v":0,"d":"0.00 €"},{"v":0,"d":"0.00 €"},{"v":0,"d":"0.00 €"},{"v":0,"d":"0.00 €"},{"v":0,"d":"0.00 €"},null,{"$f":"SUM(E24:K24)","v":{"v":0,"d":"0.00 €"}}]
[null,null,"Affectation complète (zone de contrôle)",null,{"$f":"IF(ROUND(E24-E14,0)=0,\"Ok\",\"Ecart de : \"&ROUND(E24-E14,2))","v":"Ok"},"Ok","Ok","Ok","Ok","Ok",null,{"$f":"IF(ROUND(L24-L14,0)=0,\"Ok\",\"Ecart de : \"&ROUND(L24-L14,2))","v":"Ok"}]
[]
[null,"2. Suivi des dépenses rejetées par l'autorité de tarification en application des article L. 313-14-2 et R. 314-236 du CASF"]
[]
[null,"Dépenses rejetées sur l'exercice par l'autorité de tarification (seront portées en diminution du tarif N+1 ou N+2)",{"$nulls":9},{"$f":"SUM(E29:K29)","v":{"v":0,"d":"0.00 €"}}]
[]
[null,"Rappel du montant cumulé des dépenses rejetées à la clôture de l'exercice précédent",{"$nulls":9},{"$f":"SUM(E31:K31)","v":{"v":0,"d":"0.00 €"}}]
[]
[null,"(1) CRP soumis à un équilibre strict uniquement, en application  notamment des articles R. 314-106 du CASF (dotations globales de financement) et R. 314-113 du CASF (prix de journée)."]
[null,"(2) : Précédé du signe \"-\" en cas de reprise sur ces réserves"]

{"sheet":"Affectation_Resultats_Public_II","index":32,"n_rows":34,"n_cols":10,"rows_kept":34,"hidden":true,"merged":[[1,1,1,3],[4,1,5,1],[4,4,5,4],[4,5,5,5],[4,6,5,6],[4,7,5,7],[4,9,5,9],[6,1,7,1],[6,2,7,2],[10,1,11,1],[13,2,13,3],[16,1,17,1],[18,1,22,1],[21,2,22,2],[24,2,24,3],[32,1,32,3],[33,1,33,3]]}
[]
[null,"ESSMS publics après la signature du CPOM uniquement - Détermination et affectation des résultats des ESSMS publics relevant du périmètre de l'ERRD (pour les établissements en tarification ternaire, une colonne unique)"]
[]
[null,"1. Détermination et affectation des résultats :"]
[null,"(Tableau à dimensionner en fonction du nombre et de la nature des ESSMS)",null,null,"Etablissement en tarification ternaire …","Autre ESSMS …","Etablissement en tarification ternaire …","Autre ESSMS …",null,"Total"]
[null,null,"N° de compte","Compte"]
[null,"Résultat comptable de l'exercice = classe 6 - classe 7",12,"Excédent",{"$nulls":5},{"$f":"SUM(E7:I7)","v":{"v":0,"d":"0.00 €"}}]
[{"$nulls":3},"Déficit (sans signe \"-\")",{"$nulls":5},{"$f":"SUM(E8:I8)","v":{"v":0,"d":"0.00 €"}}]
[]
[null,"Reports à nouveau des exercices antérieurs (1)"]
[null,"Comptes de report à nouveau des exercices antérieurs",110,"Report à nouveau (solde créditeur)",{"$nulls":5},{"$f":"SUM(E11:I11)","v":{"v":0,"d":"0.00 €"}}]
[null,null,119,"Report à nouveau (solde débiteur) (sans signe \"-\")",{"$nulls":5},{"$f":"SUM(E12:I12)","v":{"v":0,"d":"0.00 €"}}]
[]
[null,"A. RESULTAT A AFFECTER (précédé du signe \"-\" pour un déficit)","(Résultat administratif)",null,{"$f":"E7-E8+E11-E12","v":{"v":0,"d":"0.00 €"}},{"$f":"F7-F8+F11-F12","v":{"v":0,"d":"0.00 €"}},{"$f":"G7-G8+G11-G12","v":{"v":0,"d":"0.00 €"}},{"$f":"H7-H8+H11-H12","v":{"v":0,"d":"0.00 €"}},null,{"$f":"SUM(E14:I14)","v":{"v":0,"d":"0.00 €"}}]
[]
[null,"Affectation du résultat administratif"]
[null,"Affectations en report à nouveau ",110,"Report à nouveau (solde créditeur)",{"$nulls":5},{"$f":"SUM(E17:I17)","v":{"v":0,"d":"0.00 €"}}]
[null,null,119,"Report à nouveau (solde débiteur) (sans signe \"-\")",{"$nulls":5},{"v":0,"d":"0.00 €"}]
[null,"Affectation en réserves",10682,"Réserves affectées à l'investissement",{"$nulls":5},{"v":0,"d":"0.00 €"}]
[null,null,10685,"Excédents affectés à la couverture du besoin en fonds de roulement (réserve de trésorerie)",{"$nulls":5},{"v":0,"d":"0.00 €"}]
[null,null,"10686 (2)","Réserves de compensation des déficits",{"$nulls":5},{"v":0,"d":"0.00 €"}]
[null,null,10687,"Affectation en réserves de compensation des charges d'amortissement",{"$nulls":5},{"v":0,"d":"0.00 €"}]
[{"$nulls":3},"Reprise sur les réserves de compensation des charges d'amortissement (montant précédé du \nsigne \"-\")",{"$nulls":5},{"v":0,"d":"0.00 €"}]
[null,"B - TOTAL DES AFFECTATIONS DE RESULTAT (égal à A)",null,null,{"$f":"E17-E18+SUM(E19:E23)","v":{"v":0,"d":"0.00 €"}},{"$f":"F17-F18+SUM(F19:F23)","v":{"v":0,"d":"0.00 €"}},{"$f":"G17-G18+SUM(G19:G23)","v":{"v":0,"d":"0.00 €"}},{"$f":"H17-H18+SUM(H19:H23)","v":{"v":0,"d":"0.00 €"}},null,{"v":0,"d":"0.00 €"}]
[null,null,"Affectation complète (zone de contrôle)",null,{"$f":"IF(ROUND(E24-E14,0)=0,\"Ok\",\"Ecart de : \"&ROUND(E24-E14,2))","v":"Ok"},{"$f":"IF(ROUND(F24-F14,0)=0,\"Ok\",\"Ecart de : \"&ROUND(F24-F14,2))","v":"Ok"},{"$f":"IF(ROUND(G24-G14,0)=0,\"Ok\",\"Ecart de : \"&ROUND(G24-G14,2))","v":"Ok"},{"$f":"IF(ROUND(H24-H14,0)=0,\"Ok\",\"Ecart de : \"&ROUND(H24-H14,2))","v":"Ok"},null,{"$f":"IF(ROUND(J24-J14,0)=0,\"Ok\",\"Ecart de : \"&ROUND(J24-J14,2))","v":"Ok"}]
[]
[null,"2. Suivi des dépenses rejetées par l'autorité de tarification en application des article L. 313-14-2 et R. 314-236 du CASF"]
[]
[null,"Dépenses rejetées sur l'exercice par l'autorité de tarification (seront portées en diminution du tarif N+1 ou N+2)",{"$nulls":7},{"$f":"SUM(E29:I29)","v":{"v":0,"d":"0.00 €"}}]
[]
[null,"Rappel du montant cumulé des dépenses rejetées à la clôture de l'exercice précédent",{"$nulls":7},{"$f":"SUM(E31:I31)","v":{"v":0,"d":"0.00 €"}}]
[]
[null,"(1) CRP soumis à un équilibre strict uniquement, en application  notamment des articles R. 314-106 du CASF (dotations globales de financement) et R. 314-113 du CASF (prix de journée)."]
[null,"(2) : Précédé du signe \"-\" en cas de reprise sur ces réserves"]

{"sheet":"Suivi_Affect_Result_Prive_I","index":33,"n_rows":19,"n_cols":13,"rows_kept":19,"hidden":true,"merged":[[1,1,1,12],[3,3,3,5],[3,6,3,8],[3,10,3,12]]}
[]
[null,"I- Suivi de l'affectation des résultats des ESSMS privés sur le périmètre de l'ERRD : établissements et services privés avant la signature du CPOM ou lorsque ce contrat ne prévoit pas une libre affectation des résultats entre les comptes de résultat"]
[]
[{"$nulls":3},"Etablissement",null,null,"Etablissement",{"$nulls":3},"Total des établissements du périmètre de l'ERRD"]
[null,"N° de compte","Compte",{"$f":"IF('Page de garde'!$D$4=\"\",\"Solde du compte au 31 décembre N (incluant l'affectation des résultats N-1)\",\"Solde du compte au 31 décembre \"&'Page de garde'!$D$4&\" (incluant l'affectation des résultats \"&'Page de garde'!$D$4-1&\")\" )","v":"Solde du compte au 31 décembre N (incluant l'affectation des résultats N-1)"},{"$f":"IF('Page de garde'!$D$4=\"\",\"Mouvements au titre de l'exercice N (affectés en N+1)\",\"Mouvements au titre de l'exercice \"&'Page de garde'!$D$4&\" (affectés en \"&'Page de garde'!$D$4+1&\")\" )","v":"Mouvements au titre de l'exercice N (affectés en N+1)"},{"$f":"IF('Page de garde'!$D$4=\"\",\"Solde du compte au 31 décembre N+1 (incluant l'affectation des résultats N)\",\"Solde du compte au 31 décembre \"&'Page de garde'!$D$4+1&\" (incluant l'affectation des résultats \"&'Page de garde'!$D$4&\")\" )","v":"Solde du compte au 31 décembre N+1 (incluant l'affectation des résultats N)"},{"$f":"IF('Page de garde'!$D$4=\"\",\"Solde du compte au 31 décembre N (incluant l'affectation des résultats N-1)\",\"Solde du compte au 31 décembre \"&'Page de garde'!$D$4&\" (incluant l'affectation des résultats \"&'Page de garde'!$D$4-1&\")\" )","v":"Solde du compte au 31 décembre N (incluant l'affectation des résultats N-1)"},{"$f":"IF('Page de garde'!$D$4=\"\",\"Mouvements au titre de l'exercice N (affectés en N+1)\",\"Mouvements au titre de l'exercice \"&'Page de garde'!$D$4&\" (affectés en \"&'Page de garde'!$D$4+1&\")\" )","v":"Mouvements au titre de l'exercice N (affectés en N+1)"},{"$f":"IF('Page de garde'!$D$4=\"\",\"Solde du compte au 31 décembre N+1 (incluant l'affectation des résultats N)\",\"Solde du compte au 31 décembre \"&'Page de garde'!$D$4+1&\" (incluant l'affectation des résultats \"&'Page de garde'!$D$4&\")\" )","v":"Solde du compte au 31 décembre N+1 (incluant l'affectation des résultats N)"},null,{"$f":"IF('Page de garde'!$D$4=\"\",\"Solde du compte au 31 décembre N (incluant l'affectation des résultats N-1)\",\"Solde du compte au 31 décembre \"&'Page de garde'!$D$4&\" (incluant l'affectation des résultats \"&'Page de garde'!$D$4-1&\")\" )","v":"Solde du compte au 31 décembre N (incluant l'affectation des résultats N-1)"},{"$f":"IF('Page de garde'!$D$4=\"\",\"Mouvements au titre de l'exercice N (affectés en N+1)\",\"Mouvements au titre de l'exercice \"&'Page de garde'!$D$4&\" (affectés en \"&'Page de garde'!$D$4+1&\")\" )","v":"Mouvements au titre de l'exercice N (affectés en N+1)"},{"$f":"IF('Page de garde'!$D$4=\"\",\"Solde du compte au 31 décembre N+1 (incluant l'affectation des résultats N)\",\"Solde du compte au 31 décembre \"&'Page de garde'!$D$4+1&\" (incluant l'affectation des résultats \"&'Page de garde'!$D$4&\")\" )","v":"Solde du compte au 31 décembre N+1 (incluant l'affectation des résultats N)"}]
[null,11501,"Report à nouveau excédentaire effectué en application du b) du 1° de l'article R. 314-234 du CASF",null,null,{"$f":"D6+E6","v":{"v":0,"d":"0.00 €"}},null,null,{"$f":"G6+H6","v":{"v":0,"d":"0.00 €"}},null,{"$f":"SUMIF($C$5:$J$5,K$5,$C6:$J6)","v":{"v":0,"d":"0.00 €"}},{"v":0,"d":"0.00 €"},{"$f":"K6+L6","v":{"v":0,"d":"0.00 €"}}]
[null,"11502 (1)","Report à nouveau effectué en application du 1° du I de l'article R. 314-51 du CASF",null,null,{"v":0,"d":"0.00 €"},null,null,{"v":0,"d":"0.00 €"},null,{"v":0,"d":"0.00 €"},{"v":0,"d":"0.00 €"},{"$f":"K7+L7","v":{"v":0,"d":"0.00 €"}}]
[null,"11503 (1)","Report à nouveau affecté au financement de mesures d'exploitation n'accroissant pas les charges d'exploitation des exercices suivants celui auquel le résultat est affecté",null,null,{"v":0,"d":"0.00 €"},null,null,{"v":0,"d":"0.00 €"},null,{"v":0,"d":"0.00 €"},{"v":0,"d":"0.00 €"},{"v":0,"d":"0.00 €"}]
[null,11590,"Report à nouveau des activités sociales et médico-sociales  prises en charge sous gestion contrôlée (solde débiteur)  (sans signe \"-\")",null,null,{"v":0,"d":"0.00 €"},null,null,{"v":0,"d":"0.00 €"},null,{"v":0,"d":"0.00 €"},{"v":0,"d":"0.00 €"},{"v":0,"d":"0.00 €"}]
[null,"11591 / 1195","Report à nouveau constitué de charges rejetées des activités sociales et médico-sociales (dépenses refusées par l'autorité de tarification)",null,null,{"v":0,"d":"0.00 €"},null,null,{"v":0,"d":"0.00 €"},null,{"v":0,"d":"0.00 €"},{"v":0,"d":"0.00 €"},{"v":0,"d":"0.00 €"}]
[null,115921,"Amortissements comptables excédentaires différés",null,null,{"v":0,"d":"0.00 €"},null,null,{"v":0,"d":"0.00 €"},null,{"v":0,"d":"0.00 €"},{"v":0,"d":"0.00 €"},{"v":0,"d":"0.00 €"}]
[null,115922,"Dépenses pour congés payés",null,null,{"v":0,"d":"0.00 €"},null,null,{"v":0,"d":"0.00 €"},null,{"v":0,"d":"0.00 €"},{"v":0,"d":"0.00 €"},{"v":0,"d":"0.00 €"}]
[null,115923,"Autres droits acquis par les salariés non provisionnés en application du 3° de l’article R 314-45",null,null,{"v":0,"d":"0.00 €"},null,null,{"v":0,"d":"0.00 €"},null,{"v":0,"d":"0.00 €"},{"v":0,"d":"0.00 €"},{"v":0,"d":"0.00 €"}]
[null,115928,"Autres dépenses non opposables aux tiers financeurs",null,null,{"v":0,"d":"0.00 €"},null,null,{"v":0,"d":"0.00 €"},null,{"v":0,"d":"0.00 €"},{"v":0,"d":"0.00 €"},{"v":0,"d":"0.00 €"}]
[null,106852,"Excédents et réserves affectés à l'investissement",null,null,{"v":0,"d":"0.00 €"},null,null,{"v":0,"d":"0.00 €"},null,{"v":0,"d":"0.00 €"},{"v":0,"d":"0.00 €"},{"v":0,"d":"0.00 €"}]
[null,106855,"Excédents affectés à la couverture du besoin en fonds de roulement (réserve de trésorerie)",null,null,{"v":0,"d":"0.00 €"},null,null,{"v":0,"d":"0.00 €"},null,{"v":0,"d":"0.00 €"},{"v":0,"d":"0.00 €"},{"v":0,"d":"0.00 €"}]
[null,106856,"Réserves de compensation des déficits",null,null,{"v":0,"d":"0.00 €"},null,null,{"v":0,"d":"0.00 €"},null,{"v":0,"d":"0.00 €"},{"v":0,"d":"0.00 €"},{"v":0,"d":"0.00 €"}]
[null,106857,"Affectation en réserves de compensation des charges d’amortissement",null,null,{"v":0,"d":"0.00 €"},null,null,{"v":0,"d":"0.00 €"},null,{"v":0,"d":"0.00 €"},{"v":0,"d":"0.00 €"},{"$f":"K18+L18","v":{"v":0,"d":"0.00 €"}}]
[null,"(1) CRP soumis à équilibre strict uniquement"]

{"sheet":"Suivi_Affect_Result_Prive_II","index":34,"n_rows":19,"n_cols":6,"rows_kept":19,"hidden":true,"merged":[[1,1,1,5]]}
[]
[null,"II- Suivi de l'affectation des résultats des ESSMS privés sur le périmètre de l'ERRD : établissements et services privés après signature d'un CPOM prévoyant la libre affectation des résultats entre les différents comptes de résultat"]
[]
[]
[null,"N° de compte","Compte",{"$f":"IF('Page de garde'!$D$4=\"\",\"Solde du compte au 31 décembre N (incluant l'affectation des résultats N-1)\",\"Solde du compte au 31 décembre \"&'Page de garde'!$D$4&\" (incluant l'affectation des résultats \"&'Page de garde'!$D$4-1&\")\" )","v":"Solde du compte au 31 décembre N (incluant l'affectation des résultats N-1)"},{"$f":"IF('Page de garde'!$D$4=\"\",\"Mouvements au titre de l'exercice N (affectés en N+1)\",\"Mouvements au titre de l'exercice \"&'Page de garde'!$D$4&\" (affectés en \"&'Page de garde'!$D$4+1&\")\" )","v":"Mouvements au titre de l'exercice N (affectés en N+1)"},{"$f":"IF('Page de garde'!$D$4=\"\",\"Solde du compte au 31 décembre N+1 (incluant l'affectation des résultats N)\",\"Solde du compte au 31 décembre \"&'Page de garde'!$D$4+1&\" (incluant l'affectation des résultats \"&'Page de garde'!$D$4&\")\" )","v":"Solde du compte au 31 décembre N+1 (incluant l'affectation des résultats N)"}]
[null,11501,"Report à nouveau excédentaire effectué en application du b) du 1° de l'article R. 314-234 du CASF",null,null,{"$f":"D6+E6","v":{"v":0,"d":"0.00 €"}}]
[null,"11502 (1)","Report à nouveau effectué en application du 1° du I de l'article R. 314-51 du CASF",null,null,{"$f":"D7+E7","v":{"v":0,"d":"0.00 €"}}]
[null,"11503 (1)","Report à nouveau affecté au financement de mesures d'exploitation n'accroissant pas les charges d'exploitation des exercices suivants celui auquel le résultat est affecté",null,null,{"v":0,"d":"0.00 €"}]
[null,11590,"Report à nouveau des activités sociales et médico-sociales  prises en charge sous gestion contrôlée (solde débiteur)  (sans signe \"-\")",null,null,{"v":0,"d":"0.00 €"}]
[null,"11591 / 1195","Report à nouveau constitué de charges rejetées des activités sociales et médico-sociales (dépenses refusées par l'autorité de tarification)",null,null,{"v":0,"d":"0.00 €"}]
[null,115921,"Amortissements comptables excédentaires différés",null,null,{"v":0,"d":"0.00 €"}]
[null,115922,"Dépenses pour congés payés",null,null,{"v":0,"d":"0.00 €"}]
[null,115923,"Autres droits acquis par les salariés non provisionnés en application du 3° de l’article R 314-45",null,null,{"v":0,"d":"0.00 €"}]
[null,115928,"Autres dépenses non opposables aux tiers financeurs",null,null,{"v":0,"d":"0.00 €"}]
[null,106852,"Excédents et réserves affectés à l'investissement",null,null,{"v":0,"d":"0.00 €"}]
[null,106855,"Excédents affectés à la couverture du besoin en fonds de roulement (réserve de trésorerie)",null,null,{"v":0,"d":"0.00 €"}]
[null,106856,"Réserves de compensation des déficits",null,null,{"v":0,"d":"0.00 €"}]
[null,106857,"Affectation en réserves de compensation des charges d’amortissement",null,null,{"$f":"D18+E18","v":{"v":0,"d":"0.00 €"}}]
[null,"(1) CRP soumis à équilibre strict uniquement"]

{"sheet":"Suivi_Affect_Result_Public","index":35,"n_rows":11,"n_cols":6,"rows_kept":11,"hidden":true,"merged":[[1,1,1,5]]}
[]
[null,"III- Suivi de l'affectation des résultats des ESSMS publics sur le périmètre de l'ERRD"]
[]
[]
[null,"N° de compte","Compte",{"$f":"IF('Page de garde'!$D$4=\"\",\"Solde du compte au 31 décembre N (incluant l'affectation des résultats N-1)\",\"Solde du compte au 31 décembre \"&'Page de garde'!$D$4&\" (incluant l'affectation des résultats \"&'Page de garde'!$D$4-1&\")\" )","v":"Solde du compte au 31 décembre N (incluant l'affectation des résultats N-1)"},{"$f":"IF('Page de garde'!$D$4=\"\",\"Mouvements au titre de l'exercice N (affectés en N+1)\",\"Mouvements au titre de l'exercice \"&'Page de garde'!$D$4&\" (affectés en \"&'Page de garde'!$D$4+1&\")\" )","v":"Mouvements au titre de l'exercice N (affectés en N+1)"},{"$f":"IF('Page de garde'!$D$4=\"\",\"Solde du compte au 31 décembre N+1 (incluant l'affectation des résultats N)\",\"Solde du compte au 31 décembre \"&'Page de garde'!$D$4+1&\" (incluant l'affectation des résultats \"&'Page de garde'!$D$4&\")\" )","v":"Solde du compte au 31 décembre N+1 (incluant l'affectation des résultats N)"}]
[null,10682,"Réserves affectées à l’investissement",null,null,{"$f":"D6+E6","v":{"v":0,"d":"0.00 €"}}]
[null,10685,"Excédents affectés à la couverture du besoin en fonds de roulement (réserve de trésorerie)",null,null,{"v":0,"d":"0.00 €"}]
[null,10686,"Compensation des déficits d'exploitation",null,null,{"v":0,"d":"0.00 €"}]
[null,10687,"Compensation des charges d’amortissement",null,null,{"v":0,"d":"0.00 €"}]
[null,110,"Report à nouveau (solde créditeur)",null,null,{"v":0,"d":"0.00 €"}]
[null,119,"Report à nouveau (solde débiteur)",null,null,{"v":0,"d":"0.00 €"}]